Workbook

Sheet CALCULADORA
B1: Exclusión de responsabilidad | H1: Valor nominal negociado
H2: TIPS N13 A
H3: TIPS N14 A
H4: TIPS N16 A
H5: TIPS N17 A
H6: TIPS N18 A 2034
B7: Calculadora Emisiones TIPS en Pesos | H7: TIPS N19 A 2034
H8: TIPS N20 A 2034
B9: Emisión | C9: TIPS N23 A | E9: Seleccionar la Emisión a Calcular | H9: TIPS N21 A
H10: TIPS N22 A
B11: Características | H11: TIPS N23 A
B12: Identificación titulo (Nemotécnico) | C12: =+HLOOKUP(C9,Características!B1:M7,2,FALSE) -> INST15180739 | H12: TIPS N24 A1 2029
B13: Fecha de Emisión | C13: =+HLOOKUP(C9,Características!B1:M7,4,FALSE) -> 2024-07-18 | H13: TIPS N24 A2 2039
B14: Fecha de Vencimiento Contractual | C14: =+HLOOKUP(C9,Características!B1:M7,5,FALSE) -> 2039-07-18
B15: Fecha estimada para el pago del 100% del título | C15: =+VLOOKUP(0,Flujos!D2:J182,6,FALSE) -> 2032-02-18
B16: Tasa Facial Efectiva Anual | C16: =+HLOOKUP(C9,Características!B1:M7,6,FALSE) -> 0.1165
B17: Tasa Facial Nominal Anual | C17: =+ROUND(((1+C16)^(1/12)-1)*12,6) -> 0.110706
B18: Duración Macaulay | C18: =+SUMPRODUCT(Flujos!B2:B182,Flujos!H2:H182)/Flujos!H183/365 -> 1.682129453
B19: Nominal Inicial (Nominal del título al momento de la emisión) | C19: =Flujos!L2 -> 6.171187137e+10
B22: Datos de Compra | D22: Fecha de Compra y Valor de Compra son datos opcionales deben incluirse solo para calcular la TIR de Tenencia
B23: Fecha de Compra | C23: 2024-03-07
B24: Valor de Compra (COP) | C24: 15000000000
B26: Datos de Venta
B27: Fecha de Venta | C27: 2025-02-01 | E27: Incluir los datos de las celdas grises
B28: Valor nominal a negociar (COP) | C28: 49630124223
B29: Tasa de negociación / tasa de valoración | C29: 0.1054
B30: Precio Limpio (sin incluir intereses causados)
B31: Precio sucio (incluyendo intereses causados) | C31: 100.028
A32: =+Flujos!C183*100 -> 80.422329 | B32: Porcentaje del nominal inicial que falta por pagar del capital | C32: =+Flujos!C183*100/100 -> 0.80422329
B33: Valor de Giro (COP) | C33: =+Características!B32 -> 50889240475
B35: TIR de Tenencia en COP* | C35: =+'TIR de Tenencia'!K2 -> 0.7290946364
B37: Oficina de Atención a Inversionistas al 601 618 3030 ext 257 - 239, o al correo asalcedo@titularizadora.com - josorio@titularizadora.com
C43: 1

Sheet Flujos
A1: Fecha | B1: Días 365 / Days 365 | C1: Amortización / Amortization | D1: Factor Saldo | E1: Factor Capital | F1: Factor Intereses | G1: Factor Total | H1: VPN | I1: Control | J1: Mes inicial | K1: Días iniciales | L1: Saldo / Balance | M1: Pago de Capital | N1: Pago de Intereses | O1: Pago Total
A2: =+CALCULADORA!C13 -> 2024-07-18 | B2: =IF(DIAS365(CALCULADORA!$C$27,A2)<0,0,DIAS365(CALCULADORA!$C$27,A2)) -> 0 | C2: 0 | D2: =+CALCULADORA!A32/Flujos!C183 -> 100 | E2: 0 | F2: 0 | G2: =F2+E2 -> 0 | H2: =IF($B2<0,0,G2/POWER(1+CALCULADORA!$C$29,Flujos!$B2/365)) -> 0 | I2: =+A2 -> 2024-07-18 | J2: 0 | K2: 0 | L2: =+Características!B18/Flujos!C183 -> 6.171187137e+10 | M2: 0 | N2: 0 | O2: =+N2+M2 -> 0
A3: =EDATE(A2,1) -> 2024-08-18 | B3: =IF(DIAS365(CALCULADORA!$C$27,A3)<0,0,DIAS365(CALCULADORA!$C$27,A3)) -> 0 | C3: =+HLOOKUP(CALCULADORA!$C$9,Tablas!B:B,Flujos!J3+1,FALSE) -> 0.02708248 | D3: =+ROUND(D2-E3,6) -> 97.291752 | E3: =ROUND(C3*$D$2,6) -> 2.708248 | F3: =ROUND(D2*ROUND(((1+CALCULADORA!$C$16)^(1/12)-1),6),6) -> 0.9226 | G3: =F3+E3 -> 3.630848 | H3: =IF($B3=0,0,G3/POWER(1+CALCULADORA!$C$29,Flujos!$B3/365)) -> 0 | I3: =+A3 -> 2024-08-18 | J3: 1 | K3: =+DIAS365($A$2,A3) -> 31 | L3: =+L2-M3 -> 6.004056085e+10 | M3: =+$L$2*C3 -> 1671310522 | N3: =+L2*$F$3% -> 569353725.2 | O3: =+N3+M3 -> 2240664247
A4: =EDATE(A3,1) -> 2024-09-18 | B4: =IF(DIAS365(CALCULADORA!$C$27,A4)<0,0,DIAS365(CALCULADORA!$C$27,A4)) -> 0 | C4: =+HLOOKUP(CALCULADORA!$C$9,Tablas!B:B,Flujos!J4+1,FALSE) -> 0.02840141 | D4: =+ROUND(D3-E4,6) -> 94.451611 | E4: =ROUND(C4*$D$2,6) -> 2.840141 | F4: =ROUND(D3*ROUND(((1+CALCULADORA!$C$16)^(1/12)-1),6),6) -> 0.897614 | G4: =F4+E4 -> 3.737755 | H4: =IF($B4=0,0,G4/POWER(1+CALCULADORA!$C$29,Flujos!$B4/365)) -> 0 | I4: 2024-09-18 | J4: 2 | K4: =+DIAS365($A$2,A4) -> 62 | L4: =+L3-M4 -> 5.828785668e+10 | M4: =+$L$2*C4 -> 1752704161 | N4: =+L3*$F$3% -> 553934214.4 | O4: =+N4+M4 -> 2306638375
A5: 2024-10-18 | B5: =IF(DIAS365(CALCULADORA!$C$27,A5)<0,0,DIAS365(CALCULADORA!$C$27,A5)) -> 0 | C5: =+HLOOKUP(CALCULADORA!$C$9,Tablas!B:B,Flujos!J5+1,FALSE) -> 0.03572706 | D5: =+ROUND(D4-E5,6) -> 90.878905 | E5: 3.572706 | F5: =ROUND(D4*ROUND(((1+CALCULADORA!$C$16)^(1/12)-1),6),6) -> 0.871411 | G5: 4.444117 | H5: =IF($B5=0,0,G5/POWER(1+CALCULADORA!$C$29,Flujos!$B5/365)) -> 0 | I5: 2024-10-18 | J5: 3 | K5: =+DIAS365($A$2,A5) -> 92 | L5: 5.608307295e+10 | M5: 2204783731 | N5: 537763765.8 | O5: 2742547497
A6: 2024-11-18 | B6: =IF(DIAS365(CALCULADORA!$C$27,A6)<0,0,DIAS365(CALCULADORA!$C$27,A6)) -> 0 | C6: =+HLOOKUP(CALCULADORA!$C$9,Tablas!B:B,Flujos!J6+1,FALSE) -> 0.03643388 | D6: 87.235517 | E6: 3.643388 | F6: =ROUND(D5*ROUND(((1+CALCULADORA!$C$16)^(1/12)-1),6),6) -> 0.838449 | G6: 4.481837 | H6: =IF($B6=0,0,G6/POWER(1+CALCULADORA!$C$29,Flujos!$B6/365)) -> 0 | I6: 2024-11-18 | J6: 4 | K6: =+DIAS365($A$2,A6) -> 123 | L6: 5.383467004e+10 | M6: 2248402916 | N6: 517422431.1 | O6: 2765825347
A7: 2024-12-18 | B7: =IF(DIAS365(CALCULADORA!$C$27,A7)<0,0,DIAS365(CALCULADORA!$C$27,A7)) -> 0 | C7: =+HLOOKUP(CALCULADORA!$C$9,Tablas!B:B,Flujos!J7+1,FALSE) -> 0.02940951 | D7: 84.294566 | E7: 2.940951 | F7: =ROUND(D6*ROUND(((1+CALCULADORA!$C$16)^(1/12)-1),6),6) -> 0.804835 | G7: 3.745786 | H7: =IF($B7=0,0,G7/POWER(1+CALCULADORA!$C$29,Flujos!$B7/365)) -> 0 | I7: 2024-12-18 | J7: 5 | K7: =+DIAS365($A$2,A7) -> 153 | L7: 5.201975414e+10 | M7: 1814915898 | N7: 496678665.8 | O7: 2311594564
A8: 2025-01-18 | B8: =IF(DIAS365(CALCULADORA!$C$27,A8)<0,0,DIAS365(CALCULADORA!$C$27,A8)) -> 0 | C8: =+HLOOKUP(CALCULADORA!$C$9,Tablas!B:B,Flujos!J8+1,FALSE) -> 0.03872237 | D8: 80.422329 | E8: 3.872237 | F8: =ROUND(D7*ROUND(((1+CALCULADORA!$C$16)^(1/12)-1),6),6) -> 0.777702 | G8: 4.649939 | H8: =IF($B8=0,0,G8/POWER(1+CALCULADORA!$C$29,Flujos!$B8/365)) -> 0 | I8: 2025-01-18 | J8: 6 | K8: =+DIAS365($A$2,A8) -> 184 | L8: 4.963012422e+10 | M8: 2389629916 | N8: 479934251.7 | O8: 2869564168
A9: 2025-02-18 | B9: =IF(DIAS365(CALCULADORA!$C$27,A9)<0,0,DIAS365(CALCULADORA!$C$27,A9)) -> 17 | C9: =+HLOOKUP(CALCULADORA!$C$9,Tablas!B:B,Flujos!J9+1,FALSE) -> 0.04393367 | D9: 76.028962 | E9: 4.393367 | F9: =ROUND(D8*ROUND(((1+CALCULADORA!$C$16)^(1/12)-1),6),6) -> 0.741976 | G9: 5.135343 | H9: =IF($B9=0,0,G9/POWER(1+CALCULADORA!$C$29,Flujos!$B9/365)) -> 5.111431235 | I9: 2025-02-18 | J9: 7 | K9: =+DIAS365($A$2,A9) -> 215 | L9: 4.691889523e+10 | M9: 2711228992 | N9: 457887526.1 | O9: 3169116518
A10: 2025-03-18 | B10: =IF(DIAS365(CALCULADORA!$C$27,A10)<0,0,DIAS365(CALCULADORA!$C$27,A10)) -> 45 | C10: =+HLOOKUP(CALCULADORA!$C$9,Tablas!B:B,Flujos!J10+1,FALSE) -> 0.02855027 | D10: 73.173935 | E10: 2.855027 | F10: =ROUND(D9*ROUND(((1+CALCULADORA!$C$16)^(1/12)-1),6),6) -> 0.701443 | G10: 3.55647 | H10: =IF($B10=0,0,G10/POWER(1+CALCULADORA!$C$29,Flujos!$B10/365)) -> 3.512802529 | I10: 2025-03-18 | J10: 8 | K10: =+DIAS365($A$2,A10) -> 243 | L10: 4.515700464e+10 | M10: 1761890590 | N10: 432873727.4 | O10: 2194764317
A11: 2025-04-18 | B11: =IF(DIAS365(CALCULADORA!$C$27,A11)<0,0,DIAS365(CALCULADORA!$C$27,A11)) -> 76 | C11: =+HLOOKUP(CALCULADORA!$C$9,Tablas!B:B,Flujos!J11+1,FALSE) -> 0.02753957 | D11: 70.419978 | E11: 2.753957 | F11: =ROUND(D10*ROUND(((1+CALCULADORA!$C$16)^(1/12)-1),6),6) -> 0.675103 | G11: 3.42906 | H11: =IF($B11=0,0,G11/POWER(1+CALCULADORA!$C$29,Flujos!$B11/365)) -> 3.35825367 | I11: 2025-04-18 | J11: 9 | K11: =+DIAS365($A$2,A11) -> 274 | L11: 4.345748624e+10 | M11: 1699518401 | N11: 416618524.8 | O11: 2116136926
A12: 2025-05-18 | B12: =IF(DIAS365(CALCULADORA!$C$27,A12)<0,0,DIAS365(CALCULADORA!$C$27,A12)) -> 106 | C12: =+HLOOKUP(CALCULADORA!$C$9,Tablas!B:B,Flujos!J12+1,FALSE) -> 0.02655456 | D12: 67.764522 | E12: 2.655456 | F12: =ROUND(D11*ROUND(((1+CALCULADORA!$C$16)^(1/12)-1),6),6) -> 0.649695 | G12: 3.305151 | H12: =IF($B12=0,0,G12/POWER(1+CALCULADORA!$C$29,Flujos!$B12/365)) -> 3.210352917 | I12: 2025-05-18 | J12: 10 | K12: =+DIAS365($A$2,A12) -> 304 | L12: 4.181875465e+10 | M12: 1638731591 | N12: 400938768.1 | O12: 2039670359
A13: 2025-06-18 | B13: =IF(DIAS365(CALCULADORA!$C$27,A13)<0,0,DIAS365(CALCULADORA!$C$27,A13)) -> 137 | C13: =+HLOOKUP(CALCULADORA!$C$9,Tablas!B:B,Flujos!J13+1,FALSE) -> 0.02560209 | D13: 65.204313 | E13: 2.560209 | F13: =ROUND(D12*ROUND(((1+CALCULADORA!$C$16)^(1/12)-1),6),6) -> 0.625195 | G13: 3.185404 | H13: =IF($B13=0,0,G13/POWER(1+CALCULADORA!$C$29,Flujos!$B13/365)) -> 3.067819613 | I13: 2025-06-18 | J13: 11 | K13: =+DIAS365($A$2,A13) -> 335 | L13: 4.023880176e+10 | M13: 1579952885 | N13: 385819830.4 | O13: 1965772715
A14: 2025-07-18 | B14: =IF(DIAS365(CALCULADORA!$C$27,A14)<0,0,DIAS365(CALCULADORA!$C$27,A14)) -> 167 | C14: =+HLOOKUP(CALCULADORA!$C$9,Tablas!B:B,Flujos!J14+1,FALSE) -> 0.02468364 | D14: 62.735949 | E14: 2.468364 | F14: =ROUND(D13*ROUND(((1+CALCULADORA!$C$16)^(1/12)-1),6),6) -> 0.601575 | G14: 3.069939 | H14: =IF($B14=0,0,G14/POWER(1+CALCULADORA!$C$29,Flujos!$B14/365)) -> 2.932365509 | I14: 2025-07-18 | J14: 12 | K14: =+DIAS365($A$2,A14) -> 365 | L14: 3.871552815e+10 | M14: 1523273617 | N14: 371243185.1 | O14: 1894516802
A15: 2025-08-18 | B15: =IF(DIAS365(CALCULADORA!$C$27,A15)<0,0,DIAS365(CALCULADORA!$C$27,A15)) -> 198 | C15: =+HLOOKUP(CALCULADORA!$C$9,Tablas!B:B,Flujos!J15+1,FALSE) -> 0.02378772 | D15: 60.357177 | E15: 2.378772 | F15: =ROUND(D14*ROUND(((1+CALCULADORA!$C$16)^(1/12)-1),6),6) -> 0.578802 | G15: 2.957574 | H15: =IF($B15=0,0,G15/POWER(1+CALCULADORA!$C$29,Flujos!$B15/365)) -> 2.801094772 | I15: 2025-08-18 | J15: 13 | K15: =+DIAS365($A$2,A15) -> 396 | L15: 3.724754343e+10 | M15: 1467984717 | N15: 357189462.7 | O15: 1825174179
A16: 2025-09-18 | B16: =IF(DIAS365(CALCULADORA!$C$27,A16)<0,0,DIAS365(CALCULADORA!$C$27,A16)) -> 229 | C16: =+HLOOKUP(CALCULADORA!$C$9,Tablas!B:B,Flujos!J16+1,FALSE) -> 0.0229364 | D16: 58.063537 | E16: 2.29364 | F16: =ROUND(D15*ROUND(((1+CALCULADORA!$C$16)^(1/12)-1),6),6) -> 0.556855 | G16: 2.850495 | H16: =IF($B16=0,0,G16/POWER(1+CALCULADORA!$C$29,Flujos!$B16/365)) -> 2.676802279 | I16: 2025-09-18 | J16: 14 | K16: =+DIAS365($A$2,A16) -> 427 | L16: 3.583209526e+10 | M16: 1415448166 | N16: 343645835.7 | O16: 1759094002
A17: 2025-10-18 | B17: =IF(DIAS365(CALCULADORA!$C$27,A17)<0,0,DIAS365(CALCULADORA!$C$27,A17)) -> 259 | C17: =+HLOOKUP(CALCULADORA!$C$9,Tablas!B:B,Flujos!J17+1,FALSE) -> 0.02210673 | D17: 55.852864 | E17: 2.210673 | F17: =ROUND(D16*ROUND(((1+CALCULADORA!$C$16)^(1/12)-1),6),6) -> 0.535694 | G17: 2.746367 | H17: =IF($B17=0,0,G17/POWER(1+CALCULADORA!$C$29,Flujos!$B17/365)) -> 2.557865121 | I17: 2025-10-18 | J17: 15 | K17: =+DIAS365($A$2,A17) -> 457 | L17: 3.446784759e+10 | M17: 1364247678 | N17: 330586910.9 | O17: 1694834589
A18: 2025-11-18 | B18: =IF(DIAS365(CALCULADORA!$C$27,A18)<0,0,DIAS365(CALCULADORA!$C$27,A18)) -> 290 | C18: =+HLOOKUP(CALCULADORA!$C$9,Tablas!B:B,Flujos!J18+1,FALSE) -> 0.02130499 | D18: 53.722365 | E18: 2.130499 | F18: =ROUND(D17*ROUND(((1+CALCULADORA!$C$16)^(1/12)-1),6),6) -> 0.515299 | G18: 2.645798 | H18: =IF($B18=0,0,G18/POWER(1+CALCULADORA!$C$29,Flujos!$B18/365)) -> 2.443315659 | I18: 2025-11-18 | J18: 16 | K18: =+DIAS365($A$2,A18) -> 488 | L18: 3.315307678e+10 | M18: 1314770802 | N18: 318000361.8 | O18: 1632771164
A19: 2025-12-18 | B19: =IF(DIAS365(CALCULADORA!$C$27,A19)<0,0,DIAS365(CALCULADORA!$C$27,A19)) -> 320 | C19: =+HLOOKUP(CALCULADORA!$C$9,Tablas!B:B,Flujos!J19+1,FALSE) -> 0.02052027 | D19: 51.670338 | E19: 2.052027 | F19: =ROUND(D18*ROUND(((1+CALCULADORA!$C$16)^(1/12)-1),6),6) -> 0.495643 | G19: 2.54767 | H19: =IF($B19=0,0,G19/POWER(1+CALCULADORA!$C$29,Flujos!$B19/365)) -> 2.333399636 | I19: 2025-12-18 | J19: 17 | K19: =+DIAS365($A$2,A19) -> 518 | L19: 3.188673252e+10 | M19: 1266344263 | N19: 305870286.4 | O19: 1572214549
A20: 2026-01-18 | B20: =IF(DIAS365(CALCULADORA!$C$27,A20)<0,0,DIAS365(CALCULADORA!$C$27,A20)) -> 351 | C20: =+HLOOKUP(CALCULADORA!$C$9,Tablas!B:B,Flujos!J20+1,FALSE) -> 0.01978202 | D20: 49.692136 | E20: 1.978202 | F20: =ROUND(D19*ROUND(((1+CALCULADORA!$C$16)^(1/12)-1),6),6) -> 0.476711 | G20: 2.454913 | H20: =IF($B20=0,0,G20/POWER(1+CALCULADORA!$C$29,Flujos!$B20/365)) -> 2.22938916 | I20: 2026-01-18 | J20: 18 | K20: =+DIAS365($A$2,A20) -> 549 | L20: 3.066594705e+10 | M20: 1220785474 | N20: 294186994.2 | O20: 1514972468
A21: 2026-02-18 | B21: =IF(DIAS365(CALCULADORA!$C$27,A21)<0,0,DIAS365(CALCULADORA!$C$27,A21)) -> 382 | C21: =+HLOOKUP(CALCULADORA!$C$9,Tablas!B:B,Flujos!J21+1,FALSE) -> 0.01906001 | D21: 47.786135 | E21: 1.906001 | F21: =ROUND(D20*ROUND(((1+CALCULADORA!$C$16)^(1/12)-1),6),6) -> 0.45846 | G21: 2.364461 | H21: =IF($B21=0,0,G21/POWER(1+CALCULADORA!$C$29,Flujos!$B21/365)) -> 2.129049511 | I21: 2026-02-18 | J21: 19 | K21: =+DIAS365($A$2,A21) -> 580 | L21: 2.948971816e+10 | M21: 1176228885 | N21: 282924027.5 | O21: 1459152913
A22: 2026-03-18 | B22: =IF(DIAS365(CALCULADORA!$C$27,A22)<0,0,DIAS365(CALCULADORA!$C$27,A22)) -> 410 | C22: =+HLOOKUP(CALCULADORA!$C$9,Tablas!B:B,Flujos!J22+1,FALSE) -> 0.01837225 | D22: =+ROUND(D21-E22,6) -> 45.94891 | E22: 1.837225 | F22: =ROUND(D21*ROUND(((1+CALCULADORA!$C$16)^(1/12)-1),6),6) -> 0.440875 | G22: 2.2781 | H22: =IF($B22=0,0,G22/POWER(1+CALCULADORA!$C$29,Flujos!$B22/365)) -> 2.035578761 | I22: 2026-03-18 | J22: 20 | K22: =+DIAS365($A$2,A22) -> 608 | L22: 2.835593223e+10 | M22: 1133785929 | N22: 272072139.8 | O22: 1405858068
A23: 2026-04-18 | B23: =IF(DIAS365(CALCULADORA!$C$27,A23)<0,0,DIAS365(CALCULADORA!$C$27,A23)) -> 441 | C23: =+HLOOKUP(CALCULADORA!$C$9,Tablas!B:B,Flujos!J23+1,FALSE) -> 0.01770208 | D23: 44.178702 | E23: 1.770208 | F23: =ROUND(D22*ROUND(((1+CALCULADORA!$C$16)^(1/12)-1),6),6) -> 0.423925 | G23: 2.194133 | H23: =IF($B23=0,0,G23/POWER(1+CALCULADORA!$C$29,Flujos!$B23/365)) -> 1.943935732 | I23: 2026-04-18 | J23: 21 | K23: =+DIAS365($A$2,A23) -> 639 | L23: 2.726350375e+10 | M23: 1092428484 | N23: 261611830.8 | O23: 1354040315
A24: 2026-05-18 | B24: =IF(DIAS365(CALCULADORA!$C$27,A24)<0,0,DIAS365(CALCULADORA!$C$27,A24)) -> 471 | C24: =+HLOOKUP(CALCULADORA!$C$9,Tablas!B:B,Flujos!J24+1,FALSE) -> 0.01704804 | D24: 42.473898 | E24: 1.704804 | F24: =ROUND(D23*ROUND(((1+CALCULADORA!$C$16)^(1/12)-1),6),6) -> 0.407593 | G24: 2.112397 | H24: =IF($B24=0,0,G24/POWER(1+CALCULADORA!$C$29,Flujos!$B24/365)) -> 1.856169164 | I24: 2026-05-18 | J24: 22 | K24: =+DIAS365($A$2,A24) -> 669 | L24: 2.62114373e+10 | M24: 1052066452 | N24: 251533085.6 | O24: 1303599537
A25: 2026-06-18 | B25: =IF(DIAS365(CALCULADORA!$C$27,A25)<0,0,DIAS365(CALCULADORA!$C$27,A25)) -> 502 | C25: =+HLOOKUP(CALCULADORA!$C$9,Tablas!B:B,Flujos!J25+1,FALSE) -> 0.0164219 | D25: 40.831708 | E25: 1.64219 | F25: =ROUND(D24*ROUND(((1+CALCULADORA!$C$16)^(1/12)-1),6),6) -> 0.391864 | G25: 2.034054 | H25: =IF($B25=0,0,G25/POWER(1+CALCULADORA!$C$29,Flujos!$B25/365)) -> 1.772181982 | I25: 2026-06-18 | J25: 23 | K25: =+DIAS365($A$2,A25) -> 700 | L25: 2.519801112e+10 | M25: 1013426180 | N25: 241826720.5 | O25: 1255252901
A26: 2026-07-18 | B26: =IF(DIAS365(CALCULADORA!$C$27,A26)<0,0,DIAS365(CALCULADORA!$C$27,A26)) -> 532 | C26: =+HLOOKUP(CALCULADORA!$C$9,Tablas!B:B,Flujos!J26+1,FALSE) -> 0.01580259 | D26: 39.251449 | E26: 1.580259 | F26: =ROUND(D25*ROUND(((1+CALCULADORA!$C$16)^(1/12)-1),6),6) -> 0.376713 | G26: 1.956972 | H26: =IF($B26=0,0,G26/POWER(1+CALCULADORA!$C$29,Flujos!$B26/365)) -> 1.69103855 | I26: 2026-07-18 | J26: 24 | K26: =+DIAS365($A$2,A26) -> 730 | L26: 2.422280372e+10 | M26: 975207401.3 | N26: 232476850.6 | O26: 1207684252
A27: 2026-08-18 | B27: =IF(DIAS365(CALCULADORA!$C$27,A27)<0,0,DIAS365(CALCULADORA!$C$27,A27)) -> 563 | C27: =+HLOOKUP(CALCULADORA!$C$9,Tablas!B:B,Flujos!J27+1,FALSE) -> 0.01522098 | D27: 37.729351 | E27: 1.522098 | F27: =ROUND(D26*ROUND(((1+CALCULADORA!$C$16)^(1/12)-1),6),6) -> 0.362134 | G27: 1.884232 | H27: =IF($B27=0,0,G27/POWER(1+CALCULADORA!$C$29,Flujos!$B27/365)) -> 1.614384942 | I27: 2026-08-18 | J27: 25 | K27: =+DIAS365($A$2,A27) -> 761 | L27: 2.328348856e+10 | M27: 939315159.8 | N27: 223479587.1 | O27: 1162794747
A28: 2026-09-18 | B28: =IF(DIAS365(CALCULADORA!$C$27,A28)<0,0,DIAS365(CALCULADORA!$C$27,A28)) -> 594 | C28: =+HLOOKUP(CALCULADORA!$C$9,Tablas!B:B,Flujos!J28+1,FALSE) -> 0.01465902 | D28: 36.263449 | E28: 1.465902 | F28: =ROUND(D27*ROUND(((1+CALCULADORA!$C$16)^(1/12)-1),6),6) -> 0.348091 | G28: 1.813993 | H28: =IF($B28=0,0,G28/POWER(1+CALCULADORA!$C$29,Flujos!$B28/365)) -> 1.541033772 | I28: 2026-09-18 | J28: 26 | K28: =+DIAS365($A$2,A28) -> 792 | L28: 2.2378853e+10 | M28: 904635556.6 | N28: 214813465.4 | O28: 1119449022
A29: 2026-10-18 | B29: =IF(DIAS365(CALCULADORA!$C$27,A29)<0,0,DIAS365(CALCULADORA!$C$27,A29)) -> 624 | C29: =+HLOOKUP(CALCULADORA!$C$9,Tablas!B:B,Flujos!J29+1,FALSE) -> 0.01411 | D29: 34.852449 | E29: 1.411 | F29: =ROUND(D28*ROUND(((1+CALCULADORA!$C$16)^(1/12)-1),6),6) -> 0.334567 | G29: 1.745567 | H29: =IF($B29=0,0,G29/POWER(1+CALCULADORA!$C$29,Flujos!$B29/365)) -> 1.470740767 | I29: 2026-10-18 | J29: 27 | K29: =+DIAS365($A$2,A29) -> 822 | L29: 2.15080985e+10 | M29: 870754505 | N29: 206467297.8 | O29: 1077221803
A30: 2026-11-18 | B30: =IF(DIAS365(CALCULADORA!$C$27,A30)<0,0,DIAS365(CALCULADORA!$C$27,A30)) -> 655 | C30: =+HLOOKUP(CALCULADORA!$C$9,Tablas!B:B,Flujos!J30+1,FALSE) -> 0.01358334 | D30: 33.494115 | E30: 1.358334 | F30: =ROUND(D29*ROUND(((1+CALCULADORA!$C$16)^(1/12)-1),6),6) -> 0.321549 | G30: 1.679883 | H30: =IF($B30=0,0,G30/POWER(1+CALCULADORA!$C$29,Flujos!$B30/365)) -> 1.403403223 | I30: 2026-11-18 | J30: 28 | K30: =+DIAS365($A$2,A30) -> 853 | L30: 2.066984516e+10 | M30: 838253330.8 | N30: 198433716.7 | O30: 1036687048
A31: 2026-12-18 | B31: =IF(DIAS365(CALCULADORA!$C$27,A31)<0,0,DIAS365(CALCULADORA!$C$27,A31)) -> 685 | C31: =+HLOOKUP(CALCULADORA!$C$9,Tablas!B:B,Flujos!J31+1,FALSE) -> 0.01307399 | D31: 32.186716 | E31: 1.307399 | F31: =ROUND(D30*ROUND(((1+CALCULADORA!$C$16)^(1/12)-1),6),6) -> 0.309017 | G31: 1.616416 | H31: =IF($B31=0,0,G31/POWER(1+CALCULADORA!$C$29,Flujos!$B31/365)) -> 1.339305441 | I31: 2026-12-18 | J31: 29 | K31: =+DIAS365($A$2,A31) -> 883 | L31: 1.986302478e+10 | M31: 806820389.1 | N31: 190699991.5 | O31: 997520380.6
A32: 2027-01-18 | B32: =IF(DIAS365(CALCULADORA!$C$27,A32)<0,0,DIAS365(CALCULADORA!$C$27,A32)) -> 716 | C32: =+HLOOKUP(CALCULADORA!$C$9,Tablas!B:B,Flujos!J32+1,FALSE) -> 0.01257857 | D32: 30.928859 | E32: 1.257857 | F32: =ROUND(D31*ROUND(((1+CALCULADORA!$C$16)^(1/12)-1),6),6) -> 0.296955 | G32: 1.554812 | H32: =IF($B32=0,0,G32/POWER(1+CALCULADORA!$C$29,Flujos!$B32/365)) -> 1.277344972 | I32: 2027-01-18 | J32: 30 | K32: =+DIAS365($A$2,A32) -> 914 | L32: 1.908677768e+10 | M32: 776247093.8 | N32: 183256266.6 | O32: 959503360.4
A33: 2027-02-18 | B33: =IF(DIAS365(CALCULADORA!$C$27,A33)<0,0,DIAS365(CALCULADORA!$C$27,A33)) -> 747 | C33: =+HLOOKUP(CALCULADORA!$C$9,Tablas!B:B,Flujos!J33+1,FALSE) -> 0.01209722 | D33: 29.719137 | E33: 1.209722 | F33: =ROUND(D32*ROUND(((1+CALCULADORA!$C$16)^(1/12)-1),6),6) -> 0.28535 | G33: 1.495072 | H33: =IF($B33=0,0,G33/POWER(1+CALCULADORA!$C$29,Flujos!$B33/365)) -> 1.21785688 | I33: 2027-02-18 | J33: 31 | K33: =+DIAS365($A$2,A33) -> 945 | L33: 1.83402356e+10 | M33: 746542084.5 | N33: 176094610.9 | O33: 922636695.4
A34: 2027-03-18 | B34: =IF(DIAS365(CALCULADORA!$C$27,A34)<0,0,DIAS365(CALCULADORA!$C$27,A34)) -> 775 | C34: =+HLOOKUP(CALCULADORA!$C$9,Tablas!B:B,Flujos!J34+1,FALSE) -> 0.01164632 | D34: 28.554505 | E34: 1.164632 | F34: =ROUND(D33*ROUND(((1+CALCULADORA!$C$16)^(1/12)-1),6),6) -> 0.274189 | G34: 1.438821 | H34: =IF($B34=0,0,G34/POWER(1+CALCULADORA!$C$29,Flujos!$B34/365)) -> 1.163060843 | I34: 2027-03-18 | J34: 32 | K34: =+DIAS365($A$2,A34) -> 973 | L34: 1.76215194e+10 | M34: 718716201.7 | N34: 169207013.6 | O34: 887923215.4
A35: =EDATE(A34,1) -> 2027-04-18 | B35: =IF(DIAS365(CALCULADORA!$C$27,A35)<0,0,DIAS365(CALCULADORA!$C$27,A35)) -> 806 | C35: =+HLOOKUP(CALCULADORA!$C$9,Tablas!B:B,Flujos!J35+1,FALSE) -> 0.01120951 | D35: 27.433554 | E35: 1.120951 | F35: =ROUND(D34*ROUND(((1+CALCULADORA!$C$16)^(1/12)-1),6),6) -> 0.263444 | G35: 1.384395 | H35: =IF($B35=0,0,G35/POWER(1+CALCULADORA!$C$29,Flujos!$B35/365)) -> 1.109582287 | I35: 2027-04-18 | J35: 33 | K35: =+DIAS365($A$2,A35) -> 1004 | L35: 1.692975956e+10 | M35: 691759839.2 | N35: 162576137.9 | O35: 854335977.1
A36: 2027-05-18 | B36: =IF(DIAS365(CALCULADORA!$C$27,A36)<0,0,DIAS365(CALCULADORA!$C$27,A36)) -> 836 | C36: =+HLOOKUP(CALCULADORA!$C$9,Tablas!B:B,Flujos!J36+1,FALSE) -> 0.01078439 | D36: 26.355115 | E36: 1.078439 | F36: =ROUND(D35*ROUND(((1+CALCULADORA!$C$16)^(1/12)-1),6),6) -> 0.253102 | G36: 1.331541 | H36: =IF($B36=0,0,G36/POWER(1+CALCULADORA!$C$29,Flujos!$B36/365)) -> 1.058466445 | I36: 2027-05-18 | J36: 34 | K36: =+DIAS365($A$2,A36) -> 1034 | L36: 1.626423467e+10 | M36: 665524888.5 | N36: 156193961.7 | O36: 821718850.1
A37: 2027-06-18 | B37: =IF(DIAS365(CALCULADORA!$C$27,A37)<0,0,DIAS365(CALCULADORA!$C$27,A37)) -> 867 | C37: =+HLOOKUP(CALCULADORA!$C$9,Tablas!B:B,Flujos!J37+1,FALSE) -> 0.0103709 | D37: 25.318025 | E37: 1.03709 | F37: =ROUND(D36*ROUND(((1+CALCULADORA!$C$16)^(1/12)-1),6),6) -> 0.243152 | G37: 1.280242 | H37: =IF($B37=0,0,G37/POWER(1+CALCULADORA!$C$29,Flujos!$B37/365)) -> 1.009063388 | I37: 2027-06-18 | J37: 35 | K37: =+DIAS365($A$2,A37) -> 1065 | L37: 1.562422702e+10 | M37: 640007646.8 | N37: 150053829 | O37: 790061475.8
A38: 2027-07-18 | B38: =IF(DIAS365(CALCULADORA!$C$27,A38)<0,0,DIAS365(CALCULADORA!$C$27,A38)) -> 897 | C38: =+HLOOKUP(CALCULADORA!$C$9,Tablas!B:B,Flujos!J38+1,FALSE) -> 0.00996405 | D38: 24.32162 | E38: 0.996405 | F38: =ROUND(D37*ROUND(((1+CALCULADORA!$C$16)^(1/12)-1),6),6) -> 0.233584 | G38: 1.229989 | H38: =IF($B38=0,0,G38/POWER(1+CALCULADORA!$C$29,Flujos!$B38/365)) -> 0.9615030441 | I38: 2027-07-18 | J38: 36 | K38: =+DIAS365($A$2,A38) -> 1095 | L38: 1.500932685e+10 | M38: 614900171.9 | N38: 144149118.5 | O38: 759049290.4
A39: 2027-08-18 | B39: =IF(DIAS365(CALCULADORA!$C$27,A39)<0,0,DIAS365(CALCULADORA!$C$27,A39)) -> 928 | C39: =+HLOOKUP(CALCULADORA!$C$9,Tablas!B:B,Flujos!J39+1,FALSE) -> 0.00958658 | D39: 23.362962 | E39: 0.958658 | F39: =ROUND(D38*ROUND(((1+CALCULADORA!$C$16)^(1/12)-1),6),6) -> 0.224391 | G39: 1.183049 | H39: =IF($B39=0,0,G39/POWER(1+CALCULADORA!$C$29,Flujos!$B39/365)) -> 0.9169718331 | I39: 2027-08-18 | J39: 37 | K39: =+DIAS365($A$2,A39) -> 1126 | L39: 1.441772106e+10 | M39: 591605791.8 | N39: 138476049.5 | O39: 730081841.3
A40: 2027-09-18 | B40: =IF(DIAS365(CALCULADORA!$C$27,A40)<0,0,DIAS365(CALCULADORA!$C$27,A40)) -> 959 | C40: =+HLOOKUP(CALCULADORA!$C$9,Tablas!B:B,Flujos!J40+1,FALSE) -> 0.00921933 | D40: =+ROUND(D39-E40,6) -> 22.441029 | E40: =ROUND(C40*$D$2,6) -> 0.921933 | F40: =ROUND(D39*ROUND(((1+CALCULADORA!$C$16)^(1/12)-1),6),6) -> 0.215547 | G40: =F40+E40 -> 1.13748 | H40: =IF($B40=0,0,G40/POWER(1+CALCULADORA!$C$29,Flujos!$B40/365)) -> 0.8741799848 | I40: =+A40 -> 2027-09-18 | J40: 38 | K40: =+DIAS365($A$2,A40) -> 1157 | L40: 1.384877895e+10 | M40: 568942107.1 | N40: 133017894.5 | O40: 701960001.5
A41: 2027-10-18 | B41: =IF(DIAS365(CALCULADORA!$C$27,A41)<0,0,DIAS365(CALCULADORA!$C$27,A41)) -> 989 | C41: =+HLOOKUP(CALCULADORA!$C$9,Tablas!B:B,Flujos!J41+1,FALSE) -> 0.00887083 | D41: 21.553946 | E41: 0.887083 | F41: =ROUND(D40*ROUND(((1+CALCULADORA!$C$16)^(1/12)-1),6),6) -> 0.207041 | G41: 1.094124 | H41: =IF($B41=0,0,G41/POWER(1+CALCULADORA!$C$29,Flujos!$B41/365)) -> 0.8339628253 | I41: 2027-10-18 | J41: 39 | K41: =+DIAS365($A$2,A41) -> 1187 | L41: 1.330134343e+10 | M41: 547435519.9 | N41: 127768834.6 | O41: 675204354.5
A42: 2027-11-18 | B42: =IF(DIAS365(CALCULADORA!$C$27,A42)<0,0,DIAS365(CALCULADORA!$C$27,A42)) -> 1020 | C42: =+HLOOKUP(CALCULADORA!$C$9,Tablas!B:B,Flujos!J42+1,FALSE) -> 0.00852532 | D42: 20.701414 | E42: 0.852532 | F42: =ROUND(D41*ROUND(((1+CALCULADORA!$C$16)^(1/12)-1),6),6) -> 0.198857 | G42: 1.051389 | H42: =IF($B42=0,0,G42/POWER(1+CALCULADORA!$C$29,Flujos!$B42/365)) -> 0.7945978819 | I42: 2027-11-18 | J42: 40 | K42: =+DIAS365($A$2,A42) -> 1218 | L42: 1.277522998e+10 | M42: 526113451.2 | N42: 122718194.5 | O42: 648831645.7
A43: 2027-12-18 | B43: =IF(DIAS365(CALCULADORA!$C$27,A43)<0,0,DIAS365(CALCULADORA!$C$27,A43)) -> 1050 | C43: =+HLOOKUP(CALCULADORA!$C$9,Tablas!B:B,Flujos!J43+1,FALSE) -> 0.00818916 | D43: 19.882498 | E43: 0.818916 | F43: =ROUND(D42*ROUND(((1+CALCULADORA!$C$16)^(1/12)-1),6),6) -> 0.190991 | G43: 1.009907 | H43: =IF($B43=0,0,G43/POWER(1+CALCULADORA!$C$29,Flujos!$B43/365)) -> 0.7569869884 | I43: 2027-12-18 | J43: 41 | K43: =+DIAS365($A$2,A43) -> 1248 | L43: 1.226986159e+10 | M43: 505368388.5 | N43: 117864271.8 | O43: 623232660.3
A44: 2028-01-18 | B44: =IF(DIAS365(CALCULADORA!$C$27,A44)<0,0,DIAS365(CALCULADORA!$C$27,A44)) -> 1081 | C44: =+HLOOKUP(CALCULADORA!$C$9,Tablas!B:B,Flujos!J44+1,FALSE) -> 0.00787056 | D44: 19.095442 | E44: 0.787056 | F44: =ROUND(D43*ROUND(((1+CALCULADORA!$C$16)^(1/12)-1),6),6) -> 0.183436 | G44: 0.970492 | H44: =IF($B44=0,0,G44/POWER(1+CALCULADORA!$C$29,Flujos!$B44/365)) -> 0.7212782205 | I44: 2028-01-18 | J44: 42 | K44: =+DIAS365($A$2,A44) -> 1279 | L44: 1.17841546e+10 | M44: 485706986.3 | N44: 113201743 | O44: 598908729.3
A45: 2028-02-18 | B45: =IF(DIAS365(CALCULADORA!$C$27,A45)<0,0,DIAS365(CALCULADORA!$C$27,A45)) -> 1112 | C45: =+HLOOKUP(CALCULADORA!$C$9,Tablas!B:B,Flujos!J45+1,FALSE) -> 0.0075681 | D45: 18.338632 | E45: 0.75681 | F45: =ROUND(D44*ROUND(((1+CALCULADORA!$C$16)^(1/12)-1),6),6) -> 0.176175 | G45: 0.932985 | H45: =IF($B45=0,0,G45/POWER(1+CALCULADORA!$C$29,Flujos!$B45/365)) -> 0.6875263491 | I45: 2028-02-18 | J45: 43 | K45: =+DIAS365($A$2,A45) -> 1310 | L45: 1.131711299e+10 | M45: 467041613.7 | N45: 108720610.4 | O45: 575762224.1
A46: 2028-03-18 | B46: =IF(DIAS365(CALCULADORA!$C$27,A46)<0,0,DIAS365(CALCULADORA!$C$27,A46)) -> 1140 | C46: =+HLOOKUP(CALCULADORA!$C$9,Tablas!B:B,Flujos!J46+1,FALSE) -> 0.0072791 | D46: 17.610722 | E46: 0.72791 | F46: =ROUND(D45*ROUND(((1+CALCULADORA!$C$16)^(1/12)-1),6),6) -> 0.169192 | G46: 0.897102 | H46: =IF($B46=0,0,G46/POWER(1+CALCULADORA!$C$29,Flujos!$B46/365)) -> 0.6560214371 | I46: 2028-03-18 | J46: 44 | K46: =+DIAS365($A$2,A46) -> 1338 | L46: 1.086790611e+10 | M46: 449206882.9 | N46: 104411684.4 | O46: 553618567.3
A47: 2028-04-18 | B47: =IF(DIAS365(CALCULADORA!$C$27,A47)<0,0,DIAS365(CALCULADORA!$C$27,A47)) -> 1171 | C47: =+HLOOKUP(CALCULADORA!$C$9,Tablas!B:B,Flujos!J47+1,FALSE) -> 0.00699207 | D47: 16.911515 | E47: 0.699207 | F47: =ROUND(D46*ROUND(((1+CALCULADORA!$C$16)^(1/12)-1),6),6) -> 0.162477 | G47: 0.861684 | H47: =IF($B47=0,0,G47/POWER(1+CALCULADORA!$C$29,Flujos!$B47/365)) -> 0.6247813568 | I47: 2028-04-18 | J47: 45 | K47: =+DIAS365($A$2,A47) -> 1369 | L47: 1.043641238e+10 | M47: 431493724.4 | N47: 100267301.7 | O47: 531761026.2
A48: 2028-05-18 | B48: =IF(DIAS365(CALCULADORA!$C$27,A48)<0,0,DIAS365(CALCULADORA!$C$27,A48)) -> 1201 | C48: =+HLOOKUP(CALCULADORA!$C$9,Tablas!B:B,Flujos!J48+1,FALSE) -> 0.006722 | D48: 16.239315 | E48: 0.6722 | F48: =ROUND(D47*ROUND(((1+CALCULADORA!$C$16)^(1/12)-1),6),6) -> 0.156026 | G48: 0.828226 | H48: =IF($B48=0,0,G48/POWER(1+CALCULADORA!$C$29,Flujos!$B48/365)) -> 0.595596245 | I48: 2028-05-18 | J48: 46 | K48: =+DIAS365($A$2,A48) -> 1399 | L48: 1.002158518e+10 | M48: 414827199.3 | N48: 96286340.65 | O48: 511113540
A49: 2028-06-18 | B49: =IF(DIAS365(CALCULADORA!$C$27,A49)<0,0,DIAS365(CALCULADORA!$C$27,A49)) -> 1232 | C49: =+HLOOKUP(CALCULADORA!$C$9,Tablas!B:B,Flujos!J49+1,FALSE) -> 0.00646522 | D49: 15.592793 | E49: 0.646522 | F49: =ROUND(D48*ROUND(((1+CALCULADORA!$C$16)^(1/12)-1),6),6) -> 0.149824 | G49: 0.796346 | H49: =IF($B49=0,0,G49/POWER(1+CALCULADORA!$C$29,Flujos!$B49/365)) -> 0.5678174313 | I49: 2028-06-18 | J49: 47 | K49: =+DIAS365($A$2,A49) -> 1430 | L49: 9622604359 | M49: 398980825 | N49: 92459144.9 | O49: 491439969.9
A50: 2028-07-18 | B50: =IF(DIAS365(CALCULADORA!$C$27,A50)<0,0,DIAS365(CALCULADORA!$C$27,A50)) -> 1262 | C50: =+HLOOKUP(CALCULADORA!$C$9,Tablas!B:B,Flujos!J50+1,FALSE) -> 0.00621312 | D50: 14.971481 | E50: 0.621312 | F50: =ROUND(D49*ROUND(((1+CALCULADORA!$C$16)^(1/12)-1),6),6) -> 0.143859 | G50: 0.765171 | H50: =IF($B50=0,0,G50/POWER(1+CALCULADORA!$C$29,Flujos!$B50/365)) -> 0.5411136353 | I50: 2028-07-18 | J50: 48 | K50: =+DIAS365($A$2,A50) -> 1460 | L50: 9239181096 | M50: 383423262.2 | N50: 88778147.81 | O50: 472201410
A51: 2028-08-18 | B51: =IF(DIAS365(CALCULADORA!$C$27,A51)<0,0,DIAS365(CALCULADORA!$C$27,A51)) -> 1293 | C51: =+HLOOKUP(CALCULADORA!$C$9,Tablas!B:B,Flujos!J51+1,FALSE) -> 0.00597945 | D51: 14.373536 | E51: 0.597945 | F51: =ROUND(D50*ROUND(((1+CALCULADORA!$C$16)^(1/12)-1),6),6) -> 0.138127 | G51: 0.736072 | H51: =IF($B51=0,0,G51/POWER(1+CALCULADORA!$C$29,Flujos!$B51/365)) -> 0.5161240542 | I51: 2028-08-18 | J51: 49 | K51: =+DIAS365($A$2,A51) -> 1491 | L51: 8870178047 | M51: 369003049.2 | N51: 85240684.8 | O51: 454243734
A52: 2028-09-18 | B52: =IF(DIAS365(CALCULADORA!$C$27,A52)<0,0,DIAS365(CALCULADORA!$C$27,A52)) -> 1324 | C52: =+HLOOKUP(CALCULADORA!$C$9,Tablas!B:B,Flujos!J52+1,FALSE) -> 0.00574724 | D52: 13.798812 | E52: 0.574724 | F52: =ROUND(D51*ROUND(((1+CALCULADORA!$C$16)^(1/12)-1),6),6) -> 0.13261 | G52: 0.707334 | H52: =IF($B52=0,0,G52/POWER(1+CALCULADORA!$C$29,Flujos!$B52/365)) -> 0.4917701493 | I52: 2028-09-18 | J52: 50 | K52: =+DIAS365($A$2,A52) -> 1522 | L52: 8515505112 | M52: 354672935.6 | N52: 81836262.66 | O52: 436509198.3
A53: 2028-10-18 | B53: =IF(DIAS365(CALCULADORA!$C$27,A53)<0,0,DIAS365(CALCULADORA!$C$27,A53)) -> 1354 | C53: =+HLOOKUP(CALCULADORA!$C$9,Tablas!B:B,Flujos!J53+1,FALSE) -> 0.00552131 | D53: 13.246681 | E53: 0.552131 | F53: =ROUND(D52*ROUND(((1+CALCULADORA!$C$16)^(1/12)-1),6),6) -> 0.127308 | G53: 0.679439 | H53: =IF($B53=0,0,G53/POWER(1+CALCULADORA!$C$29,Flujos!$B53/365)) -> 0.468501687 | I53: 2028-10-18 | J53: 51 | K53: =+DIAS365($A$2,A53) -> 1552 | L53: 8174774739 | M53: 340730372.5 | N53: 78564050.16 | O53: 419294422.7
A54: 2028-11-18 | B54: =IF(DIAS365(CALCULADORA!$C$27,A54)<0,0,DIAS365(CALCULADORA!$C$27,A54)) -> 1385 | C54: =+HLOOKUP(CALCULADORA!$C$9,Tablas!B:B,Flujos!J54+1,FALSE) -> 0.0052973 | D54: 12.716951 | E54: 0.52973 | F54: =ROUND(D53*ROUND(((1+CALCULADORA!$C$16)^(1/12)-1),6),6) -> 0.122214 | G54: 0.651944 | H54: =IF($B54=0,0,G54/POWER(1+CALCULADORA!$C$29,Flujos!$B54/365)) -> 0.4457330187 | I54: 2028-11-18 | J54: 52 | K54: =+DIAS365($A$2,A54) -> 1583 | L54: 7847868443 | M54: 326906296.2 | N54: 75420471.74 | O54: 402326767.9
A55: 2028-12-18 | B55: =IF(DIAS365(CALCULADORA!$C$27,A55)<0,0,DIAS365(CALCULADORA!$C$27,A55)) -> 1415 | C55: =+HLOOKUP(CALCULADORA!$C$9,Tablas!B:B,Flujos!J55+1,FALSE) -> 0.00509616 | D55: 12.207335 | E55: 0.509616 | F55: =ROUND(D54*ROUND(((1+CALCULADORA!$C$16)^(1/12)-1),6),6) -> 0.117327 | G55: 0.626943 | H55: =IF($B55=0,0,G55/POWER(1+CALCULADORA!$C$29,Flujos!$B55/365)) -> 0.4251240061 | I55: 2028-12-18 | J55: 53 | K55: =+DIAS365($A$2,A55) -> 1613 | L55: 7533374873 | M55: 314493570.4 | N55: 72404434.25 | O55: 386898004.6
A56: 2029-01-18 | B56: =IF(DIAS365(CALCULADORA!$C$27,A56)<0,0,DIAS365(CALCULADORA!$C$27,A56)) -> 1446 | C56: =+HLOOKUP(CALCULADORA!$C$9,Tablas!B:B,Flujos!J56+1,FALSE) -> 0.00490049 | D56: 11.717286 | E56: 0.490049 | F56: =ROUND(D55*ROUND(((1+CALCULADORA!$C$16)^(1/12)-1),6),6) -> 0.112625 | G56: 0.602674 | H56: =IF($B56=0,0,G56/POWER(1+CALCULADORA!$C$29,Flujos!$B56/365)) -> 0.4052041219 | I56: 2029-01-18 | J56: 54 | K56: =+DIAS365($A$2,A56) -> 1644 | L56: 7230956464 | M56: 302418408.5 | N56: 69502916.57 | O56: 371921325.1
A57: 2029-02-18 | B57: =IF(DIAS365(CALCULADORA!$C$27,A57)<0,0,DIAS365(CALCULADORA!$C$27,A57)) -> 1477 | C57: =+HLOOKUP(CALCULADORA!$C$9,Tablas!B:B,Flujos!J57+1,FALSE) -> 0.004708 | D57: 11.246486 | E57: 0.4708 | F57: =ROUND(D56*ROUND(((1+CALCULADORA!$C$16)^(1/12)-1),6),6) -> 0.108104 | G57: 0.578904 | H57: =IF($B57=0,0,G57/POWER(1+CALCULADORA!$C$29,Flujos!$B57/365)) -> 0.3859239895 | I57: 2029-02-18 | J57: 55 | K57: =+DIAS365($A$2,A57) -> 1675 | L57: 6940416974 | M57: 290539490.4 | N57: 66712804.34 | O57: 357252294.7
A58: 2029-03-18 | B58: =IF(DIAS365(CALCULADORA!$C$27,A58)<0,0,DIAS365(CALCULADORA!$C$27,A58)) -> 1505 | C58: =+HLOOKUP(CALCULADORA!$C$9,Tablas!B:B,Flujos!J58+1,FALSE) -> 0.00452937 | D58: 10.793549 | E58: 0.452937 | F58: =ROUND(D57*ROUND(((1+CALCULADORA!$C$16)^(1/12)-1),6),6) -> 0.10376 | G58: 0.556697 | H58: =IF($B58=0,0,G58/POWER(1+CALCULADORA!$C$29,Flujos!$B58/365)) -> 0.3682778737 | I58: 2029-03-18 | J58: 56 | K58: =+DIAS365($A$2,A58) -> 1703 | L58: 6660901075 | M58: 279515898.8 | N58: 64032287 | O58: 343548185.8
A59: 2029-04-18 | B59: =IF(DIAS365(CALCULADORA!$C$27,A59)<0,0,DIAS365(CALCULADORA!$C$27,A59)) -> 1536 | C59: =+HLOOKUP(CALCULADORA!$C$9,Tablas!B:B,Flujos!J59+1,FALSE) -> 0.00435506 | D59: 10.358043 | E59: 0.435506 | F59: =ROUND(D58*ROUND(((1+CALCULADORA!$C$16)^(1/12)-1),6),6) -> 0.099581 | G59: 0.535087 | H59: =IF($B59=0,0,G59/POWER(1+CALCULADORA!$C$29,Flujos!$B59/365)) -> 0.3509821037 | I59: 2029-04-18 | J59: 57 | K59: =+DIAS365($A$2,A59) -> 1734 | L59: 6392142172 | M59: 268758902.5 | N59: 61453473.32 | O59: 330212375.8
A60: 2029-05-18 | B60: =IF(DIAS365(CALCULADORA!$C$27,A60)<0,0,DIAS365(CALCULADORA!$C$27,A60)) -> 1566 | C60: =+HLOOKUP(CALCULADORA!$C$9,Tablas!B:B,Flujos!J60+1,FALSE) -> 0.00418692 | D60: 9.939351 | E60: 0.418692 | F60: =ROUND(D59*ROUND(((1+CALCULADORA!$C$16)^(1/12)-1),6),6) -> 0.095563 | G60: 0.514255 | H60: =IF($B60=0,0,G60/POWER(1+CALCULADORA!$C$29,Flujos!$B60/365)) -> 0.3345508624 | I60: 2029-05-18 | J60: 58 | K60: =+DIAS365($A$2,A60) -> 1764 | L60: 6133759504 | M60: 258382668.5 | N60: 58973903.68 | O60: 317356572.1
A61: 2029-06-18 | B61: =IF(DIAS365(CALCULADORA!$C$27,A61)<0,0,DIAS365(CALCULADORA!$C$27,A61)) -> 1597 | C61: =+HLOOKUP(CALCULADORA!$C$9,Tablas!B:B,Flujos!J61+1,FALSE) -> 0.00402453 | D61: 9.536898 | E61: 0.402453 | F61: =ROUND(D60*ROUND(((1+CALCULADORA!$C$16)^(1/12)-1),6),6) -> 0.0917 | G61: 0.494153 | H61: =IF($B61=0,0,G61/POWER(1+CALCULADORA!$C$29,Flujos!$B61/365)) -> 0.3187490461 | I61: 2029-06-18 | J61: 59 | K61: =+DIAS365($A$2,A61) -> 1795 | L61: 5885398226 | M61: 248361277.7 | N61: 56590065.18 | O61: 304951342.9
A62: 2029-07-18 | B62: =IF(DIAS365(CALCULADORA!$C$27,A62)<0,0,DIAS365(CALCULADORA!$C$27,A62)) -> 1627 | C62: =+HLOOKUP(CALCULADORA!$C$9,Tablas!B:B,Flujos!J62+1,FALSE) -> 0.00386837 | D62: 9.150061 | E62: 0.386837 | F62: =ROUND(D61*ROUND(((1+CALCULADORA!$C$16)^(1/12)-1),6),6) -> 0.087987 | G62: 0.474824 | H62: =IF($B62=0,0,G62/POWER(1+CALCULADORA!$C$29,Flujos!$B62/365)) -> 0.3037688086 | I62: 2029-07-18 | J62: 60 | K62: =+DIAS365($A$2,A62) -> 1825 | L62: 5646673874 | M62: 238724351.8 | N62: 54298684.03 | O62: 293023035.9
A63: 2029-08-18 | B63: =IF(DIAS365(CALCULADORA!$C$27,A63)<0,0,DIAS365(CALCULADORA!$C$27,A63)) -> 1658 | C63: =+HLOOKUP(CALCULADORA!$C$9,Tablas!B:B,Flujos!J63+1,FALSE) -> 0.00371754 | D63: 8.778307 | E63: 0.371754 | F63: =ROUND(D62*ROUND(((1+CALCULADORA!$C$16)^(1/12)-1),6),6) -> 0.084418 | G63: 0.456172 | H63: =IF($B63=0,0,G63/POWER(1+CALCULADORA!$C$29,Flujos!$B63/365)) -> 0.289362979 | I63: 2029-08-18 | J63: 61 | K63: =+DIAS365($A$2,A63) -> 1856 | L63: 5417257524 | M63: 229416350.3 | N63: 52096213.16 | O63: 281512563.4
A64: 2029-09-18 | B64: =IF(DIAS365(CALCULADORA!$C$27,A64)<0,0,DIAS365(CALCULADORA!$C$27,A64)) -> 1689 | C64: =+HLOOKUP(CALCULADORA!$C$9,Tablas!B:B,Flujos!J64+1,FALSE) -> 0.00357481 | D64: 8.420826 | E64: 0.357481 | F64: =ROUND(D63*ROUND(((1+CALCULADORA!$C$16)^(1/12)-1),6),6) -> 0.080989 | G64: 0.43847 | H64: =IF($B64=0,0,G64/POWER(1+CALCULADORA!$C$29,Flujos!$B64/365)) -> 0.2757770066 | I64: 2029-09-18 | J64: 62 | K64: =+DIAS365($A$2,A64) -> 1887 | L64: 5196649309 | M64: 220608214.9 | N64: 49979617.92 | O64: 270587832.8
A65: 2029-10-18 | B65: =IF(DIAS365(CALCULADORA!$C$27,A65)<0,0,DIAS365(CALCULADORA!$C$27,A65)) -> 1719 | C65: =+HLOOKUP(CALCULADORA!$C$9,Tablas!B:B,Flujos!J65+1,FALSE) -> 0.00343681 | D65: 8.077145 | E65: 0.343681 | F65: =ROUND(D64*ROUND(((1+CALCULADORA!$C$16)^(1/12)-1),6),6) -> 0.077691 | G65: 0.421372 | H65: =IF($B65=0,0,G65/POWER(1+CALCULADORA!$C$29,Flujos!$B65/365)) -> 0.2628493458 | I65: 2029-10-18 | J65: 63 | K65: =+DIAS365($A$2,A65) -> 1917 | L65: 4984557333 | M65: 212091976.6 | N65: 47944286.53 | O65: 260036263.2
A66: 2029-11-18 | B66: =IF(DIAS365(CALCULADORA!$C$27,A66)<0,0,DIAS365(CALCULADORA!$C$27,A66)) -> 1750 | C66: =+HLOOKUP(CALCULADORA!$C$9,Tablas!B:B,Flujos!J66+1,FALSE) -> 0.00329827 | D66: 7.747318 | E66: 0.329827 | F66: =ROUND(D65*ROUND(((1+CALCULADORA!$C$16)^(1/12)-1),6),6) -> 0.07452 | G66: 0.404347 | H66: =IF($B66=0,0,G66/POWER(1+CALCULADORA!$C$29,Flujos!$B66/365)) -> 0.2500917001 | I66: 2029-11-18 | J66: 64 | K66: =+DIAS365($A$2,A66) -> 1948 | L66: 4781014919 | M66: 203542414 | N66: 45987525.95 | O66: 249529939.9
A67: =EDATE(A66,1) -> 2029-12-18 | B67: =IF(DIAS365(CALCULADORA!$C$27,A67)<0,0,DIAS365(CALCULADORA!$C$27,A67)) -> 1780 | C67: =+HLOOKUP(CALCULADORA!$C$9,Tablas!B:B,Flujos!J67+1,FALSE) -> 0.00316613 | D67: 7.430705 | E67: 0.316613 | F67: =ROUND(D66*ROUND(((1+CALCULADORA!$C$16)^(1/12)-1),6),6) -> 0.071477 | G67: 0.38809 | H67: =IF($B67=0,0,G67/POWER(1+CALCULADORA!$C$29,Flujos!$B67/365)) -> 0.2380677481 | I67: =+A67 -> 2029-12-18 | J67: 65 | K67: =+DIAS365($A$2,A67) -> 1978 | L67: 4585627111 | M67: 195387807.3 | N67: 44109643.64 | O67: 239497450.9
A68: 2030-01-18 | B68: =IF(DIAS365(CALCULADORA!$C$27,A68)<0,0,DIAS365(CALCULADORA!$C$27,A68)) -> 1811 | C68: =+HLOOKUP(CALCULADORA!$C$9,Tablas!B:B,Flujos!J68+1,FALSE) -> 0.00304404 | D68: =+ROUND(D67-E68,6) -> 7.126301 | E68: =ROUND(C68*$D$2,6) -> 0.304404 | F68: =ROUND(D67*ROUND(((1+CALCULADORA!$C$16)^(1/12)-1),6),6) -> 0.068556 | G68: =F68+E68 -> 0.37296 | H68: =IF($B68=0,0,G68/POWER(1+CALCULADORA!$C$29,Flujos!$B68/365)) -> 0.2268476029 | I68: 2030-01-18 | J68: 66 | K68: =+DIAS365($A$2,A68) -> 2009 | L68: =+L67-M68 -> 4397773706 | M68: =+$L$2*C68 -> 187853404.9 | N68: =+L67*$F$3% -> 42306995.73 | O68: =+N68+M68 -> 230160400.6
A69: 2030-02-18 | B69: =IF(DIAS365(CALCULADORA!$C$27,A69)<0,0,DIAS365(CALCULADORA!$C$27,A69)) -> 1842 | C69: =+HLOOKUP(CALCULADORA!$C$9,Tablas!B:B,Flujos!J69+1,FALSE) -> 0.00292686 | D69: 6.833615 | E69: 0.292686 | F69: =ROUND(D68*ROUND(((1+CALCULADORA!$C$16)^(1/12)-1),6),6) -> 0.065747 | G69: 0.358433 | H69: =IF($B69=0,0,G69/POWER(1+CALCULADORA!$C$29,Flujos!$B69/365)) -> 0.2161641912 | I69: 2030-02-18 | J69: 67 | K69: =+DIAS365($A$2,A69) -> 2040 | L69: 4217151699 | M69: 180622007.8 | N69: 40573860.21 | O69: 221195868
A70: 2030-03-18 | B70: =IF(DIAS365(CALCULADORA!$C$27,A70)<0,0,DIAS365(CALCULADORA!$C$27,A70)) -> 1870 | C70: =+HLOOKUP(CALCULADORA!$C$9,Tablas!B:B,Flujos!J70+1,FALSE) -> 0.00281399 | D70: 6.552216 | E70: 0.281399 | F70: =ROUND(D69*ROUND(((1+CALCULADORA!$C$16)^(1/12)-1),6),6) -> 0.063047 | G70: 0.344446 | H70: =IF($B70=0,0,G70/POWER(1+CALCULADORA!$C$29,Flujos!$B70/365)) -> 0.2061381773 | I70: 2030-03-18 | J70: 68 | K70: =+DIAS365($A$2,A70) -> 2068 | L70: 4043495110 | M70: 173656588.9 | N70: 38907441.57 | O70: 212564030.5
A71: 2030-04-18 | B71: =IF(DIAS365(CALCULADORA!$C$27,A71)<0,0,DIAS365(CALCULADORA!$C$27,A71)) -> 1901 | C71: =+HLOOKUP(CALCULADORA!$C$9,Tablas!B:B,Flujos!J71+1,FALSE) -> 0.00270605 | D71: 6.281611 | E71: 0.270605 | F71: =ROUND(D70*ROUND(((1+CALCULADORA!$C$16)^(1/12)-1),6),6) -> 0.060451 | G71: 0.331056 | H71: =IF($B71=0,0,G71/POWER(1+CALCULADORA!$C$29,Flujos!$B71/365)) -> 0.1964457221 | I71: 2030-04-18 | J71: 69 | K71: =+DIAS365($A$2,A71) -> 2099 | L71: 3876499700 | M71: 166995409.5 | N71: 37305285.88 | O71: 204300695.4
A72: 2030-05-18 | B72: =IF(DIAS365(CALCULADORA!$C$27,A72)<0,0,DIAS365(CALCULADORA!$C$27,A72)) -> 1931 | C72: =+HLOOKUP(CALCULADORA!$C$9,Tablas!B:B,Flujos!J72+1,FALSE) -> 0.00260098 | D72: 6.021513 | E72: 0.260098 | F72: =ROUND(D71*ROUND(((1+CALCULADORA!$C$16)^(1/12)-1),6),6) -> 0.057954 | G72: 0.318052 | H72: =IF($B72=0,0,G72/POWER(1+CALCULADORA!$C$29,Flujos!$B72/365)) -> 0.187181232 | I72: 2030-05-18 | J72: 70 | K72: =+DIAS365($A$2,A72) -> 2129 | L72: 3715988357 | M72: 160511343.2 | N72: 35764586.23 | O72: 196275929.4
A73: 2030-06-18 | B73: =IF(DIAS365(CALCULADORA!$C$27,A73)<0,0,DIAS365(CALCULADORA!$C$27,A73)) -> 1962 | C73: =+HLOOKUP(CALCULADORA!$C$9,Tablas!B:B,Flujos!J73+1,FALSE) -> 0.00250076 | D73: 5.771437 | E73: 0.250076 | F73: =ROUND(D72*ROUND(((1+CALCULADORA!$C$16)^(1/12)-1),6),6) -> 0.055554 | G73: 0.30563 | H73: =IF($B73=0,0,G73/POWER(1+CALCULADORA!$C$29,Flujos!$B73/365)) -> 0.1783462486 | I73: 2030-06-18 | J73: 71 | K73: =+DIAS365($A$2,A73) -> 2160 | L73: 3561661777 | M73: 154326579.4 | N73: 34283708.58 | O73: 188610288
A74: 2030-07-18 | B74: =IF(DIAS365(CALCULADORA!$C$27,A74)<0,0,DIAS365(CALCULADORA!$C$27,A74)) -> 1992 | C74: =+HLOOKUP(CALCULADORA!$C$9,Tablas!B:B,Flujos!J74+1,FALSE) -> 0.00239931 | D74: 5.531506 | E74: 0.239931 | F74: =ROUND(D73*ROUND(((1+CALCULADORA!$C$16)^(1/12)-1),6),6) -> 0.053247 | G74: 0.293178 | H74: =IF($B74=0,0,G74/POWER(1+CALCULADORA!$C$29,Flujos!$B74/365)) -> 0.1696767875 | I74: 2030-07-18 | J74: 72 | K74: =+DIAS365($A$2,A74) -> 2190 | L74: 3413595867 | M74: 148065910.1 | N74: 32859891.56 | O74: 180925801.6
A75: 2030-08-18 | B75: =IF(DIAS365(CALCULADORA!$C$27,A75)<0,0,DIAS365(CALCULADORA!$C$27,A75)) -> 2023 | C75: =+HLOOKUP(CALCULADORA!$C$9,Tablas!B:B,Flujos!J75+1,FALSE) -> 0.00230486 | D75: 5.30102 | E75: 0.230486 | F75: =ROUND(D74*ROUND(((1+CALCULADORA!$C$16)^(1/12)-1),6),6) -> 0.051034 | G75: 0.28152 | H75: =IF($B75=0,0,G75/POWER(1+CALCULADORA!$C$29,Flujos!$B75/365)) -> 0.1615489486 | I75: 2030-08-18 | J75: 73 | K75: =+DIAS365($A$2,A75) -> 2221 | L75: 3271358644 | M75: 142237223.8 | N75: 31493835.47 | O75: 173731059.3
A76: 2030-09-18 | B76: =IF(DIAS365(CALCULADORA!$C$27,A76)<0,0,DIAS365(CALCULADORA!$C$27,A76)) -> 2054 | C76: =+HLOOKUP(CALCULADORA!$C$9,Tablas!B:B,Flujos!J76+1,FALSE) -> 0.00239939 | D76: 5.061081 | E76: 0.239939 | F76: =ROUND(D75*ROUND(((1+CALCULADORA!$C$16)^(1/12)-1),6),6) -> 0.048907 | G76: 0.288846 | H76: =IF($B76=0,0,G76/POWER(1+CALCULADORA!$C$29,Flujos!$B76/365)) -> 0.1643482433 | I76: 2030-09-18 | J76: 74 | K76: =+DIAS365($A$2,A76) -> 2252 | L76: 3123287797 | M76: 148070847 | N76: 30181554.85 | O76: 178252401.9
A77: 2030-10-18 | B77: =IF(DIAS365(CALCULADORA!$C$27,A77)<0,0,DIAS365(CALCULADORA!$C$27,A77)) -> 2084 | C77: =+HLOOKUP(CALCULADORA!$C$9,Tablas!B:B,Flujos!J77+1,FALSE) -> 0.00264252 | D77: 4.796829 | E77: 0.264252 | F77: =ROUND(D76*ROUND(((1+CALCULADORA!$C$16)^(1/12)-1),6),6) -> 0.046694 | G77: 0.310946 | H77: =IF($B77=0,0,G77/POWER(1+CALCULADORA!$C$29,Flujos!$B77/365)) -> 0.1754715616 | I77: 2030-10-18 | J77: 75 | K77: =+DIAS365($A$2,A77) -> 2282 | L77: 2960212942 | M77: 163074854.3 | N77: 28815453.21 | O77: 191890307.5
A78: 2030-11-18 | B78: =IF(DIAS365(CALCULADORA!$C$27,A78)<0,0,DIAS365(CALCULADORA!$C$27,A78)) -> 2115 | C78: =+HLOOKUP(CALCULADORA!$C$9,Tablas!B:B,Flujos!J78+1,FALSE) -> 0.00254262 | D78: 4.542567 | E78: 0.254262 | F78: =ROUND(D77*ROUND(((1+CALCULADORA!$C$16)^(1/12)-1),6),6) -> 0.044256 | G78: 0.298518 | H78: =IF($B78=0,0,G78/POWER(1+CALCULADORA!$C$29,Flujos!$B78/365)) -> 0.167030629 | I78: 2030-11-18 | J78: 76 | K78: =+DIAS365($A$2,A78) -> 2313 | L78: 2803303104 | M78: 156909838.4 | N78: 27310924.6 | O78: 184220763
A79: 2030-12-18 | B79: =IF(DIAS365(CALCULADORA!$C$27,A79)<0,0,DIAS365(CALCULADORA!$C$27,A79)) -> 2145 | C79: =+HLOOKUP(CALCULADORA!$C$9,Tablas!B:B,Flujos!J79+1,FALSE) -> 0.00244734 | D79: 4.297833 | E79: 0.244734 | F79: =ROUND(D78*ROUND(((1+CALCULADORA!$C$16)^(1/12)-1),6),6) -> 0.04191 | G79: 0.286644 | H79: =IF($B79=0,0,G79/POWER(1+CALCULADORA!$C$29,Flujos!$B79/365)) -> 0.1590711816 | I79: 2030-12-18 | J79: 77 | K79: =+DIAS365($A$2,A79) -> 2343 | L79: 2652273173 | M79: 151029931.3 | N79: 25863274.44 | O79: 176893205.7
A80: 2031-01-18 | B80: =IF(DIAS365(CALCULADORA!$C$27,A80)<0,0,DIAS365(CALCULADORA!$C$27,A80)) -> 2176 | C80: =+HLOOKUP(CALCULADORA!$C$9,Tablas!B:B,Flujos!J80+1,FALSE) -> 0.00235364 | D80: 4.062469 | E80: 0.235364 | F80: =ROUND(D79*ROUND(((1+CALCULADORA!$C$16)^(1/12)-1),6),6) -> 0.039652 | G80: 0.275016 | H80: =IF($B80=0,0,G80/POWER(1+CALCULADORA!$C$29,Flujos!$B80/365)) -> 0.1513249152 | I80: 2031-01-18 | J80: 78 | K80: =+DIAS365($A$2,A80) -> 2374 | L80: 2507025644 | M80: 145247528.9 | N80: 24469872.29 | O80: 169717401.2
A81: 2031-02-18 | B81: =IF(DIAS365(CALCULADORA!$C$27,A81)<0,0,DIAS365(CALCULADORA!$C$27,A81)) -> 2207 | C81: =+HLOOKUP(CALCULADORA!$C$9,Tablas!B:B,Flujos!J81+1,FALSE) -> 0.00226445 | D81: 3.836024 | E81: 0.226445 | F81: =ROUND(D80*ROUND(((1+CALCULADORA!$C$16)^(1/12)-1),6),6) -> 0.03748 | G81: 0.263925 | H81: =IF($B81=0,0,G81/POWER(1+CALCULADORA!$C$29,Flujos!$B81/365)) -> 0.1439914931 | I81: 2031-02-18 | J81: 79 | K81: =+DIAS365($A$2,A81) -> 2405 | L81: 2367282196 | M81: 139743447.1 | N81: 23129818.59 | O81: 162873265.7
A82: 2031-03-18 | B82: =IF(DIAS365(CALCULADORA!$C$27,A82)<0,0,DIAS365(CALCULADORA!$C$27,A82)) -> 2235 | C82: =+HLOOKUP(CALCULADORA!$C$9,Tablas!B:B,Flujos!J82+1,FALSE) -> 0.00218102 | D82: 3.617922 | E82: 0.218102 | F82: =ROUND(D81*ROUND(((1+CALCULADORA!$C$16)^(1/12)-1),6),6) -> 0.035391 | G82: 0.253493 | H82: =IF($B82=0,0,G82/POWER(1+CALCULADORA!$C$29,Flujos!$B82/365)) -> 0.1372409756 | I82: 2031-03-18 | J82: 80 | K82: =+DIAS365($A$2,A82) -> 2433 | L82: 2232687371 | M82: 134594825.7 | N82: 21840545.54 | O82: 156435371.2
A83: 2031-04-18 | B83: =IF(DIAS365(CALCULADORA!$C$27,A83)<0,0,DIAS365(CALCULADORA!$C$27,A83)) -> 2266 | C83: =+HLOOKUP(CALCULADORA!$C$9,Tablas!B:B,Flujos!J83+1,FALSE) -> 0.00209895 | D83: 3.408027 | E83: 0.209895 | F83: =ROUND(D82*ROUND(((1+CALCULADORA!$C$16)^(1/12)-1),6),6) -> 0.033379 | G83: 0.243274 | H83: =IF($B83=0,0,G83/POWER(1+CALCULADORA!$C$29,Flujos!$B83/365)) -> 0.1305922331 | I83: 2031-04-18 | J83: 81 | K83: =+DIAS365($A$2,A83) -> 2464 | L83: 2103157238 | M83: 129530132.4 | N83: 20598773.68 | O83: 150128906.1
A84: 2031-05-18 | B84: =IF(DIAS365(CALCULADORA!$C$27,A84)<0,0,DIAS365(CALCULADORA!$C$27,A84)) -> 2296 | C84: =+HLOOKUP(CALCULADORA!$C$9,Tablas!B:B,Flujos!J84+1,FALSE) -> 0.0020182 | D84: 3.206207 | E84: 0.20182 | F84: =ROUND(D83*ROUND(((1+CALCULADORA!$C$16)^(1/12)-1),6),6) -> 0.031442 | G84: 0.233262 | H84: =IF($B84=0,0,G84/POWER(1+CALCULADORA!$C$29,Flujos!$B84/365)) -> 0.1241905943 | I84: 2031-05-18 | J84: 82 | K84: =+DIAS365($A$2,A84) -> 2494 | L84: 1978610340 | M84: 124546898.8 | N84: 19403728.68 | O84: 143950627.5
A85: 2031-06-18 | B85: =IF(DIAS365(CALCULADORA!$C$27,A85)<0,0,DIAS365(CALCULADORA!$C$27,A85)) -> 2327 | C85: =+HLOOKUP(CALCULADORA!$C$9,Tablas!B:B,Flujos!J85+1,FALSE) -> 0.00194316 | D85: 3.011891 | E85: 0.194316 | F85: =ROUND(D84*ROUND(((1+CALCULADORA!$C$16)^(1/12)-1),6),6) -> 0.02958 | G85: 0.223896 | H85: =IF($B85=0,0,G85/POWER(1+CALCULADORA!$C$29,Flujos!$B85/365)) -> 0.1181938479 | I85: 2031-06-18 | J85: 83 | K85: =+DIAS365($A$2,A85) -> 2525 | L85: 1858694300 | M85: 119916040 | N85: 18254658.99 | O85: 138170699
A86: 2031-07-18 | B86: =IF(DIAS365(CALCULADORA!$C$27,A86)<0,0,DIAS365(CALCULADORA!$C$27,A86)) -> 2357 | C86: =+HLOOKUP(CALCULADORA!$C$9,Tablas!B:B,Flujos!J86+1,FALSE) -> 0.00152815 | D86: 2.859076 | E86: 0.152815 | F86: =ROUND(D85*ROUND(((1+CALCULADORA!$C$16)^(1/12)-1),6),6) -> 0.027788 | G86: 0.180603 | H86: =IF($B86=0,0,G86/POWER(1+CALCULADORA!$C$29,Flujos!$B86/365)) -> 0.09455762493 | I86: 2031-07-18 | J86: 84 | K86: =+DIAS365($A$2,A86) -> 2555 | L86: 1764389303 | M86: 94304996.23 | N86: 17148313.61 | O86: 111453309.8
A87: 2031-08-18 | B87: =IF(DIAS365(CALCULADORA!$C$27,A87)<0,0,DIAS365(CALCULADORA!$C$27,A87)) -> 2388 | C87: =+HLOOKUP(CALCULADORA!$C$9,Tablas!B:B,Flujos!J87+1,FALSE) -> 0.00179372 | D87: 2.679704 | E87: 0.179372 | F87: =ROUND(D86*ROUND(((1+CALCULADORA!$C$16)^(1/12)-1),6),6) -> 0.026378 | G87: 0.20575 | H87: =IF($B87=0,0,G87/POWER(1+CALCULADORA!$C$29,Flujos!$B87/365)) -> 0.106810824 | I87: 2031-08-18 | J87: 85 | K87: =+DIAS365($A$2,A87) -> 2586 | L87: 1653695486 | M87: 110693817.9 | N87: 16278255.71 | O87: 126972073.6
A88: 2031-09-18 | B88: =IF(DIAS365(CALCULADORA!$C$27,A88)<0,0,DIAS365(CALCULADORA!$C$27,A88)) -> 2419 | C88: =+HLOOKUP(CALCULADORA!$C$9,Tablas!B:B,Flujos!J88+1,FALSE) -> 0.00172541 | D88: 2.507163 | E88: 0.172541 | F88: =ROUND(D87*ROUND(((1+CALCULADORA!$C$16)^(1/12)-1),6),6) -> 0.024723 | G88: 0.197264 | H88: =IF($B88=0,0,G88/POWER(1+CALCULADORA!$C$29,Flujos!$B88/365)) -> 0.1015376443 | I88: 2031-09-18 | J88: 86 | K88: =+DIAS365($A$2,A88) -> 2617 | L88: 1547217206 | M88: 106478280 | N88: 15256994.55 | O88: 121735274.5
A89: 2031-10-18 | B89: =IF(DIAS365(CALCULADORA!$C$27,A89)<0,0,DIAS365(CALCULADORA!$C$27,A89)) -> 2449 | C89: =+HLOOKUP(CALCULADORA!$C$9,Tablas!B:B,Flujos!J89+1,FALSE) -> 0.00165945 | D89: 2.341218 | E89: 0.165945 | F89: =ROUND(D88*ROUND(((1+CALCULADORA!$C$16)^(1/12)-1),6),6) -> 0.023131 | G89: 0.189076 | H89: =IF($B89=0,0,G89/POWER(1+CALCULADORA!$C$29,Flujos!$B89/365)) -> 0.096524756 | I89: 2031-10-18 | J89: 87 | K89: =+DIAS365($A$2,A89) -> 2647 | L89: 1444809441 | M89: 102407764.9 | N89: 14274625.94 | O89: 116682390.9
A90: 2031-11-18 | B90: =IF(DIAS365(CALCULADORA!$C$27,A90)<0,0,DIAS365(CALCULADORA!$C$27,A90)) -> 2480 | C90: =+HLOOKUP(CALCULADORA!$C$9,Tablas!B:B,Flujos!J90+1,FALSE) -> 0.00159641 | D90: 2.181577 | E90: 0.159641 | F90: =ROUND(D89*ROUND(((1+CALCULADORA!$C$16)^(1/12)-1),6),6) -> 0.0216 | G90: 0.181241 | H90: =IF($B90=0,0,G90/POWER(1+CALCULADORA!$C$29,Flujos!$B90/365)) -> 0.09174081266 | I90: 2031-11-18 | J90: 88 | K90: =+DIAS365($A$2,A90) -> 2678 | L90: 1346291992 | M90: 98517448.57 | N90: 13329811.9 | O90: 111847260.5
A91: 2031-12-18 | B91: =IF(DIAS365(CALCULADORA!$C$27,A91)<0,0,DIAS365(CALCULADORA!$C$27,A91)) -> 2510 | C91: =+HLOOKUP(CALCULADORA!$C$9,Tablas!B:B,Flujos!J91+1,FALSE) -> 0.00153603 | D91: 2.027974 | E91: 0.153603 | F91: =ROUND(D90*ROUND(((1+CALCULADORA!$C$16)^(1/12)-1),6),6) -> 0.020127 | G91: 0.17373 | H91: =IF($B91=0,0,G91/POWER(1+CALCULADORA!$C$29,Flujos!$B91/365)) -> 0.0872175757 | I91: 2031-12-18 | J91: 89 | K91: =+DIAS365($A$2,A91) -> 2708 | L91: 1251500706 | M91: 94791285.78 | N91: 12420889.92 | O91: 107212175.7
A92: 2032-01-18 | B92: =IF(DIAS365(CALCULADORA!$C$27,A92)<0,0,DIAS365(CALCULADORA!$C$27,A92)) -> 2541 | C92: =+HLOOKUP(CALCULADORA!$C$9,Tablas!B:B,Flujos!J92+1,FALSE) -> 0.00147417 | D92: 1.880557 | E92: 0.147417 | F92: =ROUND(D91*ROUND(((1+CALCULADORA!$C$16)^(1/12)-1),6),6) -> 0.01871 | G92: 0.166127 | H92: =IF($B92=0,0,G92/POWER(1+CALCULADORA!$C$29,Flujos!$B92/365)) -> 0.08269385539 | I92: 2032-01-18 | J92: 90 | K92: =+DIAS365($A$2,A92) -> 2739 | L92: 1160526917 | M92: 90973789.41 | N92: 11546345.52 | O92: 102520134.9
A93: 2032-02-18 | B93: =IF(DIAS365(CALCULADORA!$C$27,A93)<0,0,DIAS365(CALCULADORA!$C$27,A93)) -> 2572 | C93: =+HLOOKUP(CALCULADORA!$C$9,Tablas!B:B,Flujos!J93+1,FALSE) -> 0.01880557 | D93: 0 | E93: 1.880557 | F93: =ROUND(D92*ROUND(((1+CALCULADORA!$C$16)^(1/12)-1),6),6) -> 0.01735 | G93: 1.897907 | H93: =IF($B93=0,0,G93/POWER(1+CALCULADORA!$C$29,Flujos!$B93/365)) -> 0.9367242687 | I93: 2032-02-18 | J93: 91 | K93: =+DIAS365($A$2,A93) -> 2770 | L93: -1.59740448e-05 | M93: 1160526917 | N93: 10707021.33 | O93: 1171233938
A94: 2032-03-18 | B94: =IF(DIAS365(CALCULADORA!$C$27,A94)<0,0,DIAS365(CALCULADORA!$C$27,A94)) -> 2600 | C94: =+HLOOKUP(CALCULADORA!$C$9,Tablas!B:B,Flujos!J94+1,FALSE) -> 0 | D94: 0 | E94: 0 | F94: =ROUND(D93*ROUND(((1+CALCULADORA!$C$16)^(1/12)-1),6),6) -> 0 | G94: 0 | H94: =IF($B94=0,0,G94/POWER(1+CALCULADORA!$C$29,Flujos!$B94/365)) -> 0 | I94: 2032-03-18 | J94: 92 | K94: =+DIAS365($A$2,A94) -> 2798 | L94: -1.59740448e-05 | M94: 0 | N94: -1.473765373e-07 | O94: -1.473765373e-07
A95: 2032-04-18 | B95: =IF(DIAS365(CALCULADORA!$C$27,A95)<0,0,DIAS365(CALCULADORA!$C$27,A95)) -> 2631 | C95: =+HLOOKUP(CALCULADORA!$C$9,Tablas!B:B,Flujos!J95+1,FALSE) -> 0 | D95: 0 | E95: 0 | F95: =ROUND(D94*ROUND(((1+CALCULADORA!$C$16)^(1/12)-1),6),6) -> 0 | G95: 0 | H95: =IF($B95=0,0,G95/POWER(1+CALCULADORA!$C$29,Flujos!$B95/365)) -> 0 | I95: 2032-04-18 | J95: 93 | K95: =+DIAS365($A$2,A95) -> 2829 | L95: -1.59740448e-05 | M95: 0 | N95: -1.473765373e-07 | O95: -1.473765373e-07
A96: 2032-05-18 | B96: =IF(DIAS365(CALCULADORA!$C$27,A96)<0,0,DIAS365(CALCULADORA!$C$27,A96)) -> 2661 | C96: =+HLOOKUP(CALCULADORA!$C$9,Tablas!B:B,Flujos!J96+1,FALSE) -> 0 | D96: 0 | E96: 0 | F96: =ROUND(D95*ROUND(((1+CALCULADORA!$C$16)^(1/12)-1),6),6) -> 0 | G96: 0 | H96: =IF($B96=0,0,G96/POWER(1+CALCULADORA!$C$29,Flujos!$B96/365)) -> 0 | I96: 2032-05-18 | J96: 94 | K96: =+DIAS365($A$2,A96) -> 2859 | L96: -1.59740448e-05 | M96: 0 | N96: -1.473765373e-07 | O96: -1.473765373e-07
A97: 2032-06-18 | B97: =IF(DIAS365(CALCULADORA!$C$27,A97)<0,0,DIAS365(CALCULADORA!$C$27,A97)) -> 2692 | C97: =+HLOOKUP(CALCULADORA!$C$9,Tablas!B:B,Flujos!J97+1,FALSE) -> 0 | D97: 0 | E97: 0 | F97: =ROUND(D96*ROUND(((1+CALCULADORA!$C$16)^(1/12)-1),6),6) -> 0 | G97: 0 | H97: =IF($B97=0,0,G97/POWER(1+CALCULADORA!$C$29,Flujos!$B97/365)) -> 0 | I97: 2032-06-18 | J97: 95 | K97: =+DIAS365($A$2,A97) -> 2890 | L97: -1.59740448e-05 | M97: 0 | N97: -1.473765373e-07 | O97: -1.473765373e-07
A98: 2032-07-18 | B98: =IF(DIAS365(CALCULADORA!$C$27,A98)<0,0,DIAS365(CALCULADORA!$C$27,A98)) -> 2722 | C98: =+HLOOKUP(CALCULADORA!$C$9,Tablas!B:B,Flujos!J98+1,FALSE) -> 0 | D98: 0 | E98: 0 | F98: =ROUND(D97*ROUND(((1+CALCULADORA!$C$16)^(1/12)-1),6),6) -> 0 | G98: 0 | H98: =IF($B98=0,0,G98/POWER(1+CALCULADORA!$C$29,Flujos!$B98/365)) -> 0 | I98: 2032-07-18 | J98: 96 | K98: =+DIAS365($A$2,A98) -> 2920 | L98: -1.59740448e-05 | M98: 0 | N98: -1.473765373e-07 | O98: -1.473765373e-07
A99: =EDATE(A98,1) -> 2032-08-18 | B99: =IF(DIAS365(CALCULADORA!$C$27,A99)<0,0,DIAS365(CALCULADORA!$C$27,A99)) -> 2753 | C99: =+HLOOKUP(CALCULADORA!$C$9,Tablas!B:B,Flujos!J99+1,FALSE) -> 0 | D99: 0 | E99: 0 | F99: =ROUND(D98*ROUND(((1+CALCULADORA!$C$16)^(1/12)-1),6),6) -> 0 | G99: 0 | H99: =IF($B99=0,0,G99/POWER(1+CALCULADORA!$C$29,Flujos!$B99/365)) -> 0 | I99: 2032-08-18 | J99: 97 | K99: =+DIAS365($A$2,A99) -> 2951 | L99: -1.59740448e-05 | M99: 0 | N99: -1.473765373e-07 | O99: -1.473765373e-07
A100: 2032-09-18 | B100: =IF(DIAS365(CALCULADORA!$C$27,A100)<0,0,DIAS365(CALCULADORA!$C$27,A100)) -> 2784 | C100: =+HLOOKUP(CALCULADORA!$C$9,Tablas!B:B,Flujos!J100+1,FALSE) -> 0 | D100: 0 | E100: 0 | F100: =ROUND(D99*ROUND(((1+CALCULADORA!$C$16)^(1/12)-1),6),6) -> 0 | G100: 0 | H100: =IF($B100=0,0,G100/POWER(1+CALCULADORA!$C$29,Flujos!$B100/365)) -> 0 | I100: 2032-09-18 | J100: 98 | K100: =+DIAS365($A$2,A100) -> 2982 | L100: -1.59740448e-05 | M100: 0 | N100: -1.473765373e-07 | O100: -1.473765373e-07
A101: 2032-10-18 | B101: =IF(DIAS365(CALCULADORA!$C$27,A101)<0,0,DIAS365(CALCULADORA!$C$27,A101)) -> 2814 | C101: =+HLOOKUP(CALCULADORA!$C$9,Tablas!B:B,Flujos!J101+1,FALSE) -> 0 | D101: 0 | E101: 0 | F101: =ROUND(D100*ROUND(((1+CALCULADORA!$C$16)^(1/12)-1),6),6) -> 0 | G101: 0 | H101: =IF($B101=0,0,G101/POWER(1+CALCULADORA!$C$29,Flujos!$B101/365)) -> 0 | I101: 2032-10-18 | J101: 99 | K101: =+DIAS365($A$2,A101) -> 3012 | L101: -1.59740448e-05 | M101: 0 | N101: -1.473765373e-07 | O101: -1.473765373e-07
A102: 2032-11-18 | B102: =IF(DIAS365(CALCULADORA!$C$27,A102)<0,0,DIAS365(CALCULADORA!$C$27,A102)) -> 2845 | C102: =+HLOOKUP(CALCULADORA!$C$9,Tablas!B:B,Flujos!J102+1,FALSE) -> 0 | D102: 0 | E102: 0 | F102: =ROUND(D101*ROUND(((1+CALCULADORA!$C$16)^(1/12)-1),6),6) -> 0 | G102: 0 | H102: =IF($B102=0,0,G102/POWER(1+CALCULADORA!$C$29,Flujos!$B102/365)) -> 0 | I102: 2032-11-18 | J102: 100 | K102: =+DIAS365($A$2,A102) -> 3043 | L102: -1.59740448e-05 | M102: 0 | N102: -1.473765373e-07 | O102: -1.473765373e-07
A103: 2032-12-18 | B103: =IF(DIAS365(CALCULADORA!$C$27,A103)<0,0,DIAS365(CALCULADORA!$C$27,A103)) -> 2875 | C103: =+HLOOKUP(CALCULADORA!$C$9,Tablas!B:B,Flujos!J103+1,FALSE) -> 0 | D103: 0 | E103: 0 | F103: =ROUND(D102*ROUND(((1+CALCULADORA!$C$16)^(1/12)-1),6),6) -> 0 | G103: 0 | H103: =IF($B103=0,0,G103/POWER(1+CALCULADORA!$C$29,Flujos!$B103/365)) -> 0 | I103: 2032-12-18 | J103: 101 | K103: =+DIAS365($A$2,A103) -> 3073 | L103: -1.59740448e-05 | M103: 0 | N103: -1.473765373e-07 | O103: -1.473765373e-07
A104: 2033-01-18 | B104: =IF(DIAS365(CALCULADORA!$C$27,A104)<0,0,DIAS365(CALCULADORA!$C$27,A104)) -> 2906 | C104: =+HLOOKUP(CALCULADORA!$C$9,Tablas!B:B,Flujos!J104+1,FALSE) -> 0 | D104: 0 | E104: 0 | F104: =ROUND(D103*ROUND(((1+CALCULADORA!$C$16)^(1/12)-1),6),6) -> 0 | G104: 0 | H104: =IF($B104=0,0,G104/POWER(1+CALCULADORA!$C$29,Flujos!$B104/365)) -> 0 | I104: 2033-01-18 | J104: 102 | K104: =+DIAS365($A$2,A104) -> 3104 | L104: -1.59740448e-05 | M104: 0 | N104: -1.473765373e-07 | O104: -1.473765373e-07
A105: 2033-02-18 | B105: =IF(DIAS365(CALCULADORA!$C$27,A105)<0,0,DIAS365(CALCULADORA!$C$27,A105)) -> 2937 | C105: =+HLOOKUP(CALCULADORA!$C$9,Tablas!B:B,Flujos!J105+1,FALSE) -> 0 | D105: 0 | E105: 0 | F105: =ROUND(D104*ROUND(((1+CALCULADORA!$C$16)^(1/12)-1),6),6) -> 0 | G105: 0 | H105: =IF($B105=0,0,G105/POWER(1+CALCULADORA!$C$29,Flujos!$B105/365)) -> 0 | I105: 2033-02-18 | J105: 103 | K105: =+DIAS365($A$2,A105) -> 3135 | L105: -1.59740448e-05 | M105: 0 | N105: -1.473765373e-07 | O105: -1.473765373e-07
A106: 2033-03-18 | B106: =IF(DIAS365(CALCULADORA!$C$27,A106)<0,0,DIAS365(CALCULADORA!$C$27,A106)) -> 2965 | C106: =+HLOOKUP(CALCULADORA!$C$9,Tablas!B:B,Flujos!J106+1,FALSE) -> 0 | D106: 0 | E106: 0 | F106: =ROUND(D105*ROUND(((1+CALCULADORA!$C$16)^(1/12)-1),6),6) -> 0 | G106: 0 | H106: =IF($B106=0,0,G106/POWER(1+CALCULADORA!$C$29,Flujos!$B106/365)) -> 0 | I106: 2033-03-18 | J106: 104 | K106: =+DIAS365($A$2,A106) -> 3163 | L106: -1.59740448e-05 | M106: 0 | N106: -1.473765373e-07 | O106: -1.473765373e-07
A107: 2033-04-18 | B107: =IF(DIAS365(CALCULADORA!$C$27,A107)<0,0,DIAS365(CALCULADORA!$C$27,A107)) -> 2996 | C107: =+HLOOKUP(CALCULADORA!$C$9,Tablas!B:B,Flujos!J107+1,FALSE) -> 0 | D107: 0 | E107: 0 | F107: =ROUND(D106*ROUND(((1+CALCULADORA!$C$16)^(1/12)-1),6),6) -> 0 | G107: 0 | H107: =IF($B107=0,0,G107/POWER(1+CALCULADORA!$C$29,Flujos!$B107/365)) -> 0 | I107: 2033-04-18 | J107: 105 | K107: =+DIAS365($A$2,A107) -> 3194 | L107: -1.59740448e-05 | M107: 0 | N107: -1.473765373e-07 | O107: -1.473765373e-07
A108: 2033-05-18 | B108: =IF(DIAS365(CALCULADORA!$C$27,A108)<0,0,DIAS365(CALCULADORA!$C$27,A108)) -> 3026 | C108: =+HLOOKUP(CALCULADORA!$C$9,Tablas!B:B,Flujos!J108+1,FALSE) -> 0 | D108: 0 | E108: 0 | F108: =ROUND(D107*ROUND(((1+CALCULADORA!$C$16)^(1/12)-1),6),6) -> 0 | G108: 0 | H108: =IF($B108=0,0,G108/POWER(1+CALCULADORA!$C$29,Flujos!$B108/365)) -> 0 | I108: 2033-05-18 | J108: 106 | K108: =+DIAS365($A$2,A108) -> 3224 | L108: -1.59740448e-05 | M108: 0 | N108: -1.473765373e-07 | O108: -1.473765373e-07
A109: 2033-06-18 | B109: =IF(DIAS365(CALCULADORA!$C$27,A109)<0,0,DIAS365(CALCULADORA!$C$27,A109)) -> 3057 | C109: =+HLOOKUP(CALCULADORA!$C$9,Tablas!B:B,Flujos!J109+1,FALSE) -> 0 | D109: 0 | E109: 0 | F109: =ROUND(D108*ROUND(((1+CALCULADORA!$C$16)^(1/12)-1),6),6) -> 0 | G109: 0 | H109: =IF($B109=0,0,G109/POWER(1+CALCULADORA!$C$29,Flujos!$B109/365)) -> 0 | I109: 2033-06-18 | J109: 107 | K109: =+DIAS365($A$2,A109) -> 3255 | L109: -1.59740448e-05 | M109: 0 | N109: -1.473765373e-07 | O109: -1.473765373e-07
A110: 2033-07-18 | B110: =IF(DIAS365(CALCULADORA!$C$27,A110)<0,0,DIAS365(CALCULADORA!$C$27,A110)) -> 3087 | C110: =+HLOOKUP(CALCULADORA!$C$9,Tablas!B:B,Flujos!J110+1,FALSE) -> 0 | D110: 0 | E110: 0 | F110: =ROUND(D109*ROUND(((1+CALCULADORA!$C$16)^(1/12)-1),6),6) -> 0 | G110: 0 | H110: =IF($B110=0,0,G110/POWER(1+CALCULADORA!$C$29,Flujos!$B110/365)) -> 0 | I110: 2033-07-18 | J110: 108 | K110: =+DIAS365($A$2,A110) -> 3285 | L110: -1.59740448e-05 | M110: 0 | N110: -1.473765373e-07 | O110: -1.473765373e-07
A111: 2033-08-18 | B111: =IF(DIAS365(CALCULADORA!$C$27,A111)<0,0,DIAS365(CALCULADORA!$C$27,A111)) -> 3118 | C111: =+HLOOKUP(CALCULADORA!$C$9,Tablas!B:B,Flujos!J111+1,FALSE) -> 0 | D111: 0 | E111: 0 | F111: =ROUND(D110*ROUND(((1+CALCULADORA!$C$16)^(1/12)-1),6),6) -> 0 | G111: 0 | H111: =IF($B111=0,0,G111/POWER(1+CALCULADORA!$C$29,Flujos!$B111/365)) -> 0 | I111: 2033-08-18 | J111: 109 | K111: =+DIAS365($A$2,A111) -> 3316 | L111: -1.59740448e-05 | M111: 0 | N111: -1.473765373e-07 | O111: -1.473765373e-07
A112: 2033-09-18 | B112: =IF(DIAS365(CALCULADORA!$C$27,A112)<0,0,DIAS365(CALCULADORA!$C$27,A112)) -> 3149 | C112: =+HLOOKUP(CALCULADORA!$C$9,Tablas!B:B,Flujos!J112+1,FALSE) -> 0 | D112: 0 | E112: 0 | F112: =ROUND(D111*ROUND(((1+CALCULADORA!$C$16)^(1/12)-1),6),6) -> 0 | G112: 0 | H112: =IF($B112=0,0,G112/POWER(1+CALCULADORA!$C$29,Flujos!$B112/365)) -> 0 | I112: 2033-09-18 | J112: 110 | K112: =+DIAS365($A$2,A112) -> 3347 | L112: -1.59740448e-05 | M112: 0 | N112: -1.473765373e-07 | O112: -1.473765373e-07
A113: 2033-10-18 | B113: =IF(DIAS365(CALCULADORA!$C$27,A113)<0,0,DIAS365(CALCULADORA!$C$27,A113)) -> 3179 | C113: =+HLOOKUP(CALCULADORA!$C$9,Tablas!B:B,Flujos!J113+1,FALSE) -> 0 | D113: 0 | E113: 0 | F113: =ROUND(D112*ROUND(((1+CALCULADORA!$C$16)^(1/12)-1),6),6) -> 0 | G113: 0 | H113: =IF($B113=0,0,G113/POWER(1+CALCULADORA!$C$29,Flujos!$B113/365)) -> 0 | I113: 2033-10-18 | J113: 111 | K113: =+DIAS365($A$2,A113) -> 3377 | L113: -1.59740448e-05 | M113: 0 | N113: -1.473765373e-07 | O113: -1.473765373e-07
A114: 2033-11-18 | B114: =IF(DIAS365(CALCULADORA!$C$27,A114)<0,0,DIAS365(CALCULADORA!$C$27,A114)) -> 3210 | C114: =+HLOOKUP(CALCULADORA!$C$9,Tablas!B:B,Flujos!J114+1,FALSE) -> 0 | D114: 0 | E114: 0 | F114: =ROUND(D113*ROUND(((1+CALCULADORA!$C$16)^(1/12)-1),6),6) -> 0 | G114: 0 | H114: =IF($B114=0,0,G114/POWER(1+CALCULADORA!$C$29,Flujos!$B114/365)) -> 0 | I114: 2033-11-18 | J114: 112 | K114: =+DIAS365($A$2,A114) -> 3408 | L114: -1.59740448e-05 | M114: 0 | N114: -1.473765373e-07 | O114: -1.473765373e-07
A115: 2033-12-18 | B115: =IF(DIAS365(CALCULADORA!$C$27,A115)<0,0,DIAS365(CALCULADORA!$C$27,A115)) -> 3240 | C115: =+HLOOKUP(CALCULADORA!$C$9,Tablas!B:B,Flujos!J115+1,FALSE) -> 0 | D115: 0 | E115: 0 | F115: =ROUND(D114*ROUND(((1+CALCULADORA!$C$16)^(1/12)-1),6),6) -> 0 | G115: 0 | H115: =IF($B115=0,0,G115/POWER(1+CALCULADORA!$C$29,Flujos!$B115/365)) -> 0 | I115: 2033-12-18 | J115: 113 | K115: =+DIAS365($A$2,A115) -> 3438 | L115: -1.59740448e-05 | M115: 0 | N115: -1.473765373e-07 | O115: -1.473765373e-07
A116: 2034-01-18 | B116: =IF(DIAS365(CALCULADORA!$C$27,A116)<0,0,DIAS365(CALCULADORA!$C$27,A116)) -> 3271 | C116: =+HLOOKUP(CALCULADORA!$C$9,Tablas!B:B,Flujos!J116+1,FALSE) -> 0 | D116: 0 | E116: 0 | F116: =ROUND(D115*ROUND(((1+CALCULADORA!$C$16)^(1/12)-1),6),6) -> 0 | G116: 0 | H116: =IF($B116=0,0,G116/POWER(1+CALCULADORA!$C$29,Flujos!$B116/365)) -> 0 | I116: 2034-01-18 | J116: 114 | K116: =+DIAS365($A$2,A116) -> 3469 | L116: -1.59740448e-05 | M116: 0 | N116: -1.473765373e-07 | O116: -1.473765373e-07
A117: 2034-02-18 | B117: =IF(DIAS365(CALCULADORA!$C$27,A117)<0,0,DIAS365(CALCULADORA!$C$27,A117)) -> 3302 | C117: =+HLOOKUP(CALCULADORA!$C$9,Tablas!B:B,Flujos!J117+1,FALSE) -> 0 | D117: 0 | E117: 0 | F117: =ROUND(D116*ROUND(((1+CALCULADORA!$C$16)^(1/12)-1),6),6) -> 0 | G117: 0 | H117: =IF($B117=0,0,G117/POWER(1+CALCULADORA!$C$29,Flujos!$B117/365)) -> 0 | I117: 2034-02-18 | J117: 115 | K117: =+DIAS365($A$2,A117) -> 3500 | L117: -1.59740448e-05 | M117: 0 | N117: -1.473765373e-07 | O117: -1.473765373e-07
A118: 2034-03-18 | B118: =IF(DIAS365(CALCULADORA!$C$27,A118)<0,0,DIAS365(CALCULADORA!$C$27,A118)) -> 3330 | C118: =+HLOOKUP(CALCULADORA!$C$9,Tablas!B:B,Flujos!J118+1,FALSE) -> 0 | D118: 0 | E118: 0 | F118: =ROUND(D117*ROUND(((1+CALCULADORA!$C$16)^(1/12)-1),6),6) -> 0 | G118: 0 | H118: =IF($B118=0,0,G118/POWER(1+CALCULADORA!$C$29,Flujos!$B118/365)) -> 0 | I118: 2034-03-18 | J118: 116 | K118: =+DIAS365($A$2,A118) -> 3528 | L118: -1.59740448e-05 | M118: 0 | N118: -1.473765373e-07 | O118: -1.473765373e-07
A119: 2034-04-18 | B119: =IF(DIAS365(CALCULADORA!$C$27,A119)<0,0,DIAS365(CALCULADORA!$C$27,A119)) -> 3361 | C119: =+HLOOKUP(CALCULADORA!$C$9,Tablas!B:B,Flujos!J119+1,FALSE) -> 0 | D119: 0 | E119: 0 | F119: =ROUND(D118*ROUND(((1+CALCULADORA!$C$16)^(1/12)-1),6),6) -> 0 | G119: 0 | H119: =IF($B119=0,0,G119/POWER(1+CALCULADORA!$C$29,Flujos!$B119/365)) -> 0 | I119: =+A119 -> 2034-04-18 | J119: 117 | K119: =+DIAS365($A$2,A119) -> 3559 | L119: -1.59740448e-05 | M119: 0 | N119: -1.473765373e-07 | O119: -1.473765373e-07
A120: 2034-05-18 | B120: =IF(DIAS365(CALCULADORA!$C$27,A120)<0,0,DIAS365(CALCULADORA!$C$27,A120)) -> 3391 | C120: =+HLOOKUP(CALCULADORA!$C$9,Tablas!B:B,Flujos!J120+1,FALSE) -> 0 | D120: 0 | E120: 0 | F120: =ROUND(D119*ROUND(((1+CALCULADORA!$C$16)^(1/12)-1),6),6) -> 0 | G120: 0 | H120: =IF($B120=0,0,G120/POWER(1+CALCULADORA!$C$29,Flujos!$B120/365)) -> 0 | I120: =+A120 -> 2034-05-18 | J120: 118 | K120: =+DIAS365($A$2,A120) -> 3589 | L120: -1.59740448e-05 | M120: 0 | N120: -1.473765373e-07 | O120: -1.473765373e-07
A121: 2034-06-18 | B121: =IF(DIAS365(CALCULADORA!$C$27,A121)<0,0,DIAS365(CALCULADORA!$C$27,A121)) -> 3422 | C121: =+HLOOKUP(CALCULADORA!$C$9,Tablas!B:B,Flujos!J121+1,FALSE) -> 0 | D121: 0 | E121: 0 | F121: =ROUND(D120*ROUND(((1+CALCULADORA!$C$16)^(1/12)-1),6),6) -> 0 | G121: 0 | H121: =IF($B121=0,0,G121/POWER(1+CALCULADORA!$C$29,Flujos!$B121/365)) -> 0 | I121: 2034-06-18 | J121: 119 | K121: =+DIAS365($A$2,A121) -> 3620 | L121: -1.59740448e-05 | M121: 0 | N121: -1.473765373e-07 | O121: -1.473765373e-07
A122: 2034-07-18 | B122: =IF(DIAS365(CALCULADORA!$C$27,A122)<0,0,DIAS365(CALCULADORA!$C$27,A122)) -> 3452 | C122: =+HLOOKUP(CALCULADORA!$C$9,Tablas!B:B,Flujos!J122+1,FALSE) -> 0 | D122: 0 | E122: 0 | F122: =ROUND(D121*ROUND(((1+CALCULADORA!$C$16)^(1/12)-1),6),6) -> 0 | G122: 0 | H122: =IF($B122=0,0,G122/POWER(1+CALCULADORA!$C$29,Flujos!$B122/365)) -> 0 | I122: 2034-07-18 | J122: 120 | K122: =+DIAS365($A$2,A122) -> 3650 | L122: -1.59740448e-05 | M122: 0 | N122: -1.473765373e-07 | O122: -1.473765373e-07
A123: 2034-08-18 | B123: =IF(DIAS365(CALCULADORA!$C$27,A123)<0,0,DIAS365(CALCULADORA!$C$27,A123)) -> 3483 | C123: =+HLOOKUP(CALCULADORA!$C$9,Tablas!B:B,Flujos!J123+1,FALSE) -> 0 | D123: 0 | E123: 0 | F123: =ROUND(D122*ROUND(((1+CALCULADORA!$C$16)^(1/12)-1),6),6) -> 0 | G123: 0 | H123: =IF($B123=0,0,G123/POWER(1+CALCULADORA!$C$29,Flujos!$B123/365)) -> 0 | I123: 2034-08-18 | J123: 121 | K123: =+DIAS365($A$2,A123) -> 3681 | L123: -1.59740448e-05 | M123: 0 | N123: -1.473765373e-07 | O123: -1.473765373e-07
A124: 2034-09-18 | B124: =IF(DIAS365(CALCULADORA!$C$27,A124)<0,0,DIAS365(CALCULADORA!$C$27,A124)) -> 3514 | C124: =+HLOOKUP(CALCULADORA!$C$9,Tablas!B:B,Flujos!J124+1,FALSE) -> 0 | D124: 0 | E124: 0 | F124: =ROUND(D123*ROUND(((1+CALCULADORA!$C$16)^(1/12)-1),6),6) -> 0 | G124: 0 | H124: =IF($B124=0,0,G124/POWER(1+CALCULADORA!$C$29,Flujos!$B124/365)) -> 0 | I124: 2034-09-18 | J124: 122 | K124: =+DIAS365($A$2,A124) -> 3712 | L124: -1.59740448e-05 | M124: 0 | N124: -1.473765373e-07 | O124: -1.473765373e-07
A125: 2034-10-18 | B125: =IF(DIAS365(CALCULADORA!$C$27,A125)<0,0,DIAS365(CALCULADORA!$C$27,A125)) -> 3544 | C125: =+HLOOKUP(CALCULADORA!$C$9,Tablas!B:B,Flujos!J125+1,FALSE) -> 0 | D125: 0 | E125: 0 | F125: =ROUND(D124*ROUND(((1+CALCULADORA!$C$16)^(1/12)-1),6),6) -> 0 | G125: 0 | H125: =IF($B125=0,0,G125/POWER(1+CALCULADORA!$C$29,Flujos!$B125/365)) -> 0 | I125: 2034-10-18 | J125: 123 | K125: =+DIAS365($A$2,A125) -> 3742 | L125: -1.59740448e-05 | M125: 0 | N125: -1.473765373e-07 | O125: -1.473765373e-07
A126: 2034-11-18 | B126: =IF(DIAS365(CALCULADORA!$C$27,A126)<0,0,DIAS365(CALCULADORA!$C$27,A126)) -> 3575 | C126: =+HLOOKUP(CALCULADORA!$C$9,Tablas!B:B,Flujos!J126+1,FALSE) -> 0 | D126: 0 | E126: 0 | F126: =ROUND(D125*ROUND(((1+CALCULADORA!$C$16)^(1/12)-1),6),6) -> 0 | G126: 0 | H126: =IF($B126=0,0,G126/POWER(1+CALCULADORA!$C$29,Flujos!$B126/365)) -> 0 | I126: 2034-11-18 | J126: 124 | K126: =+DIAS365($A$2,A126) -> 3773 | L126: -1.59740448e-05 | M126: 0 | N126: -1.473765373e-07 | O126: -1.473765373e-07
A127: 2034-12-18 | B127: =IF(DIAS365(CALCULADORA!$C$27,A127)<0,0,DIAS365(CALCULADORA!$C$27,A127)) -> 3605 | C127: =+HLOOKUP(CALCULADORA!$C$9,Tablas!B:B,Flujos!J127+1,FALSE) -> 0 | D127: 0 | E127: 0 | F127: =ROUND(D126*ROUND(((1+CALCULADORA!$C$16)^(1/12)-1),6),6) -> 0 | G127: 0 | H127: =IF($B127=0,0,G127/POWER(1+CALCULADORA!$C$29,Flujos!$B127/365)) -> 0 | I127: 2034-12-18 | J127: 125 | K127: =+DIAS365($A$2,A127) -> 3803 | L127: -1.59740448e-05 | M127: 0 | N127: -1.473765373e-07 | O127: -1.473765373e-07
A128: 2035-01-18 | B128: =IF(DIAS365(CALCULADORA!$C$27,A128)<0,0,DIAS365(CALCULADORA!$C$27,A128)) -> 3636 | C128: =+HLOOKUP(CALCULADORA!$C$9,Tablas!B:B,Flujos!J128+1,FALSE) -> 0 | D128: 0 | E128: 0 | F128: =ROUND(D127*ROUND(((1+CALCULADORA!$C$16)^(1/12)-1),6),6) -> 0 | G128: 0 | H128: =IF($B128=0,0,G128/POWER(1+CALCULADORA!$C$29,Flujos!$B128/365)) -> 0 | I128: 2035-01-18 | J128: 126 | K128: =+DIAS365($A$2,A128) -> 3834 | L128: -1.59740448e-05 | M128: 0 | N128: -1.473765373e-07 | O128: -1.473765373e-07
A129: 2035-02-18 | B129: =IF(DIAS365(CALCULADORA!$C$27,A129)<0,0,DIAS365(CALCULADORA!$C$27,A129)) -> 3667 | C129: =+HLOOKUP(CALCULADORA!$C$9,Tablas!B:B,Flujos!J129+1,FALSE) -> 0 | D129: 0 | E129: 0 | F129: =ROUND(D128*ROUND(((1+CALCULADORA!$C$16)^(1/12)-1),6),6) -> 0 | G129: 0 | H129: =IF($B129=0,0,G129/POWER(1+CALCULADORA!$C$29,Flujos!$B129/365)) -> 0 | I129: 2035-02-18 | J129: 127 | K129: =+DIAS365($A$2,A129) -> 3865 | L129: -1.59740448e-05 | M129: 0 | N129: -1.473765373e-07 | O129: -1.473765373e-07
A130: 2035-03-18 | B130: =IF(DIAS365(CALCULADORA!$C$27,A130)<0,0,DIAS365(CALCULADORA!$C$27,A130)) -> 3695 | C130: =+HLOOKUP(CALCULADORA!$C$9,Tablas!B:B,Flujos!J130+1,FALSE) -> 0 | D130: 0 | E130: 0 | F130: =ROUND(D129*ROUND(((1+CALCULADORA!$C$16)^(1/12)-1),6),6) -> 0 | G130: 0 | H130: =IF($B130=0,0,G130/POWER(1+CALCULADORA!$C$29,Flujos!$B130/365)) -> 0 | I130: 2035-03-18 | J130: 128 | K130: =+DIAS365($A$2,A130) -> 3893 | L130: -1.59740448e-05 | M130: 0 | N130: -1.473765373e-07 | O130: -1.473765373e-07
A131: =EDATE(A130,1) -> 2035-04-18 | B131: =IF(DIAS365(CALCULADORA!$C$27,A131)<0,0,DIAS365(CALCULADORA!$C$27,A131)) -> 3726 | C131: =+HLOOKUP(CALCULADORA!$C$9,Tablas!B:B,Flujos!J131+1,FALSE) -> 0 | D131: 0 | E131: 0 | F131: =ROUND(D130*ROUND(((1+CALCULADORA!$C$16)^(1/12)-1),6),6) -> 0 | G131: 0 | H131: =IF($B131=0,0,G131/POWER(1+CALCULADORA!$C$29,Flujos!$B131/365)) -> 0 | I131: =+A131 -> 2035-04-18 | J131: 129 | K131: =+DIAS365($A$2,A131) -> 3924 | L131: -1.59740448e-05 | M131: 0 | N131: -1.473765373e-07 | O131: -1.473765373e-07
A132: 2035-05-18 | B132: =IF(DIAS365(CALCULADORA!$C$27,A132)<0,0,DIAS365(CALCULADORA!$C$27,A132)) -> 3756 | C132: =+HLOOKUP(CALCULADORA!$C$9,Tablas!B:B,Flujos!J132+1,FALSE) -> 0 | D132: =+ROUND(D131-E132,6) -> 0 | E132: =ROUND(C132*$D$2,6) -> 0 | F132: =ROUND(D131*ROUND(((1+CALCULADORA!$C$16)^(1/12)-1),6),6) -> 0 | G132: =F132+E132 -> 0 | H132: =IF($B132=0,0,G132/POWER(1+CALCULADORA!$C$29,Flujos!$B132/365)) -> 0 | I132: 2035-05-18 | J132: 130 | K132: =+DIAS365($A$2,A132) -> 3954 | L132: =+L131-M132 -> -1.59740448e-05 | M132: =+$L$2*C132 -> 0 | N132: =+L131*$F$3% -> -1.473765373e-07 | O132: =+N132+M132 -> -1.473765373e-07
A133: 2035-06-18 | B133: =IF(DIAS365(CALCULADORA!$C$27,A133)<0,0,DIAS365(CALCULADORA!$C$27,A133)) -> 3787 | C133: =+HLOOKUP(CALCULADORA!$C$9,Tablas!B:B,Flujos!J133+1,FALSE) -> 0 | D133: 0 | E133: 0 | F133: =ROUND(D132*ROUND(((1+CALCULADORA!$C$16)^(1/12)-1),6),6) -> 0 | G133: 0 | H133: =IF($B133=0,0,G133/POWER(1+CALCULADORA!$C$29,Flujos!$B133/365)) -> 0 | I133: 2035-06-18 | J133: 131 | K133: =+DIAS365($A$2,A133) -> 3985 | L133: -1.59740448e-05 | M133: 0 | N133: -1.473765373e-07 | O133: -1.473765373e-07
A134: 2035-07-18 | B134: =IF(DIAS365(CALCULADORA!$C$27,A134)<0,0,DIAS365(CALCULADORA!$C$27,A134)) -> 3817 | C134: =+HLOOKUP(CALCULADORA!$C$9,Tablas!B:B,Flujos!J134+1,FALSE) -> 0 | D134: 0 | E134: 0 | F134: =ROUND(D133*ROUND(((1+CALCULADORA!$C$16)^(1/12)-1),6),6) -> 0 | G134: 0 | H134: =IF($B134=0,0,G134/POWER(1+CALCULADORA!$C$29,Flujos!$B134/365)) -> 0 | I134: 2035-07-18 | J134: 132 | K134: =+DIAS365($A$2,A134) -> 4015 | L134: -1.59740448e-05 | M134: 0 | N134: -1.473765373e-07 | O134: -1.473765373e-07
A135: 2035-08-18 | B135: =IF(DIAS365(CALCULADORA!$C$27,A135)<0,0,DIAS365(CALCULADORA!$C$27,A135)) -> 3848 | C135: =+HLOOKUP(CALCULADORA!$C$9,Tablas!B:B,Flujos!J135+1,FALSE) -> 0 | D135: 0 | E135: 0 | F135: =ROUND(D134*ROUND(((1+CALCULADORA!$C$16)^(1/12)-1),6),6) -> 0 | G135: 0 | H135: =IF($B135=0,0,G135/POWER(1+CALCULADORA!$C$29,Flujos!$B135/365)) -> 0 | I135: 2035-08-18 | J135: 133 | K135: =+DIAS365($A$2,A135) -> 4046 | L135: -1.59740448e-05 | M135: 0 | N135: -1.473765373e-07 | O135: -1.473765373e-07
A136: 2035-09-18 | B136: =IF(DIAS365(CALCULADORA!$C$27,A136)<0,0,DIAS365(CALCULADORA!$C$27,A136)) -> 3879 | C136: =+HLOOKUP(CALCULADORA!$C$9,Tablas!B:B,Flujos!J136+1,FALSE) -> 0 | D136: 0 | E136: 0 | F136: =ROUND(D135*ROUND(((1+CALCULADORA!$C$16)^(1/12)-1),6),6) -> 0 | G136: 0 | H136: =IF($B136=0,0,G136/POWER(1+CALCULADORA!$C$29,Flujos!$B136/365)) -> 0 | I136: 2035-09-18 | J136: 134 | K136: =+DIAS365($A$2,A136) -> 4077 | L136: -1.59740448e-05 | M136: 0 | N136: -1.473765373e-07 | O136: -1.473765373e-07
A137: 2035-10-18 | B137: =IF(DIAS365(CALCULADORA!$C$27,A137)<0,0,DIAS365(CALCULADORA!$C$27,A137)) -> 3909 | C137: =+HLOOKUP(CALCULADORA!$C$9,Tablas!B:B,Flujos!J137+1,FALSE) -> 0 | D137: 0 | E137: 0 | F137: =ROUND(D136*ROUND(((1+CALCULADORA!$C$16)^(1/12)-1),6),6) -> 0 | G137: 0 | H137: =IF($B137=0,0,G137/POWER(1+CALCULADORA!$C$29,Flujos!$B137/365)) -> 0 | I137: 2035-10-18 | J137: 135 | K137: =+DIAS365($A$2,A137) -> 4107 | L137: -1.59740448e-05 | M137: 0 | N137: -1.473765373e-07 | O137: -1.473765373e-07
A138: 2035-11-18 | B138: =IF(DIAS365(CALCULADORA!$C$27,A138)<0,0,DIAS365(CALCULADORA!$C$27,A138)) -> 3940 | C138: =+HLOOKUP(CALCULADORA!$C$9,Tablas!B:B,Flujos!J138+1,FALSE) -> 0 | D138: 0 | E138: 0 | F138: =ROUND(D137*ROUND(((1+CALCULADORA!$C$16)^(1/12)-1),6),6) -> 0 | G138: 0 | H138: =IF($B138=0,0,G138/POWER(1+CALCULADORA!$C$29,Flujos!$B138/365)) -> 0 | I138: 2035-11-18 | J138: 136 | K138: =+DIAS365($A$2,A138) -> 4138 | L138: -1.59740448e-05 | M138: 0 | N138: -1.473765373e-07 | O138: -1.473765373e-07
A139: 2035-12-18 | B139: =IF(DIAS365(CALCULADORA!$C$27,A139)<0,0,DIAS365(CALCULADORA!$C$27,A139)) -> 3970 | C139: =+HLOOKUP(CALCULADORA!$C$9,Tablas!B:B,Flujos!J139+1,FALSE) -> 0 | D139: 0 | E139: 0 | F139: =ROUND(D138*ROUND(((1+CALCULADORA!$C$16)^(1/12)-1),6),6) -> 0 | G139: 0 | H139: =IF($B139=0,0,G139/POWER(1+CALCULADORA!$C$29,Flujos!$B139/365)) -> 0 | I139: 2035-12-18 | J139: 137 | K139: =+DIAS365($A$2,A139) -> 4168 | L139: -1.59740448e-05 | M139: 0 | N139: -1.473765373e-07 | O139: -1.473765373e-07
A140: 2036-01-18 | B140: =IF(DIAS365(CALCULADORA!$C$27,A140)<0,0,DIAS365(CALCULADORA!$C$27,A140)) -> 4001 | C140: =+HLOOKUP(CALCULADORA!$C$9,Tablas!B:B,Flujos!J140+1,FALSE) -> 0 | D140: 0 | E140: 0 | F140: =ROUND(D139*ROUND(((1+CALCULADORA!$C$16)^(1/12)-1),6),6) -> 0 | G140: 0 | H140: =IF($B140=0,0,G140/POWER(1+CALCULADORA!$C$29,Flujos!$B140/365)) -> 0 | I140: 2036-01-18 | J140: 138 | K140: =+DIAS365($A$2,A140) -> 4199 | L140: -1.59740448e-05 | M140: 0 | N140: -1.473765373e-07 | O140: -1.473765373e-07
A141: 2036-02-18 | B141: =IF(DIAS365(CALCULADORA!$C$27,A141)<0,0,DIAS365(CALCULADORA!$C$27,A141)) -> 4032 | C141: =+HLOOKUP(CALCULADORA!$C$9,Tablas!B:B,Flujos!J141+1,FALSE) -> 0 | D141: 0 | E141: 0 | F141: =ROUND(D140*ROUND(((1+CALCULADORA!$C$16)^(1/12)-1),6),6) -> 0 | G141: 0 | H141: =IF($B141=0,0,G141/POWER(1+CALCULADORA!$C$29,Flujos!$B141/365)) -> 0 | I141: 2036-02-18 | J141: 139 | K141: =+DIAS365($A$2,A141) -> 4230 | L141: -1.59740448e-05 | M141: 0 | N141: -1.473765373e-07 | O141: -1.473765373e-07
A142: 2036-03-18 | B142: =IF(DIAS365(CALCULADORA!$C$27,A142)<0,0,DIAS365(CALCULADORA!$C$27,A142)) -> 4060 | C142: =+HLOOKUP(CALCULADORA!$C$9,Tablas!B:B,Flujos!J142+1,FALSE) -> 0 | D142: 0 | E142: 0 | F142: =ROUND(D141*ROUND(((1+CALCULADORA!$C$16)^(1/12)-1),6),6) -> 0 | G142: 0 | H142: =IF($B142=0,0,G142/POWER(1+CALCULADORA!$C$29,Flujos!$B142/365)) -> 0 | I142: 2036-03-18 | J142: 140 | K142: =+DIAS365($A$2,A142) -> 4258 | L142: -1.59740448e-05 | M142: 0 | N142: -1.473765373e-07 | O142: -1.473765373e-07
A143: 2036-04-18 | B143: =IF(DIAS365(CALCULADORA!$C$27,A143)<0,0,DIAS365(CALCULADORA!$C$27,A143)) -> 4091 | C143: =+HLOOKUP(CALCULADORA!$C$9,Tablas!B:B,Flujos!J143+1,FALSE) -> 0 | D143: 0 | E143: 0 | F143: =ROUND(D142*ROUND(((1+CALCULADORA!$C$16)^(1/12)-1),6),6) -> 0 | G143: 0 | H143: =IF($B143=0,0,G143/POWER(1+CALCULADORA!$C$29,Flujos!$B143/365)) -> 0 | I143: 2036-04-18 | J143: 141 | K143: =+DIAS365($A$2,A143) -> 4289 | L143: -1.59740448e-05 | M143: 0 | N143: -1.473765373e-07 | O143: -1.473765373e-07
A144: 2036-05-18 | B144: =IF(DIAS365(CALCULADORA!$C$27,A144)<0,0,DIAS365(CALCULADORA!$C$27,A144)) -> 4121 | C144: =+HLOOKUP(CALCULADORA!$C$9,Tablas!B:B,Flujos!J144+1,FALSE) -> 0 | D144: 0 | E144: 0 | F144: =ROUND(D143*ROUND(((1+CALCULADORA!$C$16)^(1/12)-1),6),6) -> 0 | G144: 0 | H144: =IF($B144=0,0,G144/POWER(1+CALCULADORA!$C$29,Flujos!$B144/365)) -> 0 | I144: 2036-05-18 | J144: 142 | K144: =+DIAS365($A$2,A144) -> 4319 | L144: -1.59740448e-05 | M144: 0 | N144: -1.473765373e-07 | O144: -1.473765373e-07
A145: 2036-06-18 | B145: =IF(DIAS365(CALCULADORA!$C$27,A145)<0,0,DIAS365(CALCULADORA!$C$27,A145)) -> 4152 | C145: =+HLOOKUP(CALCULADORA!$C$9,Tablas!B:B,Flujos!J145+1,FALSE) -> 0 | D145: 0 | E145: 0 | F145: =ROUND(D144*ROUND(((1+CALCULADORA!$C$16)^(1/12)-1),6),6) -> 0 | G145: 0 | H145: =IF($B145=0,0,G145/POWER(1+CALCULADORA!$C$29,Flujos!$B145/365)) -> 0 | I145: 2036-06-18 | J145: 143 | K145: =+DIAS365($A$2,A145) -> 4350 | L145: -1.59740448e-05 | M145: 0 | N145: -1.473765373e-07 | O145: -1.473765373e-07
A146: 2036-07-18 | B146: =IF(DIAS365(CALCULADORA!$C$27,A146)<0,0,DIAS365(CALCULADORA!$C$27,A146)) -> 4182 | C146: =+HLOOKUP(CALCULADORA!$C$9,Tablas!B:B,Flujos!J146+1,FALSE) -> 0 | D146: 0 | E146: 0 | F146: =ROUND(D145*ROUND(((1+CALCULADORA!$C$16)^(1/12)-1),6),6) -> 0 | G146: 0 | H146: =IF($B146=0,0,G146/POWER(1+CALCULADORA!$C$29,Flujos!$B146/365)) -> 0 | I146: 2036-07-18 | J146: 144 | K146: =+DIAS365($A$2,A146) -> 4380 | L146: -1.59740448e-05 | M146: 0 | N146: -1.473765373e-07 | O146: -1.473765373e-07
A147: 2036-08-18 | B147: =IF(DIAS365(CALCULADORA!$C$27,A147)<0,0,DIAS365(CALCULADORA!$C$27,A147)) -> 4213 | C147: =+HLOOKUP(CALCULADORA!$C$9,Tablas!B:B,Flujos!J147+1,FALSE) -> 0 | D147: 0 | E147: 0 | F147: =ROUND(D146*ROUND(((1+CALCULADORA!$C$16)^(1/12)-1),6),6) -> 0 | G147: 0 | H147: =IF($B147=0,0,G147/POWER(1+CALCULADORA!$C$29,Flujos!$B147/365)) -> 0 | I147: 2036-08-18 | J147: 145 | K147: =+DIAS365($A$2,A147) -> 4411 | L147: -1.59740448e-05 | M147: 0 | N147: -1.473765373e-07 | O147: -1.473765373e-07
A148: 2036-09-18 | B148: =IF(DIAS365(CALCULADORA!$C$27,A148)<0,0,DIAS365(CALCULADORA!$C$27,A148)) -> 4244 | C148: =+HLOOKUP(CALCULADORA!$C$9,Tablas!B:B,Flujos!J148+1,FALSE) -> 0 | D148: 0 | E148: 0 | F148: =ROUND(D147*ROUND(((1+CALCULADORA!$C$16)^(1/12)-1),6),6) -> 0 | G148: 0 | H148: =IF($B148=0,0,G148/POWER(1+CALCULADORA!$C$29,Flujos!$B148/365)) -> 0 | I148: 2036-09-18 | J148: 146 | K148: =+DIAS365($A$2,A148) -> 4442 | L148: -1.59740448e-05 | M148: 0 | N148: -1.473765373e-07 | O148: -1.473765373e-07
A149: 2036-10-18 | B149: =IF(DIAS365(CALCULADORA!$C$27,A149)<0,0,DIAS365(CALCULADORA!$C$27,A149)) -> 4274 | C149: =+HLOOKUP(CALCULADORA!$C$9,Tablas!B:B,Flujos!J149+1,FALSE) -> 0 | D149: 0 | E149: 0 | F149: =ROUND(D148*ROUND(((1+CALCULADORA!$C$16)^(1/12)-1),6),6) -> 0 | G149: 0 | H149: =IF($B149=0,0,G149/POWER(1+CALCULADORA!$C$29,Flujos!$B149/365)) -> 0 | I149: 2036-10-18 | J149: 147 | K149: =+DIAS365($A$2,A149) -> 4472 | L149: -1.59740448e-05 | M149: 0 | N149: -1.473765373e-07 | O149: -1.473765373e-07
A150: 2036-11-18 | B150: =IF(DIAS365(CALCULADORA!$C$27,A150)<0,0,DIAS365(CALCULADORA!$C$27,A150)) -> 4305 | C150: =+HLOOKUP(CALCULADORA!$C$9,Tablas!B:B,Flujos!J150+1,FALSE) -> 0 | D150: 0 | E150: 0 | F150: =ROUND(D149*ROUND(((1+CALCULADORA!$C$16)^(1/12)-1),6),6) -> 0 | G150: 0 | H150: =IF($B150=0,0,G150/POWER(1+CALCULADORA!$C$29,Flujos!$B150/365)) -> 0 | I150: 2036-11-18 | J150: 148 | K150: =+DIAS365($A$2,A150) -> 4503 | L150: -1.59740448e-05 | M150: 0 | N150: -1.473765373e-07 | O150: -1.473765373e-07
A151: 2036-12-18 | B151: =IF(DIAS365(CALCULADORA!$C$27,A151)<0,0,DIAS365(CALCULADORA!$C$27,A151)) -> 4335 | C151: =+HLOOKUP(CALCULADORA!$C$9,Tablas!B:B,Flujos!J151+1,FALSE) -> 0 | D151: 0 | E151: 0 | F151: =ROUND(D150*ROUND(((1+CALCULADORA!$C$16)^(1/12)-1),6),6) -> 0 | G151: 0 | H151: =IF($B151=0,0,G151/POWER(1+CALCULADORA!$C$29,Flujos!$B151/365)) -> 0 | I151: 2036-12-18 | J151: 149 | K151: =+DIAS365($A$2,A151) -> 4533 | L151: -1.59740448e-05 | M151: 0 | N151: -1.473765373e-07 | O151: -1.473765373e-07
A152: 2037-01-18 | B152: =IF(DIAS365(CALCULADORA!$C$27,A152)<0,0,DIAS365(CALCULADORA!$C$27,A152)) -> 4366 | C152: =+HLOOKUP(CALCULADORA!$C$9,Tablas!B:B,Flujos!J152+1,FALSE) -> 0 | D152: 0 | E152: 0 | F152: =ROUND(D151*ROUND(((1+CALCULADORA!$C$16)^(1/12)-1),6),6) -> 0 | G152: 0 | H152: =IF($B152=0,0,G152/POWER(1+CALCULADORA!$C$29,Flujos!$B152/365)) -> 0 | I152: 2037-01-18 | J152: 150 | K152: =+DIAS365($A$2,A152) -> 4564 | L152: -1.59740448e-05 | M152: 0 | N152: -1.473765373e-07 | O152: -1.473765373e-07
A153: 2037-02-18 | B153: =IF(DIAS365(CALCULADORA!$C$27,A153)<0,0,DIAS365(CALCULADORA!$C$27,A153)) -> 4397 | C153: =+HLOOKUP(CALCULADORA!$C$9,Tablas!B:B,Flujos!J153+1,FALSE) -> 0 | D153: 0 | E153: 0 | F153: =ROUND(D152*ROUND(((1+CALCULADORA!$C$16)^(1/12)-1),6),6) -> 0 | G153: 0 | H153: =IF($B153=0,0,G153/POWER(1+CALCULADORA!$C$29,Flujos!$B153/365)) -> 0 | I153: 2037-02-18 | J153: 151 | K153: =+DIAS365($A$2,A153) -> 4595 | L153: -1.59740448e-05 | M153: 0 | N153: -1.473765373e-07 | O153: -1.473765373e-07
A154: 2037-03-18 | B154: =IF(DIAS365(CALCULADORA!$C$27,A154)<0,0,DIAS365(CALCULADORA!$C$27,A154)) -> 4425 | C154: =+HLOOKUP(CALCULADORA!$C$9,Tablas!B:B,Flujos!J154+1,FALSE) -> 0 | D154: 0 | E154: 0 | F154: =ROUND(D153*ROUND(((1+CALCULADORA!$C$16)^(1/12)-1),6),6) -> 0 | G154: 0 | H154: =IF($B154=0,0,G154/POWER(1+CALCULADORA!$C$29,Flujos!$B154/365)) -> 0 | I154: 2037-03-18 | J154: 152 | K154: =+DIAS365($A$2,A154) -> 4623 | L154: -1.59740448e-05 | M154: 0 | N154: -1.473765373e-07 | O154: -1.473765373e-07
A155: 2037-04-18 | B155: =IF(DIAS365(CALCULADORA!$C$27,A155)<0,0,DIAS365(CALCULADORA!$C$27,A155)) -> 4456 | C155: =+HLOOKUP(CALCULADORA!$C$9,Tablas!B:B,Flujos!J155+1,FALSE) -> 0 | D155: 0 | E155: 0 | F155: =ROUND(D154*ROUND(((1+CALCULADORA!$C$16)^(1/12)-1),6),6) -> 0 | G155: 0 | H155: =IF($B155=0,0,G155/POWER(1+CALCULADORA!$C$29,Flujos!$B155/365)) -> 0 | I155: 2037-04-18 | J155: 153 | K155: =+DIAS365($A$2,A155) -> 4654 | L155: -1.59740448e-05 | M155: 0 | N155: -1.473765373e-07 | O155: -1.473765373e-07
A156: 2037-05-18 | B156: =IF(DIAS365(CALCULADORA!$C$27,A156)<0,0,DIAS365(CALCULADORA!$C$27,A156)) -> 4486 | C156: =+HLOOKUP(CALCULADORA!$C$9,Tablas!B:B,Flujos!J156+1,FALSE) -> 0 | D156: 0 | E156: 0 | F156: =ROUND(D155*ROUND(((1+CALCULADORA!$C$16)^(1/12)-1),6),6) -> 0 | G156: 0 | H156: =IF($B156=0,0,G156/POWER(1+CALCULADORA!$C$29,Flujos!$B156/365)) -> 0 | I156: 2037-05-18 | J156: 154 | K156: =+DIAS365($A$2,A156) -> 4684 | L156: -1.59740448e-05 | M156: 0 | N156: -1.473765373e-07 | O156: -1.473765373e-07
A157: 2037-06-18 | B157: =IF(DIAS365(CALCULADORA!$C$27,A157)<0,0,DIAS365(CALCULADORA!$C$27,A157)) -> 4517 | C157: =+HLOOKUP(CALCULADORA!$C$9,Tablas!B:B,Flujos!J157+1,FALSE) -> 0 | D157: 0 | E157: 0 | F157: =ROUND(D156*ROUND(((1+CALCULADORA!$C$16)^(1/12)-1),6),6) -> 0 | G157: 0 | H157: =IF($B157=0,0,G157/POWER(1+CALCULADORA!$C$29,Flujos!$B157/365)) -> 0 | I157: 2037-06-18 | J157: 155 | K157: =+DIAS365($A$2,A157) -> 4715 | L157: -1.59740448e-05 | M157: 0 | N157: -1.473765373e-07 | O157: -1.473765373e-07
A158: 2037-07-18 | B158: =IF(DIAS365(CALCULADORA!$C$27,A158)<0,0,DIAS365(CALCULADORA!$C$27,A158)) -> 4547 | C158: =+HLOOKUP(CALCULADORA!$C$9,Tablas!B:B,Flujos!J158+1,FALSE) -> 0 | D158: 0 | E158: 0 | F158: =ROUND(D157*ROUND(((1+CALCULADORA!$C$16)^(1/12)-1),6),6) -> 0 | G158: 0 | H158: =IF($B158=0,0,G158/POWER(1+CALCULADORA!$C$29,Flujos!$B158/365)) -> 0 | I158: 2037-07-18 | J158: 156 | K158: =+DIAS365($A$2,A158) -> 4745 | L158: -1.59740448e-05 | M158: 0 | N158: -1.473765373e-07 | O158: -1.473765373e-07
A159: 2037-08-18 | B159: =IF(DIAS365(CALCULADORA!$C$27,A159)<0,0,DIAS365(CALCULADORA!$C$27,A159)) -> 4578 | C159: =+HLOOKUP(CALCULADORA!$C$9,Tablas!B:B,Flujos!J159+1,FALSE) -> 0 | D159: 0 | E159: 0 | F159: =ROUND(D158*ROUND(((1+CALCULADORA!$C$16)^(1/12)-1),6),6) -> 0 | G159: 0 | H159: =IF($B159=0,0,G159/POWER(1+CALCULADORA!$C$29,Flujos!$B159/365)) -> 0 | I159: 2037-08-18 | J159: 157 | K159: =+DIAS365($A$2,A159) -> 4776 | L159: -1.59740448e-05 | M159: 0 | N159: -1.473765373e-07 | O159: -1.473765373e-07
A160: 2037-09-18 | B160: =IF(DIAS365(CALCULADORA!$C$27,A160)<0,0,DIAS365(CALCULADORA!$C$27,A160)) -> 4609 | C160: =+HLOOKUP(CALCULADORA!$C$9,Tablas!B:B,Flujos!J160+1,FALSE) -> 0 | D160: 0 | E160: 0 | F160: =ROUND(D159*ROUND(((1+CALCULADORA!$C$16)^(1/12)-1),6),6) -> 0 | G160: 0 | H160: =IF($B160=0,0,G160/POWER(1+CALCULADORA!$C$29,Flujos!$B160/365)) -> 0 | I160: 2037-09-18 | J160: 158 | K160: =+DIAS365($A$2,A160) -> 4807 | L160: -1.59740448e-05 | M160: 0 | N160: -1.473765373e-07 | O160: -1.473765373e-07
A161: 2037-10-18 | B161: =IF(DIAS365(CALCULADORA!$C$27,A161)<0,0,DIAS365(CALCULADORA!$C$27,A161)) -> 4639 | C161: =+HLOOKUP(CALCULADORA!$C$9,Tablas!B:B,Flujos!J161+1,FALSE) -> 0 | D161: 0 | E161: 0 | F161: =ROUND(D160*ROUND(((1+CALCULADORA!$C$16)^(1/12)-1),6),6) -> 0 | G161: 0 | H161: =IF($B161=0,0,G161/POWER(1+CALCULADORA!$C$29,Flujos!$B161/365)) -> 0 | I161: 2037-10-18 | J161: 159 | K161: =+DIAS365($A$2,A161) -> 4837 | L161: -1.59740448e-05 | M161: 0 | N161: -1.473765373e-07 | O161: -1.473765373e-07
A162: 2037-11-18 | B162: =IF(DIAS365(CALCULADORA!$C$27,A162)<0,0,DIAS365(CALCULADORA!$C$27,A162)) -> 4670 | C162: =+HLOOKUP(CALCULADORA!$C$9,Tablas!B:B,Flujos!J162+1,FALSE) -> 0 | D162: 0 | E162: 0 | F162: =ROUND(D161*ROUND(((1+CALCULADORA!$C$16)^(1/12)-1),6),6) -> 0 | G162: 0 | H162: =IF($B162=0,0,G162/POWER(1+CALCULADORA!$C$29,Flujos!$B162/365)) -> 0 | I162: 2037-11-18 | J162: 160 | K162: =+DIAS365($A$2,A162) -> 4868 | L162: -1.59740448e-05 | M162: 0 | N162: -1.473765373e-07 | O162: -1.473765373e-07
A163: =EDATE(A162,1) -> 2037-12-18 | B163: =IF(DIAS365(CALCULADORA!$C$27,A163)<0,0,DIAS365(CALCULADORA!$C$27,A163)) -> 4700 | C163: =+HLOOKUP(CALCULADORA!$C$9,Tablas!B:B,Flujos!J163+1,FALSE) -> 0 | D163: 0 | E163: 0 | F163: =ROUND(D162*ROUND(((1+CALCULADORA!$C$16)^(1/12)-1),6),6) -> 0 | G163: 0 | H163: =IF($B163=0,0,G163/POWER(1+CALCULADORA!$C$29,Flujos!$B163/365)) -> 0 | I163: 2037-12-18 | J163: 161 | K163: =+DIAS365($A$2,A163) -> 4898 | L163: -1.59740448e-05 | M163: 0 | N163: -1.473765373e-07 | O163: -1.473765373e-07
A164: 2038-01-18 | B164: =IF(DIAS365(CALCULADORA!$C$27,A164)<0,0,DIAS365(CALCULADORA!$C$27,A164)) -> 4731 | C164: =+HLOOKUP(CALCULADORA!$C$9,Tablas!B:B,Flujos!J164+1,FALSE) -> 0 | D164: 0 | E164: 0 | F164: =ROUND(D163*ROUND(((1+CALCULADORA!$C$16)^(1/12)-1),6),6) -> 0 | G164: 0 | H164: =IF($B164=0,0,G164/POWER(1+CALCULADORA!$C$29,Flujos!$B164/365)) -> 0 | I164: 2038-01-18 | J164: 162 | K164: =+DIAS365($A$2,A164) -> 4929 | L164: -1.59740448e-05 | M164: 0 | N164: -1.473765373e-07 | O164: -1.473765373e-07
A165: 2038-02-18 | B165: =IF(DIAS365(CALCULADORA!$C$27,A165)<0,0,DIAS365(CALCULADORA!$C$27,A165)) -> 4762 | C165: =+HLOOKUP(CALCULADORA!$C$9,Tablas!B:B,Flujos!J165+1,FALSE) -> 0 | D165: 0 | E165: 0 | F165: =ROUND(D164*ROUND(((1+CALCULADORA!$C$16)^(1/12)-1),6),6) -> 0 | G165: 0 | H165: =IF($B165=0,0,G165/POWER(1+CALCULADORA!$C$29,Flujos!$B165/365)) -> 0 | I165: 2038-02-18 | J165: 163 | K165: =+DIAS365($A$2,A165) -> 4960 | L165: -1.59740448e-05 | M165: 0 | N165: -1.473765373e-07 | O165: -1.473765373e-07
A166: 2038-03-18 | B166: =IF(DIAS365(CALCULADORA!$C$27,A166)<0,0,DIAS365(CALCULADORA!$C$27,A166)) -> 4790 | C166: =+HLOOKUP(CALCULADORA!$C$9,Tablas!B:B,Flujos!J166+1,FALSE) -> 0 | D166: 0 | E166: 0 | F166: =ROUND(D165*ROUND(((1+CALCULADORA!$C$16)^(1/12)-1),6),6) -> 0 | G166: 0 | H166: =IF($B166=0,0,G166/POWER(1+CALCULADORA!$C$29,Flujos!$B166/365)) -> 0 | I166: 2038-03-18 | J166: 164 | K166: =+DIAS365($A$2,A166) -> 4988 | L166: -1.59740448e-05 | M166: 0 | N166: -1.473765373e-07 | O166: -1.473765373e-07
A167: 2038-04-18 | B167: =IF(DIAS365(CALCULADORA!$C$27,A167)<0,0,DIAS365(CALCULADORA!$C$27,A167)) -> 4821 | C167: =+HLOOKUP(CALCULADORA!$C$9,Tablas!B:B,Flujos!J167+1,FALSE) -> 0 | D167: 0 | E167: 0 | F167: =ROUND(D166*ROUND(((1+CALCULADORA!$C$16)^(1/12)-1),6),6) -> 0 | G167: 0 | H167: =IF($B167=0,0,G167/POWER(1+CALCULADORA!$C$29,Flujos!$B167/365)) -> 0 | I167: 2038-04-18 | J167: 165 | K167: =+DIAS365($A$2,A167) -> 5019 | L167: -1.59740448e-05 | M167: 0 | N167: -1.473765373e-07 | O167: -1.473765373e-07
A168: 2038-05-18 | B168: =IF(DIAS365(CALCULADORA!$C$27,A168)<0,0,DIAS365(CALCULADORA!$C$27,A168)) -> 4851 | C168: =+HLOOKUP(CALCULADORA!$C$9,Tablas!B:B,Flujos!J168+1,FALSE) -> 0 | D168: 0 | E168: 0 | F168: =ROUND(D167*ROUND(((1+CALCULADORA!$C$16)^(1/12)-1),6),6) -> 0 | G168: 0 | H168: =IF($B168=0,0,G168/POWER(1+CALCULADORA!$C$29,Flujos!$B168/365)) -> 0 | I168: 2038-05-18 | J168: 166 | K168: =+DIAS365($A$2,A168) -> 5049 | L168: -1.59740448e-05 | M168: 0 | N168: -1.473765373e-07 | O168: -1.473765373e-07
A169: 2038-06-18 | B169: =IF(DIAS365(CALCULADORA!$C$27,A169)<0,0,DIAS365(CALCULADORA!$C$27,A169)) -> 4882 | C169: =+HLOOKUP(CALCULADORA!$C$9,Tablas!B:B,Flujos!J169+1,FALSE) -> 0 | D169: 0 | E169: 0 | F169: =ROUND(D168*ROUND(((1+CALCULADORA!$C$16)^(1/12)-1),6),6) -> 0 | G169: 0 | H169: =IF($B169=0,0,G169/POWER(1+CALCULADORA!$C$29,Flujos!$B169/365)) -> 0 | I169: 2038-06-18 | J169: 167 | K169: =+DIAS365($A$2,A169) -> 5080 | L169: -1.59740448e-05 | M169: 0 | N169: -1.473765373e-07 | O169: -1.473765373e-07
A170: 2038-07-18 | B170: =IF(DIAS365(CALCULADORA!$C$27,A170)<0,0,DIAS365(CALCULADORA!$C$27,A170)) -> 4912 | C170: =+HLOOKUP(CALCULADORA!$C$9,Tablas!B:B,Flujos!J170+1,FALSE) -> 0 | D170: 0 | E170: 0 | F170: =ROUND(D169*ROUND(((1+CALCULADORA!$C$16)^(1/12)-1),6),6) -> 0 | G170: 0 | H170: =IF($B170=0,0,G170/POWER(1+CALCULADORA!$C$29,Flujos!$B170/365)) -> 0 | I170: 2038-07-18 | J170: 168 | K170: =+DIAS365($A$2,A170) -> 5110 | L170: -1.59740448e-05 | M170: 0 | N170: -1.473765373e-07 | O170: -1.473765373e-07
A171: 2038-08-18 | B171: =IF(DIAS365(CALCULADORA!$C$27,A171)<0,0,DIAS365(CALCULADORA!$C$27,A171)) -> 4943 | C171: =+HLOOKUP(CALCULADORA!$C$9,Tablas!B:B,Flujos!J171+1,FALSE) -> 0 | D171: 0 | E171: 0 | F171: =ROUND(D170*ROUND(((1+CALCULADORA!$C$16)^(1/12)-1),6),6) -> 0 | G171: 0 | H171: =IF($B171=0,0,G171/POWER(1+CALCULADORA!$C$29,Flujos!$B171/365)) -> 0 | I171: 2038-08-18 | J171: 169 | K171: =+DIAS365($A$2,A171) -> 5141 | L171: -1.59740448e-05 | M171: 0 | N171: -1.473765373e-07 | O171: -1.473765373e-07
A172: 2038-09-18 | B172: =IF(DIAS365(CALCULADORA!$C$27,A172)<0,0,DIAS365(CALCULADORA!$C$27,A172)) -> 4974 | C172: =+HLOOKUP(CALCULADORA!$C$9,Tablas!B:B,Flujos!J172+1,FALSE) -> 0 | D172: 0 | E172: 0 | F172: =ROUND(D171*ROUND(((1+CALCULADORA!$C$16)^(1/12)-1),6),6) -> 0 | G172: 0 | H172: =IF($B172=0,0,G172/POWER(1+CALCULADORA!$C$29,Flujos!$B172/365)) -> 0 | I172: 2038-09-18 | J172: 170 | K172: =+DIAS365($A$2,A172) -> 5172 | L172: -1.59740448e-05 | M172: 0 | N172: -1.473765373e-07 | O172: -1.473765373e-07
A173: 2038-10-18 | B173: =IF(DIAS365(CALCULADORA!$C$27,A173)<0,0,DIAS365(CALCULADORA!$C$27,A173)) -> 5004 | C173: =+HLOOKUP(CALCULADORA!$C$9,Tablas!B:B,Flujos!J173+1,FALSE) -> 0 | D173: 0 | E173: 0 | F173: =ROUND(D172*ROUND(((1+CALCULADORA!$C$16)^(1/12)-1),6),6) -> 0 | G173: 0 | H173: =IF($B173=0,0,G173/POWER(1+CALCULADORA!$C$29,Flujos!$B173/365)) -> 0 | I173: 2038-10-18 | J173: 171 | K173: =+DIAS365($A$2,A173) -> 5202 | L173: -1.59740448e-05 | M173: 0 | N173: -1.473765373e-07 | O173: -1.473765373e-07
A174: 2038-11-18 | B174: =IF(DIAS365(CALCULADORA!$C$27,A174)<0,0,DIAS365(CALCULADORA!$C$27,A174)) -> 5035 | C174: =+HLOOKUP(CALCULADORA!$C$9,Tablas!B:B,Flujos!J174+1,FALSE) -> 0 | D174: 0 | E174: 0 | F174: =ROUND(D173*ROUND(((1+CALCULADORA!$C$16)^(1/12)-1),6),6) -> 0 | G174: 0 | H174: =IF($B174=0,0,G174/POWER(1+CALCULADORA!$C$29,Flujos!$B174/365)) -> 0 | I174: 2038-11-18 | J174: 172 | K174: =+DIAS365($A$2,A174) -> 5233 | L174: -1.59740448e-05 | M174: 0 | N174: -1.473765373e-07 | O174: -1.473765373e-07
A175: 2038-12-18 | B175: =IF(DIAS365(CALCULADORA!$C$27,A175)<0,0,DIAS365(CALCULADORA!$C$27,A175)) -> 5065 | C175: =+HLOOKUP(CALCULADORA!$C$9,Tablas!B:B,Flujos!J175+1,FALSE) -> 0 | D175: 0 | E175: 0 | F175: =ROUND(D174*ROUND(((1+CALCULADORA!$C$16)^(1/12)-1),6),6) -> 0 | G175: 0 | H175: =IF($B175=0,0,G175/POWER(1+CALCULADORA!$C$29,Flujos!$B175/365)) -> 0 | I175: 2038-12-18 | J175: 173 | K175: =+DIAS365($A$2,A175) -> 5263 | L175: -1.59740448e-05 | M175: 0 | N175: -1.473765373e-07 | O175: -1.473765373e-07
A176: 2039-01-18 | B176: =IF(DIAS365(CALCULADORA!$C$27,A176)<0,0,DIAS365(CALCULADORA!$C$27,A176)) -> 5096 | C176: =+HLOOKUP(CALCULADORA!$C$9,Tablas!B:B,Flujos!J176+1,FALSE) -> 0 | D176: 0 | E176: 0 | F176: =ROUND(D175*ROUND(((1+CALCULADORA!$C$16)^(1/12)-1),6),6) -> 0 | G176: 0 | H176: =IF($B176=0,0,G176/POWER(1+CALCULADORA!$C$29,Flujos!$B176/365)) -> 0 | I176: 2039-01-18 | J176: 174 | K176: =+DIAS365($A$2,A176) -> 5294 | L176: -1.59740448e-05 | M176: 0 | N176: -1.473765373e-07 | O176: -1.473765373e-07
A177: 2039-02-18 | B177: =IF(DIAS365(CALCULADORA!$C$27,A177)<0,0,DIAS365(CALCULADORA!$C$27,A177)) -> 5127 | C177: =+HLOOKUP(CALCULADORA!$C$9,Tablas!B:B,Flujos!J177+1,FALSE) -> 0 | D177: 0 | E177: 0 | F177: =ROUND(D176*ROUND(((1+CALCULADORA!$C$16)^(1/12)-1),6),6) -> 0 | G177: 0 | H177: =IF($B177=0,0,G177/POWER(1+CALCULADORA!$C$29,Flujos!$B177/365)) -> 0 | I177: 2039-02-18 | J177: 175 | K177: =+DIAS365($A$2,A177) -> 5325 | L177: -1.59740448e-05 | M177: 0 | N177: -1.473765373e-07 | O177: -1.473765373e-07
A178: 2039-03-18 | B178: =IF(DIAS365(CALCULADORA!$C$27,A178)<0,0,DIAS365(CALCULADORA!$C$27,A178)) -> 5155 | C178: =+HLOOKUP(CALCULADORA!$C$9,Tablas!B:B,Flujos!J178+1,FALSE) -> 0 | D178: 0 | E178: 0 | F178: =ROUND(D177*ROUND(((1+CALCULADORA!$C$16)^(1/12)-1),6),6) -> 0 | G178: 0 | H178: =IF($B178=0,0,G178/POWER(1+CALCULADORA!$C$29,Flujos!$B178/365)) -> 0 | I178: 2039-03-18 | J178: 176 | K178: =+DIAS365($A$2,A178) -> 5353 | L178: -1.59740448e-05 | M178: 0 | N178: -1.473765373e-07 | O178: -1.473765373e-07
A179: 2039-04-18 | B179: =IF(DIAS365(CALCULADORA!$C$27,A179)<0,0,DIAS365(CALCULADORA!$C$27,A179)) -> 5186 | C179: =+HLOOKUP(CALCULADORA!$C$9,Tablas!B:B,Flujos!J179+1,FALSE) -> 0 | D179: 0 | E179: 0 | F179: =ROUND(D178*ROUND(((1+CALCULADORA!$C$16)^(1/12)-1),6),6) -> 0 | G179: 0 | H179: =IF($B179=0,0,G179/POWER(1+CALCULADORA!$C$29,Flujos!$B179/365)) -> 0 | I179: 2039-04-18 | J179: 177 | K179: =+DIAS365($A$2,A179) -> 5384 | L179: -1.59740448e-05 | M179: 0 | N179: -1.473765373e-07 | O179: -1.473765373e-07
A180: 2039-05-18 | B180: =IF(DIAS365(CALCULADORA!$C$27,A180)<0,0,DIAS365(CALCULADORA!$C$27,A180)) -> 5216 | C180: =+HLOOKUP(CALCULADORA!$C$9,Tablas!B:B,Flujos!J180+1,FALSE) -> 0 | D180: 0 | E180: 0 | F180: =ROUND(D179*ROUND(((1+CALCULADORA!$C$16)^(1/12)-1),6),6) -> 0 | G180: 0 | H180: =IF($B180=0,0,G180/POWER(1+CALCULADORA!$C$29,Flujos!$B180/365)) -> 0 | I180: 2039-05-18 | J180: 178 | K180: =+DIAS365($A$2,A180) -> 5414 | L180: -1.59740448e-05 | M180: 0 | N180: -1.473765373e-07 | O180: -1.473765373e-07
A181: 2039-06-18 | B181: =IF(DIAS365(CALCULADORA!$C$27,A181)<0,0,DIAS365(CALCULADORA!$C$27,A181)) -> 5247 | C181: =+HLOOKUP(CALCULADORA!$C$9,Tablas!B:B,Flujos!J181+1,FALSE) -> 0 | D181: 0 | E181: 0 | F181: =ROUND(D180*ROUND(((1+CALCULADORA!$C$16)^(1/12)-1),6),6) -> 0 | G181: 0 | H181: =IF($B181=0,0,G181/POWER(1+CALCULADORA!$C$29,Flujos!$B181/365)) -> 0 | I181: 2039-06-18 | J181: 179 | K181: =+DIAS365($A$2,A181) -> 5445 | L181: -1.59740448e-05 | M181: 0 | N181: -1.473765373e-07 | O181: -1.473765373e-07
A182: 2039-07-18 | B182: =IF(DIAS365(CALCULADORA!$C$27,A182)<0,0,DIAS365(CALCULADORA!$C$27,A182)) -> 5277 | C182: =+HLOOKUP(CALCULADORA!$C$9,Tablas!B:B,Flujos!J182+1,FALSE) -> 0 | D182: 0 | E182: 0 | F182: =ROUND(D181*ROUND(((1+CALCULADORA!$C$16)^(1/12)-1),6),6) -> 0 | G182: 0 | H182: =IF($B182=0,0,G182/POWER(1+CALCULADORA!$C$29,Flujos!$B182/365)) -> 0 | I182: 2039-07-18 | J182: 180 | K182: =+DIAS365($A$2,A182) -> 5475 | L182: -1.59740448e-05 | M182: 0 | N182: -1.473765373e-07 | O182: -1.473765373e-07
C183: =+SUMIF(B2:B182,">0",C2:C182) -> 0.80422329 | E183: =SUM(E2:E182) -> 100 | F183: =SUM(F2:F182) -> 23.239071 | G183: =SUM(G2:G182) -> 123.239071 | H183: =SUM(H2:H182) -> 82.14189644 | L183: Totales | M183: =SUM(M2:M182) -> 6.171187137e+10 | N183: =SUM(N2:N182) -> 1.434126213e+10 | O183: 7.60531335e+10

Sheet Características (hidden)
A1: Serie | B1: TIPS N13 A | C1: TIPS N14 A | D1: TIPS N16 A | E1: TIPS N17 A | F1: TIPS N18 A 2034 | G1: TIPS N19 A 2034 | H1: TIPS N20 A 2034 | I1: TIPS N21 A | J1: TIPS N22 A | K1: TIPS N23 A | L1: TIPS N24 A1 2029 | M1: TIPS N24 A2 2039
A2: Nemo MEC | B2: INST10011226 | C2: INST10080327 | D2: INST10061227 | E2: INST10150328 | F2: INST15040434 | G2: INST15230534 | H2: INST15041034 | I2: INST13240634 | J2: INST070339A | K2: INST15180739 | L2: INST15041029 | M2: INST15041039
A3: ISIN
A4: Emisión | B4: 2016-12-01 | C4: 2017-03-08 | D4: 2017-12-06 | E4: 2018-03-15 | F4: 2021-02-04 | G4: 2021-07-23 | H4: 2021-04-04 | I4: 2021-06-24 | J4: 2024-03-07 | K4: 2024-07-18 | L4: 2024-10-04 | M4: 2024-10-04
A5: Vencimiento contractual | B5: 2026-12-01 | C5: 2027-03-08 | D5: 2027-12-06 | E5: 2033-03-15 | F5: 2034-04-04 | G5: 2034-05-23 | H5: 2034-10-04 | I5: 2034-06-24 | J5: 2039-03-07 | K5: 2039-07-18 | L5: 2029-10-04 | M5: 2039-01-04
A6: Cupón EA | B6: 0.0837 | C6: 0.0775 | D6: 0.0638 | E6: 0.0657 | F6: 0.0683 | G6: 0.0689 | H6: 0.0604 | I6: 0.0606 | J6: 0.109 | K6: 0.1165 | L6: 0.104 | M6: 0.1078
A7: Moneda | B7: COP | C7: COP | D7: COP | E7: COP | F7: COP | G7: COP | H7: COP | I7: COP | J7: COP | K7: COP | L7: COP | M7: COP
A9: Cálculo de tasa y precio sucio a partir del limpio
A10: Fecha de liquidación | B10: =+CALCULADORA!C27 -> 2025-02-01
A11: Fecha último pago cupón | B11: =+VLOOKUP(B10,Flujos!$A$2:$A$182,1) -> 2025-01-18
A12: Valor Par | B12: =+VLOOKUP(B11,Flujos!$A$2:$D$182,4) -> 80.422329
A13: Próximo pago de interés | B13: =+VLOOKUP(EDATE(B10,1),Flujos!$A$2:$F$182,6) -> 0.741976
A14: Días corridos | B14: =+DAYS360(B11,B10,TRUE) -> 13
A15: Días entre flujos | B15: 30
A16: Cupón corrido | B16: =ROUND(B13/B12*B14/B15*100,4) -> 0.3998
A17: Precio limpio | B17: =+TRUNC(Flujos!H183/VLOOKUP(CALCULADORA!C27,Flujos!A:D,4)*100,3) -> 102.138
A18: Nominal | B18: =+CALCULADORA!C28 -> 49630124223
A19: Moneda | B19: 1
A20: Contravalor | B20: =ROUND(B18*B19*(B17+B16)/100,0) -> 50889637516
A21: Precio unitario | B21: =TRUNC(B20/B18,5) -> 1.02537
A22: Precio sucio MEC | B22: =TRUNC(B21/B19*100,3) -> 102.537
A23: Precio sucio modelo | B23: =+B22 -> 102.537
A24: Diferencia | B24: =+B22-B23 -> 0
A25: Tasa de descuento equivalente | B25: =TRUNC(CALCULADORA!C29,5) -> 0.1054
A27: Cálculo de precio limpio y sucio a partir de tasa
A28: Tasa de descuento | B28: =TRUNC(CALCULADORA!C29,5) -> 0.1054
A29: Precio sucio modelo | B29: =+B23 -> 102.537
A30: Moneda | B30: =+CALCULADORA!$C$43 -> 1
A31: Nominal | B31: =+CALCULADORA!C28 -> 49630124223
A32: Contravalor | B32: =+ROUND(B29/100*B31*B30,0) -> 50889240475
A33: Valor Par | B33: =+VLOOKUP(B11,Flujos!$A$2:$D$182,4) -> 80.422329
A34: Próximo pago de interés | B34: =+VLOOKUP(EDATE(B10,1),Flujos!$A$2:$F$182,6) -> 0.741976
A35: Días corridos | B35: =+DAYS360(B11,B10,TRUE) -> 13
A36: Días entre flujos | B36: 30
A37: Precio unitario | B37: =TRUNC(B32/(B30*B31),5) -> 1.02537
A38: Cupón corrido | B38: =ROUND(B34/B33*B35/B36,6)*100 -> 0.3998
A39: Precio limpio | B39: =ROUND((B37-(B38/100))*100,3) -> 102.137

Sheet TIR de Tenencia (hidden)
A1: =+Flujos!A1 -> Fecha | B1: =+Flujos!L1 -> Saldo / Balance | C1: =+Flujos!M1 -> Pago de Capital | D1: =+Flujos!N1 -> Pago de Intereses | E1: =+Flujos!O1 -> Pago Total | F1: =+CALCULADORA!C27 -> 2025-02-01 | G1: Fecha | H1: Flujo | I1: Fecha | J1: Flujo 1 | K1: TIR | L1: =+DAY(A2) -> 18 | M1: =+MONTH(G2) -> 3 | N1: =+YEAR(G2) -> 2024 | P1: =MATCH(MAX('TIR de Tenencia'!I:I),'TIR de Tenencia'!I:I,0) -> 13
A2: =+Flujos!A2 -> 2024-07-18 | B2: =+Flujos!L2 -> 6.171187137e+10 | C2: =+Flujos!M2 -> 0 | D2: =+Flujos!N2 -> 0 | E2: =+Flujos!O2 -> 0 | G2: =+CALCULADORA!C23 -> 2024-03-07 | H2: =-CALCULADORA!C24 -> -15000000000 | I2: =+G2 -> 2024-03-07 | J2: =+H2 -> -15000000000 | K2: =+XIRR(J2:J9,I2:I9) -> 0.7290946364 | L2: =+L1 -> 18 | M2: =+IF(M1=12,1,M1+1) -> 4 | N2: =+IF(M2=1,N1+1,N1) -> 2024 | P2: 1 | Q2: Enero
A3: =+Flujos!A3 -> 2024-08-18 | B3: =+Flujos!L3 -> 6.004056085e+10 | C3: =+Flujos!M3 -> 1671310522 | D3: =+Flujos!N3 -> 569353725.2 | E3: =+Flujos!O3 -> 2240664247 | G3: =+DATE(N2,M2,L2) -> 2024-04-18 | H3: =IF(G3<CALCULADORA!$C$23,0,IF(CALCULADORA!$C$27>'TIR de Tenencia'!G3,E3,CALCULADORA!$C$33)) -> 2240664247 | I3: =+IF(H3=H2," ",G3) -> 2024-04-18 | J3: =+IF(H3=H2," ",H3) -> 2240664247 | L3: =+L2 -> 18 | M3: =+IF(M2=12,1,M2+1) -> 5 | N3: =+IF(M3=1,N2+1,N2) -> 2024 | P3: 2 | Q3: Febrero
A4: =+Flujos!A4 -> 2024-09-18 | B4: =+Flujos!L4 -> 5.828785668e+10 | C4: =+Flujos!M4 -> 1752704161 | D4: =+Flujos!N4 -> 553934214.4 | E4: =+Flujos!O4 -> 2306638375 | G4: =+DATE(N3,M3,L3) -> 2024-05-18 | H4: =IF(G4<CALCULADORA!$C$23,0,IF(CALCULADORA!$C$27>'TIR de Tenencia'!G4,E4,CALCULADORA!$C$33)) -> 2306638375 | I4: =+IF(H4=H3," ",G4) -> 2024-05-18 | J4: =+IF(H4=H3," ",H4) -> 2306638375 | L4: 18 | M4: 6 | N4: 2024 | P4: 3 | Q4: Marzo
A5: =+Flujos!A5 -> 2024-10-18 | B5: =+Flujos!L5 -> 5.608307295e+10 | C5: =+Flujos!M5 -> 2204783731 | D5: =+Flujos!N5 -> 537763765.8 | E5: =+Flujos!O5 -> 2742547497 | G5: 2024-06-18 | H5: =IF(G5<CALCULADORA!$C$23,0,IF(CALCULADORA!$C$27>'TIR de Tenencia'!G5,E5,CALCULADORA!$C$33)) -> 2742547497 | I5: =+IF(H5=H4," ",G5) -> 2024-06-18 | J5: =+IF(H5=H4," ",H5) -> 2742547497 | L5: 18 | M5: 7 | N5: 2024 | P5: 4 | Q5: Abril
A6: =+Flujos!A6 -> 2024-11-18 | B6: =+Flujos!L6 -> 5.383467004e+10 | C6: =+Flujos!M6 -> 2248402916 | D6: =+Flujos!N6 -> 517422431.1 | E6: =+Flujos!O6 -> 2765825347 | G6: 2024-07-18 | H6: =IF(G6<CALCULADORA!$C$23,0,IF(CALCULADORA!$C$27>'TIR de Tenencia'!G6,E6,CALCULADORA!$C$33)) -> 2765825347 | I6: 2024-07-18 | J6: 2765825347 | L6: 18 | M6: 8 | N6: 2024 | P6: 5 | Q6: Mayo
A7: =+Flujos!A7 -> 2024-12-18 | B7: =+Flujos!L7 -> 5.201975414e+10 | C7: =+Flujos!M7 -> 1814915898 | D7: =+Flujos!N7 -> 496678665.8 | E7: =+Flujos!O7 -> 2311594564 | G7: 2024-08-18 | H7: =IF(G7<CALCULADORA!$C$23,0,IF(CALCULADORA!$C$27>'TIR de Tenencia'!G7,E7,CALCULADORA!$C$33)) -> 2311594564 | I7: 2024-08-18 | J7: 2311594564 | L7: 18 | M7: 9 | N7: 2024 | P7: 6 | Q7: Junio
A8: =+Flujos!A8 -> 2025-01-18 | B8: =+Flujos!L8 -> 4.963012422e+10 | C8: =+Flujos!M8 -> 2389629916 | D8: =+Flujos!N8 -> 479934251.7 | E8: =+Flujos!O8 -> 2869564168 | G8: 2024-09-18 | H8: =IF(G8<CALCULADORA!$C$23,0,IF(CALCULADORA!$C$27>'TIR de Tenencia'!G8,E8,CALCULADORA!$C$33)) -> 2869564168 | I8: 2024-09-18 | J8: 2869564168 | L8: 18 | M8: 10 | N8: 2024 | P8: 7 | Q8: Julio
A9: =+Flujos!A9 -> 2025-02-18 | B9: =+Flujos!L9 -> 4.691889523e+10 | C9: =+Flujos!M9 -> 2711228992 | D9: =+Flujos!N9 -> 457887526.1 | E9: =+Flujos!O9 -> 3169116518 | G9: 2024-10-18 | H9: =IF(G9<CALCULADORA!$C$23,0,IF(CALCULADORA!$C$27>'TIR de Tenencia'!G9,E9,CALCULADORA!$C$33)) -> 3169116518 | I9: 2024-10-18 | J9: 3169116518 | L9: 18 | M9: 11 | N9: 2024 | P9: 8 | Q9: Agosto
A10: =+Flujos!A10 -> 2025-03-18 | B10: =+Flujos!L10 -> 4.515700464e+10 | C10: =+Flujos!M10 -> 1761890590 | D10: =+Flujos!N10 -> 432873727.4 | E10: =+Flujos!O10 -> 2194764317 | G10: 2024-11-18 | H10: =IF(G10<CALCULADORA!$C$23,0,IF(CALCULADORA!$C$27>'TIR de Tenencia'!G10,E10,CALCULADORA!$C$33)) -> 2194764317 | I10: 2024-11-18 | J10: 2194764317 | L10: 18 | M10: 12 | N10: 2024 | P10: 9 | Q10: Septiembre
A11: =+Flujos!A11 -> 2025-04-18 | B11: =+Flujos!L11 -> 4.345748624e+10 | C11: =+Flujos!M11 -> 1699518401 | D11: =+Flujos!N11 -> 416618524.8 | E11: =+Flujos!O11 -> 2116136926 | G11: 2024-12-18 | H11: =IF(G11<CALCULADORA!$C$23,0,IF(CALCULADORA!$C$27>'TIR de Tenencia'!G11,E11,CALCULADORA!$C$33)) -> 2116136926 | I11: 2024-12-18 | J11: 2116136926 | L11: 18 | M11: =+IF(M10=12,1,M10+1) -> 1 | N11: 2025 | P11: 10 | Q11: Octubre
A12: =+Flujos!A12 -> 2025-05-18 | B12: =+Flujos!L12 -> 4.181875465e+10 | C12: =+Flujos!M12 -> 1638731591 | D12: =+Flujos!N12 -> 400938768.1 | E12: =+Flujos!O12 -> 2039670359 | G12: 2025-01-18 | H12: =IF(G12<CALCULADORA!$C$23,0,IF(CALCULADORA!$C$27>'TIR de Tenencia'!G12,E12,CALCULADORA!$C$33)) -> 2039670359 | I12: 2025-01-18 | J12: 2039670359 | L12: 18 | M12: 2 | N12: 2025 | P12: 11 | Q12: Noviembre
A13: =+Flujos!A13 -> 2025-06-18 | B13: =+Flujos!L13 -> 4.023880176e+10 | C13: =+Flujos!M13 -> 1579952885 | D13: =+Flujos!N13 -> 385819830.4 | E13: =+Flujos!O13 -> 1965772715 | G13: 2025-02-18 | H13: =IF(G13<CALCULADORA!$C$23,0,IF(CALCULADORA!$C$27>'TIR de Tenencia'!G13,E13,CALCULADORA!$C$33)) -> 50889240475 | I13: 2025-02-18 | J13: 50889240475 | L13: 18 | M13: 3 | N13: 2025 | P13: 12 | Q13: Diciembre
A14: =+Flujos!A14 -> 2025-07-18 | B14: =+Flujos!L14 -> 3.871552815e+10 | C14: =+Flujos!M14 -> 1523273617 | D14: =+Flujos!N14 -> 371243185.1 | E14: =+Flujos!O14 -> 1894516802 | G14: 2025-03-18 | H14: =IF(G14<CALCULADORA!$C$23,0,IF(CALCULADORA!$C$27>'TIR de Tenencia'!G14,E14,CALCULADORA!$C$33)) -> 50889240475 | L14: 18 | M14: 4 | N14: 2025
A15: =+Flujos!A15 -> 2025-08-18 | B15: =+Flujos!L15 -> 3.724754343e+10 | C15: =+Flujos!M15 -> 1467984717 | D15: =+Flujos!N15 -> 357189462.7 | E15: =+Flujos!O15 -> 1825174179 | G15: 2025-04-18 | H15: =IF(G15<CALCULADORA!$C$23,0,IF(CALCULADORA!$C$27>'TIR de Tenencia'!G15,E15,CALCULADORA!$C$33)) -> 50889240475 | L15: 18 | M15: =+IF(M14=12,1,M14+1) -> 5 | N15: 2025
A16: =+Flujos!A16 -> 2025-09-18 | B16: =+Flujos!L16 -> 3.583209526e+10 | C16: =+Flujos!M16 -> 1415448166 | D16: =+Flujos!N16 -> 343645835.7 | E16: =+Flujos!O16 -> 1759094002 | G16: 2025-05-18 | H16: =IF(G16<CALCULADORA!$C$23,0,IF(CALCULADORA!$C$27>'TIR de Tenencia'!G16,E16,CALCULADORA!$C$33)) -> 50889240475 | L16: 18 | M16: 6 | N16: 2025
A17: =+Flujos!A17 -> 2025-10-18 | B17: =+Flujos!L17 -> 3.446784759e+10 | C17: =+Flujos!M17 -> 1364247678 | D17: =+Flujos!N17 -> 330586910.9 | E17: =+Flujos!O17 -> 1694834589 | G17: 2025-06-18 | H17: =IF(G17<CALCULADORA!$C$23,0,IF(CALCULADORA!$C$27>'TIR de Tenencia'!G17,E17,CALCULADORA!$C$33)) -> 50889240475 | I17: =+IF(H17=H16," ",G17) ->  | L17: 18 | M17: 7 | N17: 2025
A18: =+Flujos!A18 -> 2025-11-18 | B18: =+Flujos!L18 -> 3.315307678e+10 | C18: =+Flujos!M18 -> 1314770802 | D18: =+Flujos!N18 -> 318000361.8 | E18: =+Flujos!O18 -> 1632771164 | G18: 2025-07-18 | H18: =IF(G18<CALCULADORA!$C$23,0,IF(CALCULADORA!$C$27>'TIR de Tenencia'!G18,E18,CALCULADORA!$C$33)) -> 50889240475 | L18: 18 | M18: 8 | N18: 2025
A19: =+Flujos!A19 -> 2025-12-18 | B19: =+Flujos!L19 -> 3.188673252e+10 | C19: =+Flujos!M19 -> 1266344263 | D19: =+Flujos!N19 -> 305870286.4 | E19: =+Flujos!O19 -> 1572214549 | G19: 2025-08-18 | H19: =IF(G19<CALCULADORA!$C$23,0,IF(CALCULADORA!$C$27>'TIR de Tenencia'!G19,E19,CALCULADORA!$C$33)) -> 50889240475 | L19: 18 | M19: 9 | N19: 2025
A20: =+Flujos!A20 -> 2026-01-18 | B20: =+Flujos!L20 -> 3.066594705e+10 | C20: =+Flujos!M20 -> 1220785474 | D20: =+Flujos!N20 -> 294186994.2 | E20: =+Flujos!O20 -> 1514972468 | G20: 2025-09-18 | H20: =IF(G20<CALCULADORA!$C$23,0,IF(CALCULADORA!$C$27>'TIR de Tenencia'!G20,E20,CALCULADORA!$C$33)) -> 50889240475 | L20: 18 | M20: =+IF(M19=12,1,M19+1) -> 10 | N20: 2025
A21: =+Flujos!A21 -> 2026-02-18 | B21: =+Flujos!L21 -> 2.948971816e+10 | C21: =+Flujos!M21 -> 1176228885 | D21: =+Flujos!N21 -> 282924027.5 | E21: =+Flujos!O21 -> 1459152913 | G21: 2025-10-18 | H21: =IF(G21<CALCULADORA!$C$23,0,IF(CALCULADORA!$C$27>'TIR de Tenencia'!G21,E21,CALCULADORA!$C$33)) -> 50889240475 | L21: 18 | M21: 11 | N21: 2025
A22: =+Flujos!A22 -> 2026-03-18 | B22: =+Flujos!L22 -> 2.835593223e+10 | C22: =+Flujos!M22 -> 1133785929 | D22: =+Flujos!N22 -> 272072139.8 | E22: =+Flujos!O22 -> 1405858068 | G22: 2025-11-18 | H22: =IF(G22<CALCULADORA!$C$23,0,IF(CALCULADORA!$C$27>'TIR de Tenencia'!G22,E22,CALCULADORA!$C$33)) -> 50889240475 | L22: 18 | M22: 12 | N22: 2025
A23: =+Flujos!A23 -> 2026-04-18 | B23: =+Flujos!L23 -> 2.726350375e+10 | C23: =+Flujos!M23 -> 1092428484 | D23: =+Flujos!N23 -> 261611830.8 | E23: =+Flujos!O23 -> 1354040315 | G23: 2025-12-18 | H23: =IF(G23<CALCULADORA!$C$23,0,IF(CALCULADORA!$C$27>'TIR de Tenencia'!G23,E23,CALCULADORA!$C$33)) -> 50889240475 | L23: 18 | M23: 1 | N23: 2026
A24: =+Flujos!A24 -> 2026-05-18 | B24: =+Flujos!L24 -> 2.62114373e+10 | C24: =+Flujos!M24 -> 1052066452 | D24: =+Flujos!N24 -> 251533085.6 | E24: =+Flujos!O24 -> 1303599537 | G24: 2026-01-18 | H24: =IF(G24<CALCULADORA!$C$23,0,IF(CALCULADORA!$C$27>'TIR de Tenencia'!G24,E24,CALCULADORA!$C$33)) -> 50889240475 | L24: 18 | M24: 2 | N24: 2026
A25: =+Flujos!A25 -> 2026-06-18 | B25: =+Flujos!L25 -> 2.519801112e+10 | C25: =+Flujos!M25 -> 1013426180 | D25: =+Flujos!N25 -> 241826720.5 | E25: =+Flujos!O25 -> 1255252901 | G25: 2026-02-18 | H25: =IF(G25<CALCULADORA!$C$23,0,IF(CALCULADORA!$C$27>'TIR de Tenencia'!G25,E25,CALCULADORA!$C$33)) -> 50889240475 | L25: 18 | M25: 3 | N25: 2026
A26: =+Flujos!A26 -> 2026-07-18 | B26: =+Flujos!L26 -> 2.422280372e+10 | C26: =+Flujos!M26 -> 975207401.3 | D26: =+Flujos!N26 -> 232476850.6 | E26: =+Flujos!O26 -> 1207684252 | G26: 2026-03-18 | H26: =IF(G26<CALCULADORA!$C$23,0,IF(CALCULADORA!$C$27>'TIR de Tenencia'!G26,E26,CALCULADORA!$C$33)) -> 50889240475 | J26: =+IF(H26=H25," ",H26) ->  | L26: 18 | M26: 4 | N26: 2026
A27: =+Flujos!A27 -> 2026-08-18 | B27: =+Flujos!L27 -> 2.328348856e+10 | C27: =+Flujos!M27 -> 939315159.8 | D27: =+Flujos!N27 -> 223479587.1 | E27: =+Flujos!O27 -> 1162794747 | G27: 2026-04-18 | H27: =IF(G27<CALCULADORA!$C$23,0,IF(CALCULADORA!$C$27>'TIR de Tenencia'!G27,E27,CALCULADORA!$C$33)) -> 50889240475 | L27: 18 | M27: 5 | N27: 2026
A28: =+Flujos!A28 -> 2026-09-18 | B28: =+Flujos!L28 -> 2.2378853e+10 | C28: =+Flujos!M28 -> 904635556.6 | D28: =+Flujos!N28 -> 214813465.4 | E28: =+Flujos!O28 -> 1119449022 | G28: 2026-05-18 | H28: =IF(G28<CALCULADORA!$C$23,0,IF(CALCULADORA!$C$27>'TIR de Tenencia'!G28,E28,CALCULADORA!$C$33)) -> 50889240475 | L28: 18 | M28: 6 | N28: 2026
A29: =+Flujos!A29 -> 2026-10-18 | B29: =+Flujos!L29 -> 2.15080985e+10 | C29: =+Flujos!M29 -> 870754505 | D29: =+Flujos!N29 -> 206467297.8 | E29: =+Flujos!O29 -> 1077221803 | G29: 2026-06-18 | H29: =IF(G29<CALCULADORA!$C$23,0,IF(CALCULADORA!$C$27>'TIR de Tenencia'!G29,E29,CALCULADORA!$C$33)) -> 50889240475 | L29: 18 | M29: 7 | N29: 2026
A30: =+Flujos!A30 -> 2026-11-18 | B30: =+Flujos!L30 -> 2.066984516e+10 | C30: =+Flujos!M30 -> 838253330.8 | D30: =+Flujos!N30 -> 198433716.7 | E30: =+Flujos!O30 -> 1036687048 | G30: 2026-07-18 | H30: =IF(G30<CALCULADORA!$C$23,0,IF(CALCULADORA!$C$27>'TIR de Tenencia'!G30,E30,CALCULADORA!$C$33)) -> 50889240475 | L30: 18 | M30: 8 | N30: 2026
A31: =+Flujos!A31 -> 2026-12-18 | B31: =+Flujos!L31 -> 1.986302478e+10 | C31: =+Flujos!M31 -> 806820389.1 | D31: =+Flujos!N31 -> 190699991.5 | E31: =+Flujos!O31 -> 997520380.6 | G31: 2026-08-18 | H31: =IF(G31<CALCULADORA!$C$23,0,IF(CALCULADORA!$C$27>'TIR de Tenencia'!G31,E31,CALCULADORA!$C$33)) -> 50889240475 | L31: 18 | M31: 9 | N31: 2026
A32: =+Flujos!A32 -> 2027-01-18 | B32: =+Flujos!L32 -> 1.908677768e+10 | C32: =+Flujos!M32 -> 776247093.8 | D32: =+Flujos!N32 -> 183256266.6 | E32: =+Flujos!O32 -> 959503360.4 | G32: 2026-09-18 | H32: =IF(G32<CALCULADORA!$C$23,0,IF(CALCULADORA!$C$27>'TIR de Tenencia'!G32,E32,CALCULADORA!$C$33)) -> 50889240475 | L32: 18 | M32: 10 | N32: 2026
A33: =+Flujos!A33 -> 2027-02-18 | B33: =+Flujos!L33 -> 1.83402356e+10 | C33: =+Flujos!M33 -> 746542084.5 | D33: =+Flujos!N33 -> 176094610.9 | E33: =+Flujos!O33 -> 922636695.4 | G33: 2026-10-18 | H33: =IF(G33<CALCULADORA!$C$23,0,IF(CALCULADORA!$C$27>'TIR de Tenencia'!G33,E33,CALCULADORA!$C$33)) -> 50889240475 | L33: 18 | M33: 11 | N33: 2026
A34: =+Flujos!A34 -> 2027-03-18 | B34: =+Flujos!L34 -> 1.76215194e+10 | C34: =+Flujos!M34 -> 718716201.7 | D34: =+Flujos!N34 -> 169207013.6 | E34: =+Flujos!O34 -> 887923215.4 | G34: 2026-11-18 | H34: =IF(G34<CALCULADORA!$C$23,0,IF(CALCULADORA!$C$27>'TIR de Tenencia'!G34,E34,CALCULADORA!$C$33)) -> 50889240475 | L34: 18 | M34: 12 | N34: 2026
A35: =+Flujos!A35 -> 2027-04-18 | B35: =+Flujos!L35 -> 1.692975956e+10 | C35: =+Flujos!M35 -> 691759839.2 | D35: =+Flujos!N35 -> 162576137.9 | E35: =+Flujos!O35 -> 854335977.1 | G35: =+DATE(N34,M34,L34) -> 2026-12-18 | H35: =IF(G35<CALCULADORA!$C$23,0,IF(CALCULADORA!$C$27>'TIR de Tenencia'!G35,E35,CALCULADORA!$C$33)) -> 50889240475 | L35: 18 | M35: 1 | N35: 2027
A36: =+Flujos!A36 -> 2027-05-18 | B36: =+Flujos!L36 -> 1.626423467e+10 | C36: =+Flujos!M36 -> 665524888.5 | D36: =+Flujos!N36 -> 156193961.7 | E36: =+Flujos!O36 -> 821718850.1 | G36: 2027-01-18 | H36: =IF(G36<CALCULADORA!$C$23,0,IF(CALCULADORA!$C$27>'TIR de Tenencia'!G36,E36,CALCULADORA!$C$33)) -> 50889240475 | I36: =+IF(IF(H36=H35," ",G36)=CALCULADORA!C27,'TIR de Tenencia'!G36,CALCULADORA!C27) -> 2025-02-01 | L36: 18 | M36: 2 | N36: 2027
A37: =+Flujos!A37 -> 2027-06-18 | B37: =+Flujos!L37 -> 1.562422702e+10 | C37: =+Flujos!M37 -> 640007646.8 | D37: =+Flujos!N37 -> 150053829 | E37: =+Flujos!O37 -> 790061475.8 | G37: 2027-02-18 | H37: =IF(G37<CALCULADORA!$C$23,0,IF(CALCULADORA!$C$27>'TIR de Tenencia'!G37,E37,CALCULADORA!$C$33)) -> 50889240475 | L37: 18 | M37: 3 | N37: 2027
A38: =+Flujos!A38 -> 2027-07-18 | B38: =+Flujos!L38 -> 1.500932685e+10 | C38: =+Flujos!M38 -> 614900171.9 | D38: =+Flujos!N38 -> 144149118.5 | E38: =+Flujos!O38 -> 759049290.4 | G38: 2027-03-18 | H38: =IF(G38<CALCULADORA!$C$23,0,IF(CALCULADORA!$C$27>'TIR de Tenencia'!G38,E38,CALCULADORA!$C$33)) -> 50889240475 | L38: 18 | M38: 4 | N38: 2027
A39: =+Flujos!A39 -> 2027-08-18 | B39: =+Flujos!L39 -> 1.441772106e+10 | C39: =+Flujos!M39 -> 591605791.8 | D39: =+Flujos!N39 -> 138476049.5 | E39: =+Flujos!O39 -> 730081841.3 | G39: 2027-04-18 | H39: =IF(G39<CALCULADORA!$C$23,0,IF(CALCULADORA!$C$27>'TIR de Tenencia'!G39,E39,CALCULADORA!$C$33)) -> 50889240475 | L39: 18 | M39: 5 | N39: 2027
A40: =+Flujos!A40 -> 2027-09-18 | B40: =+Flujos!L40 -> 1.384877895e+10 | C40: =+Flujos!M40 -> 568942107.1 | D40: =+Flujos!N40 -> 133017894.5 | E40: =+Flujos!O40 -> 701960001.5 | G40: 2027-05-18 | H40: =IF(G40<CALCULADORA!$C$23,0,IF(CALCULADORA!$C$27>'TIR de Tenencia'!G40,E40,CALCULADORA!$C$33)) -> 50889240475 | L40: 18 | M40: 6 | N40: 2027
A41: =+Flujos!A41 -> 2027-10-18 | B41: =+Flujos!L41 -> 1.330134343e+10 | C41: =+Flujos!M41 -> 547435519.9 | D41: =+Flujos!N41 -> 127768834.6 | E41: =+Flujos!O41 -> 675204354.5 | G41: 2027-06-18 | H41: =IF(G41<CALCULADORA!$C$23,0,IF(CALCULADORA!$C$27>'TIR de Tenencia'!G41,E41,CALCULADORA!$C$33)) -> 50889240475 | L41: 18 | M41: 7 | N41: 2027
A42: =+Flujos!A42 -> 2027-11-18 | B42: =+Flujos!L42 -> 1.277522998e+10 | C42: =+Flujos!M42 -> 526113451.2 | D42: =+Flujos!N42 -> 122718194.5 | E42: =+Flujos!O42 -> 648831645.7 | G42: 2027-07-18 | H42: =IF(G42<CALCULADORA!$C$23,0,IF(CALCULADORA!$C$27>'TIR de Tenencia'!G42,E42,CALCULADORA!$C$33)) -> 50889240475 | L42: 18 | M42: 8 | N42: 2027
A43: =+Flujos!A43 -> 2027-12-18 | B43: =+Flujos!L43 -> 1.226986159e+10 | C43: =+Flujos!M43 -> 505368388.5 | D43: =+Flujos!N43 -> 117864271.8 | E43: =+Flujos!O43 -> 623232660.3 | G43: 2027-08-18 | H43: =IF(G43<CALCULADORA!$C$23,0,IF(CALCULADORA!$C$27>'TIR de Tenencia'!G43,E43,CALCULADORA!$C$33)) -> 50889240475 | L43: 18 | M43: 9 | N43: 2027
A44: =+Flujos!A44 -> 2028-01-18 | B44: =+Flujos!L44 -> 1.17841546e+10 | C44: =+Flujos!M44 -> 485706986.3 | D44: =+Flujos!N44 -> 113201743 | E44: =+Flujos!O44 -> 598908729.3 | G44: 2027-09-18 | H44: =IF(G44<CALCULADORA!$C$23,0,IF(CALCULADORA!$C$27>'TIR de Tenencia'!G44,E44,CALCULADORA!$C$33)) -> 50889240475 | L44: 18 | M44: 10 | N44: 2027
A45: =+Flujos!A45 -> 2028-02-18 | B45: =+Flujos!L45 -> 1.131711299e+10 | C45: =+Flujos!M45 -> 467041613.7 | D45: =+Flujos!N45 -> 108720610.4 | E45: =+Flujos!O45 -> 575762224.1 | G45: 2027-10-18 | H45: =IF(G45<CALCULADORA!$C$23,0,IF(CALCULADORA!$C$27>'TIR de Tenencia'!G45,E45,CALCULADORA!$C$33)) -> 50889240475 | L45: 18 | M45: 11 | N45: 2027
A46: =+Flujos!A46 -> 2028-03-18 | B46: =+Flujos!L46 -> 1.086790611e+10 | C46: =+Flujos!M46 -> 449206882.9 | D46: =+Flujos!N46 -> 104411684.4 | E46: =+Flujos!O46 -> 553618567.3 | G46: 2027-11-18 | H46: =IF(G46<CALCULADORA!$C$23,0,IF(CALCULADORA!$C$27>'TIR de Tenencia'!G46,E46,CALCULADORA!$C$33)) -> 50889240475 | L46: 18 | M46: 12 | N46: 2027
A47: =+Flujos!A47 -> 2028-04-18 | B47: =+Flujos!L47 -> 1.043641238e+10 | C47: =+Flujos!M47 -> 431493724.4 | D47: =+Flujos!N47 -> 100267301.7 | E47: =+Flujos!O47 -> 531761026.2 | G47: 2027-12-18 | H47: =IF(G47<CALCULADORA!$C$23,0,IF(CALCULADORA!$C$27>'TIR de Tenencia'!G47,E47,CALCULADORA!$C$33)) -> 50889240475 | L47: 18 | M47: 1 | N47: 2028
A48: =+Flujos!A48 -> 2028-05-18 | B48: =+Flujos!L48 -> 1.002158518e+10 | C48: =+Flujos!M48 -> 414827199.3 | D48: =+Flujos!N48 -> 96286340.65 | E48: =+Flujos!O48 -> 511113540 | G48: 2028-01-18 | H48: =IF(G48<CALCULADORA!$C$23,0,IF(CALCULADORA!$C$27>'TIR de Tenencia'!G48,E48,CALCULADORA!$C$33)) -> 50889240475 | L48: 18 | M48: 2 | N48: 2028
A49: =+Flujos!A49 -> 2028-06-18 | B49: =+Flujos!L49 -> 9622604359 | C49: =+Flujos!M49 -> 398980825 | D49: =+Flujos!N49 -> 92459144.9 | E49: =+Flujos!O49 -> 491439969.9 | G49: 2028-02-18 | H49: =IF(G49<CALCULADORA!$C$23,0,IF(CALCULADORA!$C$27>'TIR de Tenencia'!G49,E49,CALCULADORA!$C$33)) -> 50889240475 | L49: 18 | M49: 3 | N49: 2028
A50: =+Flujos!A50 -> 2028-07-18 | B50: =+Flujos!L50 -> 9239181096 | C50: =+Flujos!M50 -> 383423262.2 | D50: =+Flujos!N50 -> 88778147.81 | E50: =+Flujos!O50 -> 472201410 | G50: 2028-03-18 | H50: =IF(G50<CALCULADORA!$C$23,0,IF(CALCULADORA!$C$27>'TIR de Tenencia'!G50,E50,CALCULADORA!$C$33)) -> 50889240475 | L50: 18 | M50: 4 | N50: 2028
A51: =+Flujos!A51 -> 2028-08-18 | B51: =+Flujos!L51 -> 8870178047 | C51: =+Flujos!M51 -> 369003049.2 | D51: =+Flujos!N51 -> 85240684.8 | E51: =+Flujos!O51 -> 454243734 | G51: 2028-04-18 | H51: =IF(G51<CALCULADORA!$C$23,0,IF(CALCULADORA!$C$27>'TIR de Tenencia'!G51,E51,CALCULADORA!$C$33)) -> 50889240475 | L51: 18 | M51: 5 | N51: 2028
A52: =+Flujos!A52 -> 2028-09-18 | B52: =+Flujos!L52 -> 8515505112 | C52: =+Flujos!M52 -> 354672935.6 | D52: =+Flujos!N52 -> 81836262.66 | E52: =+Flujos!O52 -> 436509198.3 | G52: 2028-05-18 | H52: =IF(G52<CALCULADORA!$C$23,0,IF(CALCULADORA!$C$27>'TIR de Tenencia'!G52,E52,CALCULADORA!$C$33)) -> 50889240475 | L52: 18 | M52: 6 | N52: 2028
A53: =+Flujos!A53 -> 2028-10-18 | B53: =+Flujos!L53 -> 8174774739 | C53: =+Flujos!M53 -> 340730372.5 | D53: =+Flujos!N53 -> 78564050.16 | E53: =+Flujos!O53 -> 419294422.7 | G53: 2028-06-18 | H53: =IF(G53<CALCULADORA!$C$23,0,IF(CALCULADORA!$C$27>'TIR de Tenencia'!G53,E53,CALCULADORA!$C$33)) -> 50889240475 | L53: 18 | M53: 7 | N53: 2028
A54: =+Flujos!A54 -> 2028-11-18 | B54: =+Flujos!L54 -> 7847868443 | C54: =+Flujos!M54 -> 326906296.2 | D54: =+Flujos!N54 -> 75420471.74 | E54: =+Flujos!O54 -> 402326767.9 | G54: 2028-07-18 | H54: =IF(G54<CALCULADORA!$C$23,0,IF(CALCULADORA!$C$27>'TIR de Tenencia'!G54,E54,CALCULADORA!$C$33)) -> 50889240475 | L54: 18 | M54: 8 | N54: 2028
A55: =+Flujos!A55 -> 2028-12-18 | B55: =+Flujos!L55 -> 7533374873 | C55: =+Flujos!M55 -> 314493570.4 | D55: =+Flujos!N55 -> 72404434.25 | E55: =+Flujos!O55 -> 386898004.6 | G55: 2028-08-18 | H55: =IF(G55<CALCULADORA!$C$23,0,IF(CALCULADORA!$C$27>'TIR de Tenencia'!G55,E55,CALCULADORA!$C$33)) -> 50889240475 | L55: 18 | M55: 9 | N55: 2028
A56: =+Flujos!A56 -> 2029-01-18 | B56: =+Flujos!L56 -> 7230956464 | C56: =+Flujos!M56 -> 302418408.5 | D56: =+Flujos!N56 -> 69502916.57 | E56: =+Flujos!O56 -> 371921325.1 | G56: 2028-09-18 | H56: =IF(G56<CALCULADORA!$C$23,0,IF(CALCULADORA!$C$27>'TIR de Tenencia'!G56,E56,CALCULADORA!$C$33)) -> 50889240475 | L56: 18 | M56: 10 | N56: 2028
A57: =+Flujos!A57 -> 2029-02-18 | B57: =+Flujos!L57 -> 6940416974 | C57: =+Flujos!M57 -> 290539490.4 | D57: =+Flujos!N57 -> 66712804.34 | E57: =+Flujos!O57 -> 357252294.7 | G57: 2028-10-18 | H57: =IF(G57<CALCULADORA!$C$23,0,IF(CALCULADORA!$C$27>'TIR de Tenencia'!G57,E57,CALCULADORA!$C$33)) -> 50889240475 | L57: 18 | M57: 11 | N57: 2028
A58: =+Flujos!A58 -> 2029-03-18 | B58: =+Flujos!L58 -> 6660901075 | C58: =+Flujos!M58 -> 279515898.8 | D58: =+Flujos!N58 -> 64032287 | E58: =+Flujos!O58 -> 343548185.8 | G58: 2028-11-18 | H58: =IF(G58<CALCULADORA!$C$23,0,IF(CALCULADORA!$C$27>'TIR de Tenencia'!G58,E58,CALCULADORA!$C$33)) -> 50889240475 | L58: 18 | M58: 12 | N58: 2028
A59: =+Flujos!A59 -> 2029-04-18 | B59: =+Flujos!L59 -> 6392142172 | C59: =+Flujos!M59 -> 268758902.5 | D59: =+Flujos!N59 -> 61453473.32 | E59: =+Flujos!O59 -> 330212375.8 | G59: 2028-12-18 | H59: =IF(G59<CALCULADORA!$C$23,0,IF(CALCULADORA!$C$27>'TIR de Tenencia'!G59,E59,CALCULADORA!$C$33)) -> 50889240475 | L59: 18 | M59: 1 | N59: 2029
A60: =+Flujos!A60 -> 2029-05-18 | B60: =+Flujos!L60 -> 6133759504 | C60: =+Flujos!M60 -> 258382668.5 | D60: =+Flujos!N60 -> 58973903.68 | E60: =+Flujos!O60 -> 317356572.1 | G60: 2029-01-18 | H60: =IF(G60<CALCULADORA!$C$23,0,IF(CALCULADORA!$C$27>'TIR de Tenencia'!G60,E60,CALCULADORA!$C$33)) -> 50889240475 | L60: 18 | M60: 2 | N60: 2029
A61: =+Flujos!A61 -> 2029-06-18 | B61: =+Flujos!L61 -> 5885398226 | C61: =+Flujos!M61 -> 248361277.7 | D61: =+Flujos!N61 -> 56590065.18 | E61: =+Flujos!O61 -> 304951342.9 | G61: 2029-02-18 | H61: =IF(G61<CALCULADORA!$C$23,0,IF(CALCULADORA!$C$27>'TIR de Tenencia'!G61,E61,CALCULADORA!$C$33)) -> 50889240475 | L61: 18 | M61: 3 | N61: 2029
A62: =+Flujos!A62 -> 2029-07-18 | B62: =+Flujos!L62 -> 5646673874 | C62: =+Flujos!M62 -> 238724351.8 | D62: =+Flujos!N62 -> 54298684.03 | E62: =+Flujos!O62 -> 293023035.9 | G62: 2029-03-18 | H62: =IF(G62<CALCULADORA!$C$23,0,IF(CALCULADORA!$C$27>'TIR de Tenencia'!G62,E62,CALCULADORA!$C$33)) -> 50889240475 | L62: 18 | M62: 4 | N62: 2029
A63: =+Flujos!A63 -> 2029-08-18 | B63: =+Flujos!L63 -> 5417257524 | C63: =+Flujos!M63 -> 229416350.3 | D63: =+Flujos!N63 -> 52096213.16 | E63: =+Flujos!O63 -> 281512563.4 | G63: 2029-04-18 | H63: =IF(G63<CALCULADORA!$C$23,0,IF(CALCULADORA!$C$27>'TIR de Tenencia'!G63,E63,CALCULADORA!$C$33)) -> 50889240475 | L63: 18 | M63: 5 | N63: 2029
A64: =+Flujos!A64 -> 2029-09-18 | B64: =+Flujos!L64 -> 5196649309 | C64: =+Flujos!M64 -> 220608214.9 | D64: =+Flujos!N64 -> 49979617.92 | E64: =+Flujos!O64 -> 270587832.8 | G64: 2029-05-18 | H64: =IF(G64<CALCULADORA!$C$23,0,IF(CALCULADORA!$C$27>'TIR de Tenencia'!G64,E64,CALCULADORA!$C$33)) -> 50889240475 | L64: 18 | M64: 6 | N64: 2029
A65: =+Flujos!A65 -> 2029-10-18 | B65: =+Flujos!L65 -> 4984557333 | C65: =+Flujos!M65 -> 212091976.6 | D65: =+Flujos!N65 -> 47944286.53 | E65: =+Flujos!O65 -> 260036263.2 | G65: 2029-06-18 | H65: =IF(G65<CALCULADORA!$C$23,0,IF(CALCULADORA!$C$27>'TIR de Tenencia'!G65,E65,CALCULADORA!$C$33)) -> 50889240475 | L65: 18 | M65: 7 | N65: 2029
A66: =+Flujos!A66 -> 2029-11-18 | B66: =+Flujos!L66 -> 4781014919 | C66: =+Flujos!M66 -> 203542414 | D66: =+Flujos!N66 -> 45987525.95 | E66: =+Flujos!O66 -> 249529939.9 | G66: 2029-07-18 | H66: =IF(G66<CALCULADORA!$C$23,0,IF(CALCULADORA!$C$27>'TIR de Tenencia'!G66,E66,CALCULADORA!$C$33)) -> 50889240475 | L66: 18 | M66: 8 | N66: =+IF(M66=1,N65+1,N65) -> 2029
A67: =+Flujos!A67 -> 2029-12-18 | B67: =+Flujos!L67 -> 4585627111 | C67: =+Flujos!M67 -> 195387807.3 | D67: =+Flujos!N67 -> 44109643.64 | E67: =+Flujos!O67 -> 239497450.9 | G67: =+DATE(N66,M66,L66) -> 2029-08-18 | H67: =IF(G67<CALCULADORA!$C$23,0,IF(CALCULADORA!$C$27>'TIR de Tenencia'!G67,E67,CALCULADORA!$C$33)) -> 50889240475 | L67: =+L66 -> 18 | M67: =+IF(M66=12,1,M66+1) -> 9 | N67: 2029
A68: =+Flujos!A68 -> 2030-01-18 | B68: =+Flujos!L68 -> 4397773706 | C68: =+Flujos!M68 -> 187853404.9 | D68: =+Flujos!N68 -> 42306995.73 | E68: =+Flujos!O68 -> 230160400.6 | G68: 2029-09-18 | H68: =IF(G68<CALCULADORA!$C$23,0,IF(CALCULADORA!$C$27>'TIR de Tenencia'!G68,E68,CALCULADORA!$C$33)) -> 50889240475 | I68: =+IF(H68=H67," ",G68) ->  | J68: =+IF(H68=H67," ",H68) ->  | L68: 18 | M68: 10 | N68: 2029
A69: =+Flujos!A69 -> 2030-02-18 | B69: =+Flujos!L69 -> 4217151699 | C69: =+Flujos!M69 -> 180622007.8 | D69: =+Flujos!N69 -> 40573860.21 | E69: =+Flujos!O69 -> 221195868 | G69: 2029-10-18 | H69: =IF(G69<CALCULADORA!$C$23,0,IF(CALCULADORA!$C$27>'TIR de Tenencia'!G69,E69,CALCULADORA!$C$33)) -> 50889240475 | L69: 18 | M69: 11 | N69: 2029
A70: =+Flujos!A70 -> 2030-03-18 | B70: =+Flujos!L70 -> 4043495110 | C70: =+Flujos!M70 -> 173656588.9 | D70: =+Flujos!N70 -> 38907441.57 | E70: =+Flujos!O70 -> 212564030.5 | G70: 2029-11-18 | H70: =IF(G70<CALCULADORA!$C$23,0,IF(CALCULADORA!$C$27>'TIR de Tenencia'!G70,E70,CALCULADORA!$C$33)) -> 50889240475 | L70: 18 | M70: 12 | N70: 2029
A71: =+Flujos!A71 -> 2030-04-18 | B71: =+Flujos!L71 -> 3876499700 | C71: =+Flujos!M71 -> 166995409.5 | D71: =+Flujos!N71 -> 37305285.88 | E71: =+Flujos!O71 -> 204300695.4 | G71: 2029-12-18 | H71: =IF(G71<CALCULADORA!$C$23,0,IF(CALCULADORA!$C$27>'TIR de Tenencia'!G71,E71,CALCULADORA!$C$33)) -> 50889240475 | L71: 18 | M71: 1 | N71: 2030
A72: =+Flujos!A72 -> 2030-05-18 | B72: =+Flujos!L72 -> 3715988357 | C72: =+Flujos!M72 -> 160511343.2 | D72: =+Flujos!N72 -> 35764586.23 | E72: =+Flujos!O72 -> 196275929.4 | G72: 2030-01-18 | H72: =IF(G72<CALCULADORA!$C$23,0,IF(CALCULADORA!$C$27>'TIR de Tenencia'!G72,E72,CALCULADORA!$C$33)) -> 50889240475 | L72: 18 | M72: 2 | N72: 2030
A73: =+Flujos!A73 -> 2030-06-18 | B73: =+Flujos!L73 -> 3561661777 | C73: =+Flujos!M73 -> 154326579.4 | D73: =+Flujos!N73 -> 34283708.58 | E73: =+Flujos!O73 -> 188610288 | G73: 2030-02-18 | H73: =IF(G73<CALCULADORA!$C$23,0,IF(CALCULADORA!$C$27>'TIR de Tenencia'!G73,E73,CALCULADORA!$C$33)) -> 50889240475 | L73: 18 | M73: 3 | N73: 2030
A74: =+Flujos!A74 -> 2030-07-18 | B74: =+Flujos!L74 -> 3413595867 | C74: =+Flujos!M74 -> 148065910.1 | D74: =+Flujos!N74 -> 32859891.56 | E74: =+Flujos!O74 -> 180925801.6 | G74: 2030-03-18 | H74: =IF(G74<CALCULADORA!$C$23,0,IF(CALCULADORA!$C$27>'TIR de Tenencia'!G74,E74,CALCULADORA!$C$33)) -> 50889240475 | L74: 18 | M74: 4 | N74: 2030
A75: =+Flujos!A75 -> 2030-08-18 | B75: =+Flujos!L75 -> 3271358644 | C75: =+Flujos!M75 -> 142237223.8 | D75: =+Flujos!N75 -> 31493835.47 | E75: =+Flujos!O75 -> 173731059.3 | G75: 2030-04-18 | H75: =IF(G75<CALCULADORA!$C$23,0,IF(CALCULADORA!$C$27>'TIR de Tenencia'!G75,E75,CALCULADORA!$C$33)) -> 50889240475 | L75: 18 | M75: 5 | N75: 2030
A76: =+Flujos!A76 -> 2030-09-18 | B76: =+Flujos!L76 -> 3123287797 | C76: =+Flujos!M76 -> 148070847 | D76: =+Flujos!N76 -> 30181554.85 | E76: =+Flujos!O76 -> 178252401.9 | G76: 2030-05-18 | H76: =IF(G76<CALCULADORA!$C$23,0,IF(CALCULADORA!$C$27>'TIR de Tenencia'!G76,E76,CALCULADORA!$C$33)) -> 50889240475 | L76: 18 | M76: 6 | N76: 2030
A77: =+Flujos!A77 -> 2030-10-18 | B77: =+Flujos!L77 -> 2960212942 | C77: =+Flujos!M77 -> 163074854.3 | D77: =+Flujos!N77 -> 28815453.21 | E77: =+Flujos!O77 -> 191890307.5 | G77: 2030-06-18 | H77: =IF(G77<CALCULADORA!$C$23,0,IF(CALCULADORA!$C$27>'TIR de Tenencia'!G77,E77,CALCULADORA!$C$33)) -> 50889240475 | L77: 18 | M77: 7 | N77: 2030
A78: =+Flujos!A78 -> 2030-11-18 | B78: =+Flujos!L78 -> 2803303104 | C78: =+Flujos!M78 -> 156909838.4 | D78: =+Flujos!N78 -> 27310924.6 | E78: =+Flujos!O78 -> 184220763 | G78: 2030-07-18 | H78: =IF(G78<CALCULADORA!$C$23,0,IF(CALCULADORA!$C$27>'TIR de Tenencia'!G78,E78,CALCULADORA!$C$33)) -> 50889240475 | L78: 18 | M78: 8 | N78: 2030
A79: =+Flujos!A79 -> 2030-12-18 | B79: =+Flujos!L79 -> 2652273173 | C79: =+Flujos!M79 -> 151029931.3 | D79: =+Flujos!N79 -> 25863274.44 | E79: =+Flujos!O79 -> 176893205.7 | G79: 2030-08-18 | H79: =IF(G79<CALCULADORA!$C$23,0,IF(CALCULADORA!$C$27>'TIR de Tenencia'!G79,E79,CALCULADORA!$C$33)) -> 50889240475 | L79: 18 | M79: 9 | N79: 2030
A80: =+Flujos!A80 -> 2031-01-18 | B80: =+Flujos!L80 -> 2507025644 | C80: =+Flujos!M80 -> 145247528.9 | D80: =+Flujos!N80 -> 24469872.29 | E80: =+Flujos!O80 -> 169717401.2 | G80: 2030-09-18 | H80: =IF(G80<CALCULADORA!$C$23,0,IF(CALCULADORA!$C$27>'TIR de Tenencia'!G80,E80,CALCULADORA!$C$33)) -> 50889240475 | L80: 18 | M80: 10 | N80: 2030
A81: =+Flujos!A81 -> 2031-02-18 | B81: =+Flujos!L81 -> 2367282196 | C81: =+Flujos!M81 -> 139743447.1 | D81: =+Flujos!N81 -> 23129818.59 | E81: =+Flujos!O81 -> 162873265.7 | G81: 2030-10-18 | H81: =IF(G81<CALCULADORA!$C$23,0,IF(CALCULADORA!$C$27>'TIR de Tenencia'!G81,E81,CALCULADORA!$C$33)) -> 50889240475 | L81: 18 | M81: 11 | N81: 2030
A82: =+Flujos!A82 -> 2031-03-18 | B82: =+Flujos!L82 -> 2232687371 | C82: =+Flujos!M82 -> 134594825.7 | D82: =+Flujos!N82 -> 21840545.54 | E82: =+Flujos!O82 -> 156435371.2 | G82: 2030-11-18 | H82: =IF(G82<CALCULADORA!$C$23,0,IF(CALCULADORA!$C$27>'TIR de Tenencia'!G82,E82,CALCULADORA!$C$33)) -> 50889240475 | L82: 18 | M82: 12 | N82: 2030
A83: =+Flujos!A83 -> 2031-04-18 | B83: =+Flujos!L83 -> 2103157238 | C83: =+Flujos!M83 -> 129530132.4 | D83: =+Flujos!N83 -> 20598773.68 | E83: =+Flujos!O83 -> 150128906.1 | G83: 2030-12-18 | H83: =IF(G83<CALCULADORA!$C$23,0,IF(CALCULADORA!$C$27>'TIR de Tenencia'!G83,E83,CALCULADORA!$C$33)) -> 50889240475 | L83: 18 | M83: 1 | N83: 2031
A84: =+Flujos!A84 -> 2031-05-18 | B84: =+Flujos!L84 -> 1978610340 | C84: =+Flujos!M84 -> 124546898.8 | D84: =+Flujos!N84 -> 19403728.68 | E84: =+Flujos!O84 -> 143950627.5 | G84: 2031-01-18 | H84: =IF(G84<CALCULADORA!$C$23,0,IF(CALCULADORA!$C$27>'TIR de Tenencia'!G84,E84,CALCULADORA!$C$33)) -> 50889240475 | L84: 18 | M84: 2 | N84: 2031
A85: =+Flujos!A85 -> 2031-06-18 | B85: =+Flujos!L85 -> 1858694300 | C85: =+Flujos!M85 -> 119916040 | D85: =+Flujos!N85 -> 18254658.99 | E85: =+Flujos!O85 -> 138170699 | G85: 2031-02-18 | H85: =IF(G85<CALCULADORA!$C$23,0,IF(CALCULADORA!$C$27>'TIR de Tenencia'!G85,E85,CALCULADORA!$C$33)) -> 50889240475 | L85: 18 | M85: 3 | N85: 2031
A86: =+Flujos!A86 -> 2031-07-18 | B86: =+Flujos!L86 -> 1764389303 | C86: =+Flujos!M86 -> 94304996.23 | D86: =+Flujos!N86 -> 17148313.61 | E86: =+Flujos!O86 -> 111453309.8 | G86: 2031-03-18 | H86: =IF(G86<CALCULADORA!$C$23,0,IF(CALCULADORA!$C$27>'TIR de Tenencia'!G86,E86,CALCULADORA!$C$33)) -> 50889240475 | L86: 18 | M86: 4 | N86: 2031
A87: =+Flujos!A87 -> 2031-08-18 | B87: =+Flujos!L87 -> 1653695486 | C87: =+Flujos!M87 -> 110693817.9 | D87: =+Flujos!N87 -> 16278255.71 | E87: =+Flujos!O87 -> 126972073.6 | G87: 2031-04-18 | H87: =IF(G87<CALCULADORA!$C$23,0,IF(CALCULADORA!$C$27>'TIR de Tenencia'!G87,E87,CALCULADORA!$C$33)) -> 50889240475 | L87: 18 | M87: 5 | N87: 2031
A88: =+Flujos!A88 -> 2031-09-18 | B88: =+Flujos!L88 -> 1547217206 | C88: =+Flujos!M88 -> 106478280 | D88: =+Flujos!N88 -> 15256994.55 | E88: =+Flujos!O88 -> 121735274.5 | G88: 2031-05-18 | H88: =IF(G88<CALCULADORA!$C$23,0,IF(CALCULADORA!$C$27>'TIR de Tenencia'!G88,E88,CALCULADORA!$C$33)) -> 50889240475 | L88: 18 | M88: 6 | N88: 2031
A89: =+Flujos!A89 -> 2031-10-18 | B89: =+Flujos!L89 -> 1444809441 | C89: =+Flujos!M89 -> 102407764.9 | D89: =+Flujos!N89 -> 14274625.94 | E89: =+Flujos!O89 -> 116682390.9 | G89: 2031-06-18 | H89: =IF(G89<CALCULADORA!$C$23,0,IF(CALCULADORA!$C$27>'TIR de Tenencia'!G89,E89,CALCULADORA!$C$33)) -> 50889240475 | L89: 18 | M89: 7 | N89: 2031
A90: =+Flujos!A90 -> 2031-11-18 | B90: =+Flujos!L90 -> 1346291992 | C90: =+Flujos!M90 -> 98517448.57 | D90: =+Flujos!N90 -> 13329811.9 | E90: =+Flujos!O90 -> 111847260.5 | G90: 2031-07-18 | H90: =IF(G90<CALCULADORA!$C$23,0,IF(CALCULADORA!$C$27>'TIR de Tenencia'!G90,E90,CALCULADORA!$C$33)) -> 50889240475 | L90: 18 | M90: 8 | N90: 2031
A91: =+Flujos!A91 -> 2031-12-18 | B91: =+Flujos!L91 -> 1251500706 | C91: =+Flujos!M91 -> 94791285.78 | D91: =+Flujos!N91 -> 12420889.92 | E91: =+Flujos!O91 -> 107212175.7 | G91: 2031-08-18 | H91: =IF(G91<CALCULADORA!$C$23,0,IF(CALCULADORA!$C$27>'TIR de Tenencia'!G91,E91,CALCULADORA!$C$33)) -> 50889240475 | L91: 18 | M91: 9 | N91: 2031
A92: =+Flujos!A92 -> 2032-01-18 | B92: =+Flujos!L92 -> 1160526917 | C92: =+Flujos!M92 -> 90973789.41 | D92: =+Flujos!N92 -> 11546345.52 | E92: =+Flujos!O92 -> 102520134.9 | G92: 2031-09-18 | H92: =IF(G92<CALCULADORA!$C$23,0,IF(CALCULADORA!$C$27>'TIR de Tenencia'!G92,E92,CALCULADORA!$C$33)) -> 50889240475 | L92: 18 | M92: 10 | N92: 2031
A93: =+Flujos!A93 -> 2032-02-18 | B93: =+Flujos!L93 -> -1.59740448e-05 | C93: =+Flujos!M93 -> 1160526917 | D93: =+Flujos!N93 -> 10707021.33 | E93: =+Flujos!O93 -> 1171233938 | G93: 2031-10-18 | H93: =IF(G93<CALCULADORA!$C$23,0,IF(CALCULADORA!$C$27>'TIR de Tenencia'!G93,E93,CALCULADORA!$C$33)) -> 50889240475 | L93: 18 | M93: 11 | N93: 2031
A94: =+Flujos!A94 -> 2032-03-18 | B94: =+Flujos!L94 -> -1.59740448e-05 | C94: =+Flujos!M94 -> 0 | D94: =+Flujos!N94 -> -1.473765373e-07 | E94: =+Flujos!O94 -> -1.473765373e-07 | G94: 2031-11-18 | H94: =IF(G94<CALCULADORA!$C$23,0,IF(CALCULADORA!$C$27>'TIR de Tenencia'!G94,E94,CALCULADORA!$C$33)) -> 50889240475 | L94: 18 | M94: 12 | N94: 2031
A95: =+Flujos!A95 -> 2032-04-18 | B95: =+Flujos!L95 -> -1.59740448e-05 | C95: =+Flujos!M95 -> 0 | D95: =+Flujos!N95 -> -1.473765373e-07 | E95: =+Flujos!O95 -> -1.473765373e-07 | G95: 2031-12-18 | H95: =IF(G95<CALCULADORA!$C$23,0,IF(CALCULADORA!$C$27>'TIR de Tenencia'!G95,E95,CALCULADORA!$C$33)) -> 50889240475 | L95: 18 | M95: 1 | N95: 2032
A96: =+Flujos!A96 -> 2032-05-18 | B96: =+Flujos!L96 -> -1.59740448e-05 | C96: =+Flujos!M96 -> 0 | D96: =+Flujos!N96 -> -1.473765373e-07 | E96: =+Flujos!O96 -> -1.473765373e-07 | G96: 2032-01-18 | H96: =IF(G96<CALCULADORA!$C$23,0,IF(CALCULADORA!$C$27>'TIR de Tenencia'!G96,E96,CALCULADORA!$C$33)) -> 50889240475 | L96: 18 | M96: 2 | N96: 2032
A97: =+Flujos!A97 -> 2032-06-18 | B97: =+Flujos!L97 -> -1.59740448e-05 | C97: =+Flujos!M97 -> 0 | D97: =+Flujos!N97 -> -1.473765373e-07 | E97: =+Flujos!O97 -> -1.473765373e-07 | G97: 2032-02-18 | H97: =IF(G97<CALCULADORA!$C$23,0,IF(CALCULADORA!$C$27>'TIR de Tenencia'!G97,E97,CALCULADORA!$C$33)) -> 50889240475 | L97: 18 | M97: 3 | N97: 2032
A98: =+Flujos!A98 -> 2032-07-18 | B98: =+Flujos!L98 -> -1.59740448e-05 | C98: =+Flujos!M98 -> 0 | D98: =+Flujos!N98 -> -1.473765373e-07 | E98: =+Flujos!O98 -> -1.473765373e-07 | G98: 2032-03-18 | H98: =IF(G98<CALCULADORA!$C$23,0,IF(CALCULADORA!$C$27>'TIR de Tenencia'!G98,E98,CALCULADORA!$C$33)) -> 50889240475 | L98: 18 | M98: 4 | N98: 2032
A99: =+Flujos!A99 -> 2032-08-18 | B99: =+Flujos!L99 -> -1.59740448e-05 | C99: =+Flujos!M99 -> 0 | D99: =+Flujos!N99 -> -1.473765373e-07 | E99: =+Flujos!O99 -> -1.473765373e-07 | G99: =+DATE(N98,M98,L98) -> 2032-04-18 | H99: =IF(G99<CALCULADORA!$C$23,0,IF(CALCULADORA!$C$27>'TIR de Tenencia'!G99,E99,CALCULADORA!$C$33)) -> 50889240475 | L99: 18 | M99: 5 | N99: 2032
A100: =+Flujos!A100 -> 2032-09-18 | B100: =+Flujos!L100 -> -1.59740448e-05 | C100: =+Flujos!M100 -> 0 | D100: =+Flujos!N100 -> -1.473765373e-07 | E100: =+Flujos!O100 -> -1.473765373e-07 | G100: 2032-05-18 | H100: =IF(G100<CALCULADORA!$C$23,0,IF(CALCULADORA!$C$27>'TIR de Tenencia'!G100,E100,CALCULADORA!$C$33)) -> 50889240475 | L100: 18 | M100: 6 | N100: 2032
A101: =+Flujos!A101 -> 2032-10-18 | B101: =+Flujos!L101 -> -1.59740448e-05 | C101: =+Flujos!M101 -> 0 | D101: =+Flujos!N101 -> -1.473765373e-07 | E101: =+Flujos!O101 -> -1.473765373e-07 | G101: 2032-06-18 | H101: =IF(G101<CALCULADORA!$C$23,0,IF(CALCULADORA!$C$27>'TIR de Tenencia'!G101,E101,CALCULADORA!$C$33)) -> 50889240475 | L101: 18 | M101: 7 | N101: 2032
A102: =+Flujos!A102 -> 2032-11-18 | B102: =+Flujos!L102 -> -1.59740448e-05 | C102: =+Flujos!M102 -> 0 | D102: =+Flujos!N102 -> -1.473765373e-07 | E102: =+Flujos!O102 -> -1.473765373e-07 | G102: 2032-07-18 | H102: =IF(G102<CALCULADORA!$C$23,0,IF(CALCULADORA!$C$27>'TIR de Tenencia'!G102,E102,CALCULADORA!$C$33)) -> 50889240475 | L102: 18 | M102: 8 | N102: 2032
A103: =+Flujos!A103 -> 2032-12-18 | B103: =+Flujos!L103 -> -1.59740448e-05 | C103: =+Flujos!M103 -> 0 | D103: =+Flujos!N103 -> -1.473765373e-07 | E103: =+Flujos!O103 -> -1.473765373e-07 | G103: 2032-08-18 | H103: =IF(G103<CALCULADORA!$C$23,0,IF(CALCULADORA!$C$27>'TIR de Tenencia'!G103,E103,CALCULADORA!$C$33)) -> 50889240475 | L103: 18 | M103: 9 | N103: 2032
A104: =+Flujos!A104 -> 2033-01-18 | B104: =+Flujos!L104 -> -1.59740448e-05 | C104: =+Flujos!M104 -> 0 | D104: =+Flujos!N104 -> -1.473765373e-07 | E104: =+Flujos!O104 -> -1.473765373e-07 | G104: 2032-09-18 | H104: =IF(G104<CALCULADORA!$C$23,0,IF(CALCULADORA!$C$27>'TIR de Tenencia'!G104,E104,CALCULADORA!$C$33)) -> 50889240475 | L104: 18 | M104: 10 | N104: 2032
A105: =+Flujos!A105 -> 2033-02-18 | B105: =+Flujos!L105 -> -1.59740448e-05 | C105: =+Flujos!M105 -> 0 | D105: =+Flujos!N105 -> -1.473765373e-07 | E105: =+Flujos!O105 -> -1.473765373e-07 | G105: 2032-10-18 | H105: =IF(G105<CALCULADORA!$C$23,0,IF(CALCULADORA!$C$27>'TIR de Tenencia'!G105,E105,CALCULADORA!$C$33)) -> 50889240475 | L105: 18 | M105: 11 | N105: 2032
A106: =+Flujos!A106 -> 2033-03-18 | B106: =+Flujos!L106 -> -1.59740448e-05 | C106: =+Flujos!M106 -> 0 | D106: =+Flujos!N106 -> -1.473765373e-07 | E106: =+Flujos!O106 -> -1.473765373e-07 | G106: 2032-11-18 | H106: =IF(G106<CALCULADORA!$C$23,0,IF(CALCULADORA!$C$27>'TIR de Tenencia'!G106,E106,CALCULADORA!$C$33)) -> 50889240475 | L106: 18 | M106: 12 | N106: 2032
A107: =+Flujos!A107 -> 2033-04-18 | B107: =+Flujos!L107 -> -1.59740448e-05 | C107: =+Flujos!M107 -> 0 | D107: =+Flujos!N107 -> -1.473765373e-07 | E107: =+Flujos!O107 -> -1.473765373e-07 | G107: 2032-12-18 | H107: =IF(G107<CALCULADORA!$C$23,0,IF(CALCULADORA!$C$27>'TIR de Tenencia'!G107,E107,CALCULADORA!$C$33)) -> 50889240475 | L107: 18 | M107: 1 | N107: 2033
A108: =+Flujos!A108 -> 2033-05-18 | B108: =+Flujos!L108 -> -1.59740448e-05 | C108: =+Flujos!M108 -> 0 | D108: =+Flujos!N108 -> -1.473765373e-07 | E108: =+Flujos!O108 -> -1.473765373e-07 | G108: 2033-01-18 | H108: =IF(G108<CALCULADORA!$C$23,0,IF(CALCULADORA!$C$27>'TIR de Tenencia'!G108,E108,CALCULADORA!$C$33)) -> 50889240475 | L108: 18 | M108: 2 | N108: 2033
A109: =+Flujos!A109 -> 2033-06-18 | B109: =+Flujos!L109 -> -1.59740448e-05 | C109: =+Flujos!M109 -> 0 | D109: =+Flujos!N109 -> -1.473765373e-07 | E109: =+Flujos!O109 -> -1.473765373e-07 | G109: 2033-02-18 | H109: =IF(G109<CALCULADORA!$C$23,0,IF(CALCULADORA!$C$27>'TIR de Tenencia'!G109,E109,CALCULADORA!$C$33)) -> 50889240475 | L109: 18 | M109: 3 | N109: 2033
A110: =+Flujos!A110 -> 2033-07-18 | B110: =+Flujos!L110 -> -1.59740448e-05 | C110: =+Flujos!M110 -> 0 | D110: =+Flujos!N110 -> -1.473765373e-07 | E110: =+Flujos!O110 -> -1.473765373e-07 | G110: 2033-03-18 | H110: =IF(G110<CALCULADORA!$C$23,0,IF(CALCULADORA!$C$27>'TIR de Tenencia'!G110,E110,CALCULADORA!$C$33)) -> 50889240475 | L110: 18 | M110: 4 | N110: 2033
A111: =+Flujos!A111 -> 2033-08-18 | B111: =+Flujos!L111 -> -1.59740448e-05 | C111: =+Flujos!M111 -> 0 | D111: =+Flujos!N111 -> -1.473765373e-07 | E111: =+Flujos!O111 -> -1.473765373e-07 | G111: 2033-04-18 | H111: =IF(G111<CALCULADORA!$C$23,0,IF(CALCULADORA!$C$27>'TIR de Tenencia'!G111,E111,CALCULADORA!$C$33)) -> 50889240475 | L111: 18 | M111: 5 | N111: =+IF(M111=1,N110+1,N110) -> 2033
A112: =+Flujos!A112 -> 2033-09-18 | B112: =+Flujos!L112 -> -1.59740448e-05 | C112: =+Flujos!M112 -> 0 | D112: =+Flujos!N112 -> -1.473765373e-07 | E112: =+Flujos!O112 -> -1.473765373e-07 | G112: 2033-05-18 | H112: =IF(G112<CALCULADORA!$C$23,0,IF(CALCULADORA!$C$27>'TIR de Tenencia'!G112,E112,CALCULADORA!$C$33)) -> 50889240475 | L112: 18 | M112: 6 | N112: 2033
A113: =+Flujos!A113 -> 2033-10-18 | B113: =+Flujos!L113 -> -1.59740448e-05 | C113: =+Flujos!M113 -> 0 | D113: =+Flujos!N113 -> -1.473765373e-07 | E113: =+Flujos!O113 -> -1.473765373e-07 | G113: 2033-06-18 | H113: =IF(G113<CALCULADORA!$C$23,0,IF(CALCULADORA!$C$27>'TIR de Tenencia'!G113,E113,CALCULADORA!$C$33)) -> 50889240475 | L113: 18 | M113: 7 | N113: 2033
A114: =+Flujos!A114 -> 2033-11-18 | B114: =+Flujos!L114 -> -1.59740448e-05 | C114: =+Flujos!M114 -> 0 | D114: =+Flujos!N114 -> -1.473765373e-07 | E114: =+Flujos!O114 -> -1.473765373e-07 | G114: 2033-07-18 | H114: =IF(G114<CALCULADORA!$C$23,0,IF(CALCULADORA!$C$27>'TIR de Tenencia'!G114,E114,CALCULADORA!$C$33)) -> 50889240475 | L114: 18 | M114: 8 | N114: 2033
A115: =+Flujos!A115 -> 2033-12-18 | B115: =+Flujos!L115 -> -1.59740448e-05 | C115: =+Flujos!M115 -> 0 | D115: =+Flujos!N115 -> -1.473765373e-07 | E115: =+Flujos!O115 -> -1.473765373e-07 | G115: 2033-08-18 | H115: =IF(G115<CALCULADORA!$C$23,0,IF(CALCULADORA!$C$27>'TIR de Tenencia'!G115,E115,CALCULADORA!$C$33)) -> 50889240475 | L115: 18 | M115: 9 | N115: 2033
A116: =+Flujos!A116 -> 2034-01-18 | B116: =+Flujos!L116 -> -1.59740448e-05 | C116: =+Flujos!M116 -> 0 | D116: =+Flujos!N116 -> -1.473765373e-07 | E116: =+Flujos!O116 -> -1.473765373e-07 | G116: 2033-09-18 | H116: =IF(G116<CALCULADORA!$C$23,0,IF(CALCULADORA!$C$27>'TIR de Tenencia'!G116,E116,CALCULADORA!$C$33)) -> 50889240475 | L116: 18 | M116: 10 | N116: 2033
A117: =+Flujos!A117 -> 2034-02-18 | B117: =+Flujos!L117 -> -1.59740448e-05 | C117: =+Flujos!M117 -> 0 | D117: =+Flujos!N117 -> -1.473765373e-07 | E117: =+Flujos!O117 -> -1.473765373e-07 | G117: 2033-10-18 | H117: =IF(G117<CALCULADORA!$C$23,0,IF(CALCULADORA!$C$27>'TIR de Tenencia'!G117,E117,CALCULADORA!$C$33)) -> 50889240475 | L117: 18 | M117: 11 | N117: 2033
A118: =+Flujos!A118 -> 2034-03-18 | B118: =+Flujos!L118 -> -1.59740448e-05 | C118: =+Flujos!M118 -> 0 | D118: =+Flujos!N118 -> -1.473765373e-07 | E118: =+Flujos!O118 -> -1.473765373e-07 | G118: 2033-11-18 | H118: =IF(G118<CALCULADORA!$C$23,0,IF(CALCULADORA!$C$27>'TIR de Tenencia'!G118,E118,CALCULADORA!$C$33)) -> 50889240475 | L118: 18 | M118: 12 | N118: 2033
A119: =+Flujos!A119 -> 2034-04-18 | B119: =+Flujos!L119 -> -1.59740448e-05 | C119: =+Flujos!M119 -> 0 | D119: =+Flujos!N119 -> -1.473765373e-07 | E119: =+Flujos!O119 -> -1.473765373e-07 | G119: 2033-12-18 | H119: =IF(G119<CALCULADORA!$C$23,0,IF(CALCULADORA!$C$27>'TIR de Tenencia'!G119,E119,CALCULADORA!$C$33)) -> 50889240475 | L119: 18 | M119: 1 | N119: 2034
A120: =+Flujos!A120 -> 2034-05-18 | B120: =+Flujos!L120 -> -1.59740448e-05 | C120: =+Flujos!M120 -> 0 | D120: =+Flujos!N120 -> -1.473765373e-07 | E120: =+Flujos!O120 -> -1.473765373e-07 | G120: 2034-01-18 | H120: =IF(G120<CALCULADORA!$C$23,0,IF(CALCULADORA!$C$27>'TIR de Tenencia'!G120,E120,CALCULADORA!$C$33)) -> 50889240475 | L120: 18 | M120: 2 | N120: 2034
A121: =+Flujos!A121 -> 2034-06-18 | B121: =+Flujos!L121 -> -1.59740448e-05 | C121: =+Flujos!M121 -> 0 | D121: =+Flujos!N121 -> -1.473765373e-07 | E121: =+Flujos!O121 -> -1.473765373e-07 | G121: 2034-02-18 | H121: =IF(G121<CALCULADORA!$C$23,0,IF(CALCULADORA!$C$27>'TIR de Tenencia'!G121,E121,CALCULADORA!$C$33)) -> 50889240475 | L121: 18 | M121: 3 | N121: 2034
A122: =+Flujos!A122 -> 2034-07-18 | B122: =+Flujos!L122 -> -1.59740448e-05 | C122: =+Flujos!M122 -> 0 | D122: =+Flujos!N122 -> -1.473765373e-07 | E122: =+Flujos!O122 -> -1.473765373e-07 | G122: 2034-03-18 | H122: =IF(G122<CALCULADORA!$C$23,0,IF(CALCULADORA!$C$27>'TIR de Tenencia'!G122,E122,CALCULADORA!$C$33)) -> 50889240475 | L122: 18 | M122: 4 | N122: 2034
A123: =+Flujos!A123 -> 2034-08-18 | B123: =+Flujos!L123 -> -1.59740448e-05 | C123: =+Flujos!M123 -> 0 | D123: =+Flujos!N123 -> -1.473765373e-07 | E123: =+Flujos!O123 -> -1.473765373e-07 | G123: 2034-04-18 | H123: =IF(G123<CALCULADORA!$C$23,0,IF(CALCULADORA!$C$27>'TIR de Tenencia'!G123,E123,CALCULADORA!$C$33)) -> 50889240475 | L123: 18 | M123: 5 | N123: 2034
A124: =+Flujos!A124 -> 2034-09-18 | B124: =+Flujos!L124 -> -1.59740448e-05 | C124: =+Flujos!M124 -> 0 | D124: =+Flujos!N124 -> -1.473765373e-07 | E124: =+Flujos!O124 -> -1.473765373e-07 | G124: 2034-05-18 | H124: =IF(G124<CALCULADORA!$C$23,0,IF(CALCULADORA!$C$27>'TIR de Tenencia'!G124,E124,CALCULADORA!$C$33)) -> 50889240475 | L124: 18 | M124: 6 | N124: 2034
A125: =+Flujos!A125 -> 2034-10-18 | B125: =+Flujos!L125 -> -1.59740448e-05 | C125: =+Flujos!M125 -> 0 | D125: =+Flujos!N125 -> -1.473765373e-07 | E125: =+Flujos!O125 -> -1.473765373e-07 | G125: 2034-06-18 | H125: =IF(G125<CALCULADORA!$C$23,0,IF(CALCULADORA!$C$27>'TIR de Tenencia'!G125,E125,CALCULADORA!$C$33)) -> 50889240475 | L125: 18 | M125: 7 | N125: 2034
A126: =+Flujos!A126 -> 2034-11-18 | B126: =+Flujos!L126 -> -1.59740448e-05 | C126: =+Flujos!M126 -> 0 | D126: =+Flujos!N126 -> -1.473765373e-07 | E126: =+Flujos!O126 -> -1.473765373e-07 | G126: 2034-07-18 | H126: =IF(G126<CALCULADORA!$C$23,0,IF(CALCULADORA!$C$27>'TIR de Tenencia'!G126,E126,CALCULADORA!$C$33)) -> 50889240475 | L126: 18 | M126: 8 | N126: 2034
A127: =+Flujos!A127 -> 2034-12-18 | B127: =+Flujos!L127 -> -1.59740448e-05 | C127: =+Flujos!M127 -> 0 | D127: =+Flujos!N127 -> -1.473765373e-07 | E127: =+Flujos!O127 -> -1.473765373e-07 | G127: 2034-08-18 | H127: =IF(G127<CALCULADORA!$C$23,0,IF(CALCULADORA!$C$27>'TIR de Tenencia'!G127,E127,CALCULADORA!$C$33)) -> 50889240475 | L127: 18 | M127: 9 | N127: 2034
A128: =+Flujos!A128 -> 2035-01-18 | B128: =+Flujos!L128 -> -1.59740448e-05 | C128: =+Flujos!M128 -> 0 | D128: =+Flujos!N128 -> -1.473765373e-07 | E128: =+Flujos!O128 -> -1.473765373e-07 | G128: 2034-09-18 | H128: =IF(G128<CALCULADORA!$C$23,0,IF(CALCULADORA!$C$27>'TIR de Tenencia'!G128,E128,CALCULADORA!$C$33)) -> 50889240475 | L128: 18 | M128: 10 | N128: 2034
A129: =+Flujos!A129 -> 2035-02-18 | B129: =+Flujos!L129 -> -1.59740448e-05 | C129: =+Flujos!M129 -> 0 | D129: =+Flujos!N129 -> -1.473765373e-07 | E129: =+Flujos!O129 -> -1.473765373e-07 | G129: 2034-10-18 | H129: =IF(G129<CALCULADORA!$C$23,0,IF(CALCULADORA!$C$27>'TIR de Tenencia'!G129,E129,CALCULADORA!$C$33)) -> 50889240475 | L129: 18 | M129: 11 | N129: 2034
A130: =+Flujos!A130 -> 2035-03-18 | B130: =+Flujos!L130 -> -1.59740448e-05 | C130: =+Flujos!M130 -> 0 | D130: =+Flujos!N130 -> -1.473765373e-07 | E130: =+Flujos!O130 -> -1.473765373e-07 | G130: 2034-11-18 | H130: =IF(G130<CALCULADORA!$C$23,0,IF(CALCULADORA!$C$27>'TIR de Tenencia'!G130,E130,CALCULADORA!$C$33)) -> 50889240475 | L130: 18 | M130: 12 | N130: 2034
A131: =+Flujos!A131 -> 2035-04-18 | B131: =+Flujos!L131 -> -1.59740448e-05 | C131: =+Flujos!M131 -> 0 | D131: =+Flujos!N131 -> -1.473765373e-07 | E131: =+Flujos!O131 -> -1.473765373e-07 | G131: =+DATE(N130,M130,L130) -> 2034-12-18 | H131: =IF(G131<CALCULADORA!$C$23,0,IF(CALCULADORA!$C$27>'TIR de Tenencia'!G131,E131,CALCULADORA!$C$33)) -> 50889240475 | L131: =+L130 -> 18 | M131: =+IF(M130=12,1,M130+1) -> 1 | N131: =+IF(M131=1,N130+1,N130) -> 2035
A132: =+Flujos!A132 -> 2035-05-18 | B132: =+Flujos!L132 -> -1.59740448e-05 | C132: =+Flujos!M132 -> 0 | D132: =+Flujos!N132 -> -1.473765373e-07 | E132: =+Flujos!O132 -> -1.473765373e-07 | G132: 2035-01-18 | H132: =IF(G132<CALCULADORA!$C$23,0,IF(CALCULADORA!$C$27>'TIR de Tenencia'!G132,E132,CALCULADORA!$C$33)) -> 50889240475 | I132: =+IF(H132=H131," ",G132) ->  | J132: =+IF(H132=H131," ",H132) ->  | L132: 18 | M132: 2 | N132: 2035
A133: =+Flujos!A133 -> 2035-06-18 | B133: =+Flujos!L133 -> -1.59740448e-05 | C133: =+Flujos!M133 -> 0 | D133: =+Flujos!N133 -> -1.473765373e-07 | E133: =+Flujos!O133 -> -1.473765373e-07 | G133: 2035-02-18 | H133: =IF(G133<CALCULADORA!$C$23,0,IF(CALCULADORA!$C$27>'TIR de Tenencia'!G133,E133,CALCULADORA!$C$33)) -> 50889240475 | L133: 18 | M133: 3 | N133: 2035
A134: =+Flujos!A134 -> 2035-07-18 | B134: =+Flujos!L134 -> -1.59740448e-05 | C134: =+Flujos!M134 -> 0 | D134: =+Flujos!N134 -> -1.473765373e-07 | E134: =+Flujos!O134 -> -1.473765373e-07 | G134: 2035-03-18 | H134: =IF(G134<CALCULADORA!$C$23,0,IF(CALCULADORA!$C$27>'TIR de Tenencia'!G134,E134,CALCULADORA!$C$33)) -> 50889240475 | L134: 18 | M134: 4 | N134: 2035
A135: =+Flujos!A135 -> 2035-08-18 | B135: =+Flujos!L135 -> -1.59740448e-05 | C135: =+Flujos!M135 -> 0 | D135: =+Flujos!N135 -> -1.473765373e-07 | E135: =+Flujos!O135 -> -1.473765373e-07 | G135: 2035-04-18 | H135: =IF(G135<CALCULADORA!$C$23,0,IF(CALCULADORA!$C$27>'TIR de Tenencia'!G135,E135,CALCULADORA!$C$33)) -> 50889240475 | L135: 18 | M135: 5 | N135: 2035
A136: =+Flujos!A136 -> 2035-09-18 | B136: =+Flujos!L136 -> -1.59740448e-05 | C136: =+Flujos!M136 -> 0 | D136: =+Flujos!N136 -> -1.473765373e-07 | E136: =+Flujos!O136 -> -1.473765373e-07 | G136: 2035-05-18 | H136: =IF(G136<CALCULADORA!$C$23,0,IF(CALCULADORA!$C$27>'TIR de Tenencia'!G136,E136,CALCULADORA!$C$33)) -> 50889240475 | L136: 18 | M136: 6 | N136: 2035
A137: =+Flujos!A137 -> 2035-10-18 | B137: =+Flujos!L137 -> -1.59740448e-05 | C137: =+Flujos!M137 -> 0 | D137: =+Flujos!N137 -> -1.473765373e-07 | E137: =+Flujos!O137 -> -1.473765373e-07 | G137: 2035-06-18 | H137: =IF(G137<CALCULADORA!$C$23,0,IF(CALCULADORA!$C$27>'TIR de Tenencia'!G137,E137,CALCULADORA!$C$33)) -> 50889240475 | L137: 18 | M137: 7 | N137: 2035
A138: =+Flujos!A138 -> 2035-11-18 | B138: =+Flujos!L138 -> -1.59740448e-05 | C138: =+Flujos!M138 -> 0 | D138: =+Flujos!N138 -> -1.473765373e-07 | E138: =+Flujos!O138 -> -1.473765373e-07 | G138: 2035-07-18 | H138: =IF(G138<CALCULADORA!$C$23,0,IF(CALCULADORA!$C$27>'TIR de Tenencia'!G138,E138,CALCULADORA!$C$33)) -> 50889240475 | L138: 18 | M138: 8 | N138: 2035
A139: =+Flujos!A139 -> 2035-12-18 | B139: =+Flujos!L139 -> -1.59740448e-05 | C139: =+Flujos!M139 -> 0 | D139: =+Flujos!N139 -> -1.473765373e-07 | E139: =+Flujos!O139 -> -1.473765373e-07 | G139: 2035-08-18 | H139: =IF(G139<CALCULADORA!$C$23,0,IF(CALCULADORA!$C$27>'TIR de Tenencia'!G139,E139,CALCULADORA!$C$33)) -> 50889240475 | L139: 18 | M139: 9 | N139: 2035
A140: =+Flujos!A140 -> 2036-01-18 | B140: =+Flujos!L140 -> -1.59740448e-05 | C140: =+Flujos!M140 -> 0 | D140: =+Flujos!N140 -> -1.473765373e-07 | E140: =+Flujos!O140 -> -1.473765373e-07 | G140: 2035-09-18 | H140: =IF(G140<CALCULADORA!$C$23,0,IF(CALCULADORA!$C$27>'TIR de Tenencia'!G140,E140,CALCULADORA!$C$33)) -> 50889240475 | L140: 18 | M140: 10 | N140: 2035
A141: =+Flujos!A141 -> 2036-02-18 | B141: =+Flujos!L141 -> -1.59740448e-05 | C141: =+Flujos!M141 -> 0 | D141: =+Flujos!N141 -> -1.473765373e-07 | E141: =+Flujos!O141 -> -1.473765373e-07 | G141: 2035-10-18 | H141: =IF(G141<CALCULADORA!$C$23,0,IF(CALCULADORA!$C$27>'TIR de Tenencia'!G141,E141,CALCULADORA!$C$33)) -> 50889240475 | L141: 18 | M141: 11 | N141: 2035
A142: =+Flujos!A142 -> 2036-03-18 | B142: =+Flujos!L142 -> -1.59740448e-05 | C142: =+Flujos!M142 -> 0 | D142: =+Flujos!N142 -> -1.473765373e-07 | E142: =+Flujos!O142 -> -1.473765373e-07 | G142: 2035-11-18 | H142: =IF(G142<CALCULADORA!$C$23,0,IF(CALCULADORA!$C$27>'TIR de Tenencia'!G142,E142,CALCULADORA!$C$33)) -> 50889240475 | L142: 18 | M142: 12 | N142: 2035
A143: =+Flujos!A143 -> 2036-04-18 | B143: =+Flujos!L143 -> -1.59740448e-05 | C143: =+Flujos!M143 -> 0 | D143: =+Flujos!N143 -> -1.473765373e-07 | E143: =+Flujos!O143 -> -1.473765373e-07 | G143: 2035-12-18 | H143: =IF(G143<CALCULADORA!$C$23,0,IF(CALCULADORA!$C$27>'TIR de Tenencia'!G143,E143,CALCULADORA!$C$33)) -> 50889240475 | L143: 18 | M143: 1 | N143: 2036
A144: =+Flujos!A144 -> 2036-05-18 | B144: =+Flujos!L144 -> -1.59740448e-05 | C144: =+Flujos!M144 -> 0 | D144: =+Flujos!N144 -> -1.473765373e-07 | E144: =+Flujos!O144 -> -1.473765373e-07 | G144: 2036-01-18 | H144: =IF(G144<CALCULADORA!$C$23,0,IF(CALCULADORA!$C$27>'TIR de Tenencia'!G144,E144,CALCULADORA!$C$33)) -> 50889240475 | L144: 18 | M144: 2 | N144: 2036
A145: =+Flujos!A145 -> 2036-06-18 | B145: =+Flujos!L145 -> -1.59740448e-05 | C145: =+Flujos!M145 -> 0 | D145: =+Flujos!N145 -> -1.473765373e-07 | E145: =+Flujos!O145 -> -1.473765373e-07 | G145: 2036-02-18 | H145: =IF(G145<CALCULADORA!$C$23,0,IF(CALCULADORA!$C$27>'TIR de Tenencia'!G145,E145,CALCULADORA!$C$33)) -> 50889240475 | L145: 18 | M145: 3 | N145: 2036
A146: =+Flujos!A146 -> 2036-07-18 | B146: =+Flujos!L146 -> -1.59740448e-05 | C146: =+Flujos!M146 -> 0 | D146: =+Flujos!N146 -> -1.473765373e-07 | E146: =+Flujos!O146 -> -1.473765373e-07 | G146: 2036-03-18 | H146: =IF(G146<CALCULADORA!$C$23,0,IF(CALCULADORA!$C$27>'TIR de Tenencia'!G146,E146,CALCULADORA!$C$33)) -> 50889240475 | L146: 18 | M146: 4 | N146: 2036
A147: =+Flujos!A147 -> 2036-08-18 | B147: =+Flujos!L147 -> -1.59740448e-05 | C147: =+Flujos!M147 -> 0 | D147: =+Flujos!N147 -> -1.473765373e-07 | E147: =+Flujos!O147 -> -1.473765373e-07 | G147: 2036-04-18 | H147: =IF(G147<CALCULADORA!$C$23,0,IF(CALCULADORA!$C$27>'TIR de Tenencia'!G147,E147,CALCULADORA!$C$33)) -> 50889240475 | L147: 18 | M147: 5 | N147: 2036
A148: =+Flujos!A148 -> 2036-09-18 | B148: =+Flujos!L148 -> -1.59740448e-05 | C148: =+Flujos!M148 -> 0 | D148: =+Flujos!N148 -> -1.473765373e-07 | E148: =+Flujos!O148 -> -1.473765373e-07 | G148: 2036-05-18 | H148: =IF(G148<CALCULADORA!$C$23,0,IF(CALCULADORA!$C$27>'TIR de Tenencia'!G148,E148,CALCULADORA!$C$33)) -> 50889240475 | L148: 18 | M148: 6 | N148: 2036
A149: =+Flujos!A149 -> 2036-10-18 | B149: =+Flujos!L149 -> -1.59740448e-05 | C149: =+Flujos!M149 -> 0 | D149: =+Flujos!N149 -> -1.473765373e-07 | E149: =+Flujos!O149 -> -1.473765373e-07 | G149: 2036-06-18 | H149: =IF(G149<CALCULADORA!$C$23,0,IF(CALCULADORA!$C$27>'TIR de Tenencia'!G149,E149,CALCULADORA!$C$33)) -> 50889240475 | L149: 18 | M149: 7 | N149: 2036
A150: =+Flujos!A150 -> 2036-11-18 | B150: =+Flujos!L150 -> -1.59740448e-05 | C150: =+Flujos!M150 -> 0 | D150: =+Flujos!N150 -> -1.473765373e-07 | E150: =+Flujos!O150 -> -1.473765373e-07 | G150: 2036-07-18 | H150: =IF(G150<CALCULADORA!$C$23,0,IF(CALCULADORA!$C$27>'TIR de Tenencia'!G150,E150,CALCULADORA!$C$33)) -> 50889240475 | L150: 18 | M150: 8 | N150: 2036
A151: =+Flujos!A151 -> 2036-12-18 | B151: =+Flujos!L151 -> -1.59740448e-05 | C151: =+Flujos!M151 -> 0 | D151: =+Flujos!N151 -> -1.473765373e-07 | E151: =+Flujos!O151 -> -1.473765373e-07 | G151: 2036-08-18 | H151: =IF(G151<CALCULADORA!$C$23,0,IF(CALCULADORA!$C$27>'TIR de Tenencia'!G151,E151,CALCULADORA!$C$33)) -> 50889240475 | L151: 18 | M151: 9 | N151: 2036
A152: =+Flujos!A152 -> 2037-01-18 | B152: =+Flujos!L152 -> -1.59740448e-05 | C152: =+Flujos!M152 -> 0 | D152: =+Flujos!N152 -> -1.473765373e-07 | E152: =+Flujos!O152 -> -1.473765373e-07 | G152: 2036-09-18 | H152: =IF(G152<CALCULADORA!$C$23,0,IF(CALCULADORA!$C$27>'TIR de Tenencia'!G152,E152,CALCULADORA!$C$33)) -> 50889240475 | L152: 18 | M152: 10 | N152: 2036
A153: =+Flujos!A153 -> 2037-02-18 | B153: =+Flujos!L153 -> -1.59740448e-05 | C153: =+Flujos!M153 -> 0 | D153: =+Flujos!N153 -> -1.473765373e-07 | E153: =+Flujos!O153 -> -1.473765373e-07 | G153: 2036-10-18 | H153: =IF(G153<CALCULADORA!$C$23,0,IF(CALCULADORA!$C$27>'TIR de Tenencia'!G153,E153,CALCULADORA!$C$33)) -> 50889240475 | L153: 18 | M153: 11 | N153: 2036
A154: =+Flujos!A154 -> 2037-03-18 | B154: =+Flujos!L154 -> -1.59740448e-05 | C154: =+Flujos!M154 -> 0 | D154: =+Flujos!N154 -> -1.473765373e-07 | E154: =+Flujos!O154 -> -1.473765373e-07 | G154: 2036-11-18 | H154: =IF(G154<CALCULADORA!$C$23,0,IF(CALCULADORA!$C$27>'TIR de Tenencia'!G154,E154,CALCULADORA!$C$33)) -> 50889240475 | L154: 18 | M154: 12 | N154: 2036
A155: =+Flujos!A155 -> 2037-04-18 | B155: =+Flujos!L155 -> -1.59740448e-05 | C155: =+Flujos!M155 -> 0 | D155: =+Flujos!N155 -> -1.473765373e-07 | E155: =+Flujos!O155 -> -1.473765373e-07 | G155: 2036-12-18 | H155: =IF(G155<CALCULADORA!$C$23,0,IF(CALCULADORA!$C$27>'TIR de Tenencia'!G155,E155,CALCULADORA!$C$33)) -> 50889240475 | L155: 18 | M155: 1 | N155: 2037
A156: =+Flujos!A156 -> 2037-05-18 | B156: =+Flujos!L156 -> -1.59740448e-05 | C156: =+Flujos!M156 -> 0 | D156: =+Flujos!N156 -> -1.473765373e-07 | E156: =+Flujos!O156 -> -1.473765373e-07 | G156: 2037-01-18 | H156: =IF(G156<CALCULADORA!$C$23,0,IF(CALCULADORA!$C$27>'TIR de Tenencia'!G156,E156,CALCULADORA!$C$33)) -> 50889240475 | L156: 18 | M156: 2 | N156: 2037
A157: =+Flujos!A157 -> 2037-06-18 | B157: =+Flujos!L157 -> -1.59740448e-05 | C157: =+Flujos!M157 -> 0 | D157: =+Flujos!N157 -> -1.473765373e-07 | E157: =+Flujos!O157 -> -1.473765373e-07 | G157: 2037-02-18 | H157: =IF(G157<CALCULADORA!$C$23,0,IF(CALCULADORA!$C$27>'TIR de Tenencia'!G157,E157,CALCULADORA!$C$33)) -> 50889240475 | L157: 18 | M157: 3 | N157: 2037
A158: =+Flujos!A158 -> 2037-07-18 | B158: =+Flujos!L158 -> -1.59740448e-05 | C158: =+Flujos!M158 -> 0 | D158: =+Flujos!N158 -> -1.473765373e-07 | E158: =+Flujos!O158 -> -1.473765373e-07 | G158: 2037-03-18 | H158: =IF(G158<CALCULADORA!$C$23,0,IF(CALCULADORA!$C$27>'TIR de Tenencia'!G158,E158,CALCULADORA!$C$33)) -> 50889240475 | L158: 18 | M158: 4 | N158: 2037
A159: =+Flujos!A159 -> 2037-08-18 | B159: =+Flujos!L159 -> -1.59740448e-05 | C159: =+Flujos!M159 -> 0 | D159: =+Flujos!N159 -> -1.473765373e-07 | E159: =+Flujos!O159 -> -1.473765373e-07 | G159: 2037-04-18 | H159: =IF(G159<CALCULADORA!$C$23,0,IF(CALCULADORA!$C$27>'TIR de Tenencia'!G159,E159,CALCULADORA!$C$33)) -> 50889240475 | L159: 18 | M159: 5 | N159: 2037
A160: =+Flujos!A160 -> 2037-09-18 | B160: =+Flujos!L160 -> -1.59740448e-05 | C160: =+Flujos!M160 -> 0 | D160: =+Flujos!N160 -> -1.473765373e-07 | E160: =+Flujos!O160 -> -1.473765373e-07 | G160: 2037-05-18 | H160: =IF(G160<CALCULADORA!$C$23,0,IF(CALCULADORA!$C$27>'TIR de Tenencia'!G160,E160,CALCULADORA!$C$33)) -> 50889240475 | L160: 18 | M160: 6 | N160: 2037
A161: =+Flujos!A161 -> 2037-10-18 | B161: =+Flujos!L161 -> -1.59740448e-05 | C161: =+Flujos!M161 -> 0 | D161: =+Flujos!N161 -> -1.473765373e-07 | E161: =+Flujos!O161 -> -1.473765373e-07 | G161: 2037-06-18 | H161: =IF(G161<CALCULADORA!$C$23,0,IF(CALCULADORA!$C$27>'TIR de Tenencia'!G161,E161,CALCULADORA!$C$33)) -> 50889240475 | L161: 18 | M161: 7 | N161: 2037
A162: =+Flujos!A162 -> 2037-11-18 | B162: =+Flujos!L162 -> -1.59740448e-05 | C162: =+Flujos!M162 -> 0 | D162: =+Flujos!N162 -> -1.473765373e-07 | E162: =+Flujos!O162 -> -1.473765373e-07 | G162: 2037-07-18 | H162: =IF(G162<CALCULADORA!$C$23,0,IF(CALCULADORA!$C$27>'TIR de Tenencia'!G162,E162,CALCULADORA!$C$33)) -> 50889240475 | L162: 18 | M162: 8 | N162: 2037
A163: =+Flujos!A163 -> 2037-12-18 | B163: =+Flujos!L163 -> -1.59740448e-05 | C163: =+Flujos!M163 -> 0 | D163: =+Flujos!N163 -> -1.473765373e-07 | E163: =+Flujos!O163 -> -1.473765373e-07 | G163: =+DATE(N162,M162,L162) -> 2037-08-18 | H163: =IF(G163<CALCULADORA!$C$23,0,IF(CALCULADORA!$C$27>'TIR de Tenencia'!G163,E163,CALCULADORA!$C$33)) -> 50889240475 | L163: 18 | M163: 9 | N163: 2037
A164: =+Flujos!A164 -> 2038-01-18 | B164: =+Flujos!L164 -> -1.59740448e-05 | C164: =+Flujos!M164 -> 0 | D164: =+Flujos!N164 -> -1.473765373e-07 | E164: =+Flujos!O164 -> -1.473765373e-07 | G164: 2037-09-18 | H164: =IF(G164<CALCULADORA!$C$23,0,IF(CALCULADORA!$C$27>'TIR de Tenencia'!G164,E164,CALCULADORA!$C$33)) -> 50889240475 | L164: 18 | M164: 10 | N164: 2037
A165: =+Flujos!A165 -> 2038-02-18 | B165: =+Flujos!L165 -> -1.59740448e-05 | C165: =+Flujos!M165 -> 0 | D165: =+Flujos!N165 -> -1.473765373e-07 | E165: =+Flujos!O165 -> -1.473765373e-07 | G165: 2037-10-18 | H165: =IF(G165<CALCULADORA!$C$23,0,IF(CALCULADORA!$C$27>'TIR de Tenencia'!G165,E165,CALCULADORA!$C$33)) -> 50889240475 | L165: 18 | M165: 11 | N165: 2037
A166: =+Flujos!A166 -> 2038-03-18 | B166: =+Flujos!L166 -> -1.59740448e-05 | C166: =+Flujos!M166 -> 0 | D166: =+Flujos!N166 -> -1.473765373e-07 | E166: =+Flujos!O166 -> -1.473765373e-07 | G166: 2037-11-18 | H166: =IF(G166<CALCULADORA!$C$23,0,IF(CALCULADORA!$C$27>'TIR de Tenencia'!G166,E166,CALCULADORA!$C$33)) -> 50889240475 | L166: 18 | M166: 12 | N166: 2037
A167: =+Flujos!A167 -> 2038-04-18 | B167: =+Flujos!L167 -> -1.59740448e-05 | C167: =+Flujos!M167 -> 0 | D167: =+Flujos!N167 -> -1.473765373e-07 | E167: =+Flujos!O167 -> -1.473765373e-07 | G167: 2037-12-18 | H167: =IF(G167<CALCULADORA!$C$23,0,IF(CALCULADORA!$C$27>'TIR de Tenencia'!G167,E167,CALCULADORA!$C$33)) -> 50889240475 | L167: 18 | M167: 1 | N167: 2038
A168: =+Flujos!A168 -> 2038-05-18 | B168: =+Flujos!L168 -> -1.59740448e-05 | C168: =+Flujos!M168 -> 0 | D168: =+Flujos!N168 -> -1.473765373e-07 | E168: =+Flujos!O168 -> -1.473765373e-07 | G168: 2038-01-18 | H168: =IF(G168<CALCULADORA!$C$23,0,IF(CALCULADORA!$C$27>'TIR de Tenencia'!G168,E168,CALCULADORA!$C$33)) -> 50889240475 | L168: 18 | M168: 2 | N168: 2038
A169: =+Flujos!A169 -> 2038-06-18 | B169: =+Flujos!L169 -> -1.59740448e-05 | C169: =+Flujos!M169 -> 0 | D169: =+Flujos!N169 -> -1.473765373e-07 | E169: =+Flujos!O169 -> -1.473765373e-07 | G169: 2038-02-18 | H169: =IF(G169<CALCULADORA!$C$23,0,IF(CALCULADORA!$C$27>'TIR de Tenencia'!G169,E169,CALCULADORA!$C$33)) -> 50889240475 | L169: 18 | M169: 3 | N169: 2038
A170: =+Flujos!A170 -> 2038-07-18 | B170: =+Flujos!L170 -> -1.59740448e-05 | C170: =+Flujos!M170 -> 0 | D170: =+Flujos!N170 -> -1.473765373e-07 | E170: =+Flujos!O170 -> -1.473765373e-07 | G170: 2038-03-18 | H170: =IF(G170<CALCULADORA!$C$23,0,IF(CALCULADORA!$C$27>'TIR de Tenencia'!G170,E170,CALCULADORA!$C$33)) -> 50889240475 | L170: 18 | M170: 4 | N170: 2038
A171: =+Flujos!A171 -> 2038-08-18 | B171: =+Flujos!L171 -> -1.59740448e-05 | C171: =+Flujos!M171 -> 0 | D171: =+Flujos!N171 -> -1.473765373e-07 | E171: =+Flujos!O171 -> -1.473765373e-07 | G171: 2038-04-18 | H171: =IF(G171<CALCULADORA!$C$23,0,IF(CALCULADORA!$C$27>'TIR de Tenencia'!G171,E171,CALCULADORA!$C$33)) -> 50889240475 | L171: 18 | M171: 5 | N171: 2038
A172: =+Flujos!A172 -> 2038-09-18 | B172: =+Flujos!L172 -> -1.59740448e-05 | C172: =+Flujos!M172 -> 0 | D172: =+Flujos!N172 -> -1.473765373e-07 | E172: =+Flujos!O172 -> -1.473765373e-07 | G172: 2038-05-18 | H172: =IF(G172<CALCULADORA!$C$23,0,IF(CALCULADORA!$C$27>'TIR de Tenencia'!G172,E172,CALCULADORA!$C$33)) -> 50889240475 | L172: 18 | M172: 6 | N172: 2038
A173: =+Flujos!A173 -> 2038-10-18 | B173: =+Flujos!L173 -> -1.59740448e-05 | C173: =+Flujos!M173 -> 0 | D173: =+Flujos!N173 -> -1.473765373e-07 | E173: =+Flujos!O173 -> -1.473765373e-07 | G173: 2038-06-18 | H173: =IF(G173<CALCULADORA!$C$23,0,IF(CALCULADORA!$C$27>'TIR de Tenencia'!G173,E173,CALCULADORA!$C$33)) -> 50889240475 | L173: 18 | M173: 7 | N173: 2038
A174: =+Flujos!A174 -> 2038-11-18 | B174: =+Flujos!L174 -> -1.59740448e-05 | C174: =+Flujos!M174 -> 0 | D174: =+Flujos!N174 -> -1.473765373e-07 | E174: =+Flujos!O174 -> -1.473765373e-07 | G174: 2038-07-18 | H174: =IF(G174<CALCULADORA!$C$23,0,IF(CALCULADORA!$C$27>'TIR de Tenencia'!G174,E174,CALCULADORA!$C$33)) -> 50889240475 | L174: 18 | M174: 8 | N174: 2038
A175: =+Flujos!A175 -> 2038-12-18 | B175: =+Flujos!L175 -> -1.59740448e-05 | C175: =+Flujos!M175 -> 0 | D175: =+Flujos!N175 -> -1.473765373e-07 | E175: =+Flujos!O175 -> -1.473765373e-07 | G175: 2038-08-18 | H175: =IF(G175<CALCULADORA!$C$23,0,IF(CALCULADORA!$C$27>'TIR de Tenencia'!G175,E175,CALCULADORA!$C$33)) -> 50889240475 | L175: 18 | M175: 9 | N175: 2038
A176: =+Flujos!A176 -> 2039-01-18 | B176: =+Flujos!L176 -> -1.59740448e-05 | C176: =+Flujos!M176 -> 0 | D176: =+Flujos!N176 -> -1.473765373e-07 | E176: =+Flujos!O176 -> -1.473765373e-07 | G176: 2038-09-18 | H176: =IF(G176<CALCULADORA!$C$23,0,IF(CALCULADORA!$C$27>'TIR de Tenencia'!G176,E176,CALCULADORA!$C$33)) -> 50889240475 | L176: 18 | M176: 10 | N176: 2038
A177: =+Flujos!A177 -> 2039-02-18 | B177: =+Flujos!L177 -> -1.59740448e-05 | C177: =+Flujos!M177 -> 0 | D177: =+Flujos!N177 -> -1.473765373e-07 | E177: =+Flujos!O177 -> -1.473765373e-07 | G177: 2038-10-18 | H177: =IF(G177<CALCULADORA!$C$23,0,IF(CALCULADORA!$C$27>'TIR de Tenencia'!G177,E177,CALCULADORA!$C$33)) -> 50889240475 | L177: 18 | M177: 11 | N177: 2038
A178: =+Flujos!A178 -> 2039-03-18 | B178: =+Flujos!L178 -> -1.59740448e-05 | C178: =+Flujos!M178 -> 0 | D178: =+Flujos!N178 -> -1.473765373e-07 | E178: =+Flujos!O178 -> -1.473765373e-07 | G178: 2038-11-18 | H178: =IF(G178<CALCULADORA!$C$23,0,IF(CALCULADORA!$C$27>'TIR de Tenencia'!G178,E178,CALCULADORA!$C$33)) -> 50889240475 | L178: 18 | M178: 12 | N178: 2038
A179: =+Flujos!A179 -> 2039-04-18 | B179: =+Flujos!L179 -> -1.59740448e-05 | C179: =+Flujos!M179 -> 0 | D179: =+Flujos!N179 -> -1.473765373e-07 | E179: =+Flujos!O179 -> -1.473765373e-07 | G179: 2038-12-18 | H179: =IF(G179<CALCULADORA!$C$23,0,IF(CALCULADORA!$C$27>'TIR de Tenencia'!G179,E179,CALCULADORA!$C$33)) -> 50889240475 | L179: 18 | M179: 1 | N179: 2039
A180: =+Flujos!A180 -> 2039-05-18 | B180: =+Flujos!L180 -> -1.59740448e-05 | C180: =+Flujos!M180 -> 0 | D180: =+Flujos!N180 -> -1.473765373e-07 | E180: =+Flujos!O180 -> -1.473765373e-07 | G180: 2039-01-18 | H180: =IF(G180<CALCULADORA!$C$23,0,IF(CALCULADORA!$C$27>'TIR de Tenencia'!G180,E180,CALCULADORA!$C$33)) -> 50889240475 | L180: 18 | M180: 2 | N180: 2039
A181: =+Flujos!A181 -> 2039-06-18 | B181: =+Flujos!L181 -> -1.59740448e-05 | C181: =+Flujos!M181 -> 0 | D181: =+Flujos!N181 -> -1.473765373e-07 | E181: =+Flujos!O181 -> -1.473765373e-07 | G181: 2039-02-18 | H181: =IF(G181<CALCULADORA!$C$23,0,IF(CALCULADORA!$C$27>'TIR de Tenencia'!G181,E181,CALCULADORA!$C$33)) -> 50889240475 | L181: 18 | M181: 3 | N181: 2039
A182: =+Flujos!A182 -> 2039-07-18 | B182: =+Flujos!L182 -> -1.59740448e-05 | C182: =+Flujos!M182 -> 0 | D182: =+Flujos!N182 -> -1.473765373e-07 | E182: =+Flujos!O182 -> -1.473765373e-07 | G182: 2039-03-18 | H182: =IF(G182<CALCULADORA!$C$23,0,IF(CALCULADORA!$C$27>'TIR de Tenencia'!G182,E182,CALCULADORA!$C$33)) -> 50889240475 | L182: 18 | M182: 4 | N182: 2039
B183: Totales | C183: =SUM(C2:C182) -> 6.171187137e+10 | D183: 1.434126213e+10 | E183: 7.60531335e+10
I184: =+IF(H184=H183," ",H184) ->  | K184: =+MONTH(A184) -> 1 | L184: =+YEAR(A184) -> 1900
K185: 1 | L185: 1900
K186: 1 | L186: 1900
K187: 1 | L187: 1900
K188: 1 | L188: 1900
K189: 1 | L189: 1900
K190: 1 | L190: 1900
K191: 1 | L191: 1900
K192: 1 | L192: 1900
K193: 1 | L193: 1900
K194: 1 | L194: 1900
K195: 1 | L195: 1900
K196: 1 | L196: 1900
K197: 1 | L197: 1900
K198: 1 | L198: 1900
K199: 1 | L199: 1900
K200: 1 | L200: 1900
... 4300 more rows

Sheet Tabla de Amortizacion (hidden)
A1: FECHA | B1: Tabla de Amortización Valoración | E1: Tabla de Amortización Valoración | F1: Tabla de Amortización Valoración | G1: Tabla de Amortización Valoración | H1: Tabla de Amortización Valoración | I1: Tabla de Amortización Valoración | J1: Tabla de Amortización Valoración | K1: Tabla de Amortización Valoración | L1: Tabla de Amortización Valoración | M1: Tabla de Amortización Valoración | N1: Tabla de Amortización Valoración | O1: Tabla de Amortización Valoración | P1: Tabla de Amortización Valoración
B2: =+CALCULADORA!C9 -> TIPS N23 A | E2: =+Características!$B$1 -> TIPS N13 A | F2: =+Características!$C$1 -> TIPS N14 A | G2: =+Características!$D$1 -> TIPS N16 A | H2: =+Características!$E$1 -> TIPS N17 A | I2: =+Características!$F$1 -> TIPS N18 A 2034 | J2: =+Características!$G$1 -> TIPS N19 A 2034 | K2: =+Características!$H$1 -> TIPS N20 A 2034 | L2: =+Características!$I$1 -> TIPS N21 A | M2: =+Características!$J$1 -> TIPS N22 A | N2: =+Características!$K$1 -> TIPS N23 A | O2: =+Características!$L$1 -> TIPS N24 A1 2029 | P2: =+Características!$M$1 -> TIPS N24 A2 2039
A3: =+Flujos!A3 -> 2024-08-18 | B3: =+VLOOKUP(A3,$D$2:$N$182,MATCH($B$2,$D$2:$N$2,0),FALSE) -> 0.02708248 | D3: =+A3 -> 2024-08-18 | E3: 0.02044998 | F3: 0.01368171 | G3: 0.02356776 | H3: 0.03571942 | I3: 0.00605857 | J3: 0.01847045 | K3: 0.0158525 | L3: 0.01952549 | M3: 0.01619246 | N3: 0.02708248 | O3: 0.12284325 | P3: 0
A4: =+Flujos!A4 -> 2024-09-18 | B4: 0.02840141 | D4: =+A4 -> 2024-09-18 | E4: 0.01389231 | F4: 0.01183556 | G4: 0.02133346 | H4: 0.02457022 | I4: 0.0236512 | J4: 0.02392001 | K4: 0.02892144 | L4: 0.02834999 | M4: 0.0239413 | N4: 0.02840141 | O4: 0.19176649 | P4: 0
A5: =+Flujos!A5 -> 2024-10-18 | B5: 0.03572706 | D5: 2024-10-18 | E5: 0.01675198 | F5: 0.01424274 | G5: 0.02897295 | H5: 0.0199412 | I5: 0.02121142 | J5: 0.02116353 | K5: 0.02259371 | L5: 0.02654497 | M5: 0.0317479 | N5: 0.03572706 | O5: 0.24227602 | P5: 0
A6: =+Flujos!A6 -> 2024-11-18 | B6: 0.03643388 | D6: 2024-11-18 | E6: 0.01204601 | F6: 0.01511885 | G6: 0.02223212 | H6: 0.01917548 | I6: 0.02364436 | J6: 0.01844168 | K6: 0.02618229 | L6: 0.02677209 | M6: 0.02672574 | N6: 0.03643388 | O6: 0.13186379 | P6: 0
A7: =+Flujos!A7 -> 2024-12-18 | B7: 0.02940951 | D7: 2024-12-18 | E7: 0.01163129 | F7: 0.01640594 | G7: 0.02047248 | H7: 0.01949236 | I7: 0.02091759 | J7: 0.02002614 | K7: 0.02214692 | L7: 0.02176445 | M7: 0.04114774 | N7: 0.02940951 | O7: 0.15357616 | P7: 0
A8: =+Flujos!A8 -> 2025-01-18 | B8: 0.03872237 | D8: 2025-01-18 | E8: 0.01407613 | F8: 0.01820595 | G8: 0.02060537 | H8: 0.02337156 | I8: 0.02529812 | J8: 0.01920896 | K8: 0.01938706 | L8: 0.01831821 | M8: 0.04541162 | N8: 0.03872237 | O8: 0.14201388 | P8: 0
A9: =+Flujos!A9 -> 2025-02-18 | B9: 0.04393367 | D9: 2025-02-18 | E9: 0.01742161 | F9: 0.02362088 | G9: 0.02115641 | H9: 0.01787675 | I9: 0.01834793 | J9: 0.0156808 | K9: 0.01884397 | L9: 0.01794704 | M9: 0.06420672 | N9: 0.04393367 | O9: 0.01566041 | P9: 0.04911277
A10: =+Flujos!A10 -> 2025-03-18 | B10: 0.02855027 | D10: 2025-03-18 | E10: 0.01186987 | F10: 0.02330254 | G10: 0.01838404 | H10: 0.02257094 | I10: 0.01917264 | J10: 0.02031004 | K10: 0.02129778 | L10: 0.01610036 | M10: 0.05408013 | N10: 0.02855027 | O10: 0 | P10: 0.07015567
A11: =+Flujos!A11 -> 2025-04-18 | B11: 0.02753957 | D11: 2025-04-18 | E11: 0.02125241 | F11: 0.02457678 | G11: 0.02119569 | H11: 0.01776765 | I11: 0.01797415 | J11: 0.01653618 | K11: 0.01328574 | L11: 0.0146862 | M11: 0.06388435 | N11: 0.02753957 | O11: 0 | P11: 0.06500927
A12: =+Flujos!A12 -> 2025-05-18 | B12: 0.02655456 | D12: 2025-05-18 | E12: 0.01996124 | F12: 0.02252216 | G12: 0.02337674 | H12: 0.01561815 | I12: 0.0192707 | J12: 0.01068205 | K12: 0.01759811 | L12: 0.01427731 | M12: 0.05015035 | N12: 0.02655456 | O12: 0 | P12: 0.06024049
A13: =+Flujos!A13 -> 2025-06-18 | B13: 0.02560209 | D13: 2025-06-18 | E13: 0.01495962 | F13: 0.02172866 | G13: 0.01376149 | H13: 0.01843288 | I13: 0.01051969 | J13: 0.0165158 | K13: 0.01624602 | L13: 0.01730595 | M13: 0.04425177 | N13: 0.02560209 | O13: 0 | P13: 0.05582175
A14: =+Flujos!A14 -> 2025-07-18 | B14: 0.02468364 | D14: 2025-07-18 | E14: 0.01775622 | F14: 0.01924675 | G14: 0.01698375 | H14: 0.0167106 | I14: 0.02197584 | J14: 0.01429638 | K14: 0.01670805 | L14: 0.01376916 | M14: 0.02649572 | N14: 0.02468364 | O14: 0 | P14: 0.05172517
A15: =+Flujos!A15 -> 2025-08-18 | B15: 0.02378772 | D15: 2025-08-18 | E15: 0.01861186 | F15: 0.01952513 | G15: 0.022644 | H15: 0.02242677 | I15: 0.01699029 | J15: 0.00923389 | K15: 0.01450048 | L15: 0.01483369 | M15: 0.02521938 | N15: 0.02378772 | O15: 0 | P15: 0.04792599
A16: =+Flujos!A16 -> 2025-09-18 | B16: 0.0229364 | D16: 2025-09-18 | E16: 0.01496187 | F16: 0.02071941 | G16: 0.01870053 | H16: 0.0225063 | I16: 0.01325195 | J16: 0.01499669 | K16: 0.0159464 | L16: 0.01289312 | M16: 0.02398961 | N16: 0.0229364 | O16: 0 | P16: 0.0444064
A17: =+Flujos!A17 -> 2025-10-18 | B17: 0.02210673 | D17: 2025-10-18 | E17: 0.01762456 | F17: 0.02070901 | G17: 0.02424875 | H17: 0.01981603 | I17: 0.01007138 | J17: 0.01357463 | K17: 0.01568914 | L17: 0.01178352 | M17: 0.02281932 | N17: 0.02210673 | O17: 0 | P17: 0.0411439
A18: =+Flujos!A18 -> 2025-11-18 | B18: 0.02130499 | D18: 2025-11-18 | E18: 0.0128802 | F18: 0.01853392 | G18: 0.01717284 | H18: 0.01604535 | I18: 0.02083114 | J18: 0.01483513 | K18: 0.01075758 | L18: 0.01040654 | M18: 0.02170631 | N18: 0.02130499 | O18: 0 | P18: 0.03811759
A19: =+Flujos!A19 -> 2025-12-18 | B19: 0.02052027 | D19: 2025-12-18 | E19: 0.01380986 | F19: 0.01617943 | G19: 0.01614614 | H19: 0.019135 | I19: 0.01314528 | J19: 0.00807425 | K19: 0.01354073 | L19: 0.01326818 | M19: 0.0206468 | N19: 0.02052027 | O19: 0 | P19: 0.03531369
A20: =+Flujos!A20 -> 2026-01-18 | B20: 0.01978202 | D20: 2026-01-18 | E20: 0.01326533 | F20: 0.01960572 | G20: 0.01870624 | H20: 0.01850661 | I20: 0.01464749 | J20: 0.01361384 | K20: 0.01276501 | L20: 0.01401153 | M20: 0.01963874 | N20: 0.01978202 | O20: 0 | P20: 0.03271244
A21: =+Flujos!A21 -> 2026-02-18 | B21: 0.01906001 | D21: 2026-02-18 | E21: 0.01197941 | F21: 0.017751 | G21: 0.0282862 | H21: 0.01447718 | I21: 0.01006517 | J21: 0.01019619 | K21: 0.01161447 | L21: 0.01373559 | M21: 0.01867999 | N21: 0.01906001 | O21: 0 | P21: 0.03030067
A22: =+Flujos!A22 -> 2026-03-18 | B22: 0.01837225 | D22: 2026-03-18 | E22: 0.01272617 | F22: 0.0201187 | G22: 0.01329859 | H22: 0.01654485 | I22: 0.01054455 | J22: 0.01032425 | K22: 0.01331859 | L22: 0.01440303 | M22: 0.0177691 | N22: 0.01837225 | O22: 0 | P22: 0.02806203
A23: =+Flujos!A23 -> 2026-04-18 | B23: 0.01770208 | D23: 2026-04-18 | E23: 0.01530562 | F23: 0.01828355 | G23: 0.01814356 | H23: 0.01661799 | I23: 0.00992201 | J23: 0.01241966 | K23: 0.00949922 | L23: 0.01222623 | M23: 0.01690252 | N23: 0.01770208 | O23: 0 | P23: 0.02598469
A24: =+Flujos!A24 -> 2026-05-18 | B24: 0.01704804 | D24: 2026-05-18 | E24: 0.01334941 | F24: 0.01320268 | G24: 0.01595792 | H24: 0.0193822 | I24: 0.00999066 | J24: 0.00874107 | K24: 0.01038323 | L24: 0.01260328 | M24: 0.01608044 | N24: 0.01704804 | O24: 0 | P24: 0.02406132
A25: =+Flujos!A25 -> 2026-06-18 | B25: 0.0164219 | D25: 2026-06-18 | E25: 0.01343126 | F25: 0.01729486 | G25: 0.01681101 | H25: 0.02416772 | I25: 0.00939988 | J25: 0.00834591 | K25: 0.01440096 | L25: 0.01062882 | M25: 0.01529651 | N25: 0.0164219 | O25: 0 | P25: 0.02228024
A26: =+Flujos!A26 -> 2026-07-18 | B26: 0.01580259 | D26: 2026-07-18 | E26: 0.01613141 | F26: 0.01540016 | G26: 0.01544912 | H26: 0.02190972 | I26: 0.00657291 | J26: 0.01046561 | K26: 0.0111731 | L26: 0.00970835 | M26: 0.01454947 | N26: 0.01580259 | O26: 0 | P26: 0.02063007
A27: =+Flujos!A27 -> 2026-08-18 | B27: 0.01522098 | D27: 2026-08-18 | E27: 0.01431813 | F27: 0.01890395 | G27: 0.01386443 | H27: 0.00938747 | I27: 0.0127433 | J27: 0.00621205 | K27: 0.01300945 | L27: 0.00918628 | M27: 0.01383592 | N27: 0.01522098 | O27: 0 | P27: 0.01910168
A28: =+Flujos!A28 -> 2026-09-18 | B28: 0.01465902 | D28: 2026-09-18 | E28: 0.01628853 | F28: 0.01500383 | G28: 0.01572838 | H28: 0.00224242 | I28: 0.00847706 | J28: 0.00775293 | K28: 0.01152998 | L28: 0.01352611 | M28: 0.01315474 | N28: 0.01465902 | O28: 0 | P28: 0.01768736
A29: =+Flujos!A29 -> 2026-10-18 | B29: 0.01411 | D29: 2026-10-18 | E29: 0.01435779 | F29: 0.02084695 | G29: 0.02086454 | H29: 0.00663784 | I29: 0.00962463 | J29: 0.0071742 | K29: 0.00854143 | L29: 0.01143474 | M29: 0.01250591 | N29: 0.01411 | O29: 0 | P29: 0.01637725
A30: =+Flujos!A30 -> 2026-11-18 | B30: 0.01358334 | D30: 2026-11-18 | E30: 0.01661774 | F30: 0.01219917 | G30: 0.01103635 | H30: 0.01070316 | I30: 0.00867892 | J30: 0.00712022 | K30: 0.00922056 | L30: 0.00832034 | M30: 0.01188874 | N30: 0.01358334 | O30: 0 | P30: 0.01516323
A31: =+Flujos!A31 -> 2026-12-18 | B31: 0.01307399 | D31: 2026-12-18 | E31: 0.01476718 | F31: 0.0160444 | G31: 0.00328742 | H31: 0.01145043 | I31: 0.00606589 | J31: 0.00986897 | K31: 0.01068278 | L31: 0.01294797 | M31: 0.01130135 | N31: 0.01307399 | O31: 0 | P31: 0.01403936
A32: =+Flujos!A32 -> 2027-01-18 | B32: 0.01257857 | D32: 2027-01-18 | E32: 0.01467772 | F32: 0.0126768 | G32: 0.00335904 | H32: 0.00932192 | I32: 0.0056227 | J32: 0.00844365 | K32: 0.00840043 | L32: 0.0092125 | M32: 0.01074214 | N32: 0.01257857 | O32: 0 | P32: 0.01299764
A33: =+Flujos!A33 -> 2027-02-18 | B33: 0.01209722 | D33: 2027-02-18 | E33: 0.0121292 | F33: 0.01359303 | G33: 0.0047029 | H33: 0.01425703 | I33: 0.00739365 | J33: 0.01285656 | K33: 0.00942713 | L33: 0.01153683 | M33: 0.01020943 | N33: 0.01209722 | O33: 0 | P33: 0.01203198
A34: =+Flujos!A34 -> 2027-03-18 | B34: 0.01164632 | D34: 2027-03-18 | E34: 0.01172219 | F34: 0.01628187 | G34: 0.00592936 | H34: 0.01300706 | I34: 0.01001431 | J34: 0.00928653 | K34: 0.0082664 | L34: 0.01028062 | M34: 0.00970036 | N34: 0.01164632 | O34: 0 | P34: 0.01113703
A35: =+Flujos!A35 -> 2027-04-18 | B35: =+VLOOKUP(A35,$D$2:$N$182,MATCH($B$2,$D$2:$N$2,0),FALSE) -> 0.01120951 | D35: 2027-04-18 | E35: 0.01530554 | F35: 0.01221051 | G35: 0.00934888 | H35: 0.01105333 | I35: 0.0087118 | J35: 0.01317768 | K35: 0.01171722 | L35: 0.0088502 | M35: 0.00921595 | N35: 0.01120951 | O35: 0 | P35: 0.01030949
A36: =+Flujos!A36 -> 2027-05-18 | B36: 0.01078439 | D36: 2027-05-18 | E36: 0.01318137 | F36: 0.0154152 | G36: 0.0094674 | H36: 0.01644809 | I36: 0.00753429 | J36: 0.0086879 | K36: 0.00993075 | L36: 0.01112976 | M36: 0.00874801 | N36: 0.01078439 | O36: 0 | P36: 0.00954291
A37: =+Flujos!A37 -> 2027-06-18 | B37: 0.0103709 | D37: 2027-06-18 | E37: 0.01449017 | F37: 0.014099 | G37: 0.01645422 | H37: 0.01266616 | I37: 0.01076061 | J37: 0.0066977 | K37: 0.01268487 | L37: 0.01043272 | M37: 0.00830595 | N37: 0.0103709 | O37: 0 | P37: 0.00883315
A38: =+Flujos!A38 -> 2027-07-18 | B38: 0.00996405 | D38: 2027-07-18 | E38: 0.01049837 | F38: 0.01640389 | G38: 0.01360503 | H38: 0.01359347 | I38: 0.01157145 | J38: 0.01013146 | K38: 0.01235936 | L38: 0.01092245 | M38: 0.00789004 | N38: 0.00996405 | O38: 0 | P38: 0.00817571
A39: =+Flujos!A39 -> 2027-08-18 | B39: 0.00958658 | D39: 2027-08-18 | E39: 0.01470858 | F39: 0.00988778 | G39: 0.01503896 | H39: 0.01185657 | I39: 0.00497716 | J39: 0.00945651 | K39: 0.01144497 | L39: 0.01285958 | M39: 0.00749549 | N39: 0.00958658 | O39: 0 | P39: 0.00756742
A40: =+Flujos!A40 -> 2027-09-18 | B40: 0.00921933 | D40: 2027-09-18 | E40: 0.01444744 | F40: 0.00087918 | G40: 0.01366977 | H40: 0.01347089 | I40: 0.00412667 | J40: 0.00962191 | K40: 0.01134134 | L40: 0.00949357 | M40: 0.00712811 | N40: 0.00921933 | O40: 0 | P40: 0.00700413
A41: =+Flujos!A41 -> 2027-10-18 | B41: 0.00887083 | D41: 2027-10-18 | E41: 0.01291791 | F41: 0.00348549 | G41: 0.01395939 | H41: 0.01437008 | I41: 0.00606006 | J41: 0.00955363 | K41: 0.01091842 | L41: 0.01123087 | M41: 0.00677803 | N41: 0.00887083 | O41: 0 | P41: 0.00775997
A42: =+Flujos!A42 -> 2027-11-18 | B42: 0.00852532 | D42: 2027-11-18 | E42: 0.01272832 | F42: 0.00474617 | G42: 0.01200633 | H42: 0.01209825 | I42: 0.0072122 | J42: 0.0083651 | K42: 0.01047117 | L42: 0.01027063 | M42: 0.00644578 | N42: 0.00852532 | O42: 0 | P42: 0.00723155
A43: =+Flujos!A43 -> 2027-12-18 | B43: 0.00818916 | D43: 2027-12-18 | E43: 0.00010085 | F43: 0.00903694 | G43: 0.01270412 | H43: 0.01289714 | I43: 0.00720664 | J43: 0.01118173 | K43: 0.0093315 | L43: 0.0071139 | M43: 0.00613005 | N43: 0.00818916 | O43: 0 | P43: 0.00674023
A44: =+Flujos!A44 -> 2028-01-18 | B44: 0.00787056 | D44: 2028-01-18 | E44: 0.00259768 | F44: 0.0052115 | G44: 0.01132464 | H44: 0.01219468 | I44: 0.01030488 | J44: 0.00865166 | K44: 0.01107362 | L44: 0.01101566 | M44: 0.00582986 | N44: 0.00787056 | O44: 0 | P44: 0.00628409
A45: =+Flujos!A45 -> 2028-02-18 | B45: 0.0075681 | D45: 2028-02-18 | E45: 0.00257446 | F45: 0.00984007 | G45: 0.00969269 | H45: 0.01176555 | I45: 0.00688408 | J45: 0.00833531 | K45: 0.0099846 | L45: 0.01002282 | M45: 0.00554375 | N45: 0.0075681 | O45: 0 | P45: 0.00586166
A46: =+Flujos!A46 -> 2028-03-18 | B46: 0.0072791 | D46: 2028-03-18 | E46: 0.00600046 | F46: 0.00958311 | G46: 0.01363761 | H46: 0.01069626 | I46: 0.01101166 | J46: 0.0082364 | K46: 0.01048541 | L46: 0.00935727 | M46: 0.00527251 | N46: 0.0072791 | O46: 0 | P46: 0.00546929
A47: =+Flujos!A47 -> 2028-04-18 | B47: 0.00699207 | D47: 2028-04-18 | E47: 0.00721973 | F47: 0.01028221 | G47: 0.01135293 | H47: 0.01330106 | I47: 0.00756633 | J47: 0.00812943 | K47: 0.0131856 | L47: 0.00923244 | M47: 0.0050125 | N47: 0.00699207 | O47: 0 | P47: 0.00510345
A48: =+Flujos!A48 -> 2028-05-18 | B48: 0.006722 | D48: 2028-05-18 | E48: 0.00767481 | F48: 0.00824404 | G48: 0.01013605 | H48: 0.01010537 | I48: 0.00816048 | J48: 0.00802279 | K48: 0.01072448 | L48: 0.00914418 | M48: 0.00476578 | N48: 0.006722 | O48: 0 | P48: 0.00476
A49: =+Flujos!A49 -> 2028-06-18 | B49: 0.00646522 | D49: 2028-06-18 | E49: 0.011827 | F49: 0.00970398 | G49: 0.01023478 | H49: 0.00953173 | I49: 0.01055946 | J49: 0.00792767 | K49: 0.00932099 | L49: 0.00907066 | M49: 0.00452993 | N49: 0.00646522 | O49: 0 | P49: 0.00444502
A50: =+Flujos!A50 -> 2028-07-18 | B50: 0.00621312 | D50: 2028-07-18 | E50: 0.0112454 | F50: 0.008772 | G50: 0.0082423 | H50: 0.00893678 | I50: 0.00620018 | J50: 0.00783105 | K50: 0.00921087 | L50: 0.00874621 | M50: 0.00430697 | N50: 0.00621312 | O50: 0 | P50: 0.00374897
A51: =+Flujos!A51 -> 2028-08-18 | B51: 0.00597945 | D51: 2028-08-18 | E51: 0.0122264 | F51: 0.01334663 | G51: 0.01079955 | H51: 0.00961686 | I51: 0.00730231 | J51: 0.00772671 | K51: 0.00921131 | L51: 0.00884457 | M51: 0.00409552 | N51: 0.00597945 | O51: 0 | P51: 0.02962328
A52: =+Flujos!A52 -> 2028-09-18 | B52: 0.00574724 | D52: 2028-09-18 | E52: 0.00968244 | F52: 0.00920606 | G52: 0.01187544 | H52: 0.00779207 | I52: 0.00720196 | J52: 0.00762724 | K52: 0.00917503 | L52: 0.00876596 | M52: 0.00389349 | N52: 0.00574724 | O52: 0 | P52: 0
A53: =+Flujos!A53 -> 2028-10-18 | B53: 0.00552131 | D53: 2028-10-18 | E53: 0.01374424 | F53: 0.01075445 | G53: 0.01019234 | H53: 0.01006071 | I53: 0.00712337 | J53: 0.00752823 | K53: 0.00905871 | L53: 0.00866378 | M53: 0.00370123 | N53: 0.00552131 | O53: 0 | P53: 0
A54: =+Flujos!A54 -> 2028-11-18 | B54: 0.0052973 | D54: 2028-11-18 | E54: 0.00903524 | F54: 0.00724663 | G54: 0.01059437 | H54: 0.01081909 | I54: 0.00703367 | J54: 0.00805113 | K54: 0.00887751 | L54: 0.00855681 | M54: 0.0035184 | N54: 0.0052973 | O54: 0 | P54: 0
A55: =+Flujos!A55 -> 2028-12-18 | B55: 0.00509616 | D55: 2028-12-18 | E55: 0.01006501 | F55: 0.00948708 | G55: 0.0111525 | H55: 0.00763213 | I55: 0.00694891 | J55: 0.00953098 | K55: 0.00881609 | L55: 0.0084493 | M55: 0.00334442 | N55: 0.00509616 | O55: 0 | P55: 0
A56: =+Flujos!A56 -> 2029-01-18 | B56: 0.00490049 | D56: 2029-01-18 | E56: 0.00694017 | F56: 0.0084972 | G56: 0.00963262 | H56: 0.00913507 | I56: 0.00686432 | J56: 0.00946073 | K56: 0.00843691 | L56: 0.00839344 | M56: 0.00388546 | N56: 0.00490049 | O56: 0 | P56: 0
A57: =+Flujos!A57 -> 2029-02-18 | B57: 0.004708 | D57: 2029-02-18 | E57: 0.01032482 | F57: 0.0089106 | G57: 0.00611365 | H57: 0.00824169 | I57: 0.00677506 | J57: 0.00930218 | K57: 0.00860508 | L57: 0.00829266 | M57: 0.00374631 | N57: 0.004708 | O57: 0 | P57: 0
A58: =+Flujos!A58 -> 2029-03-18 | B58: 0.00452937 | D58: 2029-03-18 | E58: 0.01014255 | F58: 0.00780819 | G58: 0.00810022 | H58: 0.00595712 | I58: 0.00675259 | J58: 0.00928075 | K58: 0.00851928 | L58: 0.00818772 | M58: 0.00357463 | N58: 0.00452937 | O58: 0 | P58: 0
A59: =+Flujos!A59 -> 2029-04-18 | B59: 0.00435506 | D59: 2029-04-18 | E59: 0.01028269 | F59: 0.00961772 | G59: 0.00639594 | H59: 0.00799775 | I59: 0.00872318 | J59: 0.00917145 | K59: 0.00843086 | L59: 0.00812666 | M59: 0.00340964 | N59: 0.00435506 | O59: 0 | P59: 0
A60: =+Flujos!A60 -> 2029-05-18 | B60: 0.00418692 | D60: 2029-05-18 | E60: 0.01217725 | F60: 0.00795294 | G60: 0.0099169 | H60: 0.00630369 | I60: 0.00865296 | J60: 0.00866673 | K60: 0.00835045 | L60: 0.00805496 | M60: 0.00325069 | N60: 0.00418692 | O60: 0 | P60: 0
A61: =+Flujos!A61 -> 2029-06-18 | B61: 0.00402453 | D61: 2029-06-18 | E61: 0.00910267 | F61: 0.00689769 | G61: 0.00934268 | H61: 0.00676965 | I61: 0.00860685 | J61: 0.00900489 | K61: 0.0082031 | L61: 0.00797088 | M61: 0.00309872 | N61: 0.00402453 | O61: 0 | P61: 0
A62: =+Flujos!A62 -> 2029-07-18 | B62: 0.00386837 | D62: 2029-07-18 | E62: 0.00848117 | F62: 0.00769056 | G62: 0.0055879 | H62: 0.00687964 | I62: 0.0085971 | J62: 0.00886485 | K62: 0.00816124 | L62: 0.00769139 | M62: 0.00276253 | N62: 0.00386837 | O62: 0 | P62: 0
A63: =+Flujos!A63 -> 2029-08-18 | B63: 0.00371754 | D63: 2029-08-18 | E63: 0.00793732 | F63: 0.00873037 | G63: 0.00736599 | H63: 0.00709652 | I63: 0.00843535 | J63: 0.00875655 | K63: 0.00804319 | L63: 0.00783041 | M63: 0.00281749 | N63: 0.00371754 | O63: 0 | P63: 0
A64: =+Flujos!A64 -> 2029-09-18 | B64: 0.00357481 | D64: 2029-09-18 | E64: 0.00813077 | F64: 0.00635374 | G64: 0.00620802 | H64: 0.00499626 | I64: 0.00791036 | J64: 0.00864539 | K64: 0.00798505 | L64: 0.00774526 | M64: 0.00268737 | N64: 0.00357481 | O64: 0 | P64: 0
A65: =+Flujos!A65 -> 2029-10-18 | B65: 0.00343681 | D65: 2029-10-18 | E65: 0.0116814 | F65: 0.00702952 | G65: 0.00603929 | H65: 0.00604351 | I65: 0.00828251 | J65: 0.00854883 | K65: 0.00785516 | L65: 0.00766162 | M65: 0.00256343 | N65: 0.00343681 | O65: 0 | P65: 0
A66: =+Flujos!A66 -> 2029-11-18 | B66: 0.00329827 | D66: 2029-11-18 | E66: 0.00784629 | F66: 0.00685882 | G66: 0.00558452 | H66: 0.00593204 | I66: 0.00821973 | J66: 0.00843531 | K66: 0.00775767 | L66: 0.00758615 | M66: 0.00244566 | N66: 0.00329827 | O66: 0 | P66: 0
A67: =+Flujos!A67 -> 2029-12-18 | B67: =+VLOOKUP(A67,$D$2:$N$182,MATCH($B$2,$D$2:$N$2,0),FALSE) -> 0.00316613 | D67: 2029-12-18 | E67: 0.00750415 | F67: 0.00752729 | G67: 0.00572911 | H67: 0.00511061 | I67: 0.008084 | J67: 0.00831057 | K67: 0.00764098 | L67: 0.00751594 | M67: 0.00233189 | N67: 0.00316613 | O67: 0 | P67: 0
A68: =+Flujos!A68 -> 2030-01-18 | B68: 0.00304404 | D68: =+A68 -> 2030-01-18 | E68: 0.00886363 | F68: 0.00782742 | G68: 0.0058543 | H68: 0.00705012 | I68: 0.00802398 | J68: 0.00818179 | K68: 0.00719163 | L68: 0.00742769 | M68: 0.00222483 | N68: 0.00304404 | O68: 0 | P68: 0
A69: =+Flujos!A69 -> 2030-02-18 | B69: 0.00292686 | D69: 2030-02-18 | E69: 0.00786875 | F69: 0.0057107 | G69: 0.0058232 | H69: 0.00714261 | I69: 0.00789512 | J69: 0.00807008 | K69: 0.0074186 | L69: 0.00733142 | M69: 0.00212188 | N69: 0.00292686 | O69: 0 | P69: 0
A70: =+Flujos!A70 -> 2030-03-18 | B70: 0.00281399 | D70: 2030-03-18 | E70: 0.00717001 | F70: 0.0049743 | G70: 0.00630288 | H70: 0.00630244 | I70: 0.00777833 | J70: 0.00792617 | K70: 0.00733472 | L70: 0.00726549 | M70: 0.00202415 | N70: 0.00281399 | O70: 0 | P70: 0
A71: =+Flujos!A71 -> 2030-04-18 | B71: 0.00270605 | D71: 2030-04-18 | E71: 0.00753296 | F71: 0.00467522 | G71: 0.00466736 | H71: 0.00592662 | I71: 0.00768044 | J71: 0.00775532 | K71: 0.00720676 | L71: 0.00719372 | M71: 0.00193031 | N71: 0.00270605 | O71: 0 | P71: 0
A72: =+Flujos!A72 -> 2030-05-18 | B72: 0.00260098 | D72: 2030-05-18 | E72: 0.00797559 | F72: 0.00608281 | G72: 0.00544469 | H72: 0.00511144 | I72: 0.00757761 | J72: 0.00720059 | K72: 0.00705838 | L72: 0.0070973 | M72: 0.00184057 | N72: 0.00260098 | O72: 0 | P72: 0
A73: =+Flujos!A73 -> 2030-06-18 | B73: 0.00250076 | D73: 2030-06-18 | E73: 0.00507735 | F73: 0.00605835 | G73: 0.00553811 | H73: 0.00541929 | I73: 0.00748103 | J73: 0.00754485 | K73: 0.00697445 | L73: 0.00701727 | M73: 0.00175462 | N73: 0.00250076 | O73: 0 | P73: 0
A74: =+Flujos!A74 -> 2030-07-18 | B74: 0.00239931 | D74: 2030-07-18 | E74: 0.00793204 | F74: 0.0046723 | G74: 0.00572962 | H74: 0.00538604 | I74: 0.00733623 | J74: 0.00745242 | K74: 0.00685172 | L74: 0.006702 | M74: 0.01470547 | N74: 0.00239931 | O74: 0 | P74: 0
A75: =+Flujos!A75 -> 2030-08-18 | B75: 0.00230486 | D75: 2030-08-18 | E75: 0.00654332 | F75: 0.00512363 | G75: 0.00462437 | H75: 0.00624491 | I75: 0.00725438 | J75: 0.00734041 | K75: 0.0067334 | L75: 0.00684713 | M75: 0 | N75: 0.00230486 | O75: 0 | P75: 0
A76: =+Flujos!A76 -> 2030-09-18 | B76: 0.00239939 | D76: 2030-09-18 | E76: 0.00538377 | F76: 0.00499619 | G76: 0.00552078 | H76: 0.00492567 | I76: 0.0066767 | J76: 0.00724302 | K76: 0.00663853 | L76: 0.00677306 | M76: 0 | N76: 0.00239939 | O76: 0 | P76: 0
A77: =+Flujos!A77 -> 2030-10-18 | B77: 0.00264252 | D77: 2030-10-18 | E77: 0.00605675 | F77: 0.00623352 | G77: 0.00538949 | H77: 0.00603166 | I77: 0.00700291 | J77: 0.00716468 | K77: 0.00652647 | L77: 0.00669549 | M77: 0 | N77: 0.00264252 | O77: 0 | P77: 0
A78: =+Flujos!A78 -> 2030-11-18 | B78: 0.00254262 | D78: 2030-11-18 | E78: 0.00674591 | F78: 0.0049786 | G78: 0.00447927 | H78: 0.0047426 | I78: 0.00688794 | J78: 0.00705299 | K78: 0.00642789 | L78: 0.00662193 | M78: 0 | N78: 0.00254262 | O78: 0 | P78: 0
A79: =+Flujos!A79 -> 2030-12-18 | B79: 0.00244734 | D79: 2030-12-18 | E79: 0.00578832 | F79: 0.00372572 | G79: 0.00543398 | H79: 0.00526167 | I79: 0.00679493 | J79: 0.00693918 | K79: 0.00631728 | L79: 0.00656437 | M79: 0 | N79: 0.00244734 | O79: 0 | P79: 0
A80: =+Flujos!A80 -> 2031-01-18 | B80: 0.00235364 | D80: 2031-01-18 | E80: 0.00573167 | F80: 0.00469667 | G80: 0.00475194 | H80: 0.0061127 | I80: 0.00669206 | J80: 0.0068309 | K80: 0.00587642 | L80: 0.00648495 | M80: 0 | N80: 0.00235364 | O80: 0 | P80: 0
A81: =+Flujos!A81 -> 2031-02-18 | B81: 0.00226445 | D81: 2031-02-18 | E81: 0.00498663 | F81: 0.00430156 | G81: 0.00437582 | H81: 0.00477433 | I81: 0.00658808 | J81: 0.00672719 | K81: 0.00612755 | L81: 0.0064128 | M81: 0 | N81: 0.00226445 | O81: 0 | P81: 0
A82: =+Flujos!A82 -> 2031-03-18 | B82: 0.00218102 | D82: 2031-03-18 | E82: 0.00427695 | F82: 0.00499132 | G82: 0.00396867 | H82: 0.00588592 | I82: 0.00650016 | J82: 0.00662283 | K82: 0.00604407 | L82: 0.00633797 | M82: 0 | N82: 0.00218102 | O82: 0 | P82: 0
A83: =+Flujos!A83 -> 2031-04-18 | B83: 0.00209895 | D83: 2031-04-18 | E83: 0.00494324 | F83: 0.00437396 | G83: 0.00471269 | H83: 0.00545364 | I83: 0.00639884 | J83: 0.00650473 | K83: 0.00595739 | L83: 0.00626674 | M83: 0 | N83: 0.00209895 | O83: 0 | P83: 0
A84: =+Flujos!A84 -> 2031-05-18 | B84: 0.0020182 | D84: 2031-05-18 | E84: 0.0051546 | F84: 0.00440034 | G84: 0.00454962 | H84: 0.00473127 | I84: 0.00632288 | J84: 0.00592304 | K84: 0.00583155 | L84: 0.00619111 | M84: 0 | N84: 0.0020182 | O84: 0 | P84: 0
A85: =+Flujos!A85 -> 2031-06-18 | B85: 0.00194316 | D85: 2031-06-18 | E85: 0.00473523 | F85: 0.00473489 | G85: 0.00387629 | H85: 0.00575729 | I85: 0.0062502 | J85: 0.00630354 | K85: 0.00571545 | L85: 0.00611956 | M85: 0 | N85: 0.00194316 | O85: 0 | P85: 0
A86: =+Flujos!A86 -> 2031-07-18 | B86: 0.00152815 | D86: 2031-07-18 | E86: 0.00542712 | F86: 0.00416042 | G86: 0.00548747 | H86: 0.00400634 | I86: 0.00613938 | J86: 0.00621554 | K86: 0.00560968 | L86: 0.00580859 | M86: 0 | N86: 0.00152815 | O86: 0 | P86: 0
A87: =+Flujos!A87 -> 2031-08-18 | B87: 0.00179372 | D87: 2031-08-18 | E87: 0.00481406 | F87: 0.00384573 | G87: 0.00583204 | H87: 0.00424947 | I87: 0.00605014 | J87: 0.00610597 | K87: 0.00551182 | L87: 0.00596353 | M87: 0 | N87: 0.00179372 | O87: 0 | P87: 0
A88: =+Flujos!A88 -> 2031-09-18 | B88: 0.00172541 | D88: 2031-09-18 | E88: 0.00396974 | F88: 0.00478712 | G88: 0.00341744 | H88: 0.00419093 | I88: 0.00545091 | J88: 0.00599104 | K88: 0.00540805 | L88: 0.00588331 | M88: 0 | N88: 0.00172541 | O88: 0 | P88: 0
A89: =+Flujos!A89 -> 2031-10-18 | B89: 0.00165945 | D89: 2031-10-18 | E89: 0.00603652 | F89: 0.00432551 | G89: 0.00400092 | H89: 0.00413296 | I89: 0.00586603 | J89: 0.00590283 | K89: 0.00529844 | L89: 0.00578469 | M89: 0 | N89: 0.00165945 | O89: 0 | P89: 0
A90: =+Flujos!A90 -> 2031-11-18 | B90: 0.00159641 | D90: 2031-11-18 | E90: 0.0053256 | F90: 0.00391349 | G90: 0.00233333 | H90: 0 | I90: 0.0057602 | J90: 0.00581064 | K90: 0.00521575 | L90: 0.00571145 | M90: 0 | N90: 0.00159641 | O90: 0 | P90: 0
A91: =+Flujos!A91 -> 2031-12-18 | B91: 0.00153603 | D91: 2031-12-18 | E91: 0.0043832 | F91: 0.00446803 | G91: 0 | H91: 0 | I91: 0.00565591 | J91: 0.00568618 | K91: 0.00512132 | L91: 0.0056356 | M91: 0 | N91: 0.00153603 | O91: 0 | P91: 0
A92: =+Flujos!A92 -> 2032-01-18 | B92: 0.00147417 | D92: 2032-01-18 | E92: 0.00584916 | F92: 0.00378612 | G92: 0 | H92: 0 | I92: 0.00558724 | J92: 0.00559613 | K92: 0.00467579 | L92: 0.00556191 | M92: 0 | N92: 0.00147417 | O92: 0 | P92: 0
A93: =+Flujos!A93 -> 2032-02-18 | B93: 0.01880557 | D93: 2032-02-18 | E93: 0.00420411 | F93: 0.00378136 | G93: 0 | H93: 0 | I93: 0.00549503 | J93: 0.00551783 | K93: 0.00495522 | L93: 0.00548703 | M93: 0 | N93: 0.01880557 | O93: 0 | P93: 0
A94: =+Flujos!A94 -> 2032-03-18 | B94: 0 | D94: 2032-03-18 | E94: 0.00451446 | F94: 0.0042247 | G94: 0 | H94: 0 | I94: 0.00539839 | J94: 0.0054467 | K94: 0.00487376 | L94: 0.00541009 | M94: 0 | N94: 0 | O94: 0 | P94: 0
A95: =+Flujos!A95 -> 2032-04-18 | B95: 0 | D95: 2032-04-18 | E95: 0.00523661 | F95: 0.00386474 | G95: 0 | H95: 0 | I95: 0.00532981 | J95: 0.00537278 | K95: 0.00477908 | L95: 0.00533662 | M95: 0 | N95: 0 | O95: 0 | P95: 0
A96: =+Flujos!A96 -> 2032-05-18 | B96: 0 | D96: 2032-05-18 | E96: 0.00454081 | F96: 0.00488961 | G96: 0 | H96: 0 | I96: 0.0052626 | J96: 0.00476703 | K96: 0.00469553 | L96: 0.00525793 | M96: 0 | N96: 0 | O96: 0 | P96: 0
A97: =+Flujos!A97 -> 2032-06-18 | B97: 0 | D97: 2032-06-18 | E97: 0.00487808 | F97: 0.00231702 | G97: 0 | H97: 0 | I97: 0.00519725 | J97: 0.00519711 | K97: 0.00461064 | L97: 0.00518138 | M97: 0 | N97: 0 | O97: 0 | P97: 0
A98: =+Flujos!A98 -> 2032-07-18 | B98: 0 | D98: 2032-07-18 | E98: 0.00433621 | F98: 0 | G98: 0 | H98: 0 | I98: 0.00512551 | J98: 0.00511052 | K98: 0.00451258 | L98: 0.00485914 | M98: 0 | N98: 0 | O98: 0 | P98: 0
A99: =+Flujos!A99 -> 2032-08-18 | B99: =+VLOOKUP(A99,$D$2:$N$182,MATCH($B$2,$D$2:$N$2,0),FALSE) -> 0 | D99: 2032-08-18 | E99: 0.00532813 | F99: 0 | G99: 0 | H99: 0 | I99: 0.00506765 | J99: 0.00503103 | K99: 0.00441342 | L99: 0.00501186 | M99: 0 | N99: 0 | O99: 0 | P99: 0
A100: =+Flujos!A100 -> 2032-09-18 | B100: 0 | D100: 2032-09-18 | E100: 0.0049703 | F100: 0 | G100: 0 | H100: 0 | I100: 0.00448658 | J100: 0.00496056 | K100: 0.00432805 | L100: 0.00491045 | M100: 0 | N100: 0 | O100: 0 | P100: 0
A101: =+Flujos!A101 -> 2032-10-18 | B101: 0 | D101: 2032-10-18 | E101: 0.00418541 | F101: 0 | G101: 0 | H101: 0 | I101: 0.00494101 | J101: 0.00488449 | K101: 0.00425884 | L101: 0.00478796 | M101: 0 | N101: 0 | O101: 0 | P101: 0
A102: =+Flujos!A102 -> 2032-11-18 | B102: 0 | D102: 2032-11-18 | E102: 0.00414553 | F102: 0 | G102: 0 | H102: 0 | I102: 0.0048891 | J102: 0.00482053 | K102: 0.00416906 | L102: 0 | M102: 0 | N102: 0 | O102: 0 | P102: 0
A103: =+Flujos!A103 -> 2032-12-18 | B103: 0 | D103: 2032-12-18 | E103: 0.00124145 | F103: 0 | G103: 0 | H103: 0 | I103: 0.00483943 | J103: 0.00476238 | K103: 0.00406755 | L103: 0 | M103: 0 | N103: 0 | O103: 0 | P103: 0
A104: =+Flujos!A104 -> 2033-01-18 | B104: 0 | D104: 2033-01-18 | E104: 0 | F104: 0 | G104: 0 | H104: 0 | I104: 0.00477717 | J104: 0.00470631 | K104: 0.00358572 | L104: 0 | M104: 0 | N104: 0 | O104: 0 | P104: 0
A105: =+Flujos!A105 -> 2033-02-18 | B105: 0 | D105: 2033-02-18 | E105: 0 | F105: 0 | G105: 0 | H105: 0 | I105: 0.00472609 | J105: 0.00465365 | K105: 0.00263399 | L105: 0 | M105: 0 | N105: 0 | O105: 0 | P105: 0
A106: =+Flujos!A106 -> 2033-03-18 | B106: 0 | D106: 2033-03-18 | E106: 0 | F106: 0 | G106: 0 | H106: 0 | I106: 0.00467481 | J106: 0.00460138 | K106: 0 | L106: 0 | M106: 0 | N106: 0 | O106: 0 | P106: 0
A107: =+Flujos!A107 -> 2033-04-18 | B107: 0 | D107: 2033-04-18 | E107: 0 | F107: 0 | G107: 0 | H107: 0 | I107: 0.00462729 | J107: 0.00455186 | K107: 0 | L107: 0 | M107: 0 | N107: 0 | O107: 0 | P107: 0
A108: =+Flujos!A108 -> 2033-05-18 | B108: 0 | D108: 2033-05-18 | E108: 0 | F108: 0 | G108: 0 | H108: 0 | I108: 0.00457098 | J108: 0.00394856 | K108: 0 | L108: 0 | M108: 0 | N108: 0 | O108: 0 | P108: 0
A109: =+Flujos!A109 -> 2033-06-18 | B109: 0 | D109: 2033-06-18 | E109: 0 | F109: 0 | G109: 0 | H109: 0 | I109: 0.00451577 | J109: 0.00444102 | K109: 0 | L109: 0 | M109: 0 | N109: 0 | O109: 0 | P109: 0
A110: =+Flujos!A110 -> 2033-07-18 | B110: 0 | D110: 2033-07-18 | E110: 0 | F110: 0 | G110: 0 | H110: 0 | I110: 0.00446399 | J110: 0.00438743 | K110: 0 | L110: 0 | M110: 0 | N110: 0 | O110: 0 | P110: 0
A111: =+Flujos!A111 -> 2033-08-18 | B111: 0 | D111: 2033-08-18 | E111: 0 | F111: 0 | G111: 0 | H111: 0 | I111: 0.00441444 | J111: 0.0043309 | K111: 0 | L111: 0 | M111: 0 | N111: 0 | O111: 0 | P111: 0
A112: =+Flujos!A112 -> 2033-09-18 | B112: 0 | D112: 2033-09-18 | E112: 0 | F112: 0 | G112: 0 | H112: 0 | I112: 0.00381278 | J112: 0.00427585 | K112: 0 | L112: 0 | M112: 0 | N112: 0 | O112: 0 | P112: 0
A113: =+Flujos!A113 -> 2033-10-18 | B113: 0 | D113: 2033-10-18 | E113: 0 | F113: 0 | G113: 0 | H113: 0 | I113: 0.00431893 | J113: 0.00421833 | K113: 0 | L113: 0 | M113: 0 | N113: 0 | O113: 0 | P113: 0
A114: =+Flujos!A114 -> 2033-11-18 | B114: 0 | D114: 2033-11-18 | E114: 0 | F114: 0 | G114: 0 | H114: 0 | I114: 0.00426932 | J114: 0.0041619 | K114: 0 | L114: 0 | M114: 0 | N114: 0 | O114: 0 | P114: 0
A115: =+Flujos!A115 -> 2033-12-18 | B115: 0 | D115: 2033-12-18 | E115: 0 | F115: 0 | G115: 0 | H115: 0 | I115: 0.00421616 | J115: 0.00410864 | K115: 0 | L115: 0 | M115: 0 | N115: 0 | O115: 0 | P115: 0
A116: =+Flujos!A116 -> 2034-01-18 | B116: 0 | D116: 2034-01-18 | E116: 0 | F116: 0 | G116: 0 | H116: 0 | I116: 0.00416979 | J116: 0.00404521 | K116: 0 | L116: 0 | M116: 0 | N116: 0 | O116: 0 | P116: 0
A117: =+Flujos!A117 -> 2034-02-18 | B117: 0 | D117: 2034-02-18 | E117: 0 | F117: 0 | G117: 0 | H117: 0 | I117: 0.00411981 | J117: 0.00398773 | K117: 0 | L117: 0 | M117: 0 | N117: 0 | O117: 0 | P117: 0
A118: =+Flujos!A118 -> 2034-03-18 | B118: 0 | D118: 2034-03-18 | E118: 0 | F118: 0 | G118: 0 | H118: 0 | I118: 0.00406981 | J118: 0.00390951 | K118: 0 | L118: 0.00318338 | M118: 0 | N118: 0 | O118: 0 | P118: 0
A119: =+Flujos!A119 -> 2034-04-18 | B119: 0 | D119: 2034-04-18 | E119: 0 | F119: 0 | G119: 0 | H119: 0 | I119: 0.00402355 | J119: 0 | K119: 0 | L119: 0.00344618 | M119: 0 | N119: 0 | O119: 0 | P119: 0
A120: =+Flujos!A120 -> 2034-05-18 | B120: 0 | D120: 2034-05-18 | E120: 0 | F120: 0 | G120: 0 | H120: 0 | I120: 0.00397363 | J120: 0 | K120: 0 | L120: 0.00340484 | M120: 0 | N120: 0 | O120: 0 | P120: 0
A121: =+Flujos!A121 -> 2034-06-18 | B121: 0 | D121: 2034-06-18 | E121: 0 | F121: 0 | G121: 0 | H121: 0 | I121: 0.00011413 | J121: 0 | K121: 0 | L121: 0.00336646 | M121: 0 | N121: 0 | O121: 0 | P121: 0
A122: =+Flujos!A122 -> 2034-07-18 | B122: 0 | D122: 2034-07-18 | E122: 0 | F122: 0 | G122: 0 | H122: 0 | I122: 0 | J122: 0 | K122: 0 | L122: 0.00304587 | M122: 0 | N122: 0 | O122: 0 | P122: 0
A123: =+Flujos!A123 -> 2034-08-18 | B123: 0 | D123: 2034-08-18 | E123: 0 | F123: 0 | G123: 0 | H123: 0 | I123: 0 | J123: 0 | K123: 0 | L123: 0.00328376 | M123: 0 | N123: 0 | O123: 0 | P123: 0
A124: =+Flujos!A124 -> 2034-09-18 | B124: 0 | D124: 2034-09-18 | E124: 0 | F124: 0 | G124: 0 | H124: 0 | I124: 0 | J124: 0 | K124: 0 | L124: 0.00278905 | M124: 0 | N124: 0 | O124: 0 | P124: 0
A125: =+Flujos!A125 -> 2034-10-18 | B125: 0 | D125: 2034-10-18 | E125: 0 | F125: 0 | G125: 0 | H125: 0 | I125: 0 | J125: 0 | K125: 0 | L125: 0 | M125: 0 | N125: 0 | O125: 0 | P125: 0
A126: =+Flujos!A126 -> 2034-11-18 | B126: 0 | D126: 2034-11-18 | E126: 0 | F126: 0 | G126: 0 | H126: 0 | I126: 0 | J126: 0 | K126: 0 | L126: 0 | M126: 0 | N126: 0 | O126: 0 | P126: 0
A127: =+Flujos!A127 -> 2034-12-18 | B127: 0 | D127: 2034-12-18 | E127: 0 | F127: 0 | G127: 0 | H127: 0 | I127: 0 | J127: 0 | K127: 0 | L127: 0 | M127: 0 | N127: 0 | O127: 0 | P127: 0
A128: =+Flujos!A128 -> 2035-01-18 | B128: 0 | D128: 2035-01-18 | E128: 0 | F128: 0 | G128: 0 | H128: 0 | I128: 0 | J128: 0 | K128: 0 | L128: 0 | M128: 0 | N128: 0 | O128: 0 | P128: 0
A129: =+Flujos!A129 -> 2035-02-18 | B129: 0 | D129: 2035-02-18 | E129: 0 | F129: 0 | G129: 0 | H129: 0 | I129: 0 | J129: 0 | K129: 0 | L129: 0 | M129: 0 | N129: 0 | O129: 0 | P129: 0
A130: =+Flujos!A130 -> 2035-03-18 | B130: 0 | D130: 2035-03-18 | E130: 0 | F130: 0 | G130: 0 | H130: 0 | I130: 0 | J130: 0 | K130: 0 | L130: 0 | M130: 0 | N130: 0 | O130: 0 | P130: 0
A131: =+Flujos!A131 -> 2035-04-18 | B131: =+VLOOKUP(A131,$D$2:$N$182,MATCH($B$2,$D$2:$N$2,0),FALSE) -> 0 | D131: 2035-04-18 | E131: 0 | F131: 0 | G131: 0 | H131: 0 | I131: 0 | J131: 0 | K131: 0 | L131: 0 | M131: 0 | N131: 0 | O131: 0 | P131: 0
A132: =+Flujos!A132 -> 2035-05-18 | B132: 0 | D132: =+A132 -> 2035-05-18 | E132: 0 | F132: 0 | G132: 0 | H132: 0 | I132: 0 | J132: 0 | K132: 0 | L132: 0 | M132: 0 | N132: 0 | O132: 0 | P132: 0
A133: =+Flujos!A133 -> 2035-06-18 | B133: 0 | D133: 2035-06-18 | E133: 0 | F133: 0 | G133: 0 | H133: 0 | I133: 0 | J133: 0 | K133: 0 | L133: 0 | M133: 0 | N133: 0 | O133: 0 | P133: 0
A134: =+Flujos!A134 -> 2035-07-18 | B134: 0 | D134: 2035-07-18 | E134: 0 | F134: 0 | G134: 0 | H134: 0 | I134: 0 | J134: 0 | K134: 0 | L134: 0 | M134: 0 | N134: 0 | O134: 0 | P134: 0
A135: =+Flujos!A135 -> 2035-08-18 | B135: 0 | D135: 2035-08-18 | E135: 0 | F135: 0 | G135: 0 | H135: 0 | I135: 0 | J135: 0 | K135: 0 | L135: 0 | M135: 0 | N135: 0 | O135: 0 | P135: 0
A136: =+Flujos!A136 -> 2035-09-18 | B136: 0 | D136: 2035-09-18 | E136: 0 | F136: 0 | G136: 0 | H136: 0 | I136: 0 | J136: 0 | K136: 0 | L136: 0 | M136: 0 | N136: 0 | O136: 0 | P136: 0
A137: =+Flujos!A137 -> 2035-10-18 | B137: 0 | D137: 2035-10-18 | E137: 0 | F137: 0 | G137: 0 | H137: 0 | I137: 0 | J137: 0 | K137: 0 | L137: 0 | M137: 0 | N137: 0 | O137: 0 | P137: 0
A138: =+Flujos!A138 -> 2035-11-18 | B138: 0 | D138: 2035-11-18 | E138: 0 | F138: 0 | G138: 0 | H138: 0 | I138: 0 | J138: 0 | K138: 0 | L138: 0 | M138: 0 | N138: 0 | O138: 0 | P138: 0
A139: =+Flujos!A139 -> 2035-12-18 | B139: 0 | D139: 2035-12-18 | E139: 0 | F139: 0 | G139: 0 | H139: 0 | I139: 0 | J139: 0 | K139: 0 | L139: 0 | M139: 0 | N139: 0 | O139: 0 | P139: 0
A140: =+Flujos!A140 -> 2036-01-18 | B140: 0 | D140: 2036-01-18 | E140: 0 | F140: 0 | G140: 0 | H140: 0 | I140: 0 | J140: 0 | K140: 0 | L140: 0 | M140: 0 | N140: 0 | O140: 0 | P140: 0
A141: =+Flujos!A141 -> 2036-02-18 | B141: 0 | D141: 2036-02-18 | E141: 0 | F141: 0 | G141: 0 | H141: 0 | I141: 0 | J141: 0 | K141: 0 | L141: 0 | M141: 0 | N141: 0 | O141: 0 | P141: 0
A142: =+Flujos!A142 -> 2036-03-18 | B142: 0 | D142: 2036-03-18 | E142: 0 | F142: 0 | G142: 0 | H142: 0 | I142: 0 | J142: 0 | K142: 0 | L142: 0 | M142: 0 | N142: 0 | O142: 0 | P142: 0
A143: =+Flujos!A143 -> 2036-04-18 | B143: 0 | D143: 2036-04-18 | E143: 0 | F143: 0 | G143: 0 | H143: 0 | I143: 0 | J143: 0 | K143: 0 | L143: 0 | M143: 0 | N143: 0 | O143: 0 | P143: 0
A144: =+Flujos!A144 -> 2036-05-18 | B144: 0 | D144: 2036-05-18 | E144: 0 | F144: 0 | G144: 0 | H144: 0 | I144: 0 | J144: 0 | K144: 0 | L144: 0 | M144: 0 | N144: 0 | O144: 0 | P144: 0
A145: =+Flujos!A145 -> 2036-06-18 | B145: 0 | D145: 2036-06-18 | E145: 0 | F145: 0 | G145: 0 | H145: 0 | I145: 0 | J145: 0 | K145: 0 | L145: 0 | M145: 0 | N145: 0 | O145: 0 | P145: 0
A146: =+Flujos!A146 -> 2036-07-18 | B146: 0 | D146: 2036-07-18 | E146: 0 | F146: 0 | G146: 0 | H146: 0 | I146: 0 | J146: 0 | K146: 0 | L146: 0 | M146: 0 | N146: 0 | O146: 0 | P146: 0
A147: =+Flujos!A147 -> 2036-08-18 | B147: 0 | D147: 2036-08-18 | E147: 0 | F147: 0 | G147: 0 | H147: 0 | I147: 0 | J147: 0 | K147: 0 | L147: 0 | M147: 0 | N147: 0 | O147: 0 | P147: 0
A148: =+Flujos!A148 -> 2036-09-18 | B148: 0 | D148: 2036-09-18 | E148: 0 | F148: 0 | G148: 0 | H148: 0 | I148: 0 | J148: 0 | K148: 0 | L148: 0 | M148: 0 | N148: 0 | O148: 0 | P148: 0
A149: =+Flujos!A149 -> 2036-10-18 | B149: 0 | D149: 2036-10-18 | E149: 0 | F149: 0 | G149: 0 | H149: 0 | I149: 0 | J149: 0 | K149: 0 | L149: 0 | M149: 0 | N149: 0 | O149: 0 | P149: 0
A150: =+Flujos!A150 -> 2036-11-18 | B150: 0 | D150: 2036-11-18 | E150: 0 | F150: 0 | G150: 0 | H150: 0 | I150: 0 | J150: 0 | K150: 0 | L150: 0 | M150: 0 | N150: 0 | O150: 0 | P150: 0
A151: =+Flujos!A151 -> 2036-12-18 | B151: 0 | D151: 2036-12-18 | E151: 0 | F151: 0 | G151: 0 | H151: 0 | I151: 0 | J151: 0 | K151: 0 | L151: 0 | M151: 0 | N151: 0 | O151: 0 | P151: 0
A152: =+Flujos!A152 -> 2037-01-18 | B152: 0 | D152: 2037-01-18 | E152: 0 | F152: 0 | G152: 0 | H152: 0 | I152: 0 | J152: 0 | K152: 0 | L152: 0 | M152: 0 | N152: 0 | O152: 0 | P152: 0
A153: =+Flujos!A153 -> 2037-02-18 | B153: 0 | D153: 2037-02-18 | E153: 0 | F153: 0 | G153: 0 | H153: 0 | I153: 0 | J153: 0 | K153: 0 | L153: 0 | M153: 0 | N153: 0 | O153: 0 | P153: 0
A154: =+Flujos!A154 -> 2037-03-18 | B154: 0 | D154: 2037-03-18 | E154: 0 | F154: 0 | G154: 0 | H154: 0 | I154: 0 | J154: 0 | K154: 0 | L154: 0 | M154: 0 | N154: 0 | O154: 0 | P154: 0
A155: =+Flujos!A155 -> 2037-04-18 | B155: 0 | D155: 2037-04-18 | E155: 0 | F155: 0 | G155: 0 | H155: 0 | I155: 0 | J155: 0 | K155: 0 | L155: 0 | M155: 0 | N155: 0 | O155: 0 | P155: 0
A156: =+Flujos!A156 -> 2037-05-18 | B156: 0 | D156: 2037-05-18 | E156: 0 | F156: 0 | G156: 0 | H156: 0 | I156: 0 | J156: 0 | K156: 0 | L156: 0 | M156: 0 | N156: 0 | O156: 0 | P156: 0
A157: =+Flujos!A157 -> 2037-06-18 | B157: 0 | D157: 2037-06-18 | E157: 0 | F157: 0 | G157: 0 | H157: 0 | I157: 0 | J157: 0 | K157: 0 | L157: 0 | M157: 0 | N157: 0 | O157: 0 | P157: 0
A158: =+Flujos!A158 -> 2037-07-18 | B158: 0 | D158: 2037-07-18 | E158: 0 | F158: 0 | G158: 0 | H158: 0 | I158: 0 | J158: 0 | K158: 0 | L158: 0 | M158: 0 | N158: 0 | O158: 0 | P158: 0
A159: =+Flujos!A159 -> 2037-08-18 | B159: 0 | D159: 2037-08-18 | E159: 0 | F159: 0 | G159: 0 | H159: 0 | I159: 0 | J159: 0 | K159: 0 | L159: 0 | M159: 0 | N159: 0 | O159: 0 | P159: 0
A160: =+Flujos!A160 -> 2037-09-18 | B160: 0 | D160: 2037-09-18 | E160: 0 | F160: 0 | G160: 0 | H160: 0 | I160: 0 | J160: 0 | K160: 0 | L160: 0 | M160: 0 | N160: 0 | O160: 0 | P160: 0
A161: =+Flujos!A161 -> 2037-10-18 | B161: 0 | D161: 2037-10-18 | E161: 0 | F161: 0 | G161: 0 | H161: 0 | I161: 0 | J161: 0 | K161: 0 | L161: 0 | M161: 0 | N161: 0 | O161: 0 | P161: 0
A162: =+Flujos!A162 -> 2037-11-18 | B162: 0 | D162: 2037-11-18 | E162: 0 | F162: 0 | G162: 0 | H162: 0 | I162: 0 | J162: 0 | K162: 0 | L162: 0 | M162: 0 | N162: 0 | O162: 0 | P162: 0
A163: =+Flujos!A163 -> 2037-12-18 | B163: =+VLOOKUP(A163,$D$2:$N$182,MATCH($B$2,$D$2:$N$2,0),FALSE) -> 0 | D163: 2037-12-18 | E163: 0 | F163: 0 | G163: 0 | H163: 0 | I163: 0 | J163: 0 | K163: 0 | L163: 0 | M163: 0 | N163: 0 | O163: 0 | P163: 0
A164: =+Flujos!A164 -> 2038-01-18 | B164: 0 | D164: 2038-01-18 | E164: 0 | F164: 0 | G164: 0 | H164: 0 | I164: 0 | J164: 0 | K164: 0 | L164: 0 | M164: 0 | N164: 0 | O164: 0 | P164: 0
A165: =+Flujos!A165 -> 2038-02-18 | B165: 0 | D165: 2038-02-18 | E165: 0 | F165: 0 | G165: 0 | H165: 0 | I165: 0 | J165: 0 | K165: 0 | L165: 0 | M165: 0 | N165: 0 | O165: 0 | P165: 0
A166: =+Flujos!A166 -> 2038-03-18 | B166: 0 | D166: 2038-03-18 | E166: 0 | F166: 0 | G166: 0 | H166: 0 | I166: 0 | J166: 0 | K166: 0 | L166: 0 | M166: 0 | N166: 0 | O166: 0 | P166: 0
A167: =+Flujos!A167 -> 2038-04-18 | B167: 0 | D167: 2038-04-18 | E167: 0 | F167: 0 | G167: 0 | H167: 0 | I167: 0 | J167: 0 | K167: 0 | L167: 0 | M167: 0 | N167: 0 | O167: 0 | P167: 0
A168: =+Flujos!A168 -> 2038-05-18 | B168: 0 | D168: 2038-05-18 | E168: 0 | F168: 0 | G168: 0 | H168: 0 | I168: 0 | J168: 0 | K168: 0 | L168: 0 | M168: 0 | N168: 0 | O168: 0 | P168: 0
A169: =+Flujos!A169 -> 2038-06-18 | B169: 0 | D169: 2038-06-18 | E169: 0 | F169: 0 | G169: 0 | H169: 0 | I169: 0 | J169: 0 | K169: 0 | L169: 0 | M169: 0 | N169: 0 | O169: 0 | P169: 0
A170: =+Flujos!A170 -> 2038-07-18 | B170: 0 | D170: 2038-07-18 | E170: 0 | F170: 0 | G170: 0 | H170: 0 | I170: 0 | J170: 0 | K170: 0 | L170: 0 | M170: 0 | N170: 0 | O170: 0 | P170: 0
A171: =+Flujos!A171 -> 2038-08-18 | B171: 0 | D171: 2038-08-18 | E171: 0 | F171: 0 | G171: 0 | H171: 0 | I171: 0 | J171: 0 | K171: 0 | L171: 0 | M171: 0 | N171: 0 | O171: 0 | P171: 0
A172: =+Flujos!A172 -> 2038-09-18 | B172: 0 | D172: 2038-09-18 | E172: 0 | F172: 0 | G172: 0 | H172: 0 | I172: 0 | J172: 0 | K172: 0 | L172: 0 | M172: 0 | N172: 0 | O172: 0 | P172: 0
A173: =+Flujos!A173 -> 2038-10-18 | B173: 0 | D173: 2038-10-18 | E173: 0 | F173: 0 | G173: 0 | H173: 0 | I173: 0 | J173: 0 | K173: 0 | L173: 0 | M173: 0 | N173: 0 | O173: 0 | P173: 0
A174: =+Flujos!A174 -> 2038-11-18 | B174: 0 | D174: 2038-11-18 | E174: 0 | F174: 0 | G174: 0 | H174: 0 | I174: 0 | J174: 0 | K174: 0 | L174: 0 | M174: 0 | N174: 0 | O174: 0 | P174: 0
A175: =+Flujos!A175 -> 2038-12-18 | B175: 0 | D175: 2038-12-18 | E175: 0 | F175: 0 | G175: 0 | H175: 0 | I175: 0 | J175: 0 | K175: 0 | L175: 0 | M175: 0 | N175: 0 | O175: 0 | P175: 0
A176: =+Flujos!A176 -> 2039-01-18 | B176: 0 | D176: 2039-01-18 | E176: 0 | F176: 0 | G176: 0 | H176: 0 | I176: 0 | J176: 0 | K176: 0 | L176: 0 | M176: 0 | N176: 0 | O176: 0 | P176: 0
A177: =+Flujos!A177 -> 2039-02-18 | B177: 0 | D177: 2039-02-18 | E177: 0 | F177: 0 | G177: 0 | H177: 0 | I177: 0 | J177: 0 | K177: 0 | L177: 0 | M177: 0 | N177: 0 | O177: 0 | P177: 0
A178: =+Flujos!A178 -> 2039-03-18 | B178: 0 | D178: 2039-03-18 | E178: 0 | F178: 0 | G178: 0 | H178: 0 | I178: 0 | J178: 0 | K178: 0 | L178: 0 | M178: 0 | N178: 0 | O178: 0 | P178: 0
A179: =+Flujos!A179 -> 2039-04-18 | B179: 0 | D179: 2039-04-18 | E179: 0 | F179: 0 | G179: 0 | H179: 0 | I179: 0 | J179: 0 | K179: 0 | L179: 0 | M179: 0 | N179: 0 | O179: 0 | P179: 0
A180: =+Flujos!A180 -> 2039-05-18 | B180: 0 | D180: 2039-05-18 | E180: 0 | F180: 0 | G180: 0 | H180: 0 | I180: 0 | J180: 0 | K180: 0 | L180: 0 | M180: 0 | N180: 0 | O180: 0 | P180: 0
A181: =+Flujos!A181 -> 2039-06-18 | B181: 0 | D181: 2039-06-18 | E181: 0 | F181: 0 | G181: 0 | H181: 0 | I181: 0 | J181: 0 | K181: 0 | L181: 0 | M181: 0 | N181: 0 | O181: 0 | P181: 0
A182: =+Flujos!A182 -> 2039-07-18 | B182: 0 | D182: 2039-07-18 | E182: 0 | F182: 0 | G182: 0 | H182: 0 | I182: 0 | J182: 0 | K182: 0 | L182: 0 | M182: 0 | N182: 0 | O182: 0 | P182: 0
E183: =SUM(E3:E182) -> 1 | F183: 1 | G183: 1 | H183: 1 | I183: 1 | J183: 1 | K183: 1 | L183: =SUM(L3:L182) -> 1 | M183: =SUM(M3:M182) -> 1
E184: =1-E183 -> 0 | F184: 0 | G184: 0 | H184: 0 | I184: 0 | J184: 0 | K184: 0 | L184: =1-L183 -> 0 | M184: =1-M183 -> 0
N185: 0
N186: 0
N187: 0
N188: 0
N189: 0
N190: 0
N191: 0
N192: 0
N193: 0
N194: 0
N195: 0
N196: 0
N197: 0
N198: 0
N199: 0
N200: 0
... 38 more rows

Sheet Tablas (hidden)
A1: FECHA | B1: =+CALCULADORA!C9 -> TIPS N23 A | C1: Valoración
A2: =+'Tabla de Amortizacion'!A3 -> 2024-08-18 | B2: =+ROUND(C2,8) -> 0.02708248 | C2: =+VLOOKUP(A2,'Tabla de Amortizacion'!$D$2:$P$182,MATCH(Tablas!$B$1,'Tabla de Amortizacion'!$D$2:$P$2,0)) -> 0.02708248 | E2: =IF([1]CALCULADORA!$F$10="Contractual",ROUND('[1]Tabla de Amortizacion'!C3,8),IF([1]CALCULADORA!$F$10="6% (Medio)",ROUND('[1]Tabla de Amortizacion'!F3,8),IF([1]CALCULADORA!$F$10="10% (Medio Alto)",ROUND('[1]Tabla de Amortizacion'!H3,8),IF([1]CALCULADORA!$F$10="14% (Alto)",ROUND('[1]Tabla de Amortizacion'!#REF!,8),IF([1]CALCULADORA!$F$10=20%,ROUND('[1]Tabla de Amortizacion'!#REF!,8),ROUND('[1]Tabla de Amortizacion'!K3,8)))))) -> 0
A3: =EDATE(A2,1) -> 2024-09-18 | B3: =+ROUND(C3,8) -> 0.02840141 | C3: =+VLOOKUP(A3,'Tabla de Amortizacion'!$D$2:$P$182,MATCH(Tablas!$B$1,'Tabla de Amortizacion'!$D$2:$P$2,0)) -> 0.02840141 | E3: =IF([1]CALCULADORA!$F$10="Contractual",ROUND('[1]Tabla de Amortizacion'!C4,8),IF([1]CALCULADORA!$F$10="6% (Medio)",ROUND('[1]Tabla de Amortizacion'!F4,8),IF([1]CALCULADORA!$F$10="10% (Medio Alto)",ROUND('[1]Tabla de Amortizacion'!H4,8),IF([1]CALCULADORA!$F$10="14% (Alto)",ROUND('[1]Tabla de Amortizacion'!#REF!,8),IF([1]CALCULADORA!$F$10=20%,ROUND('[1]Tabla de Amortizacion'!#REF!,8),ROUND('[1]Tabla de Amortizacion'!K4,8)))))) -> 0
A4: 2024-10-18 | B4: 0.03572706 | C4: =+VLOOKUP(A4,'Tabla de Amortizacion'!$D$2:$P$182,MATCH(Tablas!$B$1,'Tabla de Amortizacion'!$D$2:$P$2,0)) -> 0.03572706 | E4: =IF([1]CALCULADORA!$F$10="Contractual",ROUND('[1]Tabla de Amortizacion'!C5,8),IF([1]CALCULADORA!$F$10="6% (Medio)",ROUND('[1]Tabla de Amortizacion'!F5,8),IF([1]CALCULADORA!$F$10="10% (Medio Alto)",ROUND('[1]Tabla de Amortizacion'!H5,8),IF([1]CALCULADORA!$F$10="14% (Alto)",ROUND('[1]Tabla de Amortizacion'!#REF!,8),IF([1]CALCULADORA!$F$10=20%,ROUND('[1]Tabla de Amortizacion'!#REF!,8),ROUND('[1]Tabla de Amortizacion'!K5,8)))))) -> 0
A5: 2024-11-18 | B5: 0.03643388 | C5: =+VLOOKUP(A5,'Tabla de Amortizacion'!$D$2:$P$182,MATCH(Tablas!$B$1,'Tabla de Amortizacion'!$D$2:$P$2,0)) -> 0.03643388 | E5: =IF([1]CALCULADORA!$F$10="Contractual",ROUND('[1]Tabla de Amortizacion'!C6,8),IF([1]CALCULADORA!$F$10="6% (Medio)",ROUND('[1]Tabla de Amortizacion'!F6,8),IF([1]CALCULADORA!$F$10="10% (Medio Alto)",ROUND('[1]Tabla de Amortizacion'!H6,8),IF([1]CALCULADORA!$F$10="14% (Alto)",ROUND('[1]Tabla de Amortizacion'!#REF!,8),IF([1]CALCULADORA!$F$10=20%,ROUND('[1]Tabla de Amortizacion'!#REF!,8),ROUND('[1]Tabla de Amortizacion'!K6,8)))))) -> 0
A6: 2024-12-18 | B6: 0.02940951 | C6: =+VLOOKUP(A6,'Tabla de Amortizacion'!$D$2:$P$182,MATCH(Tablas!$B$1,'Tabla de Amortizacion'!$D$2:$P$2,0)) -> 0.02940951 | E6: =IF([1]CALCULADORA!$F$10="Contractual",ROUND('[1]Tabla de Amortizacion'!C7,8),IF([1]CALCULADORA!$F$10="6% (Medio)",ROUND('[1]Tabla de Amortizacion'!F7,8),IF([1]CALCULADORA!$F$10="10% (Medio Alto)",ROUND('[1]Tabla de Amortizacion'!H7,8),IF([1]CALCULADORA!$F$10="14% (Alto)",ROUND('[1]Tabla de Amortizacion'!#REF!,8),IF([1]CALCULADORA!$F$10=20%,ROUND('[1]Tabla de Amortizacion'!#REF!,8),ROUND('[1]Tabla de Amortizacion'!K7,8)))))) -> 0
A7: 2025-01-18 | B7: 0.03872237 | C7: =+VLOOKUP(A7,'Tabla de Amortizacion'!$D$2:$P$182,MATCH(Tablas!$B$1,'Tabla de Amortizacion'!$D$2:$P$2,0)) -> 0.03872237 | E7: =IF([1]CALCULADORA!$F$10="Contractual",ROUND('[1]Tabla de Amortizacion'!C8,8),IF([1]CALCULADORA!$F$10="6% (Medio)",ROUND('[1]Tabla de Amortizacion'!F8,8),IF([1]CALCULADORA!$F$10="10% (Medio Alto)",ROUND('[1]Tabla de Amortizacion'!H8,8),IF([1]CALCULADORA!$F$10="14% (Alto)",ROUND('[1]Tabla de Amortizacion'!#REF!,8),IF([1]CALCULADORA!$F$10=20%,ROUND('[1]Tabla de Amortizacion'!#REF!,8),ROUND('[1]Tabla de Amortizacion'!K8,8)))))) -> 0
A8: 2025-02-18 | B8: 0.04393367 | C8: =+VLOOKUP(A8,'Tabla de Amortizacion'!$D$2:$P$182,MATCH(Tablas!$B$1,'Tabla de Amortizacion'!$D$2:$P$2,0)) -> 0.04393367 | E8: =IF([1]CALCULADORA!$F$10="Contractual",ROUND('[1]Tabla de Amortizacion'!C9,8),IF([1]CALCULADORA!$F$10="6% (Medio)",ROUND('[1]Tabla de Amortizacion'!F9,8),IF([1]CALCULADORA!$F$10="10% (Medio Alto)",ROUND('[1]Tabla de Amortizacion'!H9,8),IF([1]CALCULADORA!$F$10="14% (Alto)",ROUND('[1]Tabla de Amortizacion'!#REF!,8),IF([1]CALCULADORA!$F$10=20%,ROUND('[1]Tabla de Amortizacion'!#REF!,8),ROUND('[1]Tabla de Amortizacion'!K9,8)))))) -> 0
A9: 2025-03-18 | B9: 0.02855027 | C9: =+VLOOKUP(A9,'Tabla de Amortizacion'!$D$2:$P$182,MATCH(Tablas!$B$1,'Tabla de Amortizacion'!$D$2:$P$2,0)) -> 0.02855027 | E9: =IF([1]CALCULADORA!$F$10="Contractual",ROUND('[1]Tabla de Amortizacion'!C10,8),IF([1]CALCULADORA!$F$10="6% (Medio)",ROUND('[1]Tabla de Amortizacion'!F10,8),IF([1]CALCULADORA!$F$10="10% (Medio Alto)",ROUND('[1]Tabla de Amortizacion'!H10,8),IF([1]CALCULADORA!$F$10="14% (Alto)",ROUND('[1]Tabla de Amortizacion'!#REF!,8),IF([1]CALCULADORA!$F$10=20%,ROUND('[1]Tabla de Amortizacion'!#REF!,8),ROUND('[1]Tabla de Amortizacion'!K10,8)))))) -> 0
A10: 2025-04-18 | B10: 0.02753957 | C10: =+VLOOKUP(A10,'Tabla de Amortizacion'!$D$2:$P$182,MATCH(Tablas!$B$1,'Tabla de Amortizacion'!$D$2:$P$2,0)) -> 0.02753957 | E10: =IF([1]CALCULADORA!$F$10="Contractual",ROUND('[1]Tabla de Amortizacion'!C11,8),IF([1]CALCULADORA!$F$10="6% (Medio)",ROUND('[1]Tabla de Amortizacion'!F11,8),IF([1]CALCULADORA!$F$10="10% (Medio Alto)",ROUND('[1]Tabla de Amortizacion'!H11,8),IF([1]CALCULADORA!$F$10="14% (Alto)",ROUND('[1]Tabla de Amortizacion'!#REF!,8),IF([1]CALCULADORA!$F$10=20%,ROUND('[1]Tabla de Amortizacion'!#REF!,8),ROUND('[1]Tabla de Amortizacion'!K11,8)))))) -> 0
A11: 2025-05-18 | B11: 0.02655456 | C11: =+VLOOKUP(A11,'Tabla de Amortizacion'!$D$2:$P$182,MATCH(Tablas!$B$1,'Tabla de Amortizacion'!$D$2:$P$2,0)) -> 0.02655456 | E11: =IF([1]CALCULADORA!$F$10="Contractual",ROUND('[1]Tabla de Amortizacion'!C12,8),IF([1]CALCULADORA!$F$10="6% (Medio)",ROUND('[1]Tabla de Amortizacion'!F12,8),IF([1]CALCULADORA!$F$10="10% (Medio Alto)",ROUND('[1]Tabla de Amortizacion'!H12,8),IF([1]CALCULADORA!$F$10="14% (Alto)",ROUND('[1]Tabla de Amortizacion'!#REF!,8),IF([1]CALCULADORA!$F$10=20%,ROUND('[1]Tabla de Amortizacion'!#REF!,8),ROUND('[1]Tabla de Amortizacion'!K12,8)))))) -> 0
A12: 2025-06-18 | B12: 0.02560209 | C12: =+VLOOKUP(A12,'Tabla de Amortizacion'!$D$2:$P$182,MATCH(Tablas!$B$1,'Tabla de Amortizacion'!$D$2:$P$2,0)) -> 0.02560209 | E12: =IF([1]CALCULADORA!$F$10="Contractual",ROUND('[1]Tabla de Amortizacion'!C13,8),IF([1]CALCULADORA!$F$10="6% (Medio)",ROUND('[1]Tabla de Amortizacion'!F13,8),IF([1]CALCULADORA!$F$10="10% (Medio Alto)",ROUND('[1]Tabla de Amortizacion'!H13,8),IF([1]CALCULADORA!$F$10="14% (Alto)",ROUND('[1]Tabla de Amortizacion'!#REF!,8),IF([1]CALCULADORA!$F$10=20%,ROUND('[1]Tabla de Amortizacion'!#REF!,8),ROUND('[1]Tabla de Amortizacion'!K13,8)))))) -> 0
A13: 2025-07-18 | B13: 0.02468364 | C13: =+VLOOKUP(A13,'Tabla de Amortizacion'!$D$2:$P$182,MATCH(Tablas!$B$1,'Tabla de Amortizacion'!$D$2:$P$2,0)) -> 0.02468364 | E13: =IF([1]CALCULADORA!$F$10="Contractual",ROUND('[1]Tabla de Amortizacion'!C14,8),IF([1]CALCULADORA!$F$10="6% (Medio)",ROUND('[1]Tabla de Amortizacion'!F14,8),IF([1]CALCULADORA!$F$10="10% (Medio Alto)",ROUND('[1]Tabla de Amortizacion'!H14,8),IF([1]CALCULADORA!$F$10="14% (Alto)",ROUND('[1]Tabla de Amortizacion'!#REF!,8),IF([1]CALCULADORA!$F$10=20%,ROUND('[1]Tabla de Amortizacion'!#REF!,8),ROUND('[1]Tabla de Amortizacion'!K14,8)))))) -> 0
A14: 2025-08-18 | B14: 0.02378772 | C14: =+VLOOKUP(A14,'Tabla de Amortizacion'!$D$2:$P$182,MATCH(Tablas!$B$1,'Tabla de Amortizacion'!$D$2:$P$2,0)) -> 0.02378772 | E14: =IF([1]CALCULADORA!$F$10="Contractual",ROUND('[1]Tabla de Amortizacion'!C15,8),IF([1]CALCULADORA!$F$10="6% (Medio)",ROUND('[1]Tabla de Amortizacion'!F15,8),IF([1]CALCULADORA!$F$10="10% (Medio Alto)",ROUND('[1]Tabla de Amortizacion'!H15,8),IF([1]CALCULADORA!$F$10="14% (Alto)",ROUND('[1]Tabla de Amortizacion'!#REF!,8),IF([1]CALCULADORA!$F$10=20%,ROUND('[1]Tabla de Amortizacion'!#REF!,8),ROUND('[1]Tabla de Amortizacion'!K15,8)))))) -> 0
A15: 2025-09-18 | B15: 0.0229364 | C15: =+VLOOKUP(A15,'Tabla de Amortizacion'!$D$2:$P$182,MATCH(Tablas!$B$1,'Tabla de Amortizacion'!$D$2:$P$2,0)) -> 0.0229364 | E15: =IF([1]CALCULADORA!$F$10="Contractual",ROUND('[1]Tabla de Amortizacion'!C16,8),IF([1]CALCULADORA!$F$10="6% (Medio)",ROUND('[1]Tabla de Amortizacion'!F16,8),IF([1]CALCULADORA!$F$10="10% (Medio Alto)",ROUND('[1]Tabla de Amortizacion'!H16,8),IF([1]CALCULADORA!$F$10="14% (Alto)",ROUND('[1]Tabla de Amortizacion'!#REF!,8),IF([1]CALCULADORA!$F$10=20%,ROUND('[1]Tabla de Amortizacion'!#REF!,8),ROUND('[1]Tabla de Amortizacion'!K16,8)))))) -> 0
A16: 2025-10-18 | B16: 0.02210673 | C16: =+VLOOKUP(A16,'Tabla de Amortizacion'!$D$2:$P$182,MATCH(Tablas!$B$1,'Tabla de Amortizacion'!$D$2:$P$2,0)) -> 0.02210673 | E16: =IF([1]CALCULADORA!$F$10="Contractual",ROUND('[1]Tabla de Amortizacion'!C17,8),IF([1]CALCULADORA!$F$10="6% (Medio)",ROUND('[1]Tabla de Amortizacion'!F17,8),IF([1]CALCULADORA!$F$10="10% (Medio Alto)",ROUND('[1]Tabla de Amortizacion'!H17,8),IF([1]CALCULADORA!$F$10="14% (Alto)",ROUND('[1]Tabla de Amortizacion'!#REF!,8),IF([1]CALCULADORA!$F$10=20%,ROUND('[1]Tabla de Amortizacion'!#REF!,8),ROUND('[1]Tabla de Amortizacion'!K17,8)))))) -> 0
A17: 2025-11-18 | B17: 0.02130499 | C17: =+VLOOKUP(A17,'Tabla de Amortizacion'!$D$2:$P$182,MATCH(Tablas!$B$1,'Tabla de Amortizacion'!$D$2:$P$2,0)) -> 0.02130499 | E17: =IF([1]CALCULADORA!$F$10="Contractual",ROUND('[1]Tabla de Amortizacion'!C18,8),IF([1]CALCULADORA!$F$10="6% (Medio)",ROUND('[1]Tabla de Amortizacion'!F18,8),IF([1]CALCULADORA!$F$10="10% (Medio Alto)",ROUND('[1]Tabla de Amortizacion'!H18,8),IF([1]CALCULADORA!$F$10="14% (Alto)",ROUND('[1]Tabla de Amortizacion'!#REF!,8),IF([1]CALCULADORA!$F$10=20%,ROUND('[1]Tabla de Amortizacion'!#REF!,8),ROUND('[1]Tabla de Amortizacion'!K18,8)))))) -> 0
A18: 2025-12-18 | B18: 0.02052027 | C18: =+VLOOKUP(A18,'Tabla de Amortizacion'!$D$2:$P$182,MATCH(Tablas!$B$1,'Tabla de Amortizacion'!$D$2:$P$2,0)) -> 0.02052027 | E18: =IF([1]CALCULADORA!$F$10="Contractual",ROUND('[1]Tabla de Amortizacion'!C19,8),IF([1]CALCULADORA!$F$10="6% (Medio)",ROUND('[1]Tabla de Amortizacion'!F19,8),IF([1]CALCULADORA!$F$10="10% (Medio Alto)",ROUND('[1]Tabla de Amortizacion'!H19,8),IF([1]CALCULADORA!$F$10="14% (Alto)",ROUND('[1]Tabla de Amortizacion'!#REF!,8),IF([1]CALCULADORA!$F$10=20%,ROUND('[1]Tabla de Amortizacion'!#REF!,8),ROUND('[1]Tabla de Amortizacion'!K19,8)))))) -> 0
A19: 2026-01-18 | B19: 0.01978202 | C19: =+VLOOKUP(A19,'Tabla de Amortizacion'!$D$2:$P$182,MATCH(Tablas!$B$1,'Tabla de Amortizacion'!$D$2:$P$2,0)) -> 0.01978202 | E19: =IF([1]CALCULADORA!$F$10="Contractual",ROUND('[1]Tabla de Amortizacion'!C20,8),IF([1]CALCULADORA!$F$10="6% (Medio)",ROUND('[1]Tabla de Amortizacion'!F20,8),IF([1]CALCULADORA!$F$10="10% (Medio Alto)",ROUND('[1]Tabla de Amortizacion'!H20,8),IF([1]CALCULADORA!$F$10="14% (Alto)",ROUND('[1]Tabla de Amortizacion'!#REF!,8),IF([1]CALCULADORA!$F$10=20%,ROUND('[1]Tabla de Amortizacion'!#REF!,8),ROUND('[1]Tabla de Amortizacion'!K20,8)))))) -> 0
A20: 2026-02-18 | B20: 0.01906001 | C20: =+VLOOKUP(A20,'Tabla de Amortizacion'!$D$2:$P$182,MATCH(Tablas!$B$1,'Tabla de Amortizacion'!$D$2:$P$2,0)) -> 0.01906001 | E20: =IF([1]CALCULADORA!$F$10="Contractual",ROUND('[1]Tabla de Amortizacion'!C21,8),IF([1]CALCULADORA!$F$10="6% (Medio)",ROUND('[1]Tabla de Amortizacion'!F21,8),IF([1]CALCULADORA!$F$10="10% (Medio Alto)",ROUND('[1]Tabla de Amortizacion'!H21,8),IF([1]CALCULADORA!$F$10="14% (Alto)",ROUND('[1]Tabla de Amortizacion'!#REF!,8),IF([1]CALCULADORA!$F$10=20%,ROUND('[1]Tabla de Amortizacion'!#REF!,8),ROUND('[1]Tabla de Amortizacion'!K21,8)))))) -> 0
A21: 2026-03-18 | B21: 0.01837225 | C21: =+VLOOKUP(A21,'Tabla de Amortizacion'!$D$2:$P$182,MATCH(Tablas!$B$1,'Tabla de Amortizacion'!$D$2:$P$2,0)) -> 0.01837225 | E21: =IF([1]CALCULADORA!$F$10="Contractual",ROUND('[1]Tabla de Amortizacion'!C22,8),IF([1]CALCULADORA!$F$10="6% (Medio)",ROUND('[1]Tabla de Amortizacion'!F22,8),IF([1]CALCULADORA!$F$10="10% (Medio Alto)",ROUND('[1]Tabla de Amortizacion'!H22,8),IF([1]CALCULADORA!$F$10="14% (Alto)",ROUND('[1]Tabla de Amortizacion'!#REF!,8),IF([1]CALCULADORA!$F$10=20%,ROUND('[1]Tabla de Amortizacion'!#REF!,8),ROUND('[1]Tabla de Amortizacion'!K22,8)))))) -> 0
A22: 2026-04-18 | B22: 0.01770208 | C22: =+VLOOKUP(A22,'Tabla de Amortizacion'!$D$2:$P$182,MATCH(Tablas!$B$1,'Tabla de Amortizacion'!$D$2:$P$2,0)) -> 0.01770208 | E22: =IF([1]CALCULADORA!$F$10="Contractual",ROUND('[1]Tabla de Amortizacion'!C23,8),IF([1]CALCULADORA!$F$10="6% (Medio)",ROUND('[1]Tabla de Amortizacion'!F23,8),IF([1]CALCULADORA!$F$10="10% (Medio Alto)",ROUND('[1]Tabla de Amortizacion'!H23,8),IF([1]CALCULADORA!$F$10="14% (Alto)",ROUND('[1]Tabla de Amortizacion'!#REF!,8),IF([1]CALCULADORA!$F$10=20%,ROUND('[1]Tabla de Amortizacion'!#REF!,8),ROUND('[1]Tabla de Amortizacion'!K23,8)))))) -> 0
A23: 2026-05-18 | B23: 0.01704804 | C23: =+VLOOKUP(A23,'Tabla de Amortizacion'!$D$2:$P$182,MATCH(Tablas!$B$1,'Tabla de Amortizacion'!$D$2:$P$2,0)) -> 0.01704804 | E23: =IF([1]CALCULADORA!$F$10="Contractual",ROUND('[1]Tabla de Amortizacion'!C24,8),IF([1]CALCULADORA!$F$10="6% (Medio)",ROUND('[1]Tabla de Amortizacion'!F24,8),IF([1]CALCULADORA!$F$10="10% (Medio Alto)",ROUND('[1]Tabla de Amortizacion'!H24,8),IF([1]CALCULADORA!$F$10="14% (Alto)",ROUND('[1]Tabla de Amortizacion'!#REF!,8),IF([1]CALCULADORA!$F$10=20%,ROUND('[1]Tabla de Amortizacion'!#REF!,8),ROUND('[1]Tabla de Amortizacion'!K24,8)))))) -> 0
A24: 2026-06-18 | B24: 0.0164219 | C24: =+VLOOKUP(A24,'Tabla de Amortizacion'!$D$2:$P$182,MATCH(Tablas!$B$1,'Tabla de Amortizacion'!$D$2:$P$2,0)) -> 0.0164219 | E24: =IF([1]CALCULADORA!$F$10="Contractual",ROUND('[1]Tabla de Amortizacion'!C25,8),IF([1]CALCULADORA!$F$10="6% (Medio)",ROUND('[1]Tabla de Amortizacion'!F25,8),IF([1]CALCULADORA!$F$10="10% (Medio Alto)",ROUND('[1]Tabla de Amortizacion'!H25,8),IF([1]CALCULADORA!$F$10="14% (Alto)",ROUND('[1]Tabla de Amortizacion'!#REF!,8),IF([1]CALCULADORA!$F$10=20%,ROUND('[1]Tabla de Amortizacion'!#REF!,8),ROUND('[1]Tabla de Amortizacion'!K25,8)))))) -> 0
A25: 2026-07-18 | B25: 0.01580259 | C25: =+VLOOKUP(A25,'Tabla de Amortizacion'!$D$2:$P$182,MATCH(Tablas!$B$1,'Tabla de Amortizacion'!$D$2:$P$2,0)) -> 0.01580259 | E25: =IF([1]CALCULADORA!$F$10="Contractual",ROUND('[1]Tabla de Amortizacion'!C26,8),IF([1]CALCULADORA!$F$10="6% (Medio)",ROUND('[1]Tabla de Amortizacion'!F26,8),IF([1]CALCULADORA!$F$10="10% (Medio Alto)",ROUND('[1]Tabla de Amortizacion'!H26,8),IF([1]CALCULADORA!$F$10="14% (Alto)",ROUND('[1]Tabla de Amortizacion'!#REF!,8),IF([1]CALCULADORA!$F$10=20%,ROUND('[1]Tabla de Amortizacion'!#REF!,8),ROUND('[1]Tabla de Amortizacion'!K26,8)))))) -> 0
A26: 2026-08-18 | B26: 0.01522098 | C26: =+VLOOKUP(A26,'Tabla de Amortizacion'!$D$2:$P$182,MATCH(Tablas!$B$1,'Tabla de Amortizacion'!$D$2:$P$2,0)) -> 0.01522098 | E26: =IF([1]CALCULADORA!$F$10="Contractual",ROUND('[1]Tabla de Amortizacion'!C27,8),IF([1]CALCULADORA!$F$10="6% (Medio)",ROUND('[1]Tabla de Amortizacion'!F27,8),IF([1]CALCULADORA!$F$10="10% (Medio Alto)",ROUND('[1]Tabla de Amortizacion'!H27,8),IF([1]CALCULADORA!$F$10="14% (Alto)",ROUND('[1]Tabla de Amortizacion'!#REF!,8),IF([1]CALCULADORA!$F$10=20%,ROUND('[1]Tabla de Amortizacion'!#REF!,8),ROUND('[1]Tabla de Amortizacion'!K27,8)))))) -> 0
A27: 2026-09-18 | B27: 0.01465902 | C27: =+VLOOKUP(A27,'Tabla de Amortizacion'!$D$2:$P$182,MATCH(Tablas!$B$1,'Tabla de Amortizacion'!$D$2:$P$2,0)) -> 0.01465902 | E27: =IF([1]CALCULADORA!$F$10="Contractual",ROUND('[1]Tabla de Amortizacion'!C28,8),IF([1]CALCULADORA!$F$10="6% (Medio)",ROUND('[1]Tabla de Amortizacion'!F28,8),IF([1]CALCULADORA!$F$10="10% (Medio Alto)",ROUND('[1]Tabla de Amortizacion'!H28,8),IF([1]CALCULADORA!$F$10="14% (Alto)",ROUND('[1]Tabla de Amortizacion'!#REF!,8),IF([1]CALCULADORA!$F$10=20%,ROUND('[1]Tabla de Amortizacion'!#REF!,8),ROUND('[1]Tabla de Amortizacion'!K28,8)))))) -> 0
A28: 2026-10-18 | B28: 0.01411 | C28: =+VLOOKUP(A28,'Tabla de Amortizacion'!$D$2:$P$182,MATCH(Tablas!$B$1,'Tabla de Amortizacion'!$D$2:$P$2,0)) -> 0.01411 | E28: =IF([1]CALCULADORA!$F$10="Contractual",ROUND('[1]Tabla de Amortizacion'!C29,8),IF([1]CALCULADORA!$F$10="6% (Medio)",ROUND('[1]Tabla de Amortizacion'!F29,8),IF([1]CALCULADORA!$F$10="10% (Medio Alto)",ROUND('[1]Tabla de Amortizacion'!H29,8),IF([1]CALCULADORA!$F$10="14% (Alto)",ROUND('[1]Tabla de Amortizacion'!#REF!,8),IF([1]CALCULADORA!$F$10=20%,ROUND('[1]Tabla de Amortizacion'!#REF!,8),ROUND('[1]Tabla de Amortizacion'!K29,8)))))) -> 0
A29: 2026-11-18 | B29: 0.01358334 | C29: =+VLOOKUP(A29,'Tabla de Amortizacion'!$D$2:$P$182,MATCH(Tablas!$B$1,'Tabla de Amortizacion'!$D$2:$P$2,0)) -> 0.01358334 | E29: =IF([1]CALCULADORA!$F$10="Contractual",ROUND('[1]Tabla de Amortizacion'!C30,8),IF([1]CALCULADORA!$F$10="6% (Medio)",ROUND('[1]Tabla de Amortizacion'!F30,8),IF([1]CALCULADORA!$F$10="10% (Medio Alto)",ROUND('[1]Tabla de Amortizacion'!H30,8),IF([1]CALCULADORA!$F$10="14% (Alto)",ROUND('[1]Tabla de Amortizacion'!#REF!,8),IF([1]CALCULADORA!$F$10=20%,ROUND('[1]Tabla de Amortizacion'!#REF!,8),ROUND('[1]Tabla de Amortizacion'!K30,8)))))) -> 0
A30: 2026-12-18 | B30: 0.01307399 | C30: =+VLOOKUP(A30,'Tabla de Amortizacion'!$D$2:$P$182,MATCH(Tablas!$B$1,'Tabla de Amortizacion'!$D$2:$P$2,0)) -> 0.01307399 | E30: =IF([1]CALCULADORA!$F$10="Contractual",ROUND('[1]Tabla de Amortizacion'!C31,8),IF([1]CALCULADORA!$F$10="6% (Medio)",ROUND('[1]Tabla de Amortizacion'!F31,8),IF([1]CALCULADORA!$F$10="10% (Medio Alto)",ROUND('[1]Tabla de Amortizacion'!H31,8),IF([1]CALCULADORA!$F$10="14% (Alto)",ROUND('[1]Tabla de Amortizacion'!#REF!,8),IF([1]CALCULADORA!$F$10=20%,ROUND('[1]Tabla de Amortizacion'!#REF!,8),ROUND('[1]Tabla de Amortizacion'!K31,8)))))) -> 0
A31: 2027-01-18 | B31: 0.01257857 | C31: =+VLOOKUP(A31,'Tabla de Amortizacion'!$D$2:$P$182,MATCH(Tablas!$B$1,'Tabla de Amortizacion'!$D$2:$P$2,0)) -> 0.01257857 | E31: =IF([1]CALCULADORA!$F$10="Contractual",ROUND('[1]Tabla de Amortizacion'!C32,8),IF([1]CALCULADORA!$F$10="6% (Medio)",ROUND('[1]Tabla de Amortizacion'!F32,8),IF([1]CALCULADORA!$F$10="10% (Medio Alto)",ROUND('[1]Tabla de Amortizacion'!H32,8),IF([1]CALCULADORA!$F$10="14% (Alto)",ROUND('[1]Tabla de Amortizacion'!#REF!,8),IF([1]CALCULADORA!$F$10=20%,ROUND('[1]Tabla de Amortizacion'!#REF!,8),ROUND('[1]Tabla de Amortizacion'!K32,8)))))) -> 0
A32: 2027-02-18 | B32: 0.01209722 | C32: =+VLOOKUP(A32,'Tabla de Amortizacion'!$D$2:$P$182,MATCH(Tablas!$B$1,'Tabla de Amortizacion'!$D$2:$P$2,0)) -> 0.01209722 | E32: =IF([1]CALCULADORA!$F$10="Contractual",ROUND('[1]Tabla de Amortizacion'!C33,8),IF([1]CALCULADORA!$F$10="6% (Medio)",ROUND('[1]Tabla de Amortizacion'!F33,8),IF([1]CALCULADORA!$F$10="10% (Medio Alto)",ROUND('[1]Tabla de Amortizacion'!H33,8),IF([1]CALCULADORA!$F$10="14% (Alto)",ROUND('[1]Tabla de Amortizacion'!#REF!,8),IF([1]CALCULADORA!$F$10=20%,ROUND('[1]Tabla de Amortizacion'!#REF!,8),ROUND('[1]Tabla de Amortizacion'!K33,8)))))) -> 0
A33: 2027-03-18 | B33: 0.01164632 | C33: =+VLOOKUP(A33,'Tabla de Amortizacion'!$D$2:$P$182,MATCH(Tablas!$B$1,'Tabla de Amortizacion'!$D$2:$P$2,0)) -> 0.01164632 | E33: =IF([1]CALCULADORA!$F$10="Contractual",ROUND('[1]Tabla de Amortizacion'!C34,8),IF([1]CALCULADORA!$F$10="6% (Medio)",ROUND('[1]Tabla de Amortizacion'!F34,8),IF([1]CALCULADORA!$F$10="10% (Medio Alto)",ROUND('[1]Tabla de Amortizacion'!H34,8),IF([1]CALCULADORA!$F$10="14% (Alto)",ROUND('[1]Tabla de Amortizacion'!#REF!,8),IF([1]CALCULADORA!$F$10=20%,ROUND('[1]Tabla de Amortizacion'!#REF!,8),ROUND('[1]Tabla de Amortizacion'!K34,8)))))) -> 0
A34: 2027-04-18 | B34: 0.01120951 | C34: =+VLOOKUP(A34,'Tabla de Amortizacion'!$D$2:$P$182,MATCH(Tablas!$B$1,'Tabla de Amortizacion'!$D$2:$P$2,0)) -> 0.01120951 | E34: =IF([1]CALCULADORA!$F$10="Contractual",ROUND('[1]Tabla de Amortizacion'!C35,8),IF([1]CALCULADORA!$F$10="6% (Medio)",ROUND('[1]Tabla de Amortizacion'!F35,8),IF([1]CALCULADORA!$F$10="10% (Medio Alto)",ROUND('[1]Tabla de Amortizacion'!H35,8),IF([1]CALCULADORA!$F$10="14% (Alto)",ROUND('[1]Tabla de Amortizacion'!#REF!,8),IF([1]CALCULADORA!$F$10=20%,ROUND('[1]Tabla de Amortizacion'!#REF!,8),ROUND('[1]Tabla de Amortizacion'!K35,8)))))) -> 0
A35: 2027-05-18 | B35: 0.01078439 | C35: =+VLOOKUP(A35,'Tabla de Amortizacion'!$D$2:$P$182,MATCH(Tablas!$B$1,'Tabla de Amortizacion'!$D$2:$P$2,0)) -> 0.01078439 | E35: =IF([1]CALCULADORA!$F$10="Contractual",ROUND('[1]Tabla de Amortizacion'!C36,8),IF([1]CALCULADORA!$F$10="6% (Medio)",ROUND('[1]Tabla de Amortizacion'!F36,8),IF([1]CALCULADORA!$F$10="10% (Medio Alto)",ROUND('[1]Tabla de Amortizacion'!H36,8),IF([1]CALCULADORA!$F$10="14% (Alto)",ROUND('[1]Tabla de Amortizacion'!#REF!,8),IF([1]CALCULADORA!$F$10=20%,ROUND('[1]Tabla de Amortizacion'!#REF!,8),ROUND('[1]Tabla de Amortizacion'!K36,8)))))) -> 0
A36: 2027-06-18 | B36: 0.0103709 | C36: =+VLOOKUP(A36,'Tabla de Amortizacion'!$D$2:$P$182,MATCH(Tablas!$B$1,'Tabla de Amortizacion'!$D$2:$P$2,0)) -> 0.0103709 | E36: =IF([1]CALCULADORA!$F$10="Contractual",ROUND('[1]Tabla de Amortizacion'!C37,8),IF([1]CALCULADORA!$F$10="6% (Medio)",ROUND('[1]Tabla de Amortizacion'!F37,8),IF([1]CALCULADORA!$F$10="10% (Medio Alto)",ROUND('[1]Tabla de Amortizacion'!H37,8),IF([1]CALCULADORA!$F$10="14% (Alto)",ROUND('[1]Tabla de Amortizacion'!#REF!,8),IF([1]CALCULADORA!$F$10=20%,ROUND('[1]Tabla de Amortizacion'!#REF!,8),ROUND('[1]Tabla de Amortizacion'!K37,8)))))) -> 0
A37: 2027-07-18 | B37: 0.00996405 | C37: =+VLOOKUP(A37,'Tabla de Amortizacion'!$D$2:$P$182,MATCH(Tablas!$B$1,'Tabla de Amortizacion'!$D$2:$P$2,0)) -> 0.00996405 | E37: =IF([1]CALCULADORA!$F$10="Contractual",ROUND('[1]Tabla de Amortizacion'!C38,8),IF([1]CALCULADORA!$F$10="6% (Medio)",ROUND('[1]Tabla de Amortizacion'!F38,8),IF([1]CALCULADORA!$F$10="10% (Medio Alto)",ROUND('[1]Tabla de Amortizacion'!H38,8),IF([1]CALCULADORA!$F$10="14% (Alto)",ROUND('[1]Tabla de Amortizacion'!#REF!,8),IF([1]CALCULADORA!$F$10=20%,ROUND('[1]Tabla de Amortizacion'!#REF!,8),ROUND('[1]Tabla de Amortizacion'!K38,8)))))) -> 0
A38: 2027-08-18 | B38: 0.00958658 | C38: =+VLOOKUP(A38,'Tabla de Amortizacion'!$D$2:$P$182,MATCH(Tablas!$B$1,'Tabla de Amortizacion'!$D$2:$P$2,0)) -> 0.00958658 | E38: =IF([1]CALCULADORA!$F$10="Contractual",ROUND('[1]Tabla de Amortizacion'!C39,8),IF([1]CALCULADORA!$F$10="6% (Medio)",ROUND('[1]Tabla de Amortizacion'!F39,8),IF([1]CALCULADORA!$F$10="10% (Medio Alto)",ROUND('[1]Tabla de Amortizacion'!H39,8),IF([1]CALCULADORA!$F$10="14% (Alto)",ROUND('[1]Tabla de Amortizacion'!#REF!,8),IF([1]CALCULADORA!$F$10=20%,ROUND('[1]Tabla de Amortizacion'!#REF!,8),ROUND('[1]Tabla de Amortizacion'!K39,8)))))) -> 0
A39: 2027-09-18 | B39: 0.00921933 | C39: =+VLOOKUP(A39,'Tabla de Amortizacion'!$D$2:$P$182,MATCH(Tablas!$B$1,'Tabla de Amortizacion'!$D$2:$P$2,0)) -> 0.00921933 | E39: =IF([1]CALCULADORA!$F$10="Contractual",ROUND('[1]Tabla de Amortizacion'!C40,8),IF([1]CALCULADORA!$F$10="6% (Medio)",ROUND('[1]Tabla de Amortizacion'!F40,8),IF([1]CALCULADORA!$F$10="10% (Medio Alto)",ROUND('[1]Tabla de Amortizacion'!H40,8),IF([1]CALCULADORA!$F$10="14% (Alto)",ROUND('[1]Tabla de Amortizacion'!#REF!,8),IF([1]CALCULADORA!$F$10=20%,ROUND('[1]Tabla de Amortizacion'!#REF!,8),ROUND('[1]Tabla de Amortizacion'!K40,8)))))) -> 0
A40: 2027-10-18 | B40: 0.00887083 | C40: =+VLOOKUP(A40,'Tabla de Amortizacion'!$D$2:$P$182,MATCH(Tablas!$B$1,'Tabla de Amortizacion'!$D$2:$P$2,0)) -> 0.00887083 | E40: =IF([1]CALCULADORA!$F$10="Contractual",ROUND('[1]Tabla de Amortizacion'!C41,8),IF([1]CALCULADORA!$F$10="6% (Medio)",ROUND('[1]Tabla de Amortizacion'!F41,8),IF([1]CALCULADORA!$F$10="10% (Medio Alto)",ROUND('[1]Tabla de Amortizacion'!H41,8),IF([1]CALCULADORA!$F$10="14% (Alto)",ROUND('[1]Tabla de Amortizacion'!#REF!,8),IF([1]CALCULADORA!$F$10=20%,ROUND('[1]Tabla de Amortizacion'!#REF!,8),ROUND('[1]Tabla de Amortizacion'!K41,8)))))) -> 0
A41: 2027-11-18 | B41: 0.00852532 | C41: =+VLOOKUP(A41,'Tabla de Amortizacion'!$D$2:$P$182,MATCH(Tablas!$B$1,'Tabla de Amortizacion'!$D$2:$P$2,0)) -> 0.00852532 | E41: =IF([1]CALCULADORA!$F$10="Contractual",ROUND('[1]Tabla de Amortizacion'!C42,8),IF([1]CALCULADORA!$F$10="6% (Medio)",ROUND('[1]Tabla de Amortizacion'!F42,8),IF([1]CALCULADORA!$F$10="10% (Medio Alto)",ROUND('[1]Tabla de Amortizacion'!H42,8),IF([1]CALCULADORA!$F$10="14% (Alto)",ROUND('[1]Tabla de Amortizacion'!#REF!,8),IF([1]CALCULADORA!$F$10=20%,ROUND('[1]Tabla de Amortizacion'!#REF!,8),ROUND('[1]Tabla de Amortizacion'!K42,8)))))) -> 0
A42: 2027-12-18 | B42: 0.00818916 | C42: =+VLOOKUP(A42,'Tabla de Amortizacion'!$D$2:$P$182,MATCH(Tablas!$B$1,'Tabla de Amortizacion'!$D$2:$P$2,0)) -> 0.00818916 | E42: =IF([1]CALCULADORA!$F$10="Contractual",ROUND('[1]Tabla de Amortizacion'!C43,8),IF([1]CALCULADORA!$F$10="6% (Medio)",ROUND('[1]Tabla de Amortizacion'!F43,8),IF([1]CALCULADORA!$F$10="10% (Medio Alto)",ROUND('[1]Tabla de Amortizacion'!H43,8),IF([1]CALCULADORA!$F$10="14% (Alto)",ROUND('[1]Tabla de Amortizacion'!#REF!,8),IF([1]CALCULADORA!$F$10=20%,ROUND('[1]Tabla de Amortizacion'!#REF!,8),ROUND('[1]Tabla de Amortizacion'!K43,8)))))) -> 0
A43: 2028-01-18 | B43: 0.00787056 | C43: =+VLOOKUP(A43,'Tabla de Amortizacion'!$D$2:$P$182,MATCH(Tablas!$B$1,'Tabla de Amortizacion'!$D$2:$P$2,0)) -> 0.00787056 | E43: =IF([1]CALCULADORA!$F$10="Contractual",ROUND('[1]Tabla de Amortizacion'!C44,8),IF([1]CALCULADORA!$F$10="6% (Medio)",ROUND('[1]Tabla de Amortizacion'!F44,8),IF([1]CALCULADORA!$F$10="10% (Medio Alto)",ROUND('[1]Tabla de Amortizacion'!H44,8),IF([1]CALCULADORA!$F$10="14% (Alto)",ROUND('[1]Tabla de Amortizacion'!#REF!,8),IF([1]CALCULADORA!$F$10=20%,ROUND('[1]Tabla de Amortizacion'!#REF!,8),ROUND('[1]Tabla de Amortizacion'!K44,8)))))) -> 0
A44: 2028-02-18 | B44: 0.0075681 | C44: =+VLOOKUP(A44,'Tabla de Amortizacion'!$D$2:$P$182,MATCH(Tablas!$B$1,'Tabla de Amortizacion'!$D$2:$P$2,0)) -> 0.0075681 | E44: =IF([1]CALCULADORA!$F$10="Contractual",ROUND('[1]Tabla de Amortizacion'!C45,8),IF([1]CALCULADORA!$F$10="6% (Medio)",ROUND('[1]Tabla de Amortizacion'!F45,8),IF([1]CALCULADORA!$F$10="10% (Medio Alto)",ROUND('[1]Tabla de Amortizacion'!H45,8),IF([1]CALCULADORA!$F$10="14% (Alto)",ROUND('[1]Tabla de Amortizacion'!#REF!,8),IF([1]CALCULADORA!$F$10=20%,ROUND('[1]Tabla de Amortizacion'!#REF!,8),ROUND('[1]Tabla de Amortizacion'!K45,8)))))) -> 0
A45: 2028-03-18 | B45: 0.0072791 | C45: =+VLOOKUP(A45,'Tabla de Amortizacion'!$D$2:$P$182,MATCH(Tablas!$B$1,'Tabla de Amortizacion'!$D$2:$P$2,0)) -> 0.0072791 | E45: =IF([1]CALCULADORA!$F$10="Contractual",ROUND('[1]Tabla de Amortizacion'!C46,8),IF([1]CALCULADORA!$F$10="6% (Medio)",ROUND('[1]Tabla de Amortizacion'!F46,8),IF([1]CALCULADORA!$F$10="10% (Medio Alto)",ROUND('[1]Tabla de Amortizacion'!H46,8),IF([1]CALCULADORA!$F$10="14% (Alto)",ROUND('[1]Tabla de Amortizacion'!#REF!,8),IF([1]CALCULADORA!$F$10=20%,ROUND('[1]Tabla de Amortizacion'!#REF!,8),ROUND('[1]Tabla de Amortizacion'!K46,8)))))) -> 0
A46: 2028-04-18 | B46: 0.00699207 | C46: =+VLOOKUP(A46,'Tabla de Amortizacion'!$D$2:$P$182,MATCH(Tablas!$B$1,'Tabla de Amortizacion'!$D$2:$P$2,0)) -> 0.00699207 | E46: =IF([1]CALCULADORA!$F$10="Contractual",ROUND('[1]Tabla de Amortizacion'!C47,8),IF([1]CALCULADORA!$F$10="6% (Medio)",ROUND('[1]Tabla de Amortizacion'!F47,8),IF([1]CALCULADORA!$F$10="10% (Medio Alto)",ROUND('[1]Tabla de Amortizacion'!H47,8),IF([1]CALCULADORA!$F$10="14% (Alto)",ROUND('[1]Tabla de Amortizacion'!#REF!,8),IF([1]CALCULADORA!$F$10=20%,ROUND('[1]Tabla de Amortizacion'!#REF!,8),ROUND('[1]Tabla de Amortizacion'!K47,8)))))) -> 0
A47: 2028-05-18 | B47: 0.006722 | C47: =+VLOOKUP(A47,'Tabla de Amortizacion'!$D$2:$P$182,MATCH(Tablas!$B$1,'Tabla de Amortizacion'!$D$2:$P$2,0)) -> 0.006722 | E47: =IF([1]CALCULADORA!$F$10="Contractual",ROUND('[1]Tabla de Amortizacion'!C48,8),IF([1]CALCULADORA!$F$10="6% (Medio)",ROUND('[1]Tabla de Amortizacion'!F48,8),IF([1]CALCULADORA!$F$10="10% (Medio Alto)",ROUND('[1]Tabla de Amortizacion'!H48,8),IF([1]CALCULADORA!$F$10="14% (Alto)",ROUND('[1]Tabla de Amortizacion'!#REF!,8),IF([1]CALCULADORA!$F$10=20%,ROUND('[1]Tabla de Amortizacion'!#REF!,8),ROUND('[1]Tabla de Amortizacion'!K48,8)))))) -> 0
A48: 2028-06-18 | B48: 0.00646522 | C48: =+VLOOKUP(A48,'Tabla de Amortizacion'!$D$2:$P$182,MATCH(Tablas!$B$1,'Tabla de Amortizacion'!$D$2:$P$2,0)) -> 0.00646522 | E48: =IF([1]CALCULADORA!$F$10="Contractual",ROUND('[1]Tabla de Amortizacion'!C49,8),IF([1]CALCULADORA!$F$10="6% (Medio)",ROUND('[1]Tabla de Amortizacion'!F49,8),IF([1]CALCULADORA!$F$10="10% (Medio Alto)",ROUND('[1]Tabla de Amortizacion'!H49,8),IF([1]CALCULADORA!$F$10="14% (Alto)",ROUND('[1]Tabla de Amortizacion'!#REF!,8),IF([1]CALCULADORA!$F$10=20%,ROUND('[1]Tabla de Amortizacion'!#REF!,8),ROUND('[1]Tabla de Amortizacion'!K49,8)))))) -> 0
A49: 2028-07-18 | B49: 0.00621312 | C49: =+VLOOKUP(A49,'Tabla de Amortizacion'!$D$2:$P$182,MATCH(Tablas!$B$1,'Tabla de Amortizacion'!$D$2:$P$2,0)) -> 0.00621312 | E49: =IF([1]CALCULADORA!$F$10="Contractual",ROUND('[1]Tabla de Amortizacion'!C50,8),IF([1]CALCULADORA!$F$10="6% (Medio)",ROUND('[1]Tabla de Amortizacion'!F50,8),IF([1]CALCULADORA!$F$10="10% (Medio Alto)",ROUND('[1]Tabla de Amortizacion'!H50,8),IF([1]CALCULADORA!$F$10="14% (Alto)",ROUND('[1]Tabla de Amortizacion'!#REF!,8),IF([1]CALCULADORA!$F$10=20%,ROUND('[1]Tabla de Amortizacion'!#REF!,8),ROUND('[1]Tabla de Amortizacion'!K50,8)))))) -> 0
A50: 2028-08-18 | B50: 0.00597945 | C50: =+VLOOKUP(A50,'Tabla de Amortizacion'!$D$2:$P$182,MATCH(Tablas!$B$1,'Tabla de Amortizacion'!$D$2:$P$2,0)) -> 0.00597945 | E50: =IF([1]CALCULADORA!$F$10="Contractual",ROUND('[1]Tabla de Amortizacion'!C51,8),IF([1]CALCULADORA!$F$10="6% (Medio)",ROUND('[1]Tabla de Amortizacion'!F51,8),IF([1]CALCULADORA!$F$10="10% (Medio Alto)",ROUND('[1]Tabla de Amortizacion'!H51,8),IF([1]CALCULADORA!$F$10="14% (Alto)",ROUND('[1]Tabla de Amortizacion'!#REF!,8),IF([1]CALCULADORA!$F$10=20%,ROUND('[1]Tabla de Amortizacion'!#REF!,8),ROUND('[1]Tabla de Amortizacion'!K51,8)))))) -> 0
A51: 2028-09-18 | B51: 0.00574724 | C51: =+VLOOKUP(A51,'Tabla de Amortizacion'!$D$2:$P$182,MATCH(Tablas!$B$1,'Tabla de Amortizacion'!$D$2:$P$2,0)) -> 0.00574724 | E51: =IF([1]CALCULADORA!$F$10="Contractual",ROUND('[1]Tabla de Amortizacion'!C52,8),IF([1]CALCULADORA!$F$10="6% (Medio)",ROUND('[1]Tabla de Amortizacion'!F52,8),IF([1]CALCULADORA!$F$10="10% (Medio Alto)",ROUND('[1]Tabla de Amortizacion'!H52,8),IF([1]CALCULADORA!$F$10="14% (Alto)",ROUND('[1]Tabla de Amortizacion'!#REF!,8),IF([1]CALCULADORA!$F$10=20%,ROUND('[1]Tabla de Amortizacion'!#REF!,8),ROUND('[1]Tabla de Amortizacion'!K52,8)))))) -> 0
A52: 2028-10-18 | B52: 0.00552131 | C52: =+VLOOKUP(A52,'Tabla de Amortizacion'!$D$2:$P$182,MATCH(Tablas!$B$1,'Tabla de Amortizacion'!$D$2:$P$2,0)) -> 0.00552131 | E52: =IF([1]CALCULADORA!$F$10="Contractual",ROUND('[1]Tabla de Amortizacion'!C53,8),IF([1]CALCULADORA!$F$10="6% (Medio)",ROUND('[1]Tabla de Amortizacion'!F53,8),IF([1]CALCULADORA!$F$10="10% (Medio Alto)",ROUND('[1]Tabla de Amortizacion'!H53,8),IF([1]CALCULADORA!$F$10="14% (Alto)",ROUND('[1]Tabla de Amortizacion'!#REF!,8),IF([1]CALCULADORA!$F$10=20%,ROUND('[1]Tabla de Amortizacion'!#REF!,8),ROUND('[1]Tabla de Amortizacion'!K53,8)))))) -> 0
A53: 2028-11-18 | B53: 0.0052973 | C53: =+VLOOKUP(A53,'Tabla de Amortizacion'!$D$2:$P$182,MATCH(Tablas!$B$1,'Tabla de Amortizacion'!$D$2:$P$2,0)) -> 0.0052973 | E53: =IF([1]CALCULADORA!$F$10="Contractual",ROUND('[1]Tabla de Amortizacion'!C54,8),IF([1]CALCULADORA!$F$10="6% (Medio)",ROUND('[1]Tabla de Amortizacion'!F54,8),IF([1]CALCULADORA!$F$10="10% (Medio Alto)",ROUND('[1]Tabla de Amortizacion'!H54,8),IF([1]CALCULADORA!$F$10="14% (Alto)",ROUND('[1]Tabla de Amortizacion'!#REF!,8),IF([1]CALCULADORA!$F$10=20%,ROUND('[1]Tabla de Amortizacion'!#REF!,8),ROUND('[1]Tabla de Amortizacion'!K54,8)))))) -> 0
A54: 2028-12-18 | B54: 0.00509616 | C54: =+VLOOKUP(A54,'Tabla de Amortizacion'!$D$2:$P$182,MATCH(Tablas!$B$1,'Tabla de Amortizacion'!$D$2:$P$2,0)) -> 0.00509616 | E54: =IF([1]CALCULADORA!$F$10="Contractual",ROUND('[1]Tabla de Amortizacion'!C55,8),IF([1]CALCULADORA!$F$10="6% (Medio)",ROUND('[1]Tabla de Amortizacion'!F55,8),IF([1]CALCULADORA!$F$10="10% (Medio Alto)",ROUND('[1]Tabla de Amortizacion'!H55,8),IF([1]CALCULADORA!$F$10="14% (Alto)",ROUND('[1]Tabla de Amortizacion'!#REF!,8),IF([1]CALCULADORA!$F$10=20%,ROUND('[1]Tabla de Amortizacion'!#REF!,8),ROUND('[1]Tabla de Amortizacion'!K55,8)))))) -> 0
A55: 2029-01-18 | B55: 0.00490049 | C55: =+VLOOKUP(A55,'Tabla de Amortizacion'!$D$2:$P$182,MATCH(Tablas!$B$1,'Tabla de Amortizacion'!$D$2:$P$2,0)) -> 0.00490049 | E55: =IF([1]CALCULADORA!$F$10="Contractual",ROUND('[1]Tabla de Amortizacion'!C56,8),IF([1]CALCULADORA!$F$10="6% (Medio)",ROUND('[1]Tabla de Amortizacion'!F56,8),IF([1]CALCULADORA!$F$10="10% (Medio Alto)",ROUND('[1]Tabla de Amortizacion'!H56,8),IF([1]CALCULADORA!$F$10="14% (Alto)",ROUND('[1]Tabla de Amortizacion'!#REF!,8),IF([1]CALCULADORA!$F$10=20%,ROUND('[1]Tabla de Amortizacion'!#REF!,8),ROUND('[1]Tabla de Amortizacion'!K56,8)))))) -> 0
A56: 2029-02-18 | B56: 0.004708 | C56: =+VLOOKUP(A56,'Tabla de Amortizacion'!$D$2:$P$182,MATCH(Tablas!$B$1,'Tabla de Amortizacion'!$D$2:$P$2,0)) -> 0.004708 | E56: =IF([1]CALCULADORA!$F$10="Contractual",ROUND('[1]Tabla de Amortizacion'!C57,8),IF([1]CALCULADORA!$F$10="6% (Medio)",ROUND('[1]Tabla de Amortizacion'!F57,8),IF([1]CALCULADORA!$F$10="10% (Medio Alto)",ROUND('[1]Tabla de Amortizacion'!H57,8),IF([1]CALCULADORA!$F$10="14% (Alto)",ROUND('[1]Tabla de Amortizacion'!#REF!,8),IF([1]CALCULADORA!$F$10=20%,ROUND('[1]Tabla de Amortizacion'!#REF!,8),ROUND('[1]Tabla de Amortizacion'!K57,8)))))) -> 0
A57: 2029-03-18 | B57: 0.00452937 | C57: =+VLOOKUP(A57,'Tabla de Amortizacion'!$D$2:$P$182,MATCH(Tablas!$B$1,'Tabla de Amortizacion'!$D$2:$P$2,0)) -> 0.00452937 | E57: =IF([1]CALCULADORA!$F$10="Contractual",ROUND('[1]Tabla de Amortizacion'!C58,8),IF([1]CALCULADORA!$F$10="6% (Medio)",ROUND('[1]Tabla de Amortizacion'!F58,8),IF([1]CALCULADORA!$F$10="10% (Medio Alto)",ROUND('[1]Tabla de Amortizacion'!H58,8),IF([1]CALCULADORA!$F$10="14% (Alto)",ROUND('[1]Tabla de Amortizacion'!#REF!,8),IF([1]CALCULADORA!$F$10=20%,ROUND('[1]Tabla de Amortizacion'!#REF!,8),ROUND('[1]Tabla de Amortizacion'!K58,8)))))) -> 0
A58: 2029-04-18 | B58: 0.00435506 | C58: =+VLOOKUP(A58,'Tabla de Amortizacion'!$D$2:$P$182,MATCH(Tablas!$B$1,'Tabla de Amortizacion'!$D$2:$P$2,0)) -> 0.00435506 | E58: =IF([1]CALCULADORA!$F$10="Contractual",ROUND('[1]Tabla de Amortizacion'!C59,8),IF([1]CALCULADORA!$F$10="6% (Medio)",ROUND('[1]Tabla de Amortizacion'!F59,8),IF([1]CALCULADORA!$F$10="10% (Medio Alto)",ROUND('[1]Tabla de Amortizacion'!H59,8),IF([1]CALCULADORA!$F$10="14% (Alto)",ROUND('[1]Tabla de Amortizacion'!#REF!,8),IF([1]CALCULADORA!$F$10=20%,ROUND('[1]Tabla de Amortizacion'!#REF!,8),ROUND('[1]Tabla de Amortizacion'!K59,8)))))) -> 0
A59: 2029-05-18 | B59: 0.00418692 | C59: =+VLOOKUP(A59,'Tabla de Amortizacion'!$D$2:$P$182,MATCH(Tablas!$B$1,'Tabla de Amortizacion'!$D$2:$P$2,0)) -> 0.00418692 | E59: =IF([1]CALCULADORA!$F$10="Contractual",ROUND('[1]Tabla de Amortizacion'!C60,8),IF([1]CALCULADORA!$F$10="6% (Medio)",ROUND('[1]Tabla de Amortizacion'!F60,8),IF([1]CALCULADORA!$F$10="10% (Medio Alto)",ROUND('[1]Tabla de Amortizacion'!H60,8),IF([1]CALCULADORA!$F$10="14% (Alto)",ROUND('[1]Tabla de Amortizacion'!#REF!,8),IF([1]CALCULADORA!$F$10=20%,ROUND('[1]Tabla de Amortizacion'!#REF!,8),ROUND('[1]Tabla de Amortizacion'!K60,8)))))) -> 0
A60: 2029-06-18 | B60: 0.00402453 | C60: =+VLOOKUP(A60,'Tabla de Amortizacion'!$D$2:$P$182,MATCH(Tablas!$B$1,'Tabla de Amortizacion'!$D$2:$P$2,0)) -> 0.00402453 | E60: =IF([1]CALCULADORA!$F$10="Contractual",ROUND('[1]Tabla de Amortizacion'!C61,8),IF([1]CALCULADORA!$F$10="6% (Medio)",ROUND('[1]Tabla de Amortizacion'!F61,8),IF([1]CALCULADORA!$F$10="10% (Medio Alto)",ROUND('[1]Tabla de Amortizacion'!H61,8),IF([1]CALCULADORA!$F$10="14% (Alto)",ROUND('[1]Tabla de Amortizacion'!#REF!,8),IF([1]CALCULADORA!$F$10=20%,ROUND('[1]Tabla de Amortizacion'!#REF!,8),ROUND('[1]Tabla de Amortizacion'!K61,8)))))) -> 0
A61: 2029-07-18 | B61: 0.00386837 | C61: =+VLOOKUP(A61,'Tabla de Amortizacion'!$D$2:$P$182,MATCH(Tablas!$B$1,'Tabla de Amortizacion'!$D$2:$P$2,0)) -> 0.00386837 | E61: =IF([1]CALCULADORA!$F$10="Contractual",ROUND('[1]Tabla de Amortizacion'!C62,8),IF([1]CALCULADORA!$F$10="6% (Medio)",ROUND('[1]Tabla de Amortizacion'!F62,8),IF([1]CALCULADORA!$F$10="10% (Medio Alto)",ROUND('[1]Tabla de Amortizacion'!H62,8),IF([1]CALCULADORA!$F$10="14% (Alto)",ROUND('[1]Tabla de Amortizacion'!#REF!,8),IF([1]CALCULADORA!$F$10=20%,ROUND('[1]Tabla de Amortizacion'!#REF!,8),ROUND('[1]Tabla de Amortizacion'!K62,8)))))) -> 0
A62: 2029-08-18 | B62: 0.00371754 | C62: =+VLOOKUP(A62,'Tabla de Amortizacion'!$D$2:$P$182,MATCH(Tablas!$B$1,'Tabla de Amortizacion'!$D$2:$P$2,0)) -> 0.00371754 | E62: =IF([1]CALCULADORA!$F$10="Contractual",ROUND('[1]Tabla de Amortizacion'!C63,8),IF([1]CALCULADORA!$F$10="6% (Medio)",ROUND('[1]Tabla de Amortizacion'!F63,8),IF([1]CALCULADORA!$F$10="10% (Medio Alto)",ROUND('[1]Tabla de Amortizacion'!H63,8),IF([1]CALCULADORA!$F$10="14% (Alto)",ROUND('[1]Tabla de Amortizacion'!#REF!,8),IF([1]CALCULADORA!$F$10=20%,ROUND('[1]Tabla de Amortizacion'!#REF!,8),ROUND('[1]Tabla de Amortizacion'!K63,8)))))) -> 0
A63: 2029-09-18 | B63: 0.00357481 | C63: =+VLOOKUP(A63,'Tabla de Amortizacion'!$D$2:$P$182,MATCH(Tablas!$B$1,'Tabla de Amortizacion'!$D$2:$P$2,0)) -> 0.00357481 | E63: =IF([1]CALCULADORA!$F$10="Contractual",ROUND('[1]Tabla de Amortizacion'!C64,8),IF([1]CALCULADORA!$F$10="6% (Medio)",ROUND('[1]Tabla de Amortizacion'!F64,8),IF([1]CALCULADORA!$F$10="10% (Medio Alto)",ROUND('[1]Tabla de Amortizacion'!H64,8),IF([1]CALCULADORA!$F$10="14% (Alto)",ROUND('[1]Tabla de Amortizacion'!#REF!,8),IF([1]CALCULADORA!$F$10=20%,ROUND('[1]Tabla de Amortizacion'!#REF!,8),ROUND('[1]Tabla de Amortizacion'!K64,8)))))) -> 0
A64: 2029-10-18 | B64: 0.00343681 | C64: =+VLOOKUP(A64,'Tabla de Amortizacion'!$D$2:$P$182,MATCH(Tablas!$B$1,'Tabla de Amortizacion'!$D$2:$P$2,0)) -> 0.00343681 | E64: =IF([1]CALCULADORA!$F$10="Contractual",ROUND('[1]Tabla de Amortizacion'!C65,8),IF([1]CALCULADORA!$F$10="6% (Medio)",ROUND('[1]Tabla de Amortizacion'!F65,8),IF([1]CALCULADORA!$F$10="10% (Medio Alto)",ROUND('[1]Tabla de Amortizacion'!H65,8),IF([1]CALCULADORA!$F$10="14% (Alto)",ROUND('[1]Tabla de Amortizacion'!#REF!,8),IF([1]CALCULADORA!$F$10=20%,ROUND('[1]Tabla de Amortizacion'!#REF!,8),ROUND('[1]Tabla de Amortizacion'!K65,8)))))) -> 0
A65: 2029-11-18 | B65: 0.00329827 | C65: =+VLOOKUP(A65,'Tabla de Amortizacion'!$D$2:$P$182,MATCH(Tablas!$B$1,'Tabla de Amortizacion'!$D$2:$P$2,0)) -> 0.00329827 | E65: =IF([1]CALCULADORA!$F$10="Contractual",ROUND('[1]Tabla de Amortizacion'!C66,8),IF([1]CALCULADORA!$F$10="6% (Medio)",ROUND('[1]Tabla de Amortizacion'!F66,8),IF([1]CALCULADORA!$F$10="10% (Medio Alto)",ROUND('[1]Tabla de Amortizacion'!H66,8),IF([1]CALCULADORA!$F$10="14% (Alto)",ROUND('[1]Tabla de Amortizacion'!#REF!,8),IF([1]CALCULADORA!$F$10=20%,ROUND('[1]Tabla de Amortizacion'!#REF!,8),ROUND('[1]Tabla de Amortizacion'!K66,8)))))) -> 0
A66: 2029-12-18 | B66: 0.00316613 | C66: =+VLOOKUP(A66,'Tabla de Amortizacion'!$D$2:$P$182,MATCH(Tablas!$B$1,'Tabla de Amortizacion'!$D$2:$P$2,0)) -> 0.00316613 | E66: =IF([1]CALCULADORA!$F$10="Contractual",ROUND('[1]Tabla de Amortizacion'!C67,8),IF([1]CALCULADORA!$F$10="6% (Medio)",ROUND('[1]Tabla de Amortizacion'!F67,8),IF([1]CALCULADORA!$F$10="10% (Medio Alto)",ROUND('[1]Tabla de Amortizacion'!H67,8),IF([1]CALCULADORA!$F$10="14% (Alto)",ROUND('[1]Tabla de Amortizacion'!#REF!,8),IF([1]CALCULADORA!$F$10=20%,ROUND('[1]Tabla de Amortizacion'!#REF!,8),ROUND('[1]Tabla de Amortizacion'!K67,8)))))) -> 0
A67: =EDATE(A66,1) -> 2030-01-18 | B67: =+ROUND(C67,8) -> 0.00304404 | C67: =+VLOOKUP(A67,'Tabla de Amortizacion'!$D$2:$P$182,MATCH(Tablas!$B$1,'Tabla de Amortizacion'!$D$2:$P$2,0)) -> 0.00304404 | E67: =IF([1]CALCULADORA!$F$10="Contractual",ROUND('[1]Tabla de Amortizacion'!C68,8),IF([1]CALCULADORA!$F$10="6% (Medio)",ROUND('[1]Tabla de Amortizacion'!F68,8),IF([1]CALCULADORA!$F$10="10% (Medio Alto)",ROUND('[1]Tabla de Amortizacion'!H68,8),IF([1]CALCULADORA!$F$10="14% (Alto)",ROUND('[1]Tabla de Amortizacion'!#REF!,8),IF([1]CALCULADORA!$F$10=20%,ROUND('[1]Tabla de Amortizacion'!#REF!,8),ROUND('[1]Tabla de Amortizacion'!K68,8)))))) -> 0
A68: 2030-02-18 | B68: 0.00292686 | C68: =+VLOOKUP(A68,'Tabla de Amortizacion'!$D$2:$P$182,MATCH(Tablas!$B$1,'Tabla de Amortizacion'!$D$2:$P$2,0)) -> 0.00292686 | E68: =IF([1]CALCULADORA!$F$10="Contractual",ROUND('[1]Tabla de Amortizacion'!C69,8),IF([1]CALCULADORA!$F$10="6% (Medio)",ROUND('[1]Tabla de Amortizacion'!F69,8),IF([1]CALCULADORA!$F$10="10% (Medio Alto)",ROUND('[1]Tabla de Amortizacion'!H69,8),IF([1]CALCULADORA!$F$10="14% (Alto)",ROUND('[1]Tabla de Amortizacion'!#REF!,8),IF([1]CALCULADORA!$F$10=20%,ROUND('[1]Tabla de Amortizacion'!#REF!,8),ROUND('[1]Tabla de Amortizacion'!K69,8)))))) -> 0
A69: 2030-03-18 | B69: 0.00281399 | C69: =+VLOOKUP(A69,'Tabla de Amortizacion'!$D$2:$P$182,MATCH(Tablas!$B$1,'Tabla de Amortizacion'!$D$2:$P$2,0)) -> 0.00281399 | E69: =IF([1]CALCULADORA!$F$10="Contractual",ROUND('[1]Tabla de Amortizacion'!C70,8),IF([1]CALCULADORA!$F$10="6% (Medio)",ROUND('[1]Tabla de Amortizacion'!F70,8),IF([1]CALCULADORA!$F$10="10% (Medio Alto)",ROUND('[1]Tabla de Amortizacion'!H70,8),IF([1]CALCULADORA!$F$10="14% (Alto)",ROUND('[1]Tabla de Amortizacion'!#REF!,8),IF([1]CALCULADORA!$F$10=20%,ROUND('[1]Tabla de Amortizacion'!#REF!,8),ROUND('[1]Tabla de Amortizacion'!K70,8)))))) -> 0
A70: 2030-04-18 | B70: 0.00270605 | C70: =+VLOOKUP(A70,'Tabla de Amortizacion'!$D$2:$P$182,MATCH(Tablas!$B$1,'Tabla de Amortizacion'!$D$2:$P$2,0)) -> 0.00270605 | E70: =IF([1]CALCULADORA!$F$10="Contractual",ROUND('[1]Tabla de Amortizacion'!C71,8),IF([1]CALCULADORA!$F$10="6% (Medio)",ROUND('[1]Tabla de Amortizacion'!F71,8),IF([1]CALCULADORA!$F$10="10% (Medio Alto)",ROUND('[1]Tabla de Amortizacion'!H71,8),IF([1]CALCULADORA!$F$10="14% (Alto)",ROUND('[1]Tabla de Amortizacion'!#REF!,8),IF([1]CALCULADORA!$F$10=20%,ROUND('[1]Tabla de Amortizacion'!#REF!,8),ROUND('[1]Tabla de Amortizacion'!K71,8)))))) -> 0
A71: 2030-05-18 | B71: 0.00260098 | C71: =+VLOOKUP(A71,'Tabla de Amortizacion'!$D$2:$P$182,MATCH(Tablas!$B$1,'Tabla de Amortizacion'!$D$2:$P$2,0)) -> 0.00260098 | E71: =IF([1]CALCULADORA!$F$10="Contractual",ROUND('[1]Tabla de Amortizacion'!C72,8),IF([1]CALCULADORA!$F$10="6% (Medio)",ROUND('[1]Tabla de Amortizacion'!F72,8),IF([1]CALCULADORA!$F$10="10% (Medio Alto)",ROUND('[1]Tabla de Amortizacion'!H72,8),IF([1]CALCULADORA!$F$10="14% (Alto)",ROUND('[1]Tabla de Amortizacion'!#REF!,8),IF([1]CALCULADORA!$F$10=20%,ROUND('[1]Tabla de Amortizacion'!#REF!,8),ROUND('[1]Tabla de Amortizacion'!K72,8)))))) -> 0
A72: 2030-06-18 | B72: 0.00250076 | C72: =+VLOOKUP(A72,'Tabla de Amortizacion'!$D$2:$P$182,MATCH(Tablas!$B$1,'Tabla de Amortizacion'!$D$2:$P$2,0)) -> 0.00250076 | E72: =IF([1]CALCULADORA!$F$10="Contractual",ROUND('[1]Tabla de Amortizacion'!C73,8),IF([1]CALCULADORA!$F$10="6% (Medio)",ROUND('[1]Tabla de Amortizacion'!F73,8),IF([1]CALCULADORA!$F$10="10% (Medio Alto)",ROUND('[1]Tabla de Amortizacion'!H73,8),IF([1]CALCULADORA!$F$10="14% (Alto)",ROUND('[1]Tabla de Amortizacion'!#REF!,8),IF([1]CALCULADORA!$F$10=20%,ROUND('[1]Tabla de Amortizacion'!#REF!,8),ROUND('[1]Tabla de Amortizacion'!K73,8)))))) -> 0
A73: 2030-07-18 | B73: 0.00239931 | C73: =+VLOOKUP(A73,'Tabla de Amortizacion'!$D$2:$P$182,MATCH(Tablas!$B$1,'Tabla de Amortizacion'!$D$2:$P$2,0)) -> 0.00239931 | E73: =IF([1]CALCULADORA!$F$10="Contractual",ROUND('[1]Tabla de Amortizacion'!C74,8),IF([1]CALCULADORA!$F$10="6% (Medio)",ROUND('[1]Tabla de Amortizacion'!F74,8),IF([1]CALCULADORA!$F$10="10% (Medio Alto)",ROUND('[1]Tabla de Amortizacion'!H74,8),IF([1]CALCULADORA!$F$10="14% (Alto)",ROUND('[1]Tabla de Amortizacion'!#REF!,8),IF([1]CALCULADORA!$F$10=20%,ROUND('[1]Tabla de Amortizacion'!#REF!,8),ROUND('[1]Tabla de Amortizacion'!K74,8)))))) -> 0
A74: 2030-08-18 | B74: 0.00230486 | C74: =+VLOOKUP(A74,'Tabla de Amortizacion'!$D$2:$P$182,MATCH(Tablas!$B$1,'Tabla de Amortizacion'!$D$2:$P$2,0)) -> 0.00230486 | E74: =IF([1]CALCULADORA!$F$10="Contractual",ROUND('[1]Tabla de Amortizacion'!C75,8),IF([1]CALCULADORA!$F$10="6% (Medio)",ROUND('[1]Tabla de Amortizacion'!F75,8),IF([1]CALCULADORA!$F$10="10% (Medio Alto)",ROUND('[1]Tabla de Amortizacion'!H75,8),IF([1]CALCULADORA!$F$10="14% (Alto)",ROUND('[1]Tabla de Amortizacion'!#REF!,8),IF([1]CALCULADORA!$F$10=20%,ROUND('[1]Tabla de Amortizacion'!#REF!,8),ROUND('[1]Tabla de Amortizacion'!K75,8)))))) -> 0
A75: 2030-09-18 | B75: 0.00239939 | C75: =+VLOOKUP(A75,'Tabla de Amortizacion'!$D$2:$P$182,MATCH(Tablas!$B$1,'Tabla de Amortizacion'!$D$2:$P$2,0)) -> 0.00239939 | E75: =IF([1]CALCULADORA!$F$10="Contractual",ROUND('[1]Tabla de Amortizacion'!C76,8),IF([1]CALCULADORA!$F$10="6% (Medio)",ROUND('[1]Tabla de Amortizacion'!F76,8),IF([1]CALCULADORA!$F$10="10% (Medio Alto)",ROUND('[1]Tabla de Amortizacion'!H76,8),IF([1]CALCULADORA!$F$10="14% (Alto)",ROUND('[1]Tabla de Amortizacion'!#REF!,8),IF([1]CALCULADORA!$F$10=20%,ROUND('[1]Tabla de Amortizacion'!#REF!,8),ROUND('[1]Tabla de Amortizacion'!K76,8)))))) -> 0
A76: 2030-10-18 | B76: 0.00264252 | C76: =+VLOOKUP(A76,'Tabla de Amortizacion'!$D$2:$P$182,MATCH(Tablas!$B$1,'Tabla de Amortizacion'!$D$2:$P$2,0)) -> 0.00264252 | E76: =IF([1]CALCULADORA!$F$10="Contractual",ROUND('[1]Tabla de Amortizacion'!C77,8),IF([1]CALCULADORA!$F$10="6% (Medio)",ROUND('[1]Tabla de Amortizacion'!F77,8),IF([1]CALCULADORA!$F$10="10% (Medio Alto)",ROUND('[1]Tabla de Amortizacion'!H77,8),IF([1]CALCULADORA!$F$10="14% (Alto)",ROUND('[1]Tabla de Amortizacion'!#REF!,8),IF([1]CALCULADORA!$F$10=20%,ROUND('[1]Tabla de Amortizacion'!#REF!,8),ROUND('[1]Tabla de Amortizacion'!K77,8)))))) -> 0
A77: 2030-11-18 | B77: 0.00254262 | C77: =+VLOOKUP(A77,'Tabla de Amortizacion'!$D$2:$P$182,MATCH(Tablas!$B$1,'Tabla de Amortizacion'!$D$2:$P$2,0)) -> 0.00254262 | E77: =IF([1]CALCULADORA!$F$10="Contractual",ROUND('[1]Tabla de Amortizacion'!C78,8),IF([1]CALCULADORA!$F$10="6% (Medio)",ROUND('[1]Tabla de Amortizacion'!F78,8),IF([1]CALCULADORA!$F$10="10% (Medio Alto)",ROUND('[1]Tabla de Amortizacion'!H78,8),IF([1]CALCULADORA!$F$10="14% (Alto)",ROUND('[1]Tabla de Amortizacion'!#REF!,8),IF([1]CALCULADORA!$F$10=20%,ROUND('[1]Tabla de Amortizacion'!#REF!,8),ROUND('[1]Tabla de Amortizacion'!K78,8)))))) -> 0
A78: 2030-12-18 | B78: 0.00244734 | C78: =+VLOOKUP(A78,'Tabla de Amortizacion'!$D$2:$P$182,MATCH(Tablas!$B$1,'Tabla de Amortizacion'!$D$2:$P$2,0)) -> 0.00244734 | E78: =IF([1]CALCULADORA!$F$10="Contractual",ROUND('[1]Tabla de Amortizacion'!C79,8),IF([1]CALCULADORA!$F$10="6% (Medio)",ROUND('[1]Tabla de Amortizacion'!F79,8),IF([1]CALCULADORA!$F$10="10% (Medio Alto)",ROUND('[1]Tabla de Amortizacion'!H79,8),IF([1]CALCULADORA!$F$10="14% (Alto)",ROUND('[1]Tabla de Amortizacion'!#REF!,8),IF([1]CALCULADORA!$F$10=20%,ROUND('[1]Tabla de Amortizacion'!#REF!,8),ROUND('[1]Tabla de Amortizacion'!K79,8)))))) -> 0
A79: 2031-01-18 | B79: 0.00235364 | C79: =+VLOOKUP(A79,'Tabla de Amortizacion'!$D$2:$P$182,MATCH(Tablas!$B$1,'Tabla de Amortizacion'!$D$2:$P$2,0)) -> 0.00235364 | E79: =IF([1]CALCULADORA!$F$10="Contractual",ROUND('[1]Tabla de Amortizacion'!C80,8),IF([1]CALCULADORA!$F$10="6% (Medio)",ROUND('[1]Tabla de Amortizacion'!F80,8),IF([1]CALCULADORA!$F$10="10% (Medio Alto)",ROUND('[1]Tabla de Amortizacion'!H80,8),IF([1]CALCULADORA!$F$10="14% (Alto)",ROUND('[1]Tabla de Amortizacion'!#REF!,8),IF([1]CALCULADORA!$F$10=20%,ROUND('[1]Tabla de Amortizacion'!#REF!,8),ROUND('[1]Tabla de Amortizacion'!K80,8)))))) -> 0
A80: 2031-02-18 | B80: 0.00226445 | C80: =+VLOOKUP(A80,'Tabla de Amortizacion'!$D$2:$P$182,MATCH(Tablas!$B$1,'Tabla de Amortizacion'!$D$2:$P$2,0)) -> 0.00226445 | E80: =IF([1]CALCULADORA!$F$10="Contractual",ROUND('[1]Tabla de Amortizacion'!C81,8),IF([1]CALCULADORA!$F$10="6% (Medio)",ROUND('[1]Tabla de Amortizacion'!F81,8),IF([1]CALCULADORA!$F$10="10% (Medio Alto)",ROUND('[1]Tabla de Amortizacion'!H81,8),IF([1]CALCULADORA!$F$10="14% (Alto)",ROUND('[1]Tabla de Amortizacion'!#REF!,8),IF([1]CALCULADORA!$F$10=20%,ROUND('[1]Tabla de Amortizacion'!#REF!,8),ROUND('[1]Tabla de Amortizacion'!K81,8)))))) -> 0
A81: 2031-03-18 | B81: 0.00218102 | C81: =+VLOOKUP(A81,'Tabla de Amortizacion'!$D$2:$P$182,MATCH(Tablas!$B$1,'Tabla de Amortizacion'!$D$2:$P$2,0)) -> 0.00218102 | E81: =IF([1]CALCULADORA!$F$10="Contractual",ROUND('[1]Tabla de Amortizacion'!C82,8),IF([1]CALCULADORA!$F$10="6% (Medio)",ROUND('[1]Tabla de Amortizacion'!F82,8),IF([1]CALCULADORA!$F$10="10% (Medio Alto)",ROUND('[1]Tabla de Amortizacion'!H82,8),IF([1]CALCULADORA!$F$10="14% (Alto)",ROUND('[1]Tabla de Amortizacion'!#REF!,8),IF([1]CALCULADORA!$F$10=20%,ROUND('[1]Tabla de Amortizacion'!#REF!,8),ROUND('[1]Tabla de Amortizacion'!K82,8)))))) -> 0
A82: 2031-04-18 | B82: 0.00209895 | C82: =+VLOOKUP(A82,'Tabla de Amortizacion'!$D$2:$P$182,MATCH(Tablas!$B$1,'Tabla de Amortizacion'!$D$2:$P$2,0)) -> 0.00209895 | E82: =IF([1]CALCULADORA!$F$10="Contractual",ROUND('[1]Tabla de Amortizacion'!C83,8),IF([1]CALCULADORA!$F$10="6% (Medio)",ROUND('[1]Tabla de Amortizacion'!F83,8),IF([1]CALCULADORA!$F$10="10% (Medio Alto)",ROUND('[1]Tabla de Amortizacion'!H83,8),IF([1]CALCULADORA!$F$10="14% (Alto)",ROUND('[1]Tabla de Amortizacion'!#REF!,8),IF([1]CALCULADORA!$F$10=20%,ROUND('[1]Tabla de Amortizacion'!#REF!,8),ROUND('[1]Tabla de Amortizacion'!K83,8)))))) -> 0
A83: 2031-05-18 | B83: 0.0020182 | C83: =+VLOOKUP(A83,'Tabla de Amortizacion'!$D$2:$P$182,MATCH(Tablas!$B$1,'Tabla de Amortizacion'!$D$2:$P$2,0)) -> 0.0020182 | E83: =IF([1]CALCULADORA!$F$10="Contractual",ROUND('[1]Tabla de Amortizacion'!C84,8),IF([1]CALCULADORA!$F$10="6% (Medio)",ROUND('[1]Tabla de Amortizacion'!F84,8),IF([1]CALCULADORA!$F$10="10% (Medio Alto)",ROUND('[1]Tabla de Amortizacion'!H84,8),IF([1]CALCULADORA!$F$10="14% (Alto)",ROUND('[1]Tabla de Amortizacion'!#REF!,8),IF([1]CALCULADORA!$F$10=20%,ROUND('[1]Tabla de Amortizacion'!#REF!,8),ROUND('[1]Tabla de Amortizacion'!K84,8)))))) -> 0
A84: 2031-06-18 | B84: 0.00194316 | C84: =+VLOOKUP(A84,'Tabla de Amortizacion'!$D$2:$P$182,MATCH(Tablas!$B$1,'Tabla de Amortizacion'!$D$2:$P$2,0)) -> 0.00194316 | E84: =IF([1]CALCULADORA!$F$10="Contractual",ROUND('[1]Tabla de Amortizacion'!C85,8),IF([1]CALCULADORA!$F$10="6% (Medio)",ROUND('[1]Tabla de Amortizacion'!F85,8),IF([1]CALCULADORA!$F$10="10% (Medio Alto)",ROUND('[1]Tabla de Amortizacion'!H85,8),IF([1]CALCULADORA!$F$10="14% (Alto)",ROUND('[1]Tabla de Amortizacion'!#REF!,8),IF([1]CALCULADORA!$F$10=20%,ROUND('[1]Tabla de Amortizacion'!#REF!,8),ROUND('[1]Tabla de Amortizacion'!K85,8)))))) -> 0
A85: 2031-07-18 | B85: 0.00152815 | C85: =+VLOOKUP(A85,'Tabla de Amortizacion'!$D$2:$P$182,MATCH(Tablas!$B$1,'Tabla de Amortizacion'!$D$2:$P$2,0)) -> 0.00152815 | E85: =IF([1]CALCULADORA!$F$10="Contractual",ROUND('[1]Tabla de Amortizacion'!C86,8),IF([1]CALCULADORA!$F$10="6% (Medio)",ROUND('[1]Tabla de Amortizacion'!F86,8),IF([1]CALCULADORA!$F$10="10% (Medio Alto)",ROUND('[1]Tabla de Amortizacion'!H86,8),IF([1]CALCULADORA!$F$10="14% (Alto)",ROUND('[1]Tabla de Amortizacion'!#REF!,8),IF([1]CALCULADORA!$F$10=20%,ROUND('[1]Tabla de Amortizacion'!#REF!,8),ROUND('[1]Tabla de Amortizacion'!K86,8)))))) -> 0
A86: 2031-08-18 | B86: 0.00179372 | C86: =+VLOOKUP(A86,'Tabla de Amortizacion'!$D$2:$P$182,MATCH(Tablas!$B$1,'Tabla de Amortizacion'!$D$2:$P$2,0)) -> 0.00179372 | E86: =IF([1]CALCULADORA!$F$10="Contractual",ROUND('[1]Tabla de Amortizacion'!C87,8),IF([1]CALCULADORA!$F$10="6% (Medio)",ROUND('[1]Tabla de Amortizacion'!F87,8),IF([1]CALCULADORA!$F$10="10% (Medio Alto)",ROUND('[1]Tabla de Amortizacion'!H87,8),IF([1]CALCULADORA!$F$10="14% (Alto)",ROUND('[1]Tabla de Amortizacion'!#REF!,8),IF([1]CALCULADORA!$F$10=20%,ROUND('[1]Tabla de Amortizacion'!#REF!,8),ROUND('[1]Tabla de Amortizacion'!K87,8)))))) -> 0
A87: 2031-09-18 | B87: 0.00172541 | C87: =+VLOOKUP(A87,'Tabla de Amortizacion'!$D$2:$P$182,MATCH(Tablas!$B$1,'Tabla de Amortizacion'!$D$2:$P$2,0)) -> 0.00172541 | E87: =IF([1]CALCULADORA!$F$10="Contractual",ROUND('[1]Tabla de Amortizacion'!C88,8),IF([1]CALCULADORA!$F$10="6% (Medio)",ROUND('[1]Tabla de Amortizacion'!F88,8),IF([1]CALCULADORA!$F$10="10% (Medio Alto)",ROUND('[1]Tabla de Amortizacion'!H88,8),IF([1]CALCULADORA!$F$10="14% (Alto)",ROUND('[1]Tabla de Amortizacion'!#REF!,8),IF([1]CALCULADORA!$F$10=20%,ROUND('[1]Tabla de Amortizacion'!#REF!,8),ROUND('[1]Tabla de Amortizacion'!K88,8)))))) -> 0
A88: 2031-10-18 | B88: 0.00165945 | C88: =+VLOOKUP(A88,'Tabla de Amortizacion'!$D$2:$P$182,MATCH(Tablas!$B$1,'Tabla de Amortizacion'!$D$2:$P$2,0)) -> 0.00165945 | E88: =IF([1]CALCULADORA!$F$10="Contractual",ROUND('[1]Tabla de Amortizacion'!C89,8),IF([1]CALCULADORA!$F$10="6% (Medio)",ROUND('[1]Tabla de Amortizacion'!F89,8),IF([1]CALCULADORA!$F$10="10% (Medio Alto)",ROUND('[1]Tabla de Amortizacion'!H89,8),IF([1]CALCULADORA!$F$10="14% (Alto)",ROUND('[1]Tabla de Amortizacion'!#REF!,8),IF([1]CALCULADORA!$F$10=20%,ROUND('[1]Tabla de Amortizacion'!#REF!,8),ROUND('[1]Tabla de Amortizacion'!K89,8)))))) -> 0
A89: 2031-11-18 | B89: 0.00159641 | C89: =+VLOOKUP(A89,'Tabla de Amortizacion'!$D$2:$P$182,MATCH(Tablas!$B$1,'Tabla de Amortizacion'!$D$2:$P$2,0)) -> 0.00159641 | E89: =IF([1]CALCULADORA!$F$10="Contractual",ROUND('[1]Tabla de Amortizacion'!C90,8),IF([1]CALCULADORA!$F$10="6% (Medio)",ROUND('[1]Tabla de Amortizacion'!F90,8),IF([1]CALCULADORA!$F$10="10% (Medio Alto)",ROUND('[1]Tabla de Amortizacion'!H90,8),IF([1]CALCULADORA!$F$10="14% (Alto)",ROUND('[1]Tabla de Amortizacion'!#REF!,8),IF([1]CALCULADORA!$F$10=20%,ROUND('[1]Tabla de Amortizacion'!#REF!,8),ROUND('[1]Tabla de Amortizacion'!K90,8)))))) -> 0
A90: 2031-12-18 | B90: 0.00153603 | C90: =+VLOOKUP(A90,'Tabla de Amortizacion'!$D$2:$P$182,MATCH(Tablas!$B$1,'Tabla de Amortizacion'!$D$2:$P$2,0)) -> 0.00153603 | E90: =IF([1]CALCULADORA!$F$10="Contractual",ROUND('[1]Tabla de Amortizacion'!C91,8),IF([1]CALCULADORA!$F$10="6% (Medio)",ROUND('[1]Tabla de Amortizacion'!F91,8),IF([1]CALCULADORA!$F$10="10% (Medio Alto)",ROUND('[1]Tabla de Amortizacion'!H91,8),IF([1]CALCULADORA!$F$10="14% (Alto)",ROUND('[1]Tabla de Amortizacion'!#REF!,8),IF([1]CALCULADORA!$F$10=20%,ROUND('[1]Tabla de Amortizacion'!#REF!,8),ROUND('[1]Tabla de Amortizacion'!K91,8)))))) -> 0
A91: 2032-01-18 | B91: 0.00147417 | C91: =+VLOOKUP(A91,'Tabla de Amortizacion'!$D$2:$P$182,MATCH(Tablas!$B$1,'Tabla de Amortizacion'!$D$2:$P$2,0)) -> 0.00147417 | E91: =IF([1]CALCULADORA!$F$10="Contractual",ROUND('[1]Tabla de Amortizacion'!C92,8),IF([1]CALCULADORA!$F$10="6% (Medio)",ROUND('[1]Tabla de Amortizacion'!F92,8),IF([1]CALCULADORA!$F$10="10% (Medio Alto)",ROUND('[1]Tabla de Amortizacion'!H92,8),IF([1]CALCULADORA!$F$10="14% (Alto)",ROUND('[1]Tabla de Amortizacion'!#REF!,8),IF([1]CALCULADORA!$F$10=20%,ROUND('[1]Tabla de Amortizacion'!#REF!,8),ROUND('[1]Tabla de Amortizacion'!K92,8)))))) -> 0
A92: 2032-02-18 | B92: 0.01880557 | C92: =+VLOOKUP(A92,'Tabla de Amortizacion'!$D$2:$P$182,MATCH(Tablas!$B$1,'Tabla de Amortizacion'!$D$2:$P$2,0)) -> 0.01880557 | E92: =IF([1]CALCULADORA!$F$10="Contractual",ROUND('[1]Tabla de Amortizacion'!C93,8),IF([1]CALCULADORA!$F$10="6% (Medio)",ROUND('[1]Tabla de Amortizacion'!F93,8),IF([1]CALCULADORA!$F$10="10% (Medio Alto)",ROUND('[1]Tabla de Amortizacion'!H93,8),IF([1]CALCULADORA!$F$10="14% (Alto)",ROUND('[1]Tabla de Amortizacion'!#REF!,8),IF([1]CALCULADORA!$F$10=20%,ROUND('[1]Tabla de Amortizacion'!#REF!,8),ROUND('[1]Tabla de Amortizacion'!K93,8)))))) -> 0
A93: 2032-03-18 | B93: 0 | C93: =+VLOOKUP(A93,'Tabla de Amortizacion'!$D$2:$P$182,MATCH(Tablas!$B$1,'Tabla de Amortizacion'!$D$2:$P$2,0)) -> 0 | E93: =IF([1]CALCULADORA!$F$10="Contractual",ROUND('[1]Tabla de Amortizacion'!C94,8),IF([1]CALCULADORA!$F$10="6% (Medio)",ROUND('[1]Tabla de Amortizacion'!F94,8),IF([1]CALCULADORA!$F$10="10% (Medio Alto)",ROUND('[1]Tabla de Amortizacion'!H94,8),IF([1]CALCULADORA!$F$10="14% (Alto)",ROUND('[1]Tabla de Amortizacion'!#REF!,8),IF([1]CALCULADORA!$F$10=20%,ROUND('[1]Tabla de Amortizacion'!#REF!,8),ROUND('[1]Tabla de Amortizacion'!K94,8)))))) -> 0
A94: 2032-04-18 | B94: 0 | C94: =+VLOOKUP(A94,'Tabla de Amortizacion'!$D$2:$P$182,MATCH(Tablas!$B$1,'Tabla de Amortizacion'!$D$2:$P$2,0)) -> 0 | E94: =IF([1]CALCULADORA!$F$10="Contractual",ROUND('[1]Tabla de Amortizacion'!C95,8),IF([1]CALCULADORA!$F$10="6% (Medio)",ROUND('[1]Tabla de Amortizacion'!F95,8),IF([1]CALCULADORA!$F$10="10% (Medio Alto)",ROUND('[1]Tabla de Amortizacion'!H95,8),IF([1]CALCULADORA!$F$10="14% (Alto)",ROUND('[1]Tabla de Amortizacion'!#REF!,8),IF([1]CALCULADORA!$F$10=20%,ROUND('[1]Tabla de Amortizacion'!#REF!,8),ROUND('[1]Tabla de Amortizacion'!K95,8)))))) -> 0
A95: 2032-05-18 | B95: 0 | C95: =+VLOOKUP(A95,'Tabla de Amortizacion'!$D$2:$P$182,MATCH(Tablas!$B$1,'Tabla de Amortizacion'!$D$2:$P$2,0)) -> 0 | E95: =IF([1]CALCULADORA!$F$10="Contractual",ROUND('[1]Tabla de Amortizacion'!C96,8),IF([1]CALCULADORA!$F$10="6% (Medio)",ROUND('[1]Tabla de Amortizacion'!F96,8),IF([1]CALCULADORA!$F$10="10% (Medio Alto)",ROUND('[1]Tabla de Amortizacion'!H96,8),IF([1]CALCULADORA!$F$10="14% (Alto)",ROUND('[1]Tabla de Amortizacion'!#REF!,8),IF([1]CALCULADORA!$F$10=20%,ROUND('[1]Tabla de Amortizacion'!#REF!,8),ROUND('[1]Tabla de Amortizacion'!K96,8)))))) -> 0
A96: 2032-06-18 | B96: 0 | C96: =+VLOOKUP(A96,'Tabla de Amortizacion'!$D$2:$P$182,MATCH(Tablas!$B$1,'Tabla de Amortizacion'!$D$2:$P$2,0)) -> 0 | E96: =IF([1]CALCULADORA!$F$10="Contractual",ROUND('[1]Tabla de Amortizacion'!C97,8),IF([1]CALCULADORA!$F$10="6% (Medio)",ROUND('[1]Tabla de Amortizacion'!F97,8),IF([1]CALCULADORA!$F$10="10% (Medio Alto)",ROUND('[1]Tabla de Amortizacion'!H97,8),IF([1]CALCULADORA!$F$10="14% (Alto)",ROUND('[1]Tabla de Amortizacion'!#REF!,8),IF([1]CALCULADORA!$F$10=20%,ROUND('[1]Tabla de Amortizacion'!#REF!,8),ROUND('[1]Tabla de Amortizacion'!K97,8)))))) -> 0
A97: 2032-07-18 | B97: 0 | C97: =+VLOOKUP(A97,'Tabla de Amortizacion'!$D$2:$P$182,MATCH(Tablas!$B$1,'Tabla de Amortizacion'!$D$2:$P$2,0)) -> 0 | E97: =IF([1]CALCULADORA!$F$10="Contractual",ROUND('[1]Tabla de Amortizacion'!C98,8),IF([1]CALCULADORA!$F$10="6% (Medio)",ROUND('[1]Tabla de Amortizacion'!F98,8),IF([1]CALCULADORA!$F$10="10% (Medio Alto)",ROUND('[1]Tabla de Amortizacion'!H98,8),IF([1]CALCULADORA!$F$10="14% (Alto)",ROUND('[1]Tabla de Amortizacion'!#REF!,8),IF([1]CALCULADORA!$F$10=20%,ROUND('[1]Tabla de Amortizacion'!#REF!,8),ROUND('[1]Tabla de Amortizacion'!K98,8)))))) -> 0
A98: 2032-08-18 | B98: 0 | C98: =+VLOOKUP(A98,'Tabla de Amortizacion'!$D$2:$P$182,MATCH(Tablas!$B$1,'Tabla de Amortizacion'!$D$2:$P$2,0)) -> 0 | E98: =IF([1]CALCULADORA!$F$10="Contractual",ROUND('[1]Tabla de Amortizacion'!C99,8),IF([1]CALCULADORA!$F$10="6% (Medio)",ROUND('[1]Tabla de Amortizacion'!F99,8),IF([1]CALCULADORA!$F$10="10% (Medio Alto)",ROUND('[1]Tabla de Amortizacion'!H99,8),IF([1]CALCULADORA!$F$10="14% (Alto)",ROUND('[1]Tabla de Amortizacion'!#REF!,8),IF([1]CALCULADORA!$F$10=20%,ROUND('[1]Tabla de Amortizacion'!#REF!,8),ROUND('[1]Tabla de Amortizacion'!K99,8)))))) -> 0
A99: 2032-09-18 | B99: 0 | C99: =+VLOOKUP(A99,'Tabla de Amortizacion'!$D$2:$P$182,MATCH(Tablas!$B$1,'Tabla de Amortizacion'!$D$2:$P$2,0)) -> 0 | E99: =IF([1]CALCULADORA!$F$10="Contractual",ROUND('[1]Tabla de Amortizacion'!C100,8),IF([1]CALCULADORA!$F$10="6% (Medio)",ROUND('[1]Tabla de Amortizacion'!F100,8),IF([1]CALCULADORA!$F$10="10% (Medio Alto)",ROUND('[1]Tabla de Amortizacion'!H100,8),IF([1]CALCULADORA!$F$10="14% (Alto)",ROUND('[1]Tabla de Amortizacion'!#REF!,8),IF([1]CALCULADORA!$F$10=20%,ROUND('[1]Tabla de Amortizacion'!#REF!,8),ROUND('[1]Tabla de Amortizacion'!K100,8)))))) -> 0
A100: 2032-10-18 | B100: 0 | C100: =+VLOOKUP(A100,'Tabla de Amortizacion'!$D$2:$P$182,MATCH(Tablas!$B$1,'Tabla de Amortizacion'!$D$2:$P$2,0)) -> 0 | E100: =IF([1]CALCULADORA!$F$10="Contractual",ROUND('[1]Tabla de Amortizacion'!C101,8),IF([1]CALCULADORA!$F$10="6% (Medio)",ROUND('[1]Tabla de Amortizacion'!F101,8),IF([1]CALCULADORA!$F$10="10% (Medio Alto)",ROUND('[1]Tabla de Amortizacion'!H101,8),IF([1]CALCULADORA!$F$10="14% (Alto)",ROUND('[1]Tabla de Amortizacion'!#REF!,8),IF([1]CALCULADORA!$F$10=20%,ROUND('[1]Tabla de Amortizacion'!#REF!,8),ROUND('[1]Tabla de Amortizacion'!K101,8)))))) -> 0
A101: 2032-11-18 | B101: 0 | C101: =+VLOOKUP(A101,'Tabla de Amortizacion'!$D$2:$P$182,MATCH(Tablas!$B$1,'Tabla de Amortizacion'!$D$2:$P$2,0)) -> 0 | E101: =IF([1]CALCULADORA!$F$10="Contractual",ROUND('[1]Tabla de Amortizacion'!C102,8),IF([1]CALCULADORA!$F$10="6% (Medio)",ROUND('[1]Tabla de Amortizacion'!F102,8),IF([1]CALCULADORA!$F$10="10% (Medio Alto)",ROUND('[1]Tabla de Amortizacion'!H102,8),IF([1]CALCULADORA!$F$10="14% (Alto)",ROUND('[1]Tabla de Amortizacion'!#REF!,8),IF([1]CALCULADORA!$F$10=20%,ROUND('[1]Tabla de Amortizacion'!#REF!,8),ROUND('[1]Tabla de Amortizacion'!K102,8)))))) -> 0
A102: 2032-12-18 | B102: 0 | C102: =+VLOOKUP(A102,'Tabla de Amortizacion'!$D$2:$P$182,MATCH(Tablas!$B$1,'Tabla de Amortizacion'!$D$2:$P$2,0)) -> 0 | E102: =IF([1]CALCULADORA!$F$10="Contractual",ROUND('[1]Tabla de Amortizacion'!C103,8),IF([1]CALCULADORA!$F$10="6% (Medio)",ROUND('[1]Tabla de Amortizacion'!F103,8),IF([1]CALCULADORA!$F$10="10% (Medio Alto)",ROUND('[1]Tabla de Amortizacion'!H103,8),IF([1]CALCULADORA!$F$10="14% (Alto)",ROUND('[1]Tabla de Amortizacion'!#REF!,8),IF([1]CALCULADORA!$F$10=20%,ROUND('[1]Tabla de Amortizacion'!#REF!,8),ROUND('[1]Tabla de Amortizacion'!K103,8)))))) -> 0
A103: 2033-01-18 | B103: 0 | C103: =+VLOOKUP(A103,'Tabla de Amortizacion'!$D$2:$P$182,MATCH(Tablas!$B$1,'Tabla de Amortizacion'!$D$2:$P$2,0)) -> 0 | E103: =IF([1]CALCULADORA!$F$10="Contractual",ROUND('[1]Tabla de Amortizacion'!C104,8),IF([1]CALCULADORA!$F$10="6% (Medio)",ROUND('[1]Tabla de Amortizacion'!F104,8),IF([1]CALCULADORA!$F$10="10% (Medio Alto)",ROUND('[1]Tabla de Amortizacion'!H104,8),IF([1]CALCULADORA!$F$10="14% (Alto)",ROUND('[1]Tabla de Amortizacion'!#REF!,8),IF([1]CALCULADORA!$F$10=20%,ROUND('[1]Tabla de Amortizacion'!#REF!,8),ROUND('[1]Tabla de Amortizacion'!K104,8)))))) -> 0
A104: 2033-02-18 | B104: 0 | C104: =+VLOOKUP(A104,'Tabla de Amortizacion'!$D$2:$P$182,MATCH(Tablas!$B$1,'Tabla de Amortizacion'!$D$2:$P$2,0)) -> 0 | E104: =IF([1]CALCULADORA!$F$10="Contractual",ROUND('[1]Tabla de Amortizacion'!C105,8),IF([1]CALCULADORA!$F$10="6% (Medio)",ROUND('[1]Tabla de Amortizacion'!F105,8),IF([1]CALCULADORA!$F$10="10% (Medio Alto)",ROUND('[1]Tabla de Amortizacion'!H105,8),IF([1]CALCULADORA!$F$10="14% (Alto)",ROUND('[1]Tabla de Amortizacion'!#REF!,8),IF([1]CALCULADORA!$F$10=20%,ROUND('[1]Tabla de Amortizacion'!#REF!,8),ROUND('[1]Tabla de Amortizacion'!K105,8)))))) -> 0
A105: 2033-03-18 | B105: 0 | C105: =+VLOOKUP(A105,'Tabla de Amortizacion'!$D$2:$P$182,MATCH(Tablas!$B$1,'Tabla de Amortizacion'!$D$2:$P$2,0)) -> 0 | E105: =IF([1]CALCULADORA!$F$10="Contractual",ROUND('[1]Tabla de Amortizacion'!C106,8),IF([1]CALCULADORA!$F$10="6% (Medio)",ROUND('[1]Tabla de Amortizacion'!F106,8),IF([1]CALCULADORA!$F$10="10% (Medio Alto)",ROUND('[1]Tabla de Amortizacion'!H106,8),IF([1]CALCULADORA!$F$10="14% (Alto)",ROUND('[1]Tabla de Amortizacion'!#REF!,8),IF([1]CALCULADORA!$F$10=20%,ROUND('[1]Tabla de Amortizacion'!#REF!,8),ROUND('[1]Tabla de Amortizacion'!K106,8)))))) -> 0
A106: 2033-04-18 | B106: 0 | C106: =+VLOOKUP(A106,'Tabla de Amortizacion'!$D$2:$P$182,MATCH(Tablas!$B$1,'Tabla de Amortizacion'!$D$2:$P$2,0)) -> 0 | E106: =IF([1]CALCULADORA!$F$10="Contractual",ROUND('[1]Tabla de Amortizacion'!C107,8),IF([1]CALCULADORA!$F$10="6% (Medio)",ROUND('[1]Tabla de Amortizacion'!F107,8),IF([1]CALCULADORA!$F$10="10% (Medio Alto)",ROUND('[1]Tabla de Amortizacion'!H107,8),IF([1]CALCULADORA!$F$10="14% (Alto)",ROUND('[1]Tabla de Amortizacion'!#REF!,8),IF([1]CALCULADORA!$F$10=20%,ROUND('[1]Tabla de Amortizacion'!#REF!,8),ROUND('[1]Tabla de Amortizacion'!K107,8)))))) -> 0
A107: 2033-05-18 | B107: 0 | C107: =+VLOOKUP(A107,'Tabla de Amortizacion'!$D$2:$P$182,MATCH(Tablas!$B$1,'Tabla de Amortizacion'!$D$2:$P$2,0)) -> 0 | E107: =IF([1]CALCULADORA!$F$10="Contractual",ROUND('[1]Tabla de Amortizacion'!C108,8),IF([1]CALCULADORA!$F$10="6% (Medio)",ROUND('[1]Tabla de Amortizacion'!F108,8),IF([1]CALCULADORA!$F$10="10% (Medio Alto)",ROUND('[1]Tabla de Amortizacion'!H108,8),IF([1]CALCULADORA!$F$10="14% (Alto)",ROUND('[1]Tabla de Amortizacion'!#REF!,8),IF([1]CALCULADORA!$F$10=20%,ROUND('[1]Tabla de Amortizacion'!#REF!,8),ROUND('[1]Tabla de Amortizacion'!K108,8)))))) -> 0
A108: 2033-06-18 | B108: 0 | C108: =+VLOOKUP(A108,'Tabla de Amortizacion'!$D$2:$P$182,MATCH(Tablas!$B$1,'Tabla de Amortizacion'!$D$2:$P$2,0)) -> 0 | E108: =IF([1]CALCULADORA!$F$10="Contractual",ROUND('[1]Tabla de Amortizacion'!C109,8),IF([1]CALCULADORA!$F$10="6% (Medio)",ROUND('[1]Tabla de Amortizacion'!F109,8),IF([1]CALCULADORA!$F$10="10% (Medio Alto)",ROUND('[1]Tabla de Amortizacion'!H109,8),IF([1]CALCULADORA!$F$10="14% (Alto)",ROUND('[1]Tabla de Amortizacion'!#REF!,8),IF([1]CALCULADORA!$F$10=20%,ROUND('[1]Tabla de Amortizacion'!#REF!,8),ROUND('[1]Tabla de Amortizacion'!K109,8)))))) -> 0
A109: 2033-07-18 | B109: 0 | C109: =+VLOOKUP(A109,'Tabla de Amortizacion'!$D$2:$P$182,MATCH(Tablas!$B$1,'Tabla de Amortizacion'!$D$2:$P$2,0)) -> 0 | E109: =IF([1]CALCULADORA!$F$10="Contractual",ROUND('[1]Tabla de Amortizacion'!C110,8),IF([1]CALCULADORA!$F$10="6% (Medio)",ROUND('[1]Tabla de Amortizacion'!F110,8),IF([1]CALCULADORA!$F$10="10% (Medio Alto)",ROUND('[1]Tabla de Amortizacion'!H110,8),IF([1]CALCULADORA!$F$10="14% (Alto)",ROUND('[1]Tabla de Amortizacion'!#REF!,8),IF([1]CALCULADORA!$F$10=20%,ROUND('[1]Tabla de Amortizacion'!#REF!,8),ROUND('[1]Tabla de Amortizacion'!K110,8)))))) -> 0
A110: 2033-08-18 | B110: 0 | C110: =+VLOOKUP(A110,'Tabla de Amortizacion'!$D$2:$P$182,MATCH(Tablas!$B$1,'Tabla de Amortizacion'!$D$2:$P$2,0)) -> 0 | E110: =IF([1]CALCULADORA!$F$10="Contractual",ROUND('[1]Tabla de Amortizacion'!C111,8),IF([1]CALCULADORA!$F$10="6% (Medio)",ROUND('[1]Tabla de Amortizacion'!F111,8),IF([1]CALCULADORA!$F$10="10% (Medio Alto)",ROUND('[1]Tabla de Amortizacion'!H111,8),IF([1]CALCULADORA!$F$10="14% (Alto)",ROUND('[1]Tabla de Amortizacion'!#REF!,8),IF([1]CALCULADORA!$F$10=20%,ROUND('[1]Tabla de Amortizacion'!#REF!,8),ROUND('[1]Tabla de Amortizacion'!K111,8)))))) -> 0
A111: 2033-09-18 | B111: 0 | C111: =+VLOOKUP(A111,'Tabla de Amortizacion'!$D$2:$P$182,MATCH(Tablas!$B$1,'Tabla de Amortizacion'!$D$2:$P$2,0)) -> 0 | E111: =IF([1]CALCULADORA!$F$10="Contractual",ROUND('[1]Tabla de Amortizacion'!C112,8),IF([1]CALCULADORA!$F$10="6% (Medio)",ROUND('[1]Tabla de Amortizacion'!F112,8),IF([1]CALCULADORA!$F$10="10% (Medio Alto)",ROUND('[1]Tabla de Amortizacion'!H112,8),IF([1]CALCULADORA!$F$10="14% (Alto)",ROUND('[1]Tabla de Amortizacion'!#REF!,8),IF([1]CALCULADORA!$F$10=20%,ROUND('[1]Tabla de Amortizacion'!#REF!,8),ROUND('[1]Tabla de Amortizacion'!K112,8)))))) -> 0
A112: 2033-10-18 | B112: 0 | C112: =+VLOOKUP(A112,'Tabla de Amortizacion'!$D$2:$P$182,MATCH(Tablas!$B$1,'Tabla de Amortizacion'!$D$2:$P$2,0)) -> 0 | E112: =IF([1]CALCULADORA!$F$10="Contractual",ROUND('[1]Tabla de Amortizacion'!C113,8),IF([1]CALCULADORA!$F$10="6% (Medio)",ROUND('[1]Tabla de Amortizacion'!F113,8),IF([1]CALCULADORA!$F$10="10% (Medio Alto)",ROUND('[1]Tabla de Amortizacion'!H113,8),IF([1]CALCULADORA!$F$10="14% (Alto)",ROUND('[1]Tabla de Amortizacion'!#REF!,8),IF([1]CALCULADORA!$F$10=20%,ROUND('[1]Tabla de Amortizacion'!#REF!,8),ROUND('[1]Tabla de Amortizacion'!K113,8)))))) -> 0
A113: 2033-11-18 | B113: 0 | C113: =+VLOOKUP(A113,'Tabla de Amortizacion'!$D$2:$P$182,MATCH(Tablas!$B$1,'Tabla de Amortizacion'!$D$2:$P$2,0)) -> 0 | E113: =IF([1]CALCULADORA!$F$10="Contractual",ROUND('[1]Tabla de Amortizacion'!C114,8),IF([1]CALCULADORA!$F$10="6% (Medio)",ROUND('[1]Tabla de Amortizacion'!F114,8),IF([1]CALCULADORA!$F$10="10% (Medio Alto)",ROUND('[1]Tabla de Amortizacion'!H114,8),IF([1]CALCULADORA!$F$10="14% (Alto)",ROUND('[1]Tabla de Amortizacion'!#REF!,8),IF([1]CALCULADORA!$F$10=20%,ROUND('[1]Tabla de Amortizacion'!#REF!,8),ROUND('[1]Tabla de Amortizacion'!K114,8)))))) -> 0
A114: 2033-12-18 | B114: 0 | C114: =+VLOOKUP(A114,'Tabla de Amortizacion'!$D$2:$P$182,MATCH(Tablas!$B$1,'Tabla de Amortizacion'!$D$2:$P$2,0)) -> 0 | E114: =IF([1]CALCULADORA!$F$10="Contractual",ROUND('[1]Tabla de Amortizacion'!C115,8),IF([1]CALCULADORA!$F$10="6% (Medio)",ROUND('[1]Tabla de Amortizacion'!F115,8),IF([1]CALCULADORA!$F$10="10% (Medio Alto)",ROUND('[1]Tabla de Amortizacion'!H115,8),IF([1]CALCULADORA!$F$10="14% (Alto)",ROUND('[1]Tabla de Amortizacion'!#REF!,8),IF([1]CALCULADORA!$F$10=20%,ROUND('[1]Tabla de Amortizacion'!#REF!,8),ROUND('[1]Tabla de Amortizacion'!K115,8)))))) -> 0
A115: 2034-01-18 | B115: 0 | C115: =+VLOOKUP(A115,'Tabla de Amortizacion'!$D$2:$P$182,MATCH(Tablas!$B$1,'Tabla de Amortizacion'!$D$2:$P$2,0)) -> 0 | E115: =IF([1]CALCULADORA!$F$10="Contractual",ROUND('[1]Tabla de Amortizacion'!C116,8),IF([1]CALCULADORA!$F$10="6% (Medio)",ROUND('[1]Tabla de Amortizacion'!F116,8),IF([1]CALCULADORA!$F$10="10% (Medio Alto)",ROUND('[1]Tabla de Amortizacion'!H116,8),IF([1]CALCULADORA!$F$10="14% (Alto)",ROUND('[1]Tabla de Amortizacion'!#REF!,8),IF([1]CALCULADORA!$F$10=20%,ROUND('[1]Tabla de Amortizacion'!#REF!,8),ROUND('[1]Tabla de Amortizacion'!K116,8)))))) -> 0
A116: 2034-02-18 | B116: 0 | C116: =+VLOOKUP(A116,'Tabla de Amortizacion'!$D$2:$P$182,MATCH(Tablas!$B$1,'Tabla de Amortizacion'!$D$2:$P$2,0)) -> 0 | E116: =IF([1]CALCULADORA!$F$10="Contractual",ROUND('[1]Tabla de Amortizacion'!C117,8),IF([1]CALCULADORA!$F$10="6% (Medio)",ROUND('[1]Tabla de Amortizacion'!F117,8),IF([1]CALCULADORA!$F$10="10% (Medio Alto)",ROUND('[1]Tabla de Amortizacion'!H117,8),IF([1]CALCULADORA!$F$10="14% (Alto)",ROUND('[1]Tabla de Amortizacion'!#REF!,8),IF([1]CALCULADORA!$F$10=20%,ROUND('[1]Tabla de Amortizacion'!#REF!,8),ROUND('[1]Tabla de Amortizacion'!K117,8)))))) -> 0
A117: 2034-03-18 | B117: 0 | C117: =+VLOOKUP(A117,'Tabla de Amortizacion'!$D$2:$P$182,MATCH(Tablas!$B$1,'Tabla de Amortizacion'!$D$2:$P$2,0)) -> 0 | E117: =IF([1]CALCULADORA!$F$10="Contractual",ROUND('[1]Tabla de Amortizacion'!C118,8),IF([1]CALCULADORA!$F$10="6% (Medio)",ROUND('[1]Tabla de Amortizacion'!F118,8),IF([1]CALCULADORA!$F$10="10% (Medio Alto)",ROUND('[1]Tabla de Amortizacion'!H118,8),IF([1]CALCULADORA!$F$10="14% (Alto)",ROUND('[1]Tabla de Amortizacion'!#REF!,8),IF([1]CALCULADORA!$F$10=20%,ROUND('[1]Tabla de Amortizacion'!#REF!,8),ROUND('[1]Tabla de Amortizacion'!K118,8)))))) -> 0
A118: 2034-04-18 | B118: 0 | C118: =+VLOOKUP(A118,'Tabla de Amortizacion'!$D$2:$P$182,MATCH(Tablas!$B$1,'Tabla de Amortizacion'!$D$2:$P$2,0)) -> 0 | E118: =IF([1]CALCULADORA!$F$10="Contractual",ROUND('[1]Tabla de Amortizacion'!C119,8),IF([1]CALCULADORA!$F$10="6% (Medio)",ROUND('[1]Tabla de Amortizacion'!F119,8),IF([1]CALCULADORA!$F$10="10% (Medio Alto)",ROUND('[1]Tabla de Amortizacion'!H119,8),IF([1]CALCULADORA!$F$10="14% (Alto)",ROUND('[1]Tabla de Amortizacion'!#REF!,8),IF([1]CALCULADORA!$F$10=20%,ROUND('[1]Tabla de Amortizacion'!#REF!,8),ROUND('[1]Tabla de Amortizacion'!K119,8)))))) -> 0
A119: 2034-05-18 | B119: 0 | C119: =+VLOOKUP(A119,'Tabla de Amortizacion'!$D$2:$P$182,MATCH(Tablas!$B$1,'Tabla de Amortizacion'!$D$2:$P$2,0)) -> 0 | E119: =IF([1]CALCULADORA!$F$10="Contractual",ROUND('[1]Tabla de Amortizacion'!C120,8),IF([1]CALCULADORA!$F$10="6% (Medio)",ROUND('[1]Tabla de Amortizacion'!F120,8),IF([1]CALCULADORA!$F$10="10% (Medio Alto)",ROUND('[1]Tabla de Amortizacion'!H120,8),IF([1]CALCULADORA!$F$10="14% (Alto)",ROUND('[1]Tabla de Amortizacion'!#REF!,8),IF([1]CALCULADORA!$F$10=20%,ROUND('[1]Tabla de Amortizacion'!#REF!,8),ROUND('[1]Tabla de Amortizacion'!K120,8)))))) -> 0
A120: 2034-06-18 | B120: 0 | C120: =+VLOOKUP(A120,'Tabla de Amortizacion'!$D$2:$P$182,MATCH(Tablas!$B$1,'Tabla de Amortizacion'!$D$2:$P$2,0)) -> 0 | E120: =IF([1]CALCULADORA!$F$10="Contractual",ROUND('[1]Tabla de Amortizacion'!C121,8),IF([1]CALCULADORA!$F$10="6% (Medio)",ROUND('[1]Tabla de Amortizacion'!F121,8),IF([1]CALCULADORA!$F$10="10% (Medio Alto)",ROUND('[1]Tabla de Amortizacion'!H121,8),IF([1]CALCULADORA!$F$10="14% (Alto)",ROUND('[1]Tabla de Amortizacion'!#REF!,8),IF([1]CALCULADORA!$F$10=20%,ROUND('[1]Tabla de Amortizacion'!#REF!,8),ROUND('[1]Tabla de Amortizacion'!K121,8)))))) -> 0
A121: 2034-07-18 | B121: 0 | C121: =+VLOOKUP(A121,'Tabla de Amortizacion'!$D$2:$P$182,MATCH(Tablas!$B$1,'Tabla de Amortizacion'!$D$2:$P$2,0)) -> 0 | E121: =IF([1]CALCULADORA!$F$10="Contractual",ROUND('[1]Tabla de Amortizacion'!C122,8),IF([1]CALCULADORA!$F$10="6% (Medio)",ROUND('[1]Tabla de Amortizacion'!F122,8),IF([1]CALCULADORA!$F$10="10% (Medio Alto)",ROUND('[1]Tabla de Amortizacion'!H122,8),IF([1]CALCULADORA!$F$10="14% (Alto)",ROUND('[1]Tabla de Amortizacion'!#REF!,8),IF([1]CALCULADORA!$F$10=20%,ROUND('[1]Tabla de Amortizacion'!#REF!,8),ROUND('[1]Tabla de Amortizacion'!K122,8)))))) -> 0
A122: 2034-08-18 | B122: 0 | C122: =+VLOOKUP(A122,'Tabla de Amortizacion'!$D$2:$P$182,MATCH(Tablas!$B$1,'Tabla de Amortizacion'!$D$2:$P$2,0)) -> 0 | E122: =IF([1]CALCULADORA!$F$10="Contractual",ROUND('[1]Tabla de Amortizacion'!C123,8),IF([1]CALCULADORA!$F$10="6% (Medio)",ROUND('[1]Tabla de Amortizacion'!F123,8),IF([1]CALCULADORA!$F$10="10% (Medio Alto)",ROUND('[1]Tabla de Amortizacion'!H123,8),IF([1]CALCULADORA!$F$10="14% (Alto)",ROUND('[1]Tabla de Amortizacion'!#REF!,8),IF([1]CALCULADORA!$F$10=20%,ROUND('[1]Tabla de Amortizacion'!#REF!,8),ROUND('[1]Tabla de Amortizacion'!K123,8)))))) -> 0
A123: 2034-09-18 | B123: 0 | C123: =+VLOOKUP(A123,'Tabla de Amortizacion'!$D$2:$P$182,MATCH(Tablas!$B$1,'Tabla de Amortizacion'!$D$2:$P$2,0)) -> 0 | E123: =IF([1]CALCULADORA!$F$10="Contractual",ROUND('[1]Tabla de Amortizacion'!C124,8),IF([1]CALCULADORA!$F$10="6% (Medio)",ROUND('[1]Tabla de Amortizacion'!F124,8),IF([1]CALCULADORA!$F$10="10% (Medio Alto)",ROUND('[1]Tabla de Amortizacion'!H124,8),IF([1]CALCULADORA!$F$10="14% (Alto)",ROUND('[1]Tabla de Amortizacion'!#REF!,8),IF([1]CALCULADORA!$F$10=20%,ROUND('[1]Tabla de Amortizacion'!#REF!,8),ROUND('[1]Tabla de Amortizacion'!K124,8)))))) -> 0
A124: 2034-10-18 | B124: 0 | C124: =+VLOOKUP(A124,'Tabla de Amortizacion'!$D$2:$P$182,MATCH(Tablas!$B$1,'Tabla de Amortizacion'!$D$2:$P$2,0)) -> 0 | E124: =IF([1]CALCULADORA!$F$10="Contractual",ROUND('[1]Tabla de Amortizacion'!C125,8),IF([1]CALCULADORA!$F$10="6% (Medio)",ROUND('[1]Tabla de Amortizacion'!F125,8),IF([1]CALCULADORA!$F$10="10% (Medio Alto)",ROUND('[1]Tabla de Amortizacion'!H125,8),IF([1]CALCULADORA!$F$10="14% (Alto)",ROUND('[1]Tabla de Amortizacion'!#REF!,8),IF([1]CALCULADORA!$F$10=20%,ROUND('[1]Tabla de Amortizacion'!#REF!,8),ROUND('[1]Tabla de Amortizacion'!K125,8)))))) -> 0
A125: 2034-11-18 | B125: 0 | C125: =+VLOOKUP(A125,'Tabla de Amortizacion'!$D$2:$P$182,MATCH(Tablas!$B$1,'Tabla de Amortizacion'!$D$2:$P$2,0)) -> 0 | E125: =IF([1]CALCULADORA!$F$10="Contractual",ROUND('[1]Tabla de Amortizacion'!C126,8),IF([1]CALCULADORA!$F$10="6% (Medio)",ROUND('[1]Tabla de Amortizacion'!F126,8),IF([1]CALCULADORA!$F$10="10% (Medio Alto)",ROUND('[1]Tabla de Amortizacion'!H126,8),IF([1]CALCULADORA!$F$10="14% (Alto)",ROUND('[1]Tabla de Amortizacion'!#REF!,8),IF([1]CALCULADORA!$F$10=20%,ROUND('[1]Tabla de Amortizacion'!#REF!,8),ROUND('[1]Tabla de Amortizacion'!K126,8)))))) -> 0
A126: 2034-12-18 | B126: 0 | C126: =+VLOOKUP(A126,'Tabla de Amortizacion'!$D$2:$P$182,MATCH(Tablas!$B$1,'Tabla de Amortizacion'!$D$2:$P$2,0)) -> 0 | E126: =IF([1]CALCULADORA!$F$10="Contractual",ROUND('[1]Tabla de Amortizacion'!C127,8),IF([1]CALCULADORA!$F$10="6% (Medio)",ROUND('[1]Tabla de Amortizacion'!F127,8),IF([1]CALCULADORA!$F$10="10% (Medio Alto)",ROUND('[1]Tabla de Amortizacion'!H127,8),IF([1]CALCULADORA!$F$10="14% (Alto)",ROUND('[1]Tabla de Amortizacion'!#REF!,8),IF([1]CALCULADORA!$F$10=20%,ROUND('[1]Tabla de Amortizacion'!#REF!,8),ROUND('[1]Tabla de Amortizacion'!K127,8)))))) -> 0
A127: 2035-01-18 | B127: 0 | C127: =+VLOOKUP(A127,'Tabla de Amortizacion'!$D$2:$P$182,MATCH(Tablas!$B$1,'Tabla de Amortizacion'!$D$2:$P$2,0)) -> 0 | E127: =IF([1]CALCULADORA!$F$10="Contractual",ROUND('[1]Tabla de Amortizacion'!C128,8),IF([1]CALCULADORA!$F$10="6% (Medio)",ROUND('[1]Tabla de Amortizacion'!F128,8),IF([1]CALCULADORA!$F$10="10% (Medio Alto)",ROUND('[1]Tabla de Amortizacion'!H128,8),IF([1]CALCULADORA!$F$10="14% (Alto)",ROUND('[1]Tabla de Amortizacion'!#REF!,8),IF([1]CALCULADORA!$F$10=20%,ROUND('[1]Tabla de Amortizacion'!#REF!,8),ROUND('[1]Tabla de Amortizacion'!K128,8)))))) -> 0
A128: 2035-02-18 | B128: 0 | C128: =+VLOOKUP(A128,'Tabla de Amortizacion'!$D$2:$P$182,MATCH(Tablas!$B$1,'Tabla de Amortizacion'!$D$2:$P$2,0)) -> 0 | E128: =IF([1]CALCULADORA!$F$10="Contractual",ROUND('[1]Tabla de Amortizacion'!C129,8),IF([1]CALCULADORA!$F$10="6% (Medio)",ROUND('[1]Tabla de Amortizacion'!F129,8),IF([1]CALCULADORA!$F$10="10% (Medio Alto)",ROUND('[1]Tabla de Amortizacion'!H129,8),IF([1]CALCULADORA!$F$10="14% (Alto)",ROUND('[1]Tabla de Amortizacion'!#REF!,8),IF([1]CALCULADORA!$F$10=20%,ROUND('[1]Tabla de Amortizacion'!#REF!,8),ROUND('[1]Tabla de Amortizacion'!K129,8)))))) -> 0
A129: 2035-03-18 | B129: 0 | C129: =+VLOOKUP(A129,'Tabla de Amortizacion'!$D$2:$P$182,MATCH(Tablas!$B$1,'Tabla de Amortizacion'!$D$2:$P$2,0)) -> 0 | E129: =IF([1]CALCULADORA!$F$10="Contractual",ROUND('[1]Tabla de Amortizacion'!C130,8),IF([1]CALCULADORA!$F$10="6% (Medio)",ROUND('[1]Tabla de Amortizacion'!F130,8),IF([1]CALCULADORA!$F$10="10% (Medio Alto)",ROUND('[1]Tabla de Amortizacion'!H130,8),IF([1]CALCULADORA!$F$10="14% (Alto)",ROUND('[1]Tabla de Amortizacion'!#REF!,8),IF([1]CALCULADORA!$F$10=20%,ROUND('[1]Tabla de Amortizacion'!#REF!,8),ROUND('[1]Tabla de Amortizacion'!K130,8)))))) -> 0
A130: 2035-04-18 | B130: 0 | C130: =+VLOOKUP(A130,'Tabla de Amortizacion'!$D$2:$P$182,MATCH(Tablas!$B$1,'Tabla de Amortizacion'!$D$2:$P$2,0)) -> 0 | E130: =IF([1]CALCULADORA!$F$10="Contractual",ROUND('[1]Tabla de Amortizacion'!C131,8),IF([1]CALCULADORA!$F$10="6% (Medio)",ROUND('[1]Tabla de Amortizacion'!F131,8),IF([1]CALCULADORA!$F$10="10% (Medio Alto)",ROUND('[1]Tabla de Amortizacion'!H131,8),IF([1]CALCULADORA!$F$10="14% (Alto)",ROUND('[1]Tabla de Amortizacion'!#REF!,8),IF([1]CALCULADORA!$F$10=20%,ROUND('[1]Tabla de Amortizacion'!#REF!,8),ROUND('[1]Tabla de Amortizacion'!K131,8)))))) -> 0
A131: =EDATE(A130,1) -> 2035-05-18 | B131: =+ROUND(C131,8) -> 0 | C131: =+VLOOKUP(A131,'Tabla de Amortizacion'!$D$2:$P$182,MATCH(Tablas!$B$1,'Tabla de Amortizacion'!$D$2:$P$2,0)) -> 0 | E131: =IF([1]CALCULADORA!$F$10="Contractual",ROUND('[1]Tabla de Amortizacion'!C132,8),IF([1]CALCULADORA!$F$10="6% (Medio)",ROUND('[1]Tabla de Amortizacion'!F132,8),IF([1]CALCULADORA!$F$10="10% (Medio Alto)",ROUND('[1]Tabla de Amortizacion'!H132,8),IF([1]CALCULADORA!$F$10="14% (Alto)",ROUND('[1]Tabla de Amortizacion'!#REF!,8),IF([1]CALCULADORA!$F$10=20%,ROUND('[1]Tabla de Amortizacion'!#REF!,8),ROUND('[1]Tabla de Amortizacion'!K132,8)))))) -> 0
A132: 2035-06-18 | B132: 0 | C132: =+VLOOKUP(A132,'Tabla de Amortizacion'!$D$2:$P$182,MATCH(Tablas!$B$1,'Tabla de Amortizacion'!$D$2:$P$2,0)) -> 0 | E132: =IF([1]CALCULADORA!$F$10="Contractual",ROUND('[1]Tabla de Amortizacion'!C133,8),IF([1]CALCULADORA!$F$10="6% (Medio)",ROUND('[1]Tabla de Amortizacion'!F133,8),IF([1]CALCULADORA!$F$10="10% (Medio Alto)",ROUND('[1]Tabla de Amortizacion'!H133,8),IF([1]CALCULADORA!$F$10="14% (Alto)",ROUND('[1]Tabla de Amortizacion'!#REF!,8),IF([1]CALCULADORA!$F$10=20%,ROUND('[1]Tabla de Amortizacion'!#REF!,8),ROUND('[1]Tabla de Amortizacion'!K133,8)))))) -> 0
A133: 2035-07-18 | B133: 0 | C133: =+VLOOKUP(A133,'Tabla de Amortizacion'!$D$2:$P$182,MATCH(Tablas!$B$1,'Tabla de Amortizacion'!$D$2:$P$2,0)) -> 0 | E133: =IF([1]CALCULADORA!$F$10="Contractual",ROUND('[1]Tabla de Amortizacion'!C134,8),IF([1]CALCULADORA!$F$10="6% (Medio)",ROUND('[1]Tabla de Amortizacion'!F134,8),IF([1]CALCULADORA!$F$10="10% (Medio Alto)",ROUND('[1]Tabla de Amortizacion'!H134,8),IF([1]CALCULADORA!$F$10="14% (Alto)",ROUND('[1]Tabla de Amortizacion'!#REF!,8),IF([1]CALCULADORA!$F$10=20%,ROUND('[1]Tabla de Amortizacion'!#REF!,8),ROUND('[1]Tabla de Amortizacion'!K134,8)))))) -> 0
A134: 2035-08-18 | B134: 0 | C134: =+VLOOKUP(A134,'Tabla de Amortizacion'!$D$2:$P$182,MATCH(Tablas!$B$1,'Tabla de Amortizacion'!$D$2:$P$2,0)) -> 0 | E134: =IF([1]CALCULADORA!$F$10="Contractual",ROUND('[1]Tabla de Amortizacion'!C135,8),IF([1]CALCULADORA!$F$10="6% (Medio)",ROUND('[1]Tabla de Amortizacion'!F135,8),IF([1]CALCULADORA!$F$10="10% (Medio Alto)",ROUND('[1]Tabla de Amortizacion'!H135,8),IF([1]CALCULADORA!$F$10="14% (Alto)",ROUND('[1]Tabla de Amortizacion'!#REF!,8),IF([1]CALCULADORA!$F$10=20%,ROUND('[1]Tabla de Amortizacion'!#REF!,8),ROUND('[1]Tabla de Amortizacion'!K135,8)))))) -> 0
A135: 2035-09-18 | B135: 0 | C135: =+VLOOKUP(A135,'Tabla de Amortizacion'!$D$2:$P$182,MATCH(Tablas!$B$1,'Tabla de Amortizacion'!$D$2:$P$2,0)) -> 0 | E135: =IF([1]CALCULADORA!$F$10="Contractual",ROUND('[1]Tabla de Amortizacion'!C136,8),IF([1]CALCULADORA!$F$10="6% (Medio)",ROUND('[1]Tabla de Amortizacion'!F136,8),IF([1]CALCULADORA!$F$10="10% (Medio Alto)",ROUND('[1]Tabla de Amortizacion'!H136,8),IF([1]CALCULADORA!$F$10="14% (Alto)",ROUND('[1]Tabla de Amortizacion'!#REF!,8),IF([1]CALCULADORA!$F$10=20%,ROUND('[1]Tabla de Amortizacion'!#REF!,8),ROUND('[1]Tabla de Amortizacion'!K136,8)))))) -> 0
A136: 2035-10-18 | B136: 0 | C136: =+VLOOKUP(A136,'Tabla de Amortizacion'!$D$2:$P$182,MATCH(Tablas!$B$1,'Tabla de Amortizacion'!$D$2:$P$2,0)) -> 0 | E136: =IF([1]CALCULADORA!$F$10="Contractual",ROUND('[1]Tabla de Amortizacion'!C137,8),IF([1]CALCULADORA!$F$10="6% (Medio)",ROUND('[1]Tabla de Amortizacion'!F137,8),IF([1]CALCULADORA!$F$10="10% (Medio Alto)",ROUND('[1]Tabla de Amortizacion'!H137,8),IF([1]CALCULADORA!$F$10="14% (Alto)",ROUND('[1]Tabla de Amortizacion'!#REF!,8),IF([1]CALCULADORA!$F$10=20%,ROUND('[1]Tabla de Amortizacion'!#REF!,8),ROUND('[1]Tabla de Amortizacion'!K137,8)))))) -> 0
A137: 2035-11-18 | B137: 0 | C137: =+VLOOKUP(A137,'Tabla de Amortizacion'!$D$2:$P$182,MATCH(Tablas!$B$1,'Tabla de Amortizacion'!$D$2:$P$2,0)) -> 0 | E137: =IF([1]CALCULADORA!$F$10="Contractual",ROUND('[1]Tabla de Amortizacion'!C138,8),IF([1]CALCULADORA!$F$10="6% (Medio)",ROUND('[1]Tabla de Amortizacion'!F138,8),IF([1]CALCULADORA!$F$10="10% (Medio Alto)",ROUND('[1]Tabla de Amortizacion'!H138,8),IF([1]CALCULADORA!$F$10="14% (Alto)",ROUND('[1]Tabla de Amortizacion'!#REF!,8),IF([1]CALCULADORA!$F$10=20%,ROUND('[1]Tabla de Amortizacion'!#REF!,8),ROUND('[1]Tabla de Amortizacion'!K138,8)))))) -> 0
A138: 2035-12-18 | B138: 0 | C138: =+VLOOKUP(A138,'Tabla de Amortizacion'!$D$2:$P$182,MATCH(Tablas!$B$1,'Tabla de Amortizacion'!$D$2:$P$2,0)) -> 0 | E138: =IF([1]CALCULADORA!$F$10="Contractual",ROUND('[1]Tabla de Amortizacion'!C139,8),IF([1]CALCULADORA!$F$10="6% (Medio)",ROUND('[1]Tabla de Amortizacion'!F139,8),IF([1]CALCULADORA!$F$10="10% (Medio Alto)",ROUND('[1]Tabla de Amortizacion'!H139,8),IF([1]CALCULADORA!$F$10="14% (Alto)",ROUND('[1]Tabla de Amortizacion'!#REF!,8),IF([1]CALCULADORA!$F$10=20%,ROUND('[1]Tabla de Amortizacion'!#REF!,8),ROUND('[1]Tabla de Amortizacion'!K139,8)))))) -> 0
A139: 2036-01-18 | B139: 0 | C139: =+VLOOKUP(A139,'Tabla de Amortizacion'!$D$2:$P$182,MATCH(Tablas!$B$1,'Tabla de Amortizacion'!$D$2:$P$2,0)) -> 0 | E139: =IF([1]CALCULADORA!$F$10="Contractual",ROUND('[1]Tabla de Amortizacion'!C140,8),IF([1]CALCULADORA!$F$10="6% (Medio)",ROUND('[1]Tabla de Amortizacion'!F140,8),IF([1]CALCULADORA!$F$10="10% (Medio Alto)",ROUND('[1]Tabla de Amortizacion'!H140,8),IF([1]CALCULADORA!$F$10="14% (Alto)",ROUND('[1]Tabla de Amortizacion'!#REF!,8),IF([1]CALCULADORA!$F$10=20%,ROUND('[1]Tabla de Amortizacion'!#REF!,8),ROUND('[1]Tabla de Amortizacion'!K140,8)))))) -> 0
A140: 2036-02-18 | B140: 0 | C140: =+VLOOKUP(A140,'Tabla de Amortizacion'!$D$2:$P$182,MATCH(Tablas!$B$1,'Tabla de Amortizacion'!$D$2:$P$2,0)) -> 0 | E140: =IF([1]CALCULADORA!$F$10="Contractual",ROUND('[1]Tabla de Amortizacion'!C141,8),IF([1]CALCULADORA!$F$10="6% (Medio)",ROUND('[1]Tabla de Amortizacion'!F141,8),IF([1]CALCULADORA!$F$10="10% (Medio Alto)",ROUND('[1]Tabla de Amortizacion'!H141,8),IF([1]CALCULADORA!$F$10="14% (Alto)",ROUND('[1]Tabla de Amortizacion'!#REF!,8),IF([1]CALCULADORA!$F$10=20%,ROUND('[1]Tabla de Amortizacion'!#REF!,8),ROUND('[1]Tabla de Amortizacion'!K141,8)))))) -> 0
A141: 2036-03-18 | B141: 0 | C141: =+VLOOKUP(A141,'Tabla de Amortizacion'!$D$2:$P$182,MATCH(Tablas!$B$1,'Tabla de Amortizacion'!$D$2:$P$2,0)) -> 0 | E141: =IF([1]CALCULADORA!$F$10="Contractual",ROUND('[1]Tabla de Amortizacion'!C142,8),IF([1]CALCULADORA!$F$10="6% (Medio)",ROUND('[1]Tabla de Amortizacion'!F142,8),IF([1]CALCULADORA!$F$10="10% (Medio Alto)",ROUND('[1]Tabla de Amortizacion'!H142,8),IF([1]CALCULADORA!$F$10="14% (Alto)",ROUND('[1]Tabla de Amortizacion'!#REF!,8),IF([1]CALCULADORA!$F$10=20%,ROUND('[1]Tabla de Amortizacion'!#REF!,8),ROUND('[1]Tabla de Amortizacion'!K142,8)))))) -> 0
A142: 2036-04-18 | B142: 0 | C142: =+VLOOKUP(A142,'Tabla de Amortizacion'!$D$2:$P$182,MATCH(Tablas!$B$1,'Tabla de Amortizacion'!$D$2:$P$2,0)) -> 0 | E142: =IF([1]CALCULADORA!$F$10="Contractual",ROUND('[1]Tabla de Amortizacion'!C143,8),IF([1]CALCULADORA!$F$10="6% (Medio)",ROUND('[1]Tabla de Amortizacion'!F143,8),IF([1]CALCULADORA!$F$10="10% (Medio Alto)",ROUND('[1]Tabla de Amortizacion'!H143,8),IF([1]CALCULADORA!$F$10="14% (Alto)",ROUND('[1]Tabla de Amortizacion'!#REF!,8),IF([1]CALCULADORA!$F$10=20%,ROUND('[1]Tabla de Amortizacion'!#REF!,8),ROUND('[1]Tabla de Amortizacion'!K143,8)))))) -> 0
A143: 2036-05-18 | B143: 0 | C143: =+VLOOKUP(A143,'Tabla de Amortizacion'!$D$2:$P$182,MATCH(Tablas!$B$1,'Tabla de Amortizacion'!$D$2:$P$2,0)) -> 0 | E143: =IF([1]CALCULADORA!$F$10="Contractual",ROUND('[1]Tabla de Amortizacion'!C144,8),IF([1]CALCULADORA!$F$10="6% (Medio)",ROUND('[1]Tabla de Amortizacion'!F144,8),IF([1]CALCULADORA!$F$10="10% (Medio Alto)",ROUND('[1]Tabla de Amortizacion'!H144,8),IF([1]CALCULADORA!$F$10="14% (Alto)",ROUND('[1]Tabla de Amortizacion'!#REF!,8),IF([1]CALCULADORA!$F$10=20%,ROUND('[1]Tabla de Amortizacion'!#REF!,8),ROUND('[1]Tabla de Amortizacion'!K144,8)))))) -> 0
A144: 2036-06-18 | B144: 0 | C144: =+VLOOKUP(A144,'Tabla de Amortizacion'!$D$2:$P$182,MATCH(Tablas!$B$1,'Tabla de Amortizacion'!$D$2:$P$2,0)) -> 0 | E144: =IF([1]CALCULADORA!$F$10="Contractual",ROUND('[1]Tabla de Amortizacion'!C145,8),IF([1]CALCULADORA!$F$10="6% (Medio)",ROUND('[1]Tabla de Amortizacion'!F145,8),IF([1]CALCULADORA!$F$10="10% (Medio Alto)",ROUND('[1]Tabla de Amortizacion'!H145,8),IF([1]CALCULADORA!$F$10="14% (Alto)",ROUND('[1]Tabla de Amortizacion'!#REF!,8),IF([1]CALCULADORA!$F$10=20%,ROUND('[1]Tabla de Amortizacion'!#REF!,8),ROUND('[1]Tabla de Amortizacion'!K145,8)))))) -> 0
A145: 2036-07-18 | B145: 0 | C145: =+VLOOKUP(A145,'Tabla de Amortizacion'!$D$2:$P$182,MATCH(Tablas!$B$1,'Tabla de Amortizacion'!$D$2:$P$2,0)) -> 0 | E145: =IF([1]CALCULADORA!$F$10="Contractual",ROUND('[1]Tabla de Amortizacion'!C146,8),IF([1]CALCULADORA!$F$10="6% (Medio)",ROUND('[1]Tabla de Amortizacion'!F146,8),IF([1]CALCULADORA!$F$10="10% (Medio Alto)",ROUND('[1]Tabla de Amortizacion'!H146,8),IF([1]CALCULADORA!$F$10="14% (Alto)",ROUND('[1]Tabla de Amortizacion'!#REF!,8),IF([1]CALCULADORA!$F$10=20%,ROUND('[1]Tabla de Amortizacion'!#REF!,8),ROUND('[1]Tabla de Amortizacion'!K146,8)))))) -> 0
A146: 2036-08-18 | B146: 0 | C146: =+VLOOKUP(A146,'Tabla de Amortizacion'!$D$2:$P$182,MATCH(Tablas!$B$1,'Tabla de Amortizacion'!$D$2:$P$2,0)) -> 0 | E146: =IF([1]CALCULADORA!$F$10="Contractual",ROUND('[1]Tabla de Amortizacion'!C147,8),IF([1]CALCULADORA!$F$10="6% (Medio)",ROUND('[1]Tabla de Amortizacion'!F147,8),IF([1]CALCULADORA!$F$10="10% (Medio Alto)",ROUND('[1]Tabla de Amortizacion'!H147,8),IF([1]CALCULADORA!$F$10="14% (Alto)",ROUND('[1]Tabla de Amortizacion'!#REF!,8),IF([1]CALCULADORA!$F$10=20%,ROUND('[1]Tabla de Amortizacion'!#REF!,8),ROUND('[1]Tabla de Amortizacion'!K147,8)))))) -> 0
A147: 2036-09-18 | B147: 0 | C147: =+VLOOKUP(A147,'Tabla de Amortizacion'!$D$2:$P$182,MATCH(Tablas!$B$1,'Tabla de Amortizacion'!$D$2:$P$2,0)) -> 0 | E147: =IF([1]CALCULADORA!$F$10="Contractual",ROUND('[1]Tabla de Amortizacion'!C148,8),IF([1]CALCULADORA!$F$10="6% (Medio)",ROUND('[1]Tabla de Amortizacion'!F148,8),IF([1]CALCULADORA!$F$10="10% (Medio Alto)",ROUND('[1]Tabla de Amortizacion'!H148,8),IF([1]CALCULADORA!$F$10="14% (Alto)",ROUND('[1]Tabla de Amortizacion'!#REF!,8),IF([1]CALCULADORA!$F$10=20%,ROUND('[1]Tabla de Amortizacion'!#REF!,8),ROUND('[1]Tabla de Amortizacion'!K148,8)))))) -> 0
A148: 2036-10-18 | B148: 0 | C148: =+VLOOKUP(A148,'Tabla de Amortizacion'!$D$2:$P$182,MATCH(Tablas!$B$1,'Tabla de Amortizacion'!$D$2:$P$2,0)) -> 0 | E148: =IF([1]CALCULADORA!$F$10="Contractual",ROUND('[1]Tabla de Amortizacion'!C149,8),IF([1]CALCULADORA!$F$10="6% (Medio)",ROUND('[1]Tabla de Amortizacion'!F149,8),IF([1]CALCULADORA!$F$10="10% (Medio Alto)",ROUND('[1]Tabla de Amortizacion'!H149,8),IF([1]CALCULADORA!$F$10="14% (Alto)",ROUND('[1]Tabla de Amortizacion'!#REF!,8),IF([1]CALCULADORA!$F$10=20%,ROUND('[1]Tabla de Amortizacion'!#REF!,8),ROUND('[1]Tabla de Amortizacion'!K149,8)))))) -> 0
A149: 2036-11-18 | B149: 0 | C149: =+VLOOKUP(A149,'Tabla de Amortizacion'!$D$2:$P$182,MATCH(Tablas!$B$1,'Tabla de Amortizacion'!$D$2:$P$2,0)) -> 0 | E149: =IF([1]CALCULADORA!$F$10="Contractual",ROUND('[1]Tabla de Amortizacion'!C150,8),IF([1]CALCULADORA!$F$10="6% (Medio)",ROUND('[1]Tabla de Amortizacion'!F150,8),IF([1]CALCULADORA!$F$10="10% (Medio Alto)",ROUND('[1]Tabla de Amortizacion'!H150,8),IF([1]CALCULADORA!$F$10="14% (Alto)",ROUND('[1]Tabla de Amortizacion'!#REF!,8),IF([1]CALCULADORA!$F$10=20%,ROUND('[1]Tabla de Amortizacion'!#REF!,8),ROUND('[1]Tabla de Amortizacion'!K150,8)))))) -> 0
A150: 2036-12-18 | B150: 0 | C150: =+VLOOKUP(A150,'Tabla de Amortizacion'!$D$2:$P$182,MATCH(Tablas!$B$1,'Tabla de Amortizacion'!$D$2:$P$2,0)) -> 0 | E150: =IF([1]CALCULADORA!$F$10="Contractual",ROUND('[1]Tabla de Amortizacion'!C151,8),IF([1]CALCULADORA!$F$10="6% (Medio)",ROUND('[1]Tabla de Amortizacion'!F151,8),IF([1]CALCULADORA!$F$10="10% (Medio Alto)",ROUND('[1]Tabla de Amortizacion'!H151,8),IF([1]CALCULADORA!$F$10="14% (Alto)",ROUND('[1]Tabla de Amortizacion'!#REF!,8),IF([1]CALCULADORA!$F$10=20%,ROUND('[1]Tabla de Amortizacion'!#REF!,8),ROUND('[1]Tabla de Amortizacion'!K151,8)))))) -> 0
A151: 2037-01-18 | B151: 0 | C151: =+VLOOKUP(A151,'Tabla de Amortizacion'!$D$2:$P$182,MATCH(Tablas!$B$1,'Tabla de Amortizacion'!$D$2:$P$2,0)) -> 0 | E151: =IF([1]CALCULADORA!$F$10="Contractual",ROUND('[1]Tabla de Amortizacion'!C152,8),IF([1]CALCULADORA!$F$10="6% (Medio)",ROUND('[1]Tabla de Amortizacion'!F152,8),IF([1]CALCULADORA!$F$10="10% (Medio Alto)",ROUND('[1]Tabla de Amortizacion'!H152,8),IF([1]CALCULADORA!$F$10="14% (Alto)",ROUND('[1]Tabla de Amortizacion'!#REF!,8),IF([1]CALCULADORA!$F$10=20%,ROUND('[1]Tabla de Amortizacion'!#REF!,8),ROUND('[1]Tabla de Amortizacion'!K152,8)))))) -> 0
A152: 2037-02-18 | B152: 0 | C152: =+VLOOKUP(A152,'Tabla de Amortizacion'!$D$2:$P$182,MATCH(Tablas!$B$1,'Tabla de Amortizacion'!$D$2:$P$2,0)) -> 0 | E152: =IF([1]CALCULADORA!$F$10="Contractual",ROUND('[1]Tabla de Amortizacion'!C153,8),IF([1]CALCULADORA!$F$10="6% (Medio)",ROUND('[1]Tabla de Amortizacion'!F153,8),IF([1]CALCULADORA!$F$10="10% (Medio Alto)",ROUND('[1]Tabla de Amortizacion'!H153,8),IF([1]CALCULADORA!$F$10="14% (Alto)",ROUND('[1]Tabla de Amortizacion'!#REF!,8),IF([1]CALCULADORA!$F$10=20%,ROUND('[1]Tabla de Amortizacion'!#REF!,8),ROUND('[1]Tabla de Amortizacion'!K153,8)))))) -> 0
